Workbook

Sheet 任務
C2: 達成状況 | E2: ネジ 報酬 | F2: 対象 | G2: 出撃 | J2: 到達 | M2: 撃破 | P2: S勝利 | S2: 期限 | T2: 出現条件 | W2: 前日までの週内達成フラグ | Y2: 本日の日付下一桁(午前5時更新)
C3: 本日 | D3: 週内 | Y3: =MOD(IF(HOUR(NOW())<5,DAY(TODAY()-1),DAY(TODAY())),10) -> 4
B4: 敵艦隊を撃破せよ! | C4: =IF(AND(G4>=I4,J4>=L4,M4>=O4),"達成","遂行中") -> 達成 | D4: =IF(W4=1,"達成",IF(C4="達成","達成","未達成")) -> 達成 | F4: 任意 | M4: 1 | N4: / | O4: 1 | S4: 1日 | T4: 最初から | W4: 1
B5: 敵艦隊主力を撃滅せよ! | C5: =IF(AND(G5>=I5,J5>=L5,M5>=O5),"達成",IF(C4="達成","遂行中","未発生")) -> 達成 | D5: 達成 | F5: 任意 | M5: 1 | N5: / | O5: 1 | S5: 1日 | T5: 敵艦隊を撃破せよ!達成後 | W5: 1
B6: 敵艦隊を10回邀撃せよ! | C6: =IF(AND(G6>=I6,J6>=L6,M6>=O6),"達成",IF(C5="達成","遂行中","未発生")) -> 達成 | D6: 達成 | F6: 任意 | J6: 11 | K6: / | L6: 10 | S6: 1日 | T6: 敵艦隊主力を撃滅せよ!達成後 | W6: 1
B7: 敵空母を3隻撃沈せよ! | C7: =IF(OR($Y$3=0,$Y$3=3,$Y$3=7),IF(AND(G7>=I7,J7>=L7,M7>=O7),"達成",IF(C4="達成","遂行中","未発生")),"非番") -> 非番 | D7: 達成 | F7: 空母 | M7: 0 | N7: / | O7: 3 | S7: 1日 | T7: 敵艦隊を撃破せよ!達成後日付の一の位が3,7,0の日のみ出現 | W7: 1
B8: 敵補給艦を3隻撃沈せよ! | C8: =IF(AND(G8>=I8,J8>=L8,M8>=O8),"達成",IF(C5="達成","遂行中","未発生")) -> 達成 | D8: 達成 | F8: 補給艦 | M8: 3 | N8: / | O8: 3 | S8: 1日 | T8: 敵艦隊主力を撃滅せよ！達成後 | W8: 1
B9: 敵輸送船団を叩け！ | C9: =IF(OR($Y$3=2,$Y$3=8),IF(AND(G9>=I9,J9>=L9,M9>=O9),"達成",IF(C4="達成","遂行中","未発生")),"非番") -> 非番 | D9: 達成 | F9: 補給艦 | M9: 0 | N9: / | O9: 5 | S9: 1日 | T9: 敵艦隊を撃破せよ!達成後日付の一の位が2,8の日のみ出現 | W9: 1
B10: 南西諸島海域の制海権を握れ! | C10: =IF(AND(G10>=I10,J10>=L10,M10>=O10),"達成",IF(C8="達成","遂行中","未発生")) -> 遂行中 | D10: 達成 | F10: 2ボス | M10: 0 | N10: / | O10: 5 | S10: 1日 | T10: 敵補給艦を3隻撃沈せよ!達成後 | W10: 1
B11: 敵潜水艦を制圧せよ! | C11: =IF(AND(G11>=I11,J11>=L11,M11>=O11),"達成",IF(C10="達成","遂行中","未発生")) -> 未発生 | D11: 達成 | F11: 潜水艦 | M11: 0 | N11: / | O11: 6 | S11: 1日 | T11: 南西諸島海域の制海権を握れ!達成後 | W11: 1
C12: 今週 | D12: 月内 | F12: . | W12: 前週までの月内達成フラグ
B13: あ号作戦 | C13: =IF(AND(G13>=I13,J13>=L13,M13>=O13,P13>=R13),"達成",IF(D5="達成","遂行中","未発生")) -> 達成 | D13: =IF(W13=1,"達成",IF(C13="達成","達成","未達成")) -> 達成 | F13: ボス | G13: 36 | H13: / | I13: 36 | J13: 24 | K13: / | L13: 24 | M13: 12 | N13: / | O13: 12 | P13: 6 | Q13: / | R13: 6 | S13: 1週間 | T13: 敵艦隊主力を撃滅せよ!達成後 | W13: 0 | X13: =MOD(IF(HOUR(NOW())<5,DAY(TODAY()-1),DAY(TODAY())),10) -> 4
B14: い号作戦 | C14: =IF(AND(G14>=I14,J14>=L14,M14>=O14),"達成",IF(D8="達成","遂行中","未発生")) -> 達成 | D14: 達成 | F14: 空母 | M14: 20 | N14: / | O14: 20 | S14: 1週間 | T14: 敵補給艦を3隻撃沈せよ!達成後 | W14: 0
B15: 海上通商破壊作戦 | C15: =IF(AND(G15>=I15,J15>=L15,M15>=O15),"達成",IF(D5="達成","遂行中","未発生")) -> 達成 | D15: 達成 | F15: 補給艦 | M15: 20 | N15: / | O15: 20 | S15: 1週間 | T15: 敵艦隊主力を撃滅せよ!達成後 | W15: 0
B16: ろ号作戦 | C16: =IF(AND(G16>=I16,J16>=L16,M16>=O16),"達成",IF(C13="達成","遂行中","未発生")) -> 達成 | D16: 達成 | F16: 補給艦 | M16: 50 | N16: / | O16: 50 | S16: 1週間 | T16: あ号作戦達成後 | W16: 0
B17: 海上護衛戦 | C17: =IF(AND(G17>=I17,J17>=L17,M17>=O17),"達成",IF(C14="達成","遂行中","未発生")) -> 達成 | D17: 達成 | E17: 1 | F17: 潜水艦 | M17: 24 | N17: / | O17: 15 | S17: 1週間 | T17: い号作戦達成後 | W17: 0
B18: 敵東方艦隊を撃滅せよ! | C18: =IF(AND(G18>=I18,J18>=L18,M18>=O18),"達成",IF(C17="達成","遂行中","未発生")) -> 遂行中 | D18: 未達成 | F18: 4ボス | M18: 4 | N18: / | O18: 12 | S18: 1週間 | T18: 海上護衛戦達成後 | W18: 0
B19: 敵北方艦隊主力を撃滅せよ! | C19: =IF(AND(G19>=I19,J19>=L19,M19>=O19),"達成",IF(C17="達成","遂行中","未発生")) -> 達成 | D19: 達成 | E19: 3 | F19: 3-3～3-5ボス | M19: 5 | N19: / | O19: 5 | S19: 1週間 | T19: 海上護衛戦達成後 | W19: 0
B20: 敵東方中枢艦隊を撃破せよ! | C20: =IF(AND(G20>=I20,J20>=L20,M20>=O20),"達成",IF(C18="達成","遂行中","未発生")) -> 未発生 | D20: 未達成 | E20: 1 | F20: 4-4ボス | M20: 0 | N20: / | O20: 1 | S20: 1週間 | T20: 敵東方艦隊を撃滅せよ!達成後 | W20: 0
B21: 南方海域珊瑚諸島沖の制空権を握れ! | C21: =IF(AND(G21>=I21,J21>=L21,M21>=O21,P21>=R21),"達成",IF(C20="達成","遂行中","未発生")) -> 未発生 | D21: 未達成 | E21: 2 | F21: 5-2ボス | P21: 0 | Q21: / | R21: 2 | S21: 1週間 | T21: 南方海域珊瑚諸島沖の制空権を握れ!達成後 | W21: 0
B22: 海上輸送路の安全確保に努めよ! | C22: =IF(AND(G22>=I22,J22>=L22,M22>=O22,P22>=R22),"達成",IF(C16="達成","遂行中","未発生")) -> 達成 | D22: 達成 | E22: 3 | F22: 1-5ボスA以上 | M22: 3 | N22: / | O22: 3 | S22: 1週間 | T22: ろ号作戦達成後 | W22: 0
C23: 今月
B24: 「第五戦隊」出撃せよ! | C24: =IF(AND(G24>=I24,J24>=L24,M24>=O24,P24>=R24),"達成","遂行中") -> 達成 | F24: 2-5ボス | P24: 1 | Q24: / | R24: 1 | S24: 1箇月
B25: 「潜水艦隊」出撃せよ! | C25: =IF(AND(G25>=I25,J25>=L25,M25>=O25,P25>=R25),"達成","遂行中") -> 遂行中 | F25: 6-1ボス | P25: 0 | Q25: / | R25: 3 | S25: 1箇月
B26: 「水雷戦隊」南西へ! | C26: =IF(AND(G26>=I26,J26>=L26,M26>=O26,P26>=R26),"達成",IF(D16="達成","遂行中","未発生")) -> 達成 | E26: 3 | F26: 1-4ボス | P26: 1 | Q26: / | R26: 1 | S26: 1箇月 | T26: ろ号作戦達成後
B27: 「水上打撃部隊」南方へ! | C27: =IF(AND(G27>=I27,J27>=L27,M27>=O27,P27>=R27),"達成","遂行中") -> 遂行中 | E27: 4 | F27: 5-1ボス | P27: 0 | Q27: / | R27: 1 | S27: 1箇月 | W27: 0.27 | Y27: 800
B28: 海上護衛強化月間 | C28: =IF(AND(G28>=I28,J28>=L28,M28>=O28,P28>=R28),"達成",IF(C24="達成","遂行中","未発生")) -> 達成 | E28: 3 | F28: 1-5ボスA以上 | M28: 10 | N28: / | O28: 10 | S28: 1箇月 | T28: 「第五戦隊」出撃せよ!達成後 | Y28: 960
B29: 「空母機動部隊」西へ! | C29: =IF(AND(G29>=I29,J29>=L29,M29>=O29,P29>=R29),"達成",IF(D16="達成","遂行中","未発生")) -> 達成 | E29: 2 | F29: 4-2ボス | P29: 1 | Q29: / | R29: 1 | S29: 1箇月 | T29: ろ号作戦達成後 | Y29: =Y27*W27 -> 216
B30: 「水上反撃部隊」突入せよ! | C30: =IF(AND(G30>=I30,J30>=L30,M30>=O30,P30>=R30),"達成",IF(C29="達成","遂行中","未発生")) -> 達成 | E30: 2 | F30: 2-5ボス | P30: 1 | Q30: / | R30: 1 | S30: 1箇月 | T30: 「空母機動部隊」西へ! | Y30: =Y28*W27 -> 259.2
B32: 敵艦隊を撃破せよ! | C32: 敵艦隊主力を撃滅せよ! | J32: 敵艦隊を10回邀撃せよ!
J33: 敵補給艦を3隻撃沈せよ! | P33: 南西諸島海域の制海権を握れ! | T33: 敵潜水艦を制圧せよ!
P34: い号作戦 | T34: 海上護衛戦 | U34: 敵東方艦隊を撃滅せよ! | V34: 敵東方中枢艦隊を撃破せよ! | X34: 南方海域珊瑚諸島沖の制空権を握れ!
U35: 敵北方艦隊主力を撃滅せよ!
J36: あ号作戦 | P36: ろ号作戦 | T36: 海上輸送路の安全確保に努めよ!
T37: 「水雷戦隊」南西へ!
T38: 「空母機動部隊」西へ! | U38: 「水上反撃部隊」突入せよ!
J39: 海上通商破壊作戦
C40: 敵空母を3隻撃沈せよ! | T40: 3,4,5 | U40: 5-5 | W40: あ号
C41: 敵輸送船団を叩け! | T41: 6,7,8 | U41: 3-5 | W41: 敵北方艦隊主力撃滅
B42: 「第五戦隊」出撃せよ! | C42: 海上護衛強化月間 | T42: 9,10,11 | U42: 4-5
B43: 「潜水艦隊」出撃せよ! | T43: 12,1,2 | U43: 6-5
B44: 「水上打撃部隊」南方へ! | W44: 水上打撃部隊南方へ
W45: い号
B46: 出撃任務達成状況管理シート | W46: ろ号
B47: 動作環境:Microsoft Excel 2007以降 | W47: 空母機動部隊西へ | Y47: 東方艦隊
B48: ※マクロを有効にしないとカウントアップボタンやリセットボタンが動作しません。 | U48: 2-5 | W48: 水上反撃部隊 | Y48: 南西諸島海域
T49: =5/6 -> 0.8333333333 | W49: 第五戦隊
B50: 更新履歴 | U50: 1-5 | W50: 敵潜水艦制圧
B51: ver.1.7.2(2015/12/31) | C51: 夜戦カットイン発動率の計算式をアップデートしました。 | W51: 海上護衛戦
B52: ver.1.7.1(2015/11/23) | C52: 対潜攻撃力の計算式を最新にアップデートしました。 | W52: 海上輸送路安全確保
C53: これまでの期間に実装された艦娘や装備のデータを入力しました。 | W53: 海上護衛強化月間
B54: ver.1.7.0(2015/8/11) | C54: 熟練度タブ(艦載機熟練度管理表)を追加しました。効果がまだ判明していないので編成には適用されません。 | U54: 1-6 | Y54: 強行輸送任務(Q)
B55: ver.1.6.14(2015/7/31) | C55: バランス修正に伴い基礎情報データベースの阿賀野改、能代改、矢矧改、酒匂改の火力を修正しました。 | W55: 水雷戦隊南西へ | Y55: 沖ノ島海域迎撃戦(Q)
B56: ver.1.6.13(2015/7/21) | C56: 基礎情報データベースに15m二重測距儀+21号電探改二を追加しました。 | Y56: 前線の航空偵察(Q)
B57: ver.1.6.12(2015/7/17) | C57: 基礎情報データベースに阿武隈改二を追加しました。 | Y57: Z作戦前段(Q)
C58: 装備改修タブに32号対水上電探、32号対水上電探改を追加しました。 | W58: 0
B59: ver.1.6.11(2015/7/3) | C59: 基礎情報データベースに入れ忘れていた暁改二を追加しました。
B60: ver.1.6.10(2015/6/26) | C60: 装備改修タブに22号対水上電探、22号対水上電探改四を追加しました。
B61: ver.1.6.9(2015/6/12) | C61: 基礎情報データベースに加古改二を追加しました。
C62: 装備改修タブに13号対空電探、13号対空電探改、21号対空電探、21号対空電探改を追加しました。
B63: ver.1.6.8(2015/5/29) | C63: 基礎情報データベースに96式150cm探照灯を追加しました。
C64: 装備改修タブに15.2cm単装砲、15.2cm連装砲改、探照灯、96式150cm探照灯を追加しました。
B65: ver.1.6.7(2015/5/19) | C65: 基礎情報データベースに15.2cm連装砲改を追加しました。
C66: 装備改修タブに試製51cm連装砲、15.2cm単装砲を追加しました。
B67: ver.1.6.6(2015/5/5) | C67: 基礎情報データベースに高波、高波改、秋津洲、秋津洲改、葛城、葛城改、リットリオ、イタリア、ローマ、ローマ改を追加しました。
C68: 基礎情報データベースに381mm/50 三連装砲改、90mm単装高角砲、OTO 152mm三連装速射砲、 プリエーゼ式水中防御隔壁、二式大艇を追加しました。
C69: 装備改修タブに381mm/50 三連装砲、381mm/50 三連装砲改、90mm単装高角砲、OTO 152mm三連装速射砲を追加しました。
B70: ver.1.6.5(2015/4/23) | C70: 基礎情報データベースに睦月改二、如月改二を追加しました。
B71: ver.1.6.4(2015/4/17) | C71: 基礎情報データベースに381mm/50三連装砲を追加しました。
B72: ver.1.6.3(2015/4/13) | C72: 基礎情報データベースに叢雲改二を追加しました。
B73: ver.1.6.2(2015/3/28) | C73: 基礎情報データベースに鳥海改二を追加しました。
B74: ver.1.6.1(2015/3/19) | C74: 装備改修タブに摩耶改二担当分を追加しました。
C75: 基礎情報データベースに摩耶改二を追加しました。
C76: 基礎情報データベースに零式水中聴音機を追加しました。
B77: ver.1.6.0(2015/3/1) | C77: 編成タブで装備分類ごとの改修強化係数(※現在判明している限り)を反映するようにしました。
C78: 装備改修タブに46cm三連装砲、試製46cm連装砲、38cm連装砲改、38cm連装砲を追加しました。
C79: 装備改修タブの検索性が悪くなってきたので並びを装備分類順に変更しました。
B80: ver.1.5.14(2015/2/18) | C80: 基礎情報データベースに天城、天城改、U-511、U-511改、呂500、香取、香取改、朝霜、朝霜改を追加しました。
C81: 基礎情報データベースに熟練見張員を追加しました。
B82: ver.1.5.13(2015/1/24) | C82: 基礎情報データベースに初霜改二、那智改二を追加しました。
C83: 装備改修タブに九一式徹甲弾と一式徹甲弾を追加しました。
B84: ver.1.5.12(2015/1/9) | C84: 基礎情報データベースに吹雪改二、61cm三連装(酸素)魚雷を追加しました。
C85: 装備改修タブに九三式水中聴音機、三式水中聴音機、61cm三連装魚雷、61cm三連装(酸素)魚雷を追加しました。94式高射装置の2番艦に吹雪改二を追加しました。
C86: 装備改修タブが縦長になってきたので行間を詰めました。
B87: ver.1.5.11(2015/1/5) | C87: ランキンググラフの日付表示に不具合があったので修正しました。
B88: ver.1.5.10(2015/1/5) | C88: 出撃任務タブの 「水上反撃部隊」突入せよ! の撃破対象、出現条件、リセット動作に不具合があったので修正しました。
B89: ver.1.5.9(2015/1/3) | C89: 修理タブに艦種とレベルから算出する方式を追加しました。
B90: ver.1.5.8(2015/1/3) | C90: 修理タブ(泊地修理に関する計算機)を追加しました。
B91: ver.1.5.7(2015/1/1) | C91: マンスリー任務に 「水上反撃部隊」突入せよ! を追加しました。
B92: ver.1.5.6(2014/12/31) | C92: 基礎情報データベースに足柄改二、山雲、山雲改を追加しました。
B93: ver.1.5.5(2014/12/6) | C93: 装備改修タブで本日改修可能装備と翌日改修可能装備をハイライトするようにしました。
B94: ver.1.5.4(2014/12/5) | C94: 索敵値計算式を2-5式(秋)に修正しました。
B95: ver.1.5.3(2014/12/4) | C95: 出撃タブにネジ(改修資材)報酬一覧を追加しました。
B96: ver.1.5.2(2014/12/2) | C96: 基礎情報データベースに古鷹改二を追加しました。
C97: 出撃タブのマンスリー出撃任務に新任務を追加しました。
B98: ver.1.5.1(2014/11/29) | C98: 改修可能装備の種類と所持数の増加に対応可能にするために装備改修タブのレイアウトを変更しました。
B99: ver.1.5.0(2014/11/26) | C99: 装備改修タブを追加しました。タブが増えすぎたので普段使っていないマップデータタブの幾つかを右端に寄せました。
B100: ver.1.4.7(2014/11/20) | C100: 基礎情報データベースに山城改二を追加しました。
B101: ver.1.4.6(2014/11/18) | C101: 基礎情報データベースに流星(六〇一空)を追加しました。
B102: ver.1.4.5(2014/11/18) | C102: 基礎情報データベースに潮改二、秋月、秋月改、朝雲、朝雲改、野分、野分改、プリンツ・オイゲン、プリンツ・オイゲン改を追加しました。
B103: ver.1.4.4(2014/11/16) | C103: 基礎情報データベースに91式高射装置、94式高射装置、10cm連装高角砲＋高射装置、SKC34 20.3cm連装砲、FuMO25 レーダーを追加しました。
B104: ver.1.4.3(2014/11/15) | C104: 伊勢、日向の水上機搭載数のアップデートを反映していなかったので修正しました。連合艦隊第2艦隊旗艦の夜戦カットイン発動率に旗艦ボーナスが入っていなかったので修正しました。
B105: ver.1.4.2(2014/11/3) | C105: 編成タブにおいて敵味方制空値0同士で味方艦上攻撃機・艦上爆撃機・水上爆撃機の合計数0(※航空戦が発生しない)の場合にも「制空権確保」と表示されていたので、「航空均衡」になるように修正しました。
B106: ver.1.4.1(2014/10/29) | C106: 改修進度の★による性能向上に暫定対応しました。(※それぞれの装備の火力、雷撃、対潜パラメータが0ではない場合に√★を加算、実際の攻撃力は全装備合計後に小数点以下切り捨てとして計算)
B107: ver.1.4.0(2014/10/25) | C107: マンスリー出撃任務に対応しました。
C108: ウィークリー出撃任務に「海上輸送路の安全確保に努めよ!」を追加しました。
C109: 2014/10/24アップデートに伴う装備パラメータ変更に対応しました。
C110: 基礎情報データベースに扶桑改二を追加しました。
C111: 基礎情報データベースに14cm連装砲を追加しました。
B112: ver.1.3.8(2014/10/13) | C112: 基礎情報データベースに試製46cm連装砲と紫雲を追加しました。
B113: ver.1.3.7(2014/10/11) | C113: 基礎情報データベースに一式徹甲弾と初春改二を追加しました。
B114: ver.1.3.6(2014/10/1) | C114: ビスマルクdreiと付随装備を基礎情報データベースに追加しました。空母ヲ級Flagsip新艦載機の制空値を修正しました。
B115: ver.1.3.5(2014/9/28) | C115: 潜水艦の雷装値が入ってなかったので入力しました。潜水空母に魚雷を装備した場合に航空攻撃力が表示される不具合を修正しました。
B116: ver.1.3.4(2014/9/13) | C116: 対空装備のパラメータ修正に対応しました。
B117: ver.1.3.3(2014/8/31) | C117: 編成タブで航空攻撃力の第4スロットの艦種判定に誤りがあったので修正しました。
B118: ver.1.3.2(2014/8/29) | C118: 基礎情報データベースに隼鷹改二を追加しました。
B119: ver.1.3.1(2014/8/27) | C119: 編成タブで連合艦隊随伴艦隊の制空値を制空値合計に入れていたので除外するように修正しました。
B120: ver.1.3.0(2014/8/26) | C120: 自動計算を更に航空戦、雷撃戦、夜戦、対潜戦に対応し、名称を[編成]タブに変更しました。
B121: ver.1.2.3(2014/8/25) | C121: 結局全艦艇に対応しました。
B122: ver.1.2.2(2014/8/24) | C122: 攻撃力計算を軽巡以上まで対応しました。
B123: ver.1.2.1(2014/8/23) | C123: ついでに空母攻撃力の計算機も統合しました。
B124: ver.1.2.0(2014/8/23) | C124: 従来の索敵値計算シートを制空値と索敵値の統合計算シートにしました。
B125: ver.1.1.1(2014/2/10) | C125: 任務追加の影響でリセットボタンの動作に不具合が発生していたので修正しました。
B126: ver.1.1.0(2014/1/30) | C126: 新任務を3つ追加しました。
B127: ver.1.0.4(2013/12/26) | C127: あ号作戦の到達要求数の誤りを修正しました。(25→24)
B128: ver.1.0.3(2013/10/10) | C128: カウントアップボタンのマクロ関数を最適化しました。
B129: ver.1.0.2(2013/10/08) | C129: 海上通商破壊作戦の遂行中フラグが日付またぎに正常に対応していなかったため修正しました。
B130: ver.1.0.1(2013/10/04) | C130: 日付下一桁の条件で発生する任務の達成フラグが日付更新リセット時に保存されない不具合を修正しました。
B131: ver.1.0.0(2013/10/01) | C131: 公開しました。

Sheet 戦意
B2: ○ | C2: 神風改 | D2: 3 | H2: ○ | I2: 睦月改二 | J2: 6 | L2: 北方 | O2: 天龍改 | P2: 4 | U2: 伊勢改 | V2: 3 | X2: 100 | AA2: 5-4周回 | AG2: 千歳甲 | AH2: 4 | AL2: -3 | AM2: 未入手
B3: ○ | C3: 朝風改 | D3: 5 | H3: ○ | I3: 如月改二 | J3: 6 | L3: 北方 | O3: 龍田改 | P3: 5 | U3: 日向改 | V3: 3 | X3: 100 | Z3: ○ | AA3: 伊8改 | AB3: 0 | AG3: 千代田甲 | AH3: 4 | AL3: -2 | AM3: 未改造
B4: 3 | C4: 春風改 | D4: 3 | H4: ○ | I4: 皐月改二 | J4: 0 | O4: 鬼怒改二 | P4: 3 | R4: 85 | T4: ○ | U4: 扶桑改二 | V4: 3 | X4: 100 | Z4: ○ | AA4: 伊13改 | AB4: 0 | AD4: 49 | AF4: ○ | AG4: 秋津洲改 | AH4: 3 | AJ4: 85 | AL4: -1 | AM4: 近代化改修中
B5: 4 | C5: 松風改 | D5: 5 | H5: ○ | I5: 文月改二 | J5: 0 | N5: ○ | O5: 阿武隈改二 | P5: 2 | R5: 74 | T5: ○ | U5: 山城改二 | V5: 3 | X5: 100 | Z5: ○ | AA5: 伊14改 | AB5: 0 | AF5: ○ | AG5: 瑞穂改 | AH5: 0 | AJ5: 49 | AL5: 0 | AM5: キラ付け成功回数
B6: 5 | C6: 旗風 | D6: 5 | H6: ○ | I6: ヴェールヌイ | J6: 0 | N6: ○ | O6: 由良改二 | P6: 1 | R6: 60 | Z6: ○ | AA6: 伊19改 | AB6: 0 | AG6: コマンダン・テスト改 | AH6: 3 | AJ6: 98 | AL6: 1
H7: ○ | I7: 江風改二 | J7: 0 | L7: 海上1 | O7: 球磨改 | P7: 3 | T7: ○ | U7: 大和改 | V7: 3 | X7: 100 | Z7: ○ | AA7: 伊26改 | AB7: 0 | AL7: 2
C8: 弥生改 | D8: 4 | H8: ○ | I8: 朝潮改二丁 | J8: 0 | L8: 海上1 | O8: 多摩改二 | P8: 3 | T8: ○ | U8: 武蔵改 | V8: 3 | X8: 100 | Z8: ○ | AA8: 伊58改 | AB8: 0 | AD8: 49 | AG8: あきつ丸改 | AH8: 3 | AJ8: 100 | AL8: 3
C9: 卯月改 | D9: 3 | H9: ○ | I9: 大潮改二 | J9: 5 | L9: 海上2 | T9: ○ | U9: 長門改二 | V9: 3 | X9: 100 | Z9: ○ | AA9: 伊168改 | AB9: 0 | AG9: 明石改 | AH9: 3 | AJ9: 85 | AL9: 4 | AM9: 遠征参加1回以上 | AO9: =1/5.39 -> 0.185528757
C10: 水無月改 | D10: 3 | H10: ○ | I10: 満潮改 | J10: 3 | O10: 長良改 | P10: 0 | R10: 85 | T10: ○ | U10: 陸奥改 | V10: 3 | X10: 100 | AA10: 伊400改 | AB10: 0 | AF10: ○ | AG10: 大鯨 | AH10: 0 | AJ10: 49 | AL10: 5 | AM10: 常設遠征参加中
C11: 長月改 | D11: 3 | H11: ○ | I11: 荒潮改二 | J11: 3 | N11: ○ | O11: 五十鈴改二 | P11: 3 | R11: 85 | T11: ○ | U11: ウォースパイト改 | V11: 3 | X11: 100 | Z11: ○ | AA11: 伊401改 | AB11: 0 | AD11: 55 | AF11: ○ | AG11: 速吸改 | AH11: 3 | AJ11: 85 | AL11: 6 | AM11: キラ無しで遠征参加
C12: 菊月改 | D12: 3 | H12: ○ | I12: 霞改二 | J12: 5 | L12: 海上2 | O12: 名取改 | P12: 5 | R12: 85 | T12: ○ | U12: ガングート・ドゥヴァ | V12: 3 | X12: 100 | Z12: ○ | AA12: 伊504 | AB12: 0 | AG12: 神威改母 | AH12: 3 | AJ12: 100 | AN12: 缶 | AO12: キラ
C13: 三日月改 | D13: 4 | N13: ○ | O13: 川内改二 | P13: 0 | R13: 49 | Z13: ○ | AA13: 呂500 | AB13: 0 | AM13: 北方鼠輸送 | AN13: 4 | AO13: 4
C14: 望月改 | D14: 4 | H14: 1 | I14: 吹雪改二 | J14: 0 | L14: 49 | N14: ○ | O14: 神通改二 | P14: 0 | R14: 49 | T14: ○ | U14: 金剛改二 | V14: 3 | X14: 100 | AA14: まるゆ改 | AB14: 0 | AG14: 1-5 | AM14: 東京急行 | AN14: 5 | AO14: 4
H15: 5 | I15: 叢雲改二 | J15: 2 | L15: 70 | N15: ○ | O15: 那珂改二 | P15: 0 | R15: 53 | T15: ○ | U15: 比叡改二 | V15: 3 | X15: 100 | Y15: 53 | AM15: 東京急行(弐) | AN15: 10 | AO15: 4
B16: 2 | C16: 白雪改 | D16: 4 | H16: ○ | I16: 綾波改二 | J16: 0 | L16: 49 | N16: ○ | O16: 阿賀野改 | P16: 3 | R16: 85 | T16: ○ | U16: 榛名改二 | V16: 3 | X16: 100 | AA16: 伊8 | AB16: 0 | AG16: 1-6 | AM16: 北方海上護衛 | AN16: 4 | AO16: 4
B17: 3 | C17: 初雪改 | D17: 4 | H17: ○ | I17: 潮改二 | J17: 0 | L17: 49 | N17: ○ | O17: 能代改 | P17: 3 | R17: 85 | T17: ○ | U17: 霧島改二 | V17: 3 | X17: 100 | AA17: 伊19改 | AB17: 0 | AG17: =O6 -> 由良改二 | AH17: =P6 -> 1 | AI17: =R6 -> 60 | AM17: 水上機前線輸送 | AN17: 4 | AO17: 4
B18: 4 | C18: 深雪改 | D18: 4 | H18: ○ | I18: 暁改二 | J18: 0 | L18: 49 | N18: ○ | O18: 矢矧改 | P18: 3 | R18: 85 | T18: ○ | U18: ビスマルクdrei | V18: 3 | X18: 100 | AA18: 伊58改 | AB18: 0 | AG18: =I22 -> 夕立改二 | AH18: =J22 -> 0 | AI18: =L22 -> 49
B19: 9 | C19: 磯波改 | D19: 3 | H19: 1 | I19: 初春改二 | J19: 2 | L19: 70 | O19: 酒匂改 | P19: 3 | R19: 85 | T19: ○ | U19: イタリア改 | V19: 3 | X19: 100 | AA19: 伊168改 | AB19: 0 | AG19: =I16 -> 綾波改二 | AH19: =J16 -> 0 | AI19: =L16 -> 49 | AM19: 5-5
B20: 10 | C20: 浦波改 | D20: 3 | H20: 4 | I20: 初霜改二 | J20: 1 | L20: 67 | N20: ○ | O20: 夕張改 | P20: 3 | R20: 85 | T20: ○ | U20: ローマ改 | V20: 3 | X20: 100 | AA20: まるゆ改 | AB20: 0 | AG20: =I28 -> 雪風改 | AH20: =J28 -> 3 | AI20: =L28 -> 85 | AM20: =U18 -> ビスマルクdrei | AN20: =V18 -> 3 | AO20: =X18 -> 100
B21: 2 | C21: 敷波改 | D21: 3 | H21: ○ | I21: 時雨改二 | J21: 1 | L21: 67 | N21: ○ | O21: 大淀改 | P21: 2 | R21: 72 | T21: ○ | U21: アイオワ改 | V21: 3 | X21: 100 | AG21: =I42 -> 島風改 | AH21: =J42 -> 0 | AI21: =L42 -> 49 | AM21: =U7 -> 大和改 | AN21: =V7 -> 3 | AO21: =X7 -> 100
B22: 5 | C22: 天霧 | D22: 3 | H22: ○ | I22: 夕立改二 | J22: 0 | L22: 49 | T22: ○ | U22: リシュリュー改 | V22: 0 | X22: 49 | AA22: 2-3周回 | AG22: =I38 -> 秋月改 | AH22: =J38 -> 0 | AI22: =L38 -> 49 | AM22: =U8 -> 武蔵改 | AN22: =V8 -> 3 | AO22: =X8 -> 100
B23: 6 | C23: 狭霧 | D23: 3 | H23: ○ | I23: 朝雲改 | J23: 3 | N23: ○ | O23: 香取改 | P23: 3 | R23: 85 | AA23: 伊8 | AB23: 0 | AM23: =AA11 -> 伊401改 | AN23: =AB11 -> 0 | AO23: =AD11 -> 55
B24: 7 | C24: 朧改 | D24: 3 | H24: 6 | I24: 山雲改 | J24: 1 | N24: ○ | O24: 鹿島改 | P24: 3 | R24: 85 | T24: ○ | U24: 千歳航改二 | V24: 3 | X24: 85 | AA24: 伊19 | AB24: 0 | AG24: 2-5 | AM24: =AA4 -> 伊13改 | AN24: =AB4 -> 0 | AO24: =AD4 -> 49
B25: 8 | C25: 曙改 | D25: 0 | H25: 1 | I25: 陽炎改 | J25: 3 | L25: 85 | T25: ○ | U25: 千代田航改二 | V25: 3 | X25: 85 | AA25: 伊58 | AB25: 0 | AG25: =I22 -> 夕立改二 | AH25: =J22 -> 0 | AI25: =L22 -> 49 | AM25: =AA8 -> 伊58改 | AN25: =AB8 -> 0 | AO25: =AD8 -> 49
B26: 9 | C26: 漣改 | D26: 0 | F26: ↑ | H26: ○ | I26: 不知火改 | J26: 3 | L26: 85 | N26: ○ | O26: 大井改二 | P26: 0 | R26: 49 | U26: 鳳翔改 | V26: 3 | X26: 85 | AA26: 伊168改 | AB26: 0 | AG26: =O43 -> ザラdue | AH26: =P43 -> 0 | AI26: =R43 -> 49
B27: 3 | C27: 雷改 | D27: 4 | F27: ↑ | H27: 7 | I27: 初風改 | J27: 3 | L27: 85 | N27: ○ | O27: 北上改二 | P27: 3 | R27: 85 | T27: ○ | U27: 龍驤改二 | V27: 3 | X27: 85 | AA27: 伊401改 | AB27: 0 | AG27: =O21 -> 大淀改 | AH27: =P21 -> 2 | AI27: =R21 -> 72 | AM27: =U15 -> 比叡改二 | AN27: =V15 -> 3 | AO27: =X15 -> 100
B28: 4 | C28: 電改 | D28: 0 | F28: ↑ | H28: ○ | I28: 雪風改 | J28: 3 | L28: 85 | N28: ○ | O28: 木曾改二 | P28: 3 | R28: 85 | T28: ○ | U28: 飛鷹改 | V28: 0 | X28: 49 | AA28: U-511改 | AB28: 0 | AG28: =I16 -> 綾波改二 | AH28: =J16 -> 0 | AI28: =L16 -> 49 | AM28: =U17 -> 霧島改二 | AN28: =V17 -> 3 | AO28: =X17 -> 100
B29: 2 | C29: 子日改 | D29: 3 | H29: 9 | I29: 天津風改 | J29: 3 | L29: 85 | T29: ○ | U29: 隼鷹改二 | V29: 3 | X29: 85 | AG29: =I28 -> 雪風改 | AH29: =J28 -> 3 | AI29: =L28 -> 85 | AM29: =U33 -> 鈴谷航改二 | AN29: =V33 -> 3 | AO29: =X33 -> 85
B30: 3 | C30: 若葉改 | D30: 3 | H30: 10 | I30: 時津風改 | J30: 3 | L30: 85 | N30: ○ | O30: 古鷹改二 | P30: 3 | R30: 85 | T30: ○ | U30: 祥鳳改 | V30: 3 | X30: 85 | AA30: 伊8 | AB30: 0 | AG30: =I42 -> 島風改 | AH30: =J42 -> 0 | AI30: =L42 -> 49 | AM30: =U34 -> 熊野航改二 | AN30: =V34 -> 3 | AO30: =X34 -> 85
B31: 1 | C31: 白露改 | D31: 3 | H31: 11 | I31: 浦風改 | J31: 3 | L31: 85 | N31: ○ | O31: 加古改二 | P31: 3 | R31: 85 | T31: ○ | U31: 瑞鳳改 | V31: 3 | X31: 85 | AA31: 伊19 | AB31: 0 | AM31: =I21 -> 時雨改二 | AN31: =J20 -> 1 | AO31: =L20 -> 67
B32: 3 | C32: 村雨改 | D32: 3 | H32: ○ | I32: 磯風改 | J32: 3 | L32: 85 | N32: ○ | O32: 青葉改 | P32: 4 | R32: 85 | U32: 龍鳳改 | V32: 3 | X32: 85 | AA32: 伊58 | AB32: 0 | AG32: =O34 -> 妙高改二 | AH32: 3 | AI32: =R34 -> 81 | AM32: =I20 -> 初霜改二 | AN32: =J21 -> 1 | AO32: =L21 -> 67
B33: 5 | C33: 春雨改 | D33: 3 | H33: 13 | I33: 浜風改 | J33: 3 | L33: 84 | O33: 衣笠改二 | P33: 3 | R33: 85 | T33: ○ | U33: 鈴谷航改二 | V33: 3 | X33: 85 | AA33: 伊168改 | AB33: 0 | AG33: 那智改二 | AH33: 3 | AI33: =R35 -> 85
B34: 6 | C34: 五月雨改 | D34: 3 | H34: 14 | I34: 谷風改 | J34: 3 | L34: 85 | N34: ○ | O34: 妙高改二 | P34: 3 | R34: 81 | T34: ○ | U34: 熊野航改二 | V34: 3 | X34: 85 | AA34: 伊401改 | AB34: 0 | AG34: 足柄改二 | AH34: 1 | AI34: =R36 -> 67 | AM34: =U11 -> ウォースパイト改 | AN34: =V11 -> 3 | AO34: =X11 -> 100
B35: 7 | C35: 海風改 | D35: 3 | H35: ○ | I35: 嵐改 | J35: 1 | L35: 49 | N35: ○ | O35: 那智改二 | P35: 3 | R35: 85 | U35: 大鷹改 | V35: 1 | X35: 60 | AA35: 呂500 | AB35: 0 | AG35: 羽黒改二 | AH35: 1 | AI35: =R37 -> 65 | AM35: =U10 -> 陸奥改 | AN35: =V10 -> 3 | AO35: =X10 -> 100
B36: 8 | C36: 山風改 | D36: 3 | H36: ○ | I36: 長波改二 | J36: 0 | L36: 49 | N36: ○ | O36: 足柄改二 | P36: 1 | R36: 67 | AG36: =O46 -> 利根改二 | AH36: =P46 -> 0 | AI36: =R46 -> 49 | AM36: =U39 -> 蒼龍改二 | AN36: =V39 -> 3 | AO36: =X39 -> 85
B37: 10 | C37: 涼風改 | D37: 3 | H37: ○ | I37: 朝霜改 | J37: 0 | L37: 49 | N37: ○ | O37: 羽黒改二 | P37: 1 | R37: 65 | T37: ○ | U37: 赤城改 | V37: 3 | X37: 85 | AA37: 伊8 | AB37: 0 | AG37: =O47 -> 筑摩改二 | AH37: =P47 -> 0 | AI37: =R47 -> 49 | AM37: =U40 -> 飛龍改二 | AN37: =V40 -> 3 | AO37: =X40 -> 85
B38: 9 | C38: 霰改 | D38: 3 | H38: ○ | I38: 秋月改 | J38: 0 | L38: 49 | N38: ○ | O38: 高雄改 | P38: 3 | R38: 85 | T38: ○ | U38: 加賀改 | V38: 3 | X38: 85 | AA38: 伊19 | AB38: 0 | AM38: =I14 -> 吹雪改二 | AN38: =J14 -> 0 | AO38: =L14 -> 49
B39: 3 | C39: 黒潮改 | D39: 3 | H39: ○ | I39: 照月改 | J39: 0 | L39: 49 | N39: ○ | O39: 愛宕改 | P39: 3 | R39: 85 | T39: ○ | U39: 蒼龍改二 | V39: 3 | X39: 85 | AA39: 伊58 | AB39: 0 | AG39: 3-5 | AM39: =I18 -> 暁改二 | AN39: =J18 -> 0 | AO39: =L18 -> 49
B40: 4 | C40: 親潮改 | D40: 3 | H40: 3 | I40: 涼月改 | J40: 1 | L40: 49 | N40: ○ | O40: 摩耶改二 | P40: 3 | R40: 85 | T40: ○ | U40: 飛龍改二 | V40: 3 | X40: 85 | AA40: 伊168改 | AB40: 0 | AG40: =O6 -> 由良改二 | AH40: =P6 -> 1 | AI40: =R6 -> 60
B41: 15 | C41: 野分改 | D41: 3 | H41: ○ | I41: 初月改 | J41: 3 | L41: 84 | N41: ○ | O41: 鳥海改二 | P41: 0 | R41: 55 | T41: ○ | U41: 翔鶴改二 | V41: 0 | X41: 49 | AA41: 伊401改 | AB41: 0 | AG41: =I22 -> 夕立改二 | AH41: =J22 -> 0 | AI41: =L22 -> 49 | AM41: 6-5
B42: 17 | C42: 萩風改 | D42: 3 | H42: ○ | I42: 島風改 | J42: 0 | L42: 49 | N42: ○ | O42: プリンツ・オイゲン改 | P42: 3 | R42: 85 | T42: ○ | U42: 瑞鶴改二 | V42: 0 | X42: 49 | AA42: 呂500 | AB42: 0 | AG42: =I16 -> 綾波改二 | AH42: =J16 -> 0 | AI42: =L16 -> 49 | AM42: =O5 -> 阿武隈改二 | AN42: =P5 -> 2 | AO42: =R5 -> 74
B43: 18 | C43: 舞風改 | D43: 3 | I43: Z1 zwei | J43: 3 | L43: 85 | N43: ○ | O43: ザラdue | P43: 0 | R43: 49 | T43: ○ | U43: 雲龍改 | V43: 3 | X43: 85 | AG43: =I38 -> 秋月改 | AH43: =J38 -> 0 | AI43: =L38 -> 49 | AM43: =U8 -> 武蔵改 | AN43: =V8 -> 3 | AO43: =X8 -> 100
B44: 19 | C44: 秋雲改 | D44: 5 | I44: Z3 zwei | J44: 3 | L44: 85 | N44: ○ | O44: ポーラ改 | P44: 3 | R44: 85 | T44: ○ | U44: 天城改 | V44: 3 | X44: 85 | AA44: バケツ遠征 | AG44: =I28 -> 雪風改 | AH44: =J28 -> 3 | AI44: =L28 -> 85 | AM44: =I39 -> 照月改 | AN44: =J39 -> 0 | AO44: =L39 -> 49
B45: 1 | C45: 夕雲改 | D45: 5 | H45: ○ | I45: リベッチオ改 | J45: 0 | L45: 49 | T45: ○ | U45: 葛城改 | V45: 3 | X45: 85 | AA45: 伊19 | AB45: 6 | AG45: =I42 -> 島風改 | AH45: =J42 -> 0 | AI45: =L42 -> 49 | AM45: =O26 -> 大井改二 | AN45: =P26 -> 0 | AO45: =R26 -> 49
B46: 2 | C46: 巻雲改 | D46: 5 | N46: ○ | O46: 利根改二 | P46: 0 | R46: 49 | T46: ○ | U46: グラーフ・ツェッペリン改 | V46: 3 | X46: 85 | AA46: 伊58 | AB46: 6 | AM46: =U52 -> 翔鶴改二甲 | AN46: =V52 -> 1 | AO46: =X52 -> 68
B47: 3 | C47: 風雲改 | D47: 3 | H47: 1 | I47: 占守改 | J47: 3 | L47: 85 | N47: ○ | O47: 筑摩改二 | P47: 0 | R47: 49 | T47: ○ | U47: アクィラ改 | V47: 3 | X47: 85 | AA47: 伊168改 | AB47: 6 | AG47: 4-5 | AM47: =U53 -> 瑞鶴改二甲 | AN47: =V53 -> 3 | AO47: =X53 -> 85
B48: 6 | C48: 高波改 | D48: 3 | H48: 2 | I48: 国後改 | J48: 3 | L48: 85 | N48: ○ | O48: 最上改 | P48: 3 | R48: 85 | T48: ○ | U48: サラトガMk.II | V48: 3 | X48: 85 | AA48: まるゆ | AB48: 6 | AG48: =U4 -> 扶桑改二 | AH48: =V4 -> 3 | AI48: =X4 -> 100
B49: 11 | C49: 藤波改 | D49: 3 | H49: 1 | I49: 択捉改 | J49: 3 | L49: 83 | N49: ○ | O49: 三隈改 | P49: 3 | R49: 85 | T49: ○ | U49: アークロイヤル改 | V49: 0 | X49: 49 | AG49: =U5 -> 山城改二 | AH49: =V5 -> 3 | AI49: =X5 -> 100
B50: 14 | C50: 沖波改 | D50: 3 | H50: 2 | I50: 松輪改 | J50: 3 | L50: 85 | N50: ○ | O50: 鈴谷改二 | P50: 0 | R50: 49 | AA50: 防空遠征 | AG50: =O37 -> 羽黒改二 | AH50: =P37 -> 1 | AI50: =R37 -> 65
B51: 17 | C51: 早霜改 | D51: 3 | H51: 3 | I51: 佐渡改 | J51: 1 | L51: 49 | N51: ○ | O51: 熊野改二 | P51: 0 | R51: 49 | T51: ○ | U51: 大鳳改 | V51: 2 | X51: 72 | AA51: 伊8 | AB51: 0 | AG51: =O41 -> 鳥海改二 | AH51: =P41 -> 0 | AI51: =R41 -> 55
B52: 19 | C52: 清霜改 | D52: 3 | H52: 7 | I52: 対馬改 | J52: 1 | L52: 49 | T52: ○ | U52: 翔鶴改二甲 | V52: 1 | X52: 68 | AG52: =O43 -> ザラdue | AH52: =P43 -> 0 | AI52: =R43 -> 49
T53: ○ | U53: 瑞鶴改二甲 | V53: 3 | X53: 85 | AG53: =U51 -> 大鳳改 | AH53: =V51 -> 2 | AI53: =X51 -> 72
U55: E18-7甲
U56: アイオワ改 | V56: 3
U57: 加賀改 | V57: 3
U58: 翔鶴改二甲 | V58: 3
U59: 瑞鶴改二甲 | V59: 3
U60: 大鳳改 | V60: 3
U61: 由良改二 | V61: 3
U63: 阿武隈改二 | V63: 3
U64: ビスマルクdrei | V64: 3
U65: ヴェールヌイ | V65: 3
O66: X | P66: 7 | U66: 夕立改二 | V66: 3
O67: Y | P67: 5 | U67: プリンツ・オイゲン改 | V67: 3
O68: K | P68: 0 | U68: 北上改二 | V68: 3
O69: C | P69: 0
U70: 霧島改二 | V70: 3
U71: 比叡改二 | V71: 3
U72: 鈴谷航改二 | V72: 3
U73: 熊野航改二 | V73: 3
U74: 陽炎改 | V74: 3
U75: 不知火改 | V75: 3
U77: ウォースパイト改 | V77: 3
U78: 陸奥改 | V78: 3
U79: 飛龍改二 | V79: 3
U80: 蒼龍改二 | V80: 3
U81: 綾波改二 | V81: 3
U82: 荒潮改二 | V82: 3

Sheet 編成
B2: 司令部レベル | C2: 120 | E2: 司令部レベル切り上げ | G2: =ROUNDUP(C2/5,0)*5 -> 120 | H2: =58.23/70.06 -> 0.8311447331
B4: 支援艦隊
E5: 前衛支援艦隊
E6: 艦種 | F6: 艦名 | G6: 装備スロット | L6: 制空値 | M6: 索敵 | P6: その他変動 | T6: 航空戦攻撃力 | V6: 昼戦 | X6: 夜戦 | AC6: 対潜 | AH6: 装備カウント
G7: 積載 | H7: 装備 | J7: ★ | K7: 分類 | M7: 基礎 | N7: 基礎+ | O7: 装備 | P7: 命中 | Q7: 火力 | R7: 雷装 | S7: 爆装 | T7: 弱攻撃 | U7: 強攻撃 | V7: 砲撃 | W7: 雷撃 | X7: 攻撃 | Y7: 特分類 | Z7: 特攻撃 | AA7: 運 | AB7: 特発動 | AC7: 基礎 | AD7: + | AE7: 装備 | AF7: 攻撃力 | AH7: 大口径主砲 | AI7: 中口径主砲 | AJ7: 小口径主砲 | AK7: 主砲合計 | AL7: 副砲 | AM7: 大型電探 | AN7: 小型電探 | AO7: 電探合計 | AP7: 魚雷 | AQ7: 徹甲弾 | AR7: 索敵機 | AS7: 爆雷 | AT7: ソナー | AU7: 対潜機 | AV7: 艦爆 | AW7: 艦攻 | AX7: 大型飛行艇 | AY7: 水上爆撃機 | AZ7: 軽空母対潜可 | BA7: 航空艦対潜可 | BB7: 対潜種別 | BC7: 対潜艦種 | BD7: 対潜定数 | BE7: 対潜シナジー | BF7: 探照灯 | BG7: 照明弾 | BH7: 見張員 | BI7: 運 | BJ7: CI分類 | BK7: 運上限 | BL7: ドラム缶
E8: =IF(F8="","",VLOOKUP(F8,carrierlist,8,FALSE)&"") -> 戦艦 | F8: 金剛改二 | G8: =IF(F8="",,VLOOKUP(F8,carrierlist,2,FALSE)&"") -> 3 | H8: 46cm三連装砲 | J8: 2 | K8: =IF(ISERROR(VLOOKUP(H8,fighterlist,1,FALSE)),"",VLOOKUP(H8,fighterlist,11,FALSE)&"") -> 大口径主砲 | L8: =ROUNDDOWN(IF(OR(H8="",G8="",G8=0,ISERROR(VLOOKUP(H8,fighterlist,1,FALSE))),0,SQRT(G8)*IF(H8="","",VLOOKUP(H8,fighterlist,3,FALSE)+IF(J8>0,J8*VLOOKUP(K8,customlist,10,FALSE),0))+IF(AND(I8>=1,I8<=7),IF(ISERROR(VLOOKUP(K8,superior_skill_bonus,I8+1,FALSE)),0,VLOOKUP(K8,superior_skill_bonus,I8+1,FALSE)+SQRT(VLOOKUP(I8,skill_inner_level,2,FALSE)/10)),0)),0) -> 0 | N8: =IF(ISERROR(VLOOKUP(H8,fighterlist,1,FALSE)),"",IF(VLOOKUP(H8,fighterlist,5,FALSE)=0,VLOOKUP(H8,fighterlist,4,FALSE),"")) ->  | O8: =IF(ISERROR(VLOOKUP(H8,fighterlist,1,FALSE)),"",VLOOKUP(H8,fighterlist,5,FALSE)) ->  | P8: =IF(ISERROR(VLOOKUP(H8,fighterlist,1,FALSE)),0,VLOOKUP(H8,fighterlist,6,FALSE)+ROUNDDOWN(SQRT(J8*VLOOKUP(K8,customlist,7,FALSE)),2)) -> 1.41 | Q8: =IF(ISERROR(VLOOKUP(H8,fighterlist,1,FALSE)),0,VLOOKUP(H8,fighterlist,7,FALSE)+ROUNDDOWN(SQRT(J8*VLOOKUP(K8,customlist,2,FALSE)),2)) -> 28.12 | R8: =IF(ISERROR(VLOOKUP(H8,fighterlist,1,FALSE)),0,VLOOKUP(H8,fighterlist,8,FALSE)+ROUNDDOWN(SQRT(J8*VLOOKUP(K8,customlist,3,FALSE)),2)) -> 0 | S8: =IF(ISERROR(VLOOKUP(H8,fighterlist,1,FALSE)),0,VLOOKUP(H8,fighterlist,9,FALSE)+ROUNDDOWN(J8*VLOOKUP(K8,customlist,4,FALSE),1)) -> 0 | T8: =IF(ISERROR(VLOOKUP(H8,fighterlist,1,FALSE)),"",IF(OR(E8="装甲空母",E8="正規空母",E8="軽空母",E8="水上機母艦",E8="航空戦艦",E8="航空巡洋艦",E8="潜水空母"),IF(VLOOKUP(H8,fighterlist,11,FALSE)="艦上攻撃機",ROUNDDOWN(0.8*(R8*SQRT(G8)+25),0),IF(OR(VLOOKUP(H8,fighterlist,11,FALSE)="艦上爆撃機",VLOOKUP(H8,fighterlist,11,FALSE)="水上爆撃機"),ROUNDDOWN(1*(S8*SQRT(G8)+25),0),"")),"")) ->  | U8: =IF(OR(E8="装甲空母",E8="正規空母",E8="軽空母",E8="水上機母艦",E8="航空戦艦",E8="航空巡洋艦",E8="潜水空母"),IF(K8="艦上攻撃機",ROUNDDOWN(1.5*(R8*SQRT(G8)+25),0),IF(OR(K8="艦上爆撃機",K8="水上爆撃機"),ROUNDDOWN(1*(S8*SQRT(G8)+25),0),"")),"") ->  | V8: =IF(OR(F8="",F8="[その他]",),"",IF(F8="","",IF(OR(E8="装甲空母",E8="正規空母",E8="軽空母"),IF(SUM(R8:R11)+SUM(S8:S11)=0,0,ROUNDDOWN(55+(VLOOKUP(F8,carrierlist,6,FALSE)+SUM(Q8:Q11))*1.5+SUM(R8:R11)*1.5+SUM(S8:S11)*2,0)),ROUNDDOWN(5+VLOOKUP(F8,carrierlist,6,FALSE)+SUM(Q8:Q11),0)))) -> 149 | W8: =IF(OR(E8="潜水艦",E8="潜水空母",E8="駆逐艦",E8="軽巡洋艦",E8="重雷装巡洋艦",E8="重巡洋艦",E8="航空巡洋艦",E8="水上機母艦"),ROUNDDOWN(5+VLOOKUP(F8,carrierlist,7,FALSE)+SUM(R8:R11),0),"") ->  | X8: =IF(OR(F8="",F8="[その他]",E8="装甲空母",E8="正規空母",E8="軽空母"),"",ROUNDDOWN(VLOOKUP(F8,carrierlist,6,FALSE)+VLOOKUP(F8,carrierlist,7,FALSE)+SUM(Q8:R11),0)) -> 144 | Y8: =IF(OR(AP8>=2,AK8>=3,AND(AK8=2,AL8>=1),AND(AK8>=1,AK8<=2,AP8>=1)),"カットイン",IF(OR(AND(AK8=2,AL8=0,AP8=0),AND(AK8=1,AL8>=1,AP8=0),AND(AK8=0,AL8>=2,AP8<=1)),"連撃","")) -> 連撃 | Z8: =IF(AP8>=2,ROUNDDOWN(X8*1.5,0)&"×2",IF(AH8>=3,X8*2,IF(AND(AH8=2,AL8>=1),ROUNDDOWN(X8*1.75,0),IF(AND(AH8>=1,AH8<=2,AP8>=1),ROUNDDOWN(X8*1.3,0)&"×2",IF(Y8="連撃",ROUNDDOWN(X8*1.2,0)&"×2",""))))) -> 172×2 | AB8: =IF(Y8="連撃",0.99,IF(Y8="",0,SQRT(VLOOKUP(BJ8,ci_coefficient,2,FALSE)*IF(BI8>BK8,BK8,BI8))*0.01+0.125+0.05*IF(BF32>=1,1,0)+0.05*IF(BG32>=1,1-(0.5)^BG32,0))) -> 0.99 | AD8: =IF(ISERROR(VLOOKUP(K8,customlist,1,FALSE)),0,SQRT(J8*VLOOKUP(K8,customlist,5,FALSE))) -> 0 | AE8: =IF(ISERROR(VLOOKUP(H8,fighterlist,1,FALSE)),0,IF(ISERROR(VLOOKUP(K8,antisubmarine_flag,1,FALSE)),0,VLOOKUP(K8,antisubmarine_flag,2,FALSE)*VLOOKUP(H8,fighterlist,10,FALSE))) -> 0 | AF8: =IF(BD8=0,"",ROUNDDOWN((SQRT(AC8)*2+SUM(AE8:AE11)*1.5+SUM(AD8:AD11)+BD8)*BE8,1)) ->  | AH8: =IF($K8="大口径主砲",1,0)+IF($K9="大口径主砲",1,0)+IF($K10="大口径主砲",1,0)+IF($K11="大口径主砲",1,0) -> 2 | AI8: =IF($K8="中口径主砲",1,0)+IF($K9="中口径主砲",1,0)+IF($K10="中口径主砲",1,0)+IF($K11="中口径主砲",1,0) -> 0 | AJ8: =IF($K8="小口径主砲",1,0)+IF($K9="小口径主砲",1,0)+IF($K10="小口径主砲",1,0)+IF($K11="小口径主砲",1,0) -> 0 | AK8: =AH8+AI8+AJ8 -> 2 | AL8: =IF($K8="副砲",1,0)+IF($K9="副砲",1,0)+IF($K10="副砲",1,0)+IF($K11="副砲",1,0) -> 0 | AM8: =IF($K8="大型電探",1,0)+IF($K9="大型電探",1,0)+IF($K10="大型電探",1,0)+IF($K11="大型電探",1,0) -> 2 | AN8: =IF($K8="小型電探",1,0)+IF($K9="小型電探",1,0)+IF($K10="小型電探",1,0)+IF($K11="小型電探",1,0) -> 0 | AO8: =AM8+AN8 -> 2 | AP8: =IF($K8="魚雷",1,0)+IF($K9="魚雷",1,0)+IF($K10="魚雷",1,0)+IF($K11="魚雷",1,0) -> 0 | AQ8: =IF($K8="対艦強化弾",1,0)+IF($K9="対艦強化弾",1,0)+IF($K10="対艦強化弾",1,0)+IF($K11="対艦強化弾",1,0) -> 0 | AR8: =IF(OR($K8="水上偵察機",$K8="水上爆撃機"),1,0)+IF(OR($K9="水上偵察機",$K9="水上爆撃機"),1,0)+IF(OR($K10="水上偵察機",$K10="水上爆撃機"),1,0)+IF(OR($K11="水上偵察機",$K11="水上爆撃機"),1,0) -> 0 | AS8: =IF($K8="爆雷",1,0)+IF($K9="爆雷",1,0)+IF($K10="爆雷",1,0)+IF($K11="爆雷",1,0) -> 0 | AT8: =IF($K8="ソナー",1,0)+IF($K9="ソナー",1,0)+IF($K10="ソナー",1,0)+IF($K11="ソナー",1,0) -> 0 | AU8: =IF(OR($K8="オートジャイロ",$K8="対潜哨戒機"),1,0)+IF(OR($K9="オートジャイロ",$K9="対潜哨戒機"),1,0)+IF(OR($K10="オートジャイロ",$K10="対潜哨戒機"),1,0)+IF(OR($K11="オートジャイロ",$K11="対潜哨戒機"),1,0) -> 0 | AV8: =IF($K8="艦上爆撃機",1,0)+IF($K9="艦上爆撃機",1,0)+IF($K10="艦上爆撃機",1,0)+IF($K11="艦上爆撃機",1,0) -> 0 | AW8: =IF($K8="艦上攻撃機",1,0)+IF($K9="艦上攻撃機",1,0)+IF($K10="艦上攻撃機",1,0)+IF($K11="艦上攻撃機",1,0) -> 0 | AX8: =IF($K8="大型飛行艇",1,0)+IF($K9="大型飛行艇",1,0)+IF($K10="大型飛行艇",1,0)+IF($K11="大型飛行艇",1,0) -> 0 | AY8: =IF($K8="水上爆撃機",1,0)+IF($K9="水上爆撃機",1,0)+IF($K10="水上爆撃機",1,0)+IF($K11="水上爆撃機",1,0) -> 0 | AZ8: =SUM(AV8:AY11) -> 0 | BA8: =SUM(AU8:AY11) -> 0 | BB8: =IF(AZ8>0,4,IF(BA8>0,3,2)) -> 2 | BC8: =IF(ISERROR(VLOOKUP(F8,antisubmarine_ex,1,FALSE)),E8,VLOOKUP(F8,antisubmarine_ex,2,FALSE)&"") -> 戦艦 | BD8: =IF(ISERROR(VLOOKUP(BC8,antisubmarine,BB8,FALSE)),0,VLOOKUP(BC8,antisubmarine,BB8,FALSE)) -> 0 | BE8: =IF(AND(AS8>0,AT8>0),1.15,1) -> 1 | BF8: =IF(H8="探照灯",1,0)+IF(H9="探照灯",1,0)+IF(H10="探照灯",1,0)+IF(H11="探照灯",1,0) -> 0 | BG8: =IF(H8="照明弾",1,0)+IF(H9="照明弾",1,0)+IF(H10="照明弾",1,0)+IF(H11="照明弾",1,0) -> 0 | BH8: =IF(H8="熟練見張員",1,0)+IF(H9="熟練見張員",1,0)+IF(H10="熟練見張員",1,0)+IF(H11="熟練見張員",1,0) -> 0 | BI8: =AA8+BH8*VLOOKUP("運",watcher,2,FALSE) -> 0 | BJ8: =IF(AP8>=2,"魚雷",IF(AH8+AI8+AJ8>=3,"主砲",IF(AND(AH8+AI8+AJ8=2,AL8>=1),"主砲副砲",IF(OR(AND(AH8+AI8+AJ8=1,AP8=1),AND(AH8+AI8+AJ8=2,AL8=0,AP8=1)),"主砲魚雷",0)))) -> 0 | BK8: =IF(AP8>=2,VLOOKUP("魚雷",luck_cap,2,FALSE),IF(AH8+AI8+AJ8>=3,VLOOKUP("主砲",luck_cap,2,FALSE),IF(AND(AH8+AI8+AJ8=2,AL8>=1),VLOOKUP("主砲副砲",luck_cap,2,FALSE),IF(OR(AND(AH8+AI8+AJ8=1,AP8=1),AND(AH8+AI8+AJ8=2,AL8=0,AP8=1)),VLOOKUP("主砲魚雷",luck_cap,2,FALSE),0)))) -> 0 | BL8: =IF(H8="ドラム缶",1,0)+IF(H9="ドラム缶",1,0)+IF(H10="ドラム缶",1,0)+IF(H11="ドラム缶",1,0) -> 0
G9: =IF(F8="",,VLOOKUP(F8,carrierlist,3,FALSE)&"") -> 3 | H9: 試製35.6cm三連装砲 | K9: 大口径主砲 | L9: 0 | P9: 2 | Q9: 18 | R9: 0 | S9: 0 | T9: =IF(ISERROR(VLOOKUP(H9,fighterlist,1,FALSE)),"",IF(OR(E8="装甲空母",E8="正規空母",E8="軽空母",E8="水上機母艦",E8="航空戦艦",E8="航空巡洋艦",E8="潜水空母"),IF(VLOOKUP(H9,fighterlist,11,FALSE)="艦上攻撃機",ROUNDDOWN(0.8*(R9*SQRT(G9)+25),0),IF(OR(VLOOKUP(H9,fighterlist,11,FALSE)="艦上爆撃機",VLOOKUP(H9,fighterlist,11,FALSE)="水上爆撃機"),ROUNDDOWN(1*(S9*SQRT(G9)+25),0),"")),"")) ->  | U9: =IF(OR(E8="装甲空母",E8="正規空母",E8="軽空母",E8="水上機母艦",E8="航空戦艦",E8="航空巡洋艦",E8="潜水空母"),IF(K9="艦上攻撃機",ROUNDDOWN(1.5*(R9*SQRT(G9)+25),0),IF(OR(K9="艦上爆撃機",K9="水上爆撃機"),ROUNDDOWN(1*(S9*SQRT(G9)+25),0),"")),"") ->  | AD9: 0 | AE9: 0
G10: =IF(F8="",,VLOOKUP(F8,carrierlist,4,FALSE)&"") -> 3 | H10: 32号対水上電探 | K10: 大型電探 | L10: 0 | O10: 6 | P10: 8 | Q10: 0 | R10: 0 | S10: 0 | T10: =IF(ISERROR(VLOOKUP(H10,fighterlist,1,FALSE)),"",IF(OR(E8="装甲空母",E8="正規空母",E8="軽空母",E8="水上機母艦",E8="航空戦艦",E8="航空巡洋艦",E8="潜水空母"),IF(VLOOKUP(H10,fighterlist,11,FALSE)="艦上攻撃機",ROUNDDOWN(0.8*(R10*SQRT(G10)+25),0),IF(OR(VLOOKUP(H10,fighterlist,11,FALSE)="艦上爆撃機",VLOOKUP(H10,fighterlist,11,FALSE)="水上爆撃機"),ROUNDDOWN(1*(S10*SQRT(G10)+25),0),"")),"")) ->  | U10: =IF(OR(E8="装甲空母",E8="正規空母",E8="軽空母",E8="水上機母艦",E8="航空戦艦",E8="航空巡洋艦",E8="潜水空母"),IF(K10="艦上攻撃機",ROUNDDOWN(1.5*(R10*SQRT(G10)+25),0),IF(OR(K10="艦上爆撃機",K10="水上爆撃機"),ROUNDDOWN(1*(S10*SQRT(G10)+25),0),"")),"") ->  | AD10: 0 | AE10: 0
G11: =IF(F8="",,VLOOKUP(F8,carrierlist,5,FALSE)&"") -> 3 | H11: 32号対水上電探 | K11: 大型電探 | L11: 0 | O11: 6 | P11: 8 | Q11: 0 | R11: 0 | S11: 0 | T11: =IF(ISERROR(VLOOKUP(H11,fighterlist,1,FALSE)),"",IF(OR(E8="装甲空母",E8="正規空母",E8="軽空母",E8="水上機母艦",E8="航空戦艦",E8="航空巡洋艦",E8="潜水空母"),IF(VLOOKUP(H11,fighterlist,11,FALSE)="艦上攻撃機",ROUNDDOWN(0.8*(R11*SQRT(G11)+25),0),IF(OR(VLOOKUP(H11,fighterlist,11,FALSE)="艦上爆撃機",VLOOKUP(H11,fighterlist,11,FALSE)="水上爆撃機"),ROUNDDOWN(1*(S11*SQRT(G11)+25),0),"")),"")) ->  | U11: =IF(OR(E8="装甲空母",E8="正規空母",E8="軽空母",E8="水上機母艦",E8="航空戦艦",E8="航空巡洋艦",E8="潜水空母"),IF(K11="艦上攻撃機",ROUNDDOWN(1.5*(R11*SQRT(G11)+25),0),IF(OR(K11="艦上爆撃機",K11="水上爆撃機"),ROUNDDOWN(1*(S11*SQRT(G11)+25),0),"")),"") ->  | AD11: 0 | AE11: 0
E12: =IF(F12="","",VLOOKUP(F12,carrierlist,8,FALSE)&"") -> 戦艦 | F12: 比叡改二 | G12: =IF(F12="",,VLOOKUP(F12,carrierlist,2,FALSE)&"") -> 3 | H12: 46cm三連装砲 | K12: 大口径主砲 | L12: 0 | P12: 0 | Q12: 26 | R12: 0 | S12: 0 | T12: =IF(ISERROR(VLOOKUP(H12,fighterlist,1,FALSE)),"",IF(OR(E12="装甲空母",E12="正規空母",E12="軽空母",E12="水上機母艦",E12="航空戦艦",E12="航空巡洋艦",E12="潜水空母"),IF(VLOOKUP(H12,fighterlist,11,FALSE)="艦上攻撃機",ROUNDDOWN(0.8*(R12*SQRT(G12)+25),0),IF(OR(VLOOKUP(H12,fighterlist,11,FALSE)="艦上爆撃機",VLOOKUP(H12,fighterlist,11,FALSE)="水上爆撃機"),ROUNDDOWN(1*(S12*SQRT(G12)+25),0),"")),"")) ->  | U12: =IF(OR(E12="装甲空母",E12="正規空母",E12="軽空母",E12="水上機母艦",E12="航空戦艦",E12="航空巡洋艦",E12="潜水空母"),IF(K12="艦上攻撃機",ROUNDDOWN(1.5*(R12*SQRT(G12)+25),0),IF(OR(K12="艦上爆撃機",K12="水上爆撃機"),ROUNDDOWN(1*(S12*SQRT(G12)+25),0),"")),"") ->  | V12: =IF(OR(F12="",F12="[その他]",),"",IF(F12="","",IF(OR(E12="装甲空母",E12="正規空母",E12="軽空母"),IF(SUM(R12:R15)+SUM(S12:S15)=0,0,ROUNDDOWN(55+(VLOOKUP(F12,carrierlist,6,FALSE)+SUM(Q12:Q15))*1.5+SUM(R12:R15)*1.5+SUM(S12:S15)*2,0)),ROUNDDOWN(5+VLOOKUP(F12,carrierlist,6,FALSE)+SUM(Q12:Q15),0)))) -> 147 | W12: =IF(OR(E12="潜水艦",E12="潜水空母",E12="駆逐艦",E12="軽巡洋艦",E12="重雷装巡洋艦",E12="重巡洋艦",E12="航空巡洋艦",E12="水上機母艦"),ROUNDDOWN(5+VLOOKUP(F12,carrierlist,7,FALSE)+SUM(R12:R15),0),"") ->  | X12: =IF(OR(F12="",F12="[その他]",E12="装甲空母",E12="正規空母",E12="軽空母"),"",ROUNDDOWN(VLOOKUP(F12,carrierlist,6,FALSE)+VLOOKUP(F12,carrierlist,7,FALSE)+SUM(Q12:R15),0)) -> 142 | Y12: =IF(OR(AP12>=2,AK12>=3,AND(AK12=2,AL12>=1),AND(AK12>=1,AK12<=2,AP12>=1)),"カットイン",IF(OR(AND(AK12=2,AL12=0,AP12=0),AND(AK12=1,AL12>=1,AP12=0),AND(AK12=0,AL12>=2,AP12<=1)),"連撃","")) -> 連撃 | Z12: =IF(AP12>=2,ROUNDDOWN(X12*1.5,0)&"×2",IF(AH12>=3,X12*2,IF(AND(AH12=2,AL12>=1),ROUNDDOWN(X12*1.75,0),IF(AND(AH12>=1,AH12<=2,AP12>=1),ROUNDDOWN(X12*1.3,0)&"×2",IF(Y12="連撃",ROUNDDOWN(X12*1.2,0)&"×2",""))))) -> 170×2 | AB12: =IF(Y12="連撃",0.99,IF(Y12="",0,SQRT(VLOOKUP(BJ12,ci_coefficient,2,FALSE)*IF(BI12>BK12,BK12,BI12))*0.01+0.05*IF(BF32>=1,1,0)+0.05*IF(BG32>=1,1-(0.5)^BG32,0))) -> 0.99 | AD12: 0 | AE12: 0 | AF12: =IF(BD12=0,"",ROUNDDOWN((SQRT(AC12)*2+SUM(AE12:AE15)*1.5+SUM(AD12:AD15)+BD12)*BE12,1)) ->  | AH12: =IF($K12="大口径主砲",1,0)+IF($K13="大口径主砲",1,0)+IF($K14="大口径主砲",1,0)+IF($K15="大口径主砲",1,0) -> 2 | AI12: =IF($K12="中口径主砲",1,0)+IF($K13="中口径主砲",1,0)+IF($K14="中口径主砲",1,0)+IF($K15="中口径主砲",1,0) -> 0 | AJ12: =IF($K12="小口径主砲",1,0)+IF($K13="小口径主砲",1,0)+IF($K14="小口径主砲",1,0)+IF($K15="小口径主砲",1,0) -> 0 | AK12: =AH12+AI12+AJ12 -> 2 | AL12: =IF($K12="副砲",1,0)+IF($K13="副砲",1,0)+IF($K14="副砲",1,0)+IF($K15="副砲",1,0) -> 0 | AM12: =IF($K12="大型電探",1,0)+IF($K13="大型電探",1,0)+IF($K14="大型電探",1,0)+IF($K15="大型電探",1,0) -> 2 | AN12: =IF($K12="小型電探",1,0)+IF($K13="小型電探",1,0)+IF($K14="小型電探",1,0)+IF($K15="小型電探",1,0) -> 0 | AO12: =AM12+AN12 -> 2 | AP12: =IF($K12="魚雷",1,0)+IF($K13="魚雷",1,0)+IF($K14="魚雷",1,0)+IF($K15="魚雷",1,0) -> 0 | AQ12: =IF($K12="対艦強化弾",1,0)+IF($K13="対艦強化弾",1,0)+IF($K14="対艦強化弾",1,0)+IF($K15="対艦強化弾",1,0) -> 0 | AR12: =IF(OR($K12="水上偵察機",$K12="水上爆撃機"),1,0)+IF(OR($K13="水上偵察機",$K13="水上爆撃機"),1,0)+IF(OR($K14="水上偵察機",$K14="水上爆撃機"),1,0)+IF(OR($K15="水上偵察機",$K15="水上爆撃機"),1,0) -> 0 | AS12: =IF($K12="爆雷",1,0)+IF($K13="爆雷",1,0)+IF($K14="爆雷",1,0)+IF($K15="爆雷",1,0) -> 0 | AT12: =IF($K12="ソナー",1,0)+IF($K13="ソナー",1,0)+IF($K14="ソナー",1,0)+IF($K15="ソナー",1,0) -> 0 | AU12: =IF(OR($K12="オートジャイロ",$K12="対潜哨戒機"),1,0)+IF(OR($K13="オートジャイロ",$K13="対潜哨戒機"),1,0)+IF(OR($K14="オートジャイロ",$K14="対潜哨戒機"),1,0)+IF(OR($K15="オートジャイロ",$K15="対潜哨戒機"),1,0) -> 0 | AV12: =IF($K12="艦上爆撃機",1,0)+IF($K13="艦上爆撃機",1,0)+IF($K14="艦上爆撃機",1,0)+IF($K15="艦上爆撃機",1,0) -> 0 | AW12: =IF($K12="艦上攻撃機",1,0)+IF($K13="艦上攻撃機",1,0)+IF($K14="艦上攻撃機",1,0)+IF($K15="艦上攻撃機",1,0) -> 0 | AX12: =IF($K12="大型飛行艇",1,0)+IF($K13="大型飛行艇",1,0)+IF($K14="大型飛行艇",1,0)+IF($K15="大型飛行艇",1,0) -> 0 | AY12: =IF($K12="水上爆撃機",1,0)+IF($K13="水上爆撃機",1,0)+IF($K14="水上爆撃機",1,0)+IF($K15="水上爆撃機",1,0) -> 0 | AZ12: =SUM(AV12:AY15) -> 0 | BA12: =SUM(AU12:AY15) -> 0 | BB12: =IF(AZ12>0,4,IF(BA12>0,3,2)) -> 2 | BC12: =IF(ISERROR(VLOOKUP(F12,antisubmarine_ex,1,FALSE)),E12,VLOOKUP(F12,antisubmarine_ex,2,FALSE)&"") -> 戦艦 | BD12: =IF(ISERROR(VLOOKUP(BC12,antisubmarine,BB12,FALSE)),0,VLOOKUP(BC12,antisubmarine,BB12,FALSE)) -> 0 | BE12: =IF(AND(AS12>0,AT12>0),1.15,1) -> 1 | BF12: =IF(H12="探照灯",1,0)+IF(H13="探照灯",1,0)+IF(H14="探照灯",1,0)+IF(H15="探照灯",1,0) -> 0 | BG12: =IF(H12="照明弾",1,0)+IF(H13="照明弾",1,0)+IF(H14="照明弾",1,0)+IF(H15="照明弾",1,0) -> 0 | BH12: =IF(H12="熟練見張員",1,0)+IF(H13="熟練見張員",1,0)+IF(H14="熟練見張員",1,0)+IF(H15="熟練見張員",1,0) -> 0 | BI12: =AA12+BH12*VLOOKUP("運",watcher,2,FALSE) -> 0 | BJ12: =IF(AP12>=2,"魚雷",IF(AH12+AI12+AJ12>=3,"主砲",IF(AND(AH12+AI12+AJ12=2,AL12>=1),"主砲副砲",IF(OR(AND(AH12+AI12+AJ12=1,AP12=1),AND(AH12+AI12+AJ12=2,AL12=0,AP12=1)),"主砲魚雷",0)))) -> 0 | BK12: =IF(AP12>=2,VLOOKUP("魚雷",luck_cap,2,FALSE),IF(AH12+AI12+AJ12>=3,VLOOKUP("主砲",luck_cap,2,FALSE),IF(AND(AH12+AI12+AJ12=2,AL12>=1),VLOOKUP("主砲副砲",luck_cap,2,FALSE),IF(OR(AND(AH12+AI12+AJ12=1,AP12=1),AND(AH12+AI12+AJ12=2,AL12=0,AP12=1)),VLOOKUP("主砲魚雷",luck_cap,2,FALSE),0)))) -> 0 | BL12: =IF(H12="ドラム缶",1,0)+IF(H13="ドラム缶",1,0)+IF(H14="ドラム缶",1,0)+IF(H15="ドラム缶",1,0) -> 0
G13: =IF(F12="",,VLOOKUP(F12,carrierlist,3,FALSE)&"") -> 3 | H13: 試製35.6cm三連装砲 | K13: 大口径主砲 | L13: 0 | P13: 2 | Q13: 18 | R13: 0 | S13: 0 | T13: =IF(ISERROR(VLOOKUP(H13,fighterlist,1,FALSE)),"",IF(OR(E12="装甲空母",E12="正規空母",E12="軽空母",E12="水上機母艦",E12="航空戦艦",E12="航空巡洋艦",E12="潜水空母"),IF(VLOOKUP(H13,fighterlist,11,FALSE)="艦上攻撃機",ROUNDDOWN(0.8*(R13*SQRT(G13)+25),0),IF(OR(VLOOKUP(H13,fighterlist,11,FALSE)="艦上爆撃機",VLOOKUP(H13,fighterlist,11,FALSE)="水上爆撃機"),ROUNDDOWN(1*(S13*SQRT(G13)+25),0),"")),"")) ->  | U13: =IF(OR(E12="装甲空母",E12="正規空母",E12="軽空母",E12="水上機母艦",E12="航空戦艦",E12="航空巡洋艦",E12="潜水空母"),IF(K13="艦上攻撃機",ROUNDDOWN(1.5*(R13*SQRT(G13)+25),0),IF(OR(K13="艦上爆撃機",K13="水上爆撃機"),ROUNDDOWN(1*(S13*SQRT(G13)+25),0),"")),"") ->  | AD13: 0 | AE13: 0
G14: =IF(F12="",,VLOOKUP(F12,carrierlist,4,FALSE)&"") -> 3 | H14: 32号対水上電探 | K14: 大型電探 | L14: 0 | O14: 6 | P14: 8 | Q14: 0 | R14: 0 | S14: 0 | T14: =IF(ISERROR(VLOOKUP(H14,fighterlist,1,FALSE)),"",IF(OR(E12="装甲空母",E12="正規空母",E12="軽空母",E12="水上機母艦",E12="航空戦艦",E12="航空巡洋艦",E12="潜水空母"),IF(VLOOKUP(H14,fighterlist,11,FALSE)="艦上攻撃機",ROUNDDOWN(0.8*(R14*SQRT(G14)+25),0),IF(OR(VLOOKUP(H14,fighterlist,11,FALSE)="艦上爆撃機",VLOOKUP(H14,fighterlist,11,FALSE)="水上爆撃機"),ROUNDDOWN(1*(S14*SQRT(G14)+25),0),"")),"")) ->  | U14: =IF(OR(E12="装甲空母",E12="正規空母",E12="軽空母",E12="水上機母艦",E12="航空戦艦",E12="航空巡洋艦",E12="潜水空母"),IF(K14="艦上攻撃機",ROUNDDOWN(1.5*(R14*SQRT(G14)+25),0),IF(OR(K14="艦上爆撃機",K14="水上爆撃機"),ROUNDDOWN(1*(S14*SQRT(G14)+25),0),"")),"") ->  | AD14: 0 | AE14: 0
G15: =IF(F12="",,VLOOKUP(F12,carrierlist,5,FALSE)&"") -> 3 | H15: 32号対水上電探 | K15: 大型電探 | L15: 0 | O15: 6 | P15: 8 | Q15: 0 | R15: 0 | S15: 0 | T15: =IF(ISERROR(VLOOKUP(H15,fighterlist,1,FALSE)),"",IF(OR(E12="装甲空母",E12="正規空母",E12="軽空母",E12="水上機母艦",E12="航空戦艦",E12="航空巡洋艦",E12="潜水空母"),IF(VLOOKUP(H15,fighterlist,11,FALSE)="艦上攻撃機",ROUNDDOWN(0.8*(R15*SQRT(G15)+25),0),IF(OR(VLOOKUP(H15,fighterlist,11,FALSE)="艦上爆撃機",VLOOKUP(H15,fighterlist,11,FALSE)="水上爆撃機"),ROUNDDOWN(1*(S15*SQRT(G15)+25),0),"")),"")) ->  | U15: =IF(OR(E12="装甲空母",E12="正規空母",E12="軽空母",E12="水上機母艦",E12="航空戦艦",E12="航空巡洋艦",E12="潜水空母"),IF(K15="艦上攻撃機",ROUNDDOWN(1.5*(R15*SQRT(G15)+25),0),IF(OR(K15="艦上爆撃機",K15="水上爆撃機"),ROUNDDOWN(1*(S15*SQRT(G15)+25),0),"")),"") ->  | AD15: 0 | AE15: 0
E16: =IF(F16="","",VLOOKUP(F16,carrierlist,8,FALSE)&"") -> 戦艦 | F16: 榛名改二 | G16: =IF(F16="",,VLOOKUP(F16,carrierlist,2,FALSE)&"") -> 3 | H16: 46cm三連装砲 | K16: 大口径主砲 | L16: 0 | P16: 0 | Q16: 26 | R16: 0 | S16: 0 | T16: =IF(ISERROR(VLOOKUP(H16,fighterlist,1,FALSE)),"",IF(OR(E16="装甲空母",E16="正規空母",E16="軽空母",E16="水上機母艦",E16="航空戦艦",E16="航空巡洋艦",E16="潜水空母"),IF(VLOOKUP(H16,fighterlist,11,FALSE)="艦上攻撃機",ROUNDDOWN(0.8*(R16*SQRT(G16)+25),0),IF(OR(VLOOKUP(H16,fighterlist,11,FALSE)="艦上爆撃機",VLOOKUP(H16,fighterlist,11,FALSE)="水上爆撃機"),ROUNDDOWN(1*(S16*SQRT(G16)+25),0),"")),"")) ->  | U16: =IF(OR(E16="装甲空母",E16="正規空母",E16="軽空母",E16="水上機母艦",E16="航空戦艦",E16="航空巡洋艦",E16="潜水空母"),IF(K16="艦上攻撃機",ROUNDDOWN(1.5*(R16*SQRT(G16)+25),0),IF(OR(K16="艦上爆撃機",K16="水上爆撃機"),ROUNDDOWN(1*(S16*SQRT(G16)+25),0),"")),"") ->  | V16: =IF(OR(F16="",F16="[その他]",),"",IF(F16="","",IF(OR(E16="装甲空母",E16="正規空母",E16="軽空母"),IF(SUM(R16:R19)+SUM(S16:S19)=0,0,ROUNDDOWN(55+(VLOOKUP(F16,carrierlist,6,FALSE)+SUM(Q16:Q19))*1.5+SUM(R16:R19)*1.5+SUM(S16:S19)*2,0)),ROUNDDOWN(5+VLOOKUP(F16,carrierlist,6,FALSE)+SUM(Q16:Q19),0)))) -> 145 | W16: =IF(OR(E16="潜水艦",E16="潜水空母",E16="駆逐艦",E16="軽巡洋艦",E16="重雷装巡洋艦",E16="重巡洋艦",E16="航空巡洋艦",E16="水上機母艦"),ROUNDDOWN(5+VLOOKUP(F16,carrierlist,7,FALSE)+SUM(R16:R19),0),"") ->  | X16: =IF(OR(F16="",F16="[その他]",E16="装甲空母",E16="正規空母",E16="軽空母"),"",ROUNDDOWN(VLOOKUP(F16,carrierlist,6,FALSE)+VLOOKUP(F16,carrierlist,7,FALSE)+SUM(Q16:R19),0)) -> 140 | Y16: =IF(OR(AP16>=2,AK16>=3,AND(AK16=2,AL16>=1),AND(AK16>=1,AK16<=2,AP16>=1)),"カットイン",IF(OR(AND(AK16=2,AL16=0,AP16=0),AND(AK16=1,AL16>=1,AP16=0),AND(AK16=0,AL16>=2,AP16<=1)),"連撃","")) -> 連撃 | Z16: =IF(AP16>=2,ROUNDDOWN(X16*1.5,0)&"×2",IF(AH16>=3,X16*2,IF(AND(AH16=2,AL16>=1),ROUNDDOWN(X16*1.75,0),IF(AND(AH16>=1,AH16<=2,AP16>=1),ROUNDDOWN(X16*1.3,0)&"×2",IF(Y16="連撃",ROUNDDOWN(X16*1.2,0)&"×2",""))))) -> 168×2 | AB16: =IF(Y16="連撃",0.99,IF(Y16="",0,SQRT(VLOOKUP(BJ16,ci_coefficient,2,FALSE)*IF(BI16>BK16,BK16,BI16))*0.01+0.05*IF(BF32>=1,1,0)+0.05*IF(BG32>=1,1-(0.5)^BG32,0))) -> 0.99 | AD16: 0 | AE16: 0 | AF16: =IF(BD16=0,"",ROUNDDOWN((SQRT(AC16)*2+SUM(AE16:AE19)*1.5+SUM(AD16:AD19)+BD16)*BE16,1)) ->  | AH16: =IF($K16="大口径主砲",1,0)+IF($K17="大口径主砲",1,0)+IF($K18="大口径主砲",1,0)+IF($K19="大口径主砲",1,0) -> 2 | AI16: =IF($K16="中口径主砲",1,0)+IF($K17="中口径主砲",1,0)+IF($K18="中口径主砲",1,0)+IF($K19="中口径主砲",1,0) -> 0 | AJ16: =IF($K16="小口径主砲",1,0)+IF($K17="小口径主砲",1,0)+IF($K18="小口径主砲",1,0)+IF($K19="小口径主砲",1,0) -> 0 | AK16: =AH16+AI16+AJ16 -> 2 | AL16: =IF($K16="副砲",1,0)+IF($K17="副砲",1,0)+IF($K18="副砲",1,0)+IF($K19="副砲",1,0) -> 0 | AM16: =IF($K16="大型電探",1,0)+IF($K17="大型電探",1,0)+IF($K18="大型電探",1,0)+IF($K19="大型電探",1,0) -> 2 | AN16: =IF($K16="小型電探",1,0)+IF($K17="小型電探",1,0)+IF($K18="小型電探",1,0)+IF($K19="小型電探",1,0) -> 0 | AO16: =AM16+AN16 -> 2 | AP16: =IF($K16="魚雷",1,0)+IF($K17="魚雷",1,0)+IF($K18="魚雷",1,0)+IF($K19="魚雷",1,0) -> 0 | AQ16: =IF($K16="対艦強化弾",1,0)+IF($K17="対艦強化弾",1,0)+IF($K18="対艦強化弾",1,0)+IF($K19="対艦強化弾",1,0) -> 0 | AR16: =IF(OR($K16="水上偵察機",$K16="水上爆撃機"),1,0)+IF(OR($K17="水上偵察機",$K17="水上爆撃機"),1,0)+IF(OR($K18="水上偵察機",$K18="水上爆撃機"),1,0)+IF(OR($K19="水上偵察機",$K19="水上爆撃機"),1,0) -> 0 | AS16: =IF($K16="爆雷",1,0)+IF($K17="爆雷",1,0)+IF($K18="爆雷",1,0)+IF($K19="爆雷",1,0) -> 0 | AT16: =IF($K16="ソナー",1,0)+IF($K17="ソナー",1,0)+IF($K18="ソナー",1,0)+IF($K19="ソナー",1,0) -> 0 | AU16: =IF(OR($K16="オートジャイロ",$K16="対潜哨戒機"),1,0)+IF(OR($K17="オートジャイロ",$K17="対潜哨戒機"),1,0)+IF(OR($K18="オートジャイロ",$K18="対潜哨戒機"),1,0)+IF(OR($K19="オートジャイロ",$K19="対潜哨戒機"),1,0) -> 0 | AV16: =IF($K16="艦上爆撃機",1,0)+IF($K17="艦上爆撃機",1,0)+IF($K18="艦上爆撃機",1,0)+IF($K19="艦上爆撃機",1,0) -> 0 | AW16: =IF($K16="艦上攻撃機",1,0)+IF($K17="艦上攻撃機",1,0)+IF($K18="艦上攻撃機",1,0)+IF($K19="艦上攻撃機",1,0) -> 0 | AX16: =IF($K16="大型飛行艇",1,0)+IF($K17="大型飛行艇",1,0)+IF($K18="大型飛行艇",1,0)+IF($K19="大型飛行艇",1,0) -> 0 | AY16: =IF($K16="水上爆撃機",1,0)+IF($K17="水上爆撃機",1,0)+IF($K18="水上爆撃機",1,0)+IF($K19="水上爆撃機",1,0) -> 0 | AZ16: =SUM(AV16:AY19) -> 0 | BA16: =SUM(AU16:AY19) -> 0 | BB16: =IF(AZ16>0,4,IF(BA16>0,3,2)) -> 2 | BC16: =IF(ISERROR(VLOOKUP(F16,antisubmarine_ex,1,FALSE)),E16,VLOOKUP(F16,antisubmarine_ex,2,FALSE)&"") -> 戦艦 | BD16: =IF(ISERROR(VLOOKUP(BC16,antisubmarine,BB16,FALSE)),0,VLOOKUP(BC16,antisubmarine,BB16,FALSE)) -> 0 | BE16: =IF(AND(AS16>0,AT16>0),1.15,1) -> 1 | BF16: =IF(H16="探照灯",1,0)+IF(H17="探照灯",1,0)+IF(H18="探照灯",1,0)+IF(H19="探照灯",1,0) -> 0 | BG16: =IF(H16="照明弾",1,0)+IF(H17="照明弾",1,0)+IF(H18="照明弾",1,0)+IF(H19="照明弾",1,0) -> 0 | BH16: =IF(H16="熟練見張員",1,0)+IF(H17="熟練見張員",1,0)+IF(H18="熟練見張員",1,0)+IF(H19="熟練見張員",1,0) -> 0 | BI16: =AA16+BH16*VLOOKUP("運",watcher,2,FALSE) -> 0 | BJ16: =IF(AP16>=2,"魚雷",IF(AH16+AI16+AJ16>=3,"主砲",IF(AND(AH16+AI16+AJ16=2,AL16>=1),"主砲副砲",IF(OR(AND(AH16+AI16+AJ16=1,AP16=1),AND(AH16+AI16+AJ16=2,AL16=0,AP16=1)),"主砲魚雷",0)))) -> 0 | BK16: =IF(AP16>=2,VLOOKUP("魚雷",luck_cap,2,FALSE),IF(AH16+AI16+AJ16>=3,VLOOKUP("主砲",luck_cap,2,FALSE),IF(AND(AH16+AI16+AJ16=2,AL16>=1),VLOOKUP("主砲副砲",luck_cap,2,FALSE),IF(OR(AND(AH16+AI16+AJ16=1,AP16=1),AND(AH16+AI16+AJ16=2,AL16=0,AP16=1)),VLOOKUP("主砲魚雷",luck_cap,2,FALSE),0)))) -> 0 | BL16: =IF(H16="ドラム缶",1,0)+IF(H17="ドラム缶",1,0)+IF(H18="ドラム缶",1,0)+IF(H19="ドラム缶",1,0) -> 0
G17: =IF(F16="",,VLOOKUP(F16,carrierlist,3,FALSE)&"") -> 3 | H17: 試製35.6cm三連装砲 | K17: 大口径主砲 | L17: 0 | P17: 2 | Q17: 18 | R17: 0 | S17: 0 | T17: =IF(ISERROR(VLOOKUP(H17,fighterlist,1,FALSE)),"",IF(OR(E16="装甲空母",E16="正規空母",E16="軽空母",E16="水上機母艦",E16="航空戦艦",E16="航空巡洋艦",E16="潜水空母"),IF(VLOOKUP(H17,fighterlist,11,FALSE)="艦上攻撃機",ROUNDDOWN(0.8*(R17*SQRT(G17)+25),0),IF(OR(VLOOKUP(H17,fighterlist,11,FALSE)="艦上爆撃機",VLOOKUP(H17,fighterlist,11,FALSE)="水上爆撃機"),ROUNDDOWN(1*(S17*SQRT(G17)+25),0),"")),"")) ->  | U17: =IF(OR(E16="装甲空母",E16="正規空母",E16="軽空母",E16="水上機母艦",E16="航空戦艦",E16="航空巡洋艦",E16="潜水空母"),IF(K17="艦上攻撃機",ROUNDDOWN(1.5*(R17*SQRT(G17)+25),0),IF(OR(K17="艦上爆撃機",K17="水上爆撃機"),ROUNDDOWN(1*(S17*SQRT(G17)+25),0),"")),"") ->  | AD17: 0 | AE17: 0
G18: =IF(F16="",,VLOOKUP(F16,carrierlist,4,FALSE)&"") -> 3 | H18: 32号対水上電探 | K18: 大型電探 | L18: 0 | O18: 6 | P18: 8 | Q18: 0 | R18: 0 | S18: 0 | T18: =IF(ISERROR(VLOOKUP(H18,fighterlist,1,FALSE)),"",IF(OR(E16="装甲空母",E16="正規空母",E16="軽空母",E16="水上機母艦",E16="航空戦艦",E16="航空巡洋艦",E16="潜水空母"),IF(VLOOKUP(H18,fighterlist,11,FALSE)="艦上攻撃機",ROUNDDOWN(0.8*(R18*SQRT(G18)+25),0),IF(OR(VLOOKUP(H18,fighterlist,11,FALSE)="艦上爆撃機",VLOOKUP(H18,fighterlist,11,FALSE)="水上爆撃機"),ROUNDDOWN(1*(S18*SQRT(G18)+25),0),"")),"")) ->  | U18: =IF(OR(E16="装甲空母",E16="正規空母",E16="軽空母",E16="水上機母艦",E16="航空戦艦",E16="航空巡洋艦",E16="潜水空母"),IF(K18="艦上攻撃機",ROUNDDOWN(1.5*(R18*SQRT(G18)+25),0),IF(OR(K18="艦上爆撃機",K18="水上爆撃機"),ROUNDDOWN(1*(S18*SQRT(G18)+25),0),"")),"") ->  | AD18: 0 | AE18: 0
G19: =IF(F16="",,VLOOKUP(F16,carrierlist,5,FALSE)&"") -> 3 | H19: 32号対水上電探 | K19: 大型電探 | L19: 0 | O19: 6 | P19: 8 | Q19: 0 | R19: 0 | S19: 0 | T19: =IF(ISERROR(VLOOKUP(H19,fighterlist,1,FALSE)),"",IF(OR(E16="装甲空母",E16="正規空母",E16="軽空母",E16="水上機母艦",E16="航空戦艦",E16="航空巡洋艦",E16="潜水空母"),IF(VLOOKUP(H19,fighterlist,11,FALSE)="艦上攻撃機",ROUNDDOWN(0.8*(R19*SQRT(G19)+25),0),IF(OR(VLOOKUP(H19,fighterlist,11,FALSE)="艦上爆撃機",VLOOKUP(H19,fighterlist,11,FALSE)="水上爆撃機"),ROUNDDOWN(1*(S19*SQRT(G19)+25),0),"")),"")) ->  | U19: =IF(OR(E16="装甲空母",E16="正規空母",E16="軽空母",E16="水上機母艦",E16="航空戦艦",E16="航空巡洋艦",E16="潜水空母"),IF(K19="艦上攻撃機",ROUNDDOWN(1.5*(R19*SQRT(G19)+25),0),IF(OR(K19="艦上爆撃機",K19="水上爆撃機"),ROUNDDOWN(1*(S19*SQRT(G19)+25),0),"")),"") ->  | AD19: 0 | AE19: 0
E20: =IF(F20="","",VLOOKUP(F20,carrierlist,8,FALSE)&"") -> 戦艦 | F20: 霧島改二 | G20: =IF(F20="",,VLOOKUP(F20,carrierlist,2,FALSE)&"") -> 3 | H20: 46cm三連装砲 | K20: 大口径主砲 | L20: 0 | P20: 0 | Q20: 26 | R20: 0 | S20: 0 | T20: =IF(ISERROR(VLOOKUP(H20,fighterlist,1,FALSE)),"",IF(OR(E20="装甲空母",E20="正規空母",E20="軽空母",E20="水上機母艦",E20="航空戦艦",E20="航空巡洋艦",E20="潜水空母"),IF(VLOOKUP(H20,fighterlist,11,FALSE)="艦上攻撃機",ROUNDDOWN(0.8*(R20*SQRT(G20)+25),0),IF(OR(VLOOKUP(H20,fighterlist,11,FALSE)="艦上爆撃機",VLOOKUP(H20,fighterlist,11,FALSE)="水上爆撃機"),ROUNDDOWN(1*(S20*SQRT(G20)+25),0),"")),"")) ->  | U20: =IF(OR(E20="装甲空母",E20="正規空母",E20="軽空母",E20="水上機母艦",E20="航空戦艦",E20="航空巡洋艦",E20="潜水空母"),IF(K20="艦上攻撃機",ROUNDDOWN(1.5*(R20*SQRT(G20)+25),0),IF(OR(K20="艦上爆撃機",K20="水上爆撃機"),ROUNDDOWN(1*(S20*SQRT(G20)+25),0),"")),"") ->  | V20: =IF(OR(F20="",F20="[その他]",),"",IF(F20="","",IF(OR(E20="装甲空母",E20="正規空母",E20="軽空母"),IF(SUM(R20:R23)+SUM(S20:S23)=0,0,ROUNDDOWN(55+(VLOOKUP(F20,carrierlist,6,FALSE)+SUM(Q20:Q23))*1.5+SUM(R20:R23)*1.5+SUM(S20:S23)*2,0)),ROUNDDOWN(5+VLOOKUP(F20,carrierlist,6,FALSE)+SUM(Q20:Q23),0)))) -> 153 | W20: =IF(OR(E20="潜水艦",E20="潜水空母",E20="駆逐艦",E20="軽巡洋艦",E20="重雷装巡洋艦",E20="重巡洋艦",E20="航空巡洋艦",E20="水上機母艦"),ROUNDDOWN(5+VLOOKUP(F20,carrierlist,7,FALSE)+SUM(R20:R23),0),"") ->  | X20: =IF(OR(F20="",F20="[その他]",E20="装甲空母",E20="正規空母",E20="軽空母"),"",ROUNDDOWN(VLOOKUP(F20,carrierlist,6,FALSE)+VLOOKUP(F20,carrierlist,7,FALSE)+SUM(Q20:R23),0)) -> 148 | Y20: =IF(OR(AP20>=2,AK20>=3,AND(AK20=2,AL20>=1),AND(AK20>=1,AK20<=2,AP20>=1)),"カットイン",IF(OR(AND(AK20=2,AL20=0,AP20=0),AND(AK20=1,AL20>=1,AP20=0),AND(AK20=0,AL20>=2,AP20<=1)),"連撃","")) -> 連撃 | Z20: =IF(AP20>=2,ROUNDDOWN(X20*1.5,0)&"×2",IF(AH20>=3,X20*2,IF(AND(AH20=2,AL20>=1),ROUNDDOWN(X20*1.75,0),IF(AND(AH20>=1,AH20<=2,AP20>=1),ROUNDDOWN(X20*1.3,0)&"×2",IF(Y20="連撃",ROUNDDOWN(X20*1.2,0)&"×2",""))))) -> 177×2 | AB20: =IF(Y20="連撃",0.99,IF(Y20="",0,SQRT(VLOOKUP(BJ20,ci_coefficient,2,FALSE)*IF(BI20>BK20,BK20,BI20))*0.01+0.05*IF(BF32>=1,1,0)+0.05*IF(BG32>=1,1-(0.5)^BG32,0))) -> 0.99 | AD20: 0 | AE20: 0 | AF20: =IF(BD20=0,"",ROUNDDOWN((SQRT(AC20)*2+SUM(AE20:AE23)*1.5+SUM(AD20:AD23)+BD20)*BE20,1)) ->  | AH20: =IF($K20="大口径主砲",1,0)+IF($K21="大口径主砲",1,0)+IF($K22="大口径主砲",1,0)+IF($K23="大口径主砲",1,0) -> 2 | AI20: =IF($K20="中口径主砲",1,0)+IF($K21="中口径主砲",1,0)+IF($K22="中口径主砲",1,0)+IF($K23="中口径主砲",1,0) -> 0 | AJ20: =IF($K20="小口径主砲",1,0)+IF($K21="小口径主砲",1,0)+IF($K22="小口径主砲",1,0)+IF($K23="小口径主砲",1,0) -> 0 | AK20: =AH20+AI20+AJ20 -> 2 | AL20: =IF($K20="副砲",1,0)+IF($K21="副砲",1,0)+IF($K22="副砲",1,0)+IF($K23="副砲",1,0) -> 0 | AM20: =IF($K20="大型電探",1,0)+IF($K21="大型電探",1,0)+IF($K22="大型電探",1,0)+IF($K23="大型電探",1,0) -> 2 | AN20: =IF($K20="小型電探",1,0)+IF($K21="小型電探",1,0)+IF($K22="小型電探",1,0)+IF($K23="小型電探",1,0) -> 0 | AO20: =AM20+AN20 -> 2 | AP20: =IF($K20="魚雷",1,0)+IF($K21="魚雷",1,0)+IF($K22="魚雷",1,0)+IF($K23="魚雷",1,0) -> 0 | AQ20: =IF($K20="対艦強化弾",1,0)+IF($K21="対艦強化弾",1,0)+IF($K22="対艦強化弾",1,0)+IF($K23="対艦強化弾",1,0) -> 0 | AR20: =IF(OR($K20="水上偵察機",$K20="水上爆撃機"),1,0)+IF(OR($K21="水上偵察機",$K21="水上爆撃機"),1,0)+IF(OR($K22="水上偵察機",$K22="水上爆撃機"),1,0)+IF(OR($K23="水上偵察機",$K23="水上爆撃機"),1,0) -> 0 | AS20: =IF($K20="爆雷",1,0)+IF($K21="爆雷",1,0)+IF($K22="爆雷",1,0)+IF($K23="爆雷",1,0) -> 0 | AT20: =IF($K20="ソナー",1,0)+IF($K21="ソナー",1,0)+IF($K22="ソナー",1,0)+IF($K23="ソナー",1,0) -> 0 | AU20: =IF(OR($K20="オートジャイロ",$K20="対潜哨戒機"),1,0)+IF(OR($K21="オートジャイロ",$K21="対潜哨戒機"),1,0)+IF(OR($K22="オートジャイロ",$K22="対潜哨戒機"),1,0)+IF(OR($K23="オートジャイロ",$K23="対潜哨戒機"),1,0) -> 0 | AV20: =IF($K20="艦上爆撃機",1,0)+IF($K21="艦上爆撃機",1,0)+IF($K22="艦上爆撃機",1,0)+IF($K23="艦上爆撃機",1,0) -> 0 | AW20: =IF($K20="艦上攻撃機",1,0)+IF($K21="艦上攻撃機",1,0)+IF($K22="艦上攻撃機",1,0)+IF($K23="艦上攻撃機",1,0) -> 0 | AX20: =IF($K20="大型飛行艇",1,0)+IF($K21="大型飛行艇",1,0)+IF($K22="大型飛行艇",1,0)+IF($K23="大型飛行艇",1,0) -> 0 | AY20: =IF($K20="水上爆撃機",1,0)+IF($K21="水上爆撃機",1,0)+IF($K22="水上爆撃機",1,0)+IF($K23="水上爆撃機",1,0) -> 0 | AZ20: =SUM(AV20:AY23) -> 0 | BA20: =SUM(AU20:AY23) -> 0 | BB20: =IF(AZ20>0,4,IF(BA20>0,3,2)) -> 2 | BC20: =IF(ISERROR(VLOOKUP(F20,antisubmarine_ex,1,FALSE)),E20,VLOOKUP(F20,antisubmarine_ex,2,FALSE)&"") -> 戦艦 | BD20: =IF(ISERROR(VLOOKUP(BC20,antisubmarine,BB20,FALSE)),0,VLOOKUP(BC20,antisubmarine,BB20,FALSE)) -> 0 | BE20: =IF(AND(AS20>0,AT20>0),1.15,1) -> 1 | BF20: =IF(H20="探照灯",1,0)+IF(H21="探照灯",1,0)+IF(H22="探照灯",1,0)+IF(H23="探照灯",1,0) -> 0 | BG20: =IF(H20="照明弾",1,0)+IF(H21="照明弾",1,0)+IF(H22="照明弾",1,0)+IF(H23="照明弾",1,0) -> 0 | BH20: =IF(H20="熟練見張員",1,0)+IF(H21="熟練見張員",1,0)+IF(H22="熟練見張員",1,0)+IF(H23="熟練見張員",1,0) -> 0 | BI20: =AA20+BH20*VLOOKUP("運",watcher,2,FALSE) -> 0 | BJ20: =IF(AP20>=2,"魚雷",IF(AH20+AI20+AJ20>=3,"主砲",IF(AND(AH20+AI20+AJ20=2,AL20>=1),"主砲副砲",IF(OR(AND(AH20+AI20+AJ20=1,AP20=1),AND(AH20+AI20+AJ20=2,AL20=0,AP20=1)),"主砲魚雷",0)))) -> 0 | BK20: =IF(AP20>=2,VLOOKUP("魚雷",luck_cap,2,FALSE),IF(AH20+AI20+AJ20>=3,VLOOKUP("主砲",luck_cap,2,FALSE),IF(AND(AH20+AI20+AJ20=2,AL20>=1),VLOOKUP("主砲副砲",luck_cap,2,FALSE),IF(OR(AND(AH20+AI20+AJ20=1,AP20=1),AND(AH20+AI20+AJ20=2,AL20=0,AP20=1)),VLOOKUP("主砲魚雷",luck_cap,2,FALSE),0)))) -> 0 | BL20: =IF(H20="ドラム缶",1,0)+IF(H21="ドラム缶",1,0)+IF(H22="ドラム缶",1,0)+IF(H23="ドラム缶",1,0) -> 0
G21: =IF(F20="",,VLOOKUP(F20,carrierlist,3,FALSE)&"") -> 3 | H21: 試製35.6cm三連装砲 | K21: 大口径主砲 | L21: 0 | P21: 2 | Q21: 18 | R21: 0 | S21: 0 | T21: =IF(ISERROR(VLOOKUP(H21,fighterlist,1,FALSE)),"",IF(OR(E20="装甲空母",E20="正規空母",E20="軽空母",E20="水上機母艦",E20="航空戦艦",E20="航空巡洋艦",E20="潜水空母"),IF(VLOOKUP(H21,fighterlist,11,FALSE)="艦上攻撃機",ROUNDDOWN(0.8*(R21*SQRT(G21)+25),0),IF(OR(VLOOKUP(H21,fighterlist,11,FALSE)="艦上爆撃機",VLOOKUP(H21,fighterlist,11,FALSE)="水上爆撃機"),ROUNDDOWN(1*(S21*SQRT(G21)+25),0),"")),"")) ->  | U21: =IF(OR(E20="装甲空母",E20="正規空母",E20="軽空母",E20="水上機母艦",E20="航空戦艦",E20="航空巡洋艦",E20="潜水空母"),IF(K21="艦上攻撃機",ROUNDDOWN(1.5*(R21*SQRT(G21)+25),0),IF(OR(K21="艦上爆撃機",K21="水上爆撃機"),ROUNDDOWN(1*(S21*SQRT(G21)+25),0),"")),"") ->  | AD21: 0 | AE21: 0
G22: =IF(F20="",,VLOOKUP(F20,carrierlist,4,FALSE)&"") -> 3 | H22: 32号対水上電探 | K22: 大型電探 | L22: 0 | O22: 6 | P22: 8 | Q22: 0 | R22: 0 | S22: 0 | T22: =IF(ISERROR(VLOOKUP(H22,fighterlist,1,FALSE)),"",IF(OR(E20="装甲空母",E20="正規空母",E20="軽空母",E20="水上機母艦",E20="航空戦艦",E20="航空巡洋艦",E20="潜水空母"),IF(VLOOKUP(H22,fighterlist,11,FALSE)="艦上攻撃機",ROUNDDOWN(0.8*(R22*SQRT(G22)+25),0),IF(OR(VLOOKUP(H22,fighterlist,11,FALSE)="艦上爆撃機",VLOOKUP(H22,fighterlist,11,FALSE)="水上爆撃機"),ROUNDDOWN(1*(S22*SQRT(G22)+25),0),"")),"")) ->  | U22: =IF(OR(E20="装甲空母",E20="正規空母",E20="軽空母",E20="水上機母艦",E20="航空戦艦",E20="航空巡洋艦",E20="潜水空母"),IF(K22="艦上攻撃機",ROUNDDOWN(1.5*(R22*SQRT(G22)+25),0),IF(OR(K22="艦上爆撃機",K22="水上爆撃機"),ROUNDDOWN(1*(S22*SQRT(G22)+25),0),"")),"") ->  | AD22: 0 | AE22: 0
G23: =IF(F20="",,VLOOKUP(F20,carrierlist,5,FALSE)&"") -> 3 | H23: 32号対水上電探 | K23: 大型電探 | L23: 0 | O23: 6 | P23: 8 | Q23: 0 | R23: 0 | S23: 0 | T23: =IF(ISERROR(VLOOKUP(H23,fighterlist,1,FALSE)),"",IF(OR(E20="装甲空母",E20="正規空母",E20="軽空母",E20="水上機母艦",E20="航空戦艦",E20="航空巡洋艦",E20="潜水空母"),IF(VLOOKUP(H23,fighterlist,11,FALSE)="艦上攻撃機",ROUNDDOWN(0.8*(R23*SQRT(G23)+25),0),IF(OR(VLOOKUP(H23,fighterlist,11,FALSE)="艦上爆撃機",VLOOKUP(H23,fighterlist,11,FALSE)="水上爆撃機"),ROUNDDOWN(1*(S23*SQRT(G23)+25),0),"")),"")) ->  | U23: =IF(OR(E20="装甲空母",E20="正規空母",E20="軽空母",E20="水上機母艦",E20="航空戦艦",E20="航空巡洋艦",E20="潜水空母"),IF(K23="艦上攻撃機",ROUNDDOWN(1.5*(R23*SQRT(G23)+25),0),IF(OR(K23="艦上爆撃機",K23="水上爆撃機"),ROUNDDOWN(1*(S23*SQRT(G23)+25),0),"")),"") ->  | AD23: 0 | AE23: 0
E24: =IF(F24="","",VLOOKUP(F24,carrierlist,8,FALSE)&"") -> 駆逐艦 | F24: 夕立改二 | G24: =IF(F24="",,VLOOKUP(F24,carrierlist,2,FALSE)&"") -> 0 | H24: 12.7cm連装砲B型改二 | J24: 1 | K24: 小口径主砲 | L24: 0 | P24: 1 | Q24: 4 | R24: 0 | S24: 0 | T24: =IF(ISERROR(VLOOKUP(H24,fighterlist,1,FALSE)),"",IF(OR(E24="装甲空母",E24="正規空母",E24="軽空母",E24="水上機母艦",E24="航空戦艦",E24="航空巡洋艦",E24="潜水空母"),IF(VLOOKUP(H24,fighterlist,11,FALSE)="艦上攻撃機",ROUNDDOWN(0.8*(R24*SQRT(G24)+25),0),IF(OR(VLOOKUP(H24,fighterlist,11,FALSE)="艦上爆撃機",VLOOKUP(H24,fighterlist,11,FALSE)="水上爆撃機"),ROUNDDOWN(1*(S24*SQRT(G24)+25),0),"")),"")) ->  | U24: =IF(OR(E24="装甲空母",E24="正規空母",E24="軽空母",E24="水上機母艦",E24="航空戦艦",E24="航空巡洋艦",E24="潜水空母"),IF(K24="艦上攻撃機",ROUNDDOWN(1.5*(R24*SQRT(G24)+25),0),IF(OR(K24="艦上爆撃機",K24="水上爆撃機"),ROUNDDOWN(1*(S24*SQRT(G24)+25),0),"")),"") ->  | V24: =IF(OR(F24="",F24="[その他]",),"",IF(F24="","",IF(OR(E24="装甲空母",E24="正規空母",E24="軽空母"),IF(SUM(R24:R27)+SUM(S24:S27)=0,0,ROUNDDOWN(55+(VLOOKUP(F24,carrierlist,6,FALSE)+SUM(Q24:Q27))*1.5+SUM(R24:R27)*1.5+SUM(S24:S27)*2,0)),ROUNDDOWN(5+VLOOKUP(F24,carrierlist,6,FALSE)+SUM(Q24:Q27),0)))) -> 86 | W24: =IF(OR(E24="潜水艦",E24="潜水空母",E24="駆逐艦",E24="軽巡洋艦",E24="重雷装巡洋艦",E24="重巡洋艦",E24="航空巡洋艦",E24="水上機母艦"),ROUNDDOWN(5+VLOOKUP(F24,carrierlist,7,FALSE)+SUM(R24:R27),0),"") -> 98 | X24: =IF(OR(F24="",F24="[その他]",E24="装甲空母",E24="正規空母",E24="軽空母"),"",ROUNDDOWN(VLOOKUP(F24,carrierlist,6,FALSE)+VLOOKUP(F24,carrierlist,7,FALSE)+SUM(Q24:R27),0)) -> 174 | Y24: =IF(OR(AP24>=2,AK24>=3,AND(AK24=2,AL24>=1),AND(AK24>=1,AK24<=2,AP24>=1)),"カットイン",IF(OR(AND(AK24=2,AL24=0,AP24=0),AND(AK24=1,AL24>=1,AP24=0),AND(AK24=0,AL24>=2,AP24<=1)),"連撃","")) -> 連撃 | Z24: =IF(AP24>=2,ROUNDDOWN(X24*1.5,0)&"×2",IF(AH24>=3,X24*2,IF(AND(AH24=2,AL24>=1),ROUNDDOWN(X24*1.75,0),IF(AND(AH24>=1,AH24<=2,AP24>=1),ROUNDDOWN(X24*1.3,0)&"×2",IF(Y24="連撃",ROUNDDOWN(X24*1.2,0)&"×2",""))))) -> 208×2 | AB24: =IF(Y24="連撃",0.99,IF(Y24="",0,SQRT(VLOOKUP(BJ24,ci_coefficient,2,FALSE)*IF(BI24>BK24,BK24,BI24))*0.01+0.05*IF(BF32>=1,1,0)+0.05*IF(BG32>=1,1-(0.5)^BG32,0))) -> 0.99 | AD24: 0 | AE24: 0 | AF24: =IF(BD24=0,"",ROUNDDOWN((SQRT(AC24)*2+SUM(AE24:AE27)*1.5+SUM(AD24:AD27)+BD24)*BE24,1)) -> 13 | AH24: =IF($K24="大口径主砲",1,0)+IF($K25="大口径主砲",1,0)+IF($K26="大口径主砲",1,0)+IF($K27="大口径主砲",1,0) -> 0 | AI24: =IF($K24="中口径主砲",1,0)+IF($K25="中口径主砲",1,0)+IF($K26="中口径主砲",1,0)+IF($K27="中口径主砲",1,0) -> 0 | AJ24: =IF($K24="小口径主砲",1,0)+IF($K25="小口径主砲",1,0)+IF($K26="小口径主砲",1,0)+IF($K27="小口径主砲",1,0) -> 2 | AK24: =AH24+AI24+AJ24 -> 2 | AL24: =IF($K24="副砲",1,0)+IF($K25="副砲",1,0)+IF($K26="副砲",1,0)+IF($K27="副砲",1,0) -> 0 | AM24: =IF($K24="大型電探",1,0)+IF($K25="大型電探",1,0)+IF($K26="大型電探",1,0)+IF($K27="大型電探",1,0) -> 0 | AN24: =IF($K24="小型電探",1,0)+IF($K25="小型電探",1,0)+IF($K26="小型電探",1,0)+IF($K27="小型電探",1,0) -> 1 | AO24: =AM24+AN24 -> 1 | AP24: =IF($K24="魚雷",1,0)+IF($K25="魚雷",1,0)+IF($K26="魚雷",1,0)+IF($K27="魚雷",1,0) -> 0 | AQ24: =IF($K24="対艦強化弾",1,0)+IF($K25="対艦強化弾",1,0)+IF($K26="対艦強化弾",1,0)+IF($K27="対艦強化弾",1,0) -> 0 | AR24: =IF(OR($K24="水上偵察機",$K24="水上爆撃機"),1,0)+IF(OR($K25="水上偵察機",$K25="水上爆撃機"),1,0)+IF(OR($K26="水上偵察機",$K26="水上爆撃機"),1,0)+IF(OR($K27="水上偵察機",$K27="水上爆撃機"),1,0) -> 0 | AS24: =IF($K24="爆雷",1,0)+IF($K25="爆雷",1,0)+IF($K26="爆雷",1,0)+IF($K27="爆雷",1,0) -> 0 | AT24: =IF($K24="ソナー",1,0)+IF($K25="ソナー",1,0)+IF($K26="ソナー",1,0)+IF($K27="ソナー",1,0) -> 0 | AU24: =IF(OR($K24="オートジャイロ",$K24="対潜哨戒機"),1,0)+IF(OR($K25="オートジャイロ",$K25="対潜哨戒機"),1,0)+IF(OR($K26="オートジャイロ",$K26="対潜哨戒機"),1,0)+IF(OR($K27="オートジャイロ",$K27="対潜哨戒機"),1,0) -> 0 | AV24: =IF($K24="艦上爆撃機",1,0)+IF($K25="艦上爆撃機",1,0)+IF($K26="艦上爆撃機",1,0)+IF($K27="艦上爆撃機",1,0) -> 0 | AW24: =IF($K24="艦上攻撃機",1,0)+IF($K25="艦上攻撃機",1,0)+IF($K26="艦上攻撃機",1,0)+IF($K27="艦上攻撃機",1,0) -> 0 | AX24: =IF($K24="大型飛行艇",1,0)+IF($K25="大型飛行艇",1,0)+IF($K26="大型飛行艇",1,0)+IF($K27="大型飛行艇",1,0) -> 0 | AY24: =IF($K24="水上爆撃機",1,0)+IF($K25="水上爆撃機",1,0)+IF($K26="水上爆撃機",1,0)+IF($K27="水上爆撃機",1,0) -> 0 | AZ24: =SUM(AV24:AY27) -> 0 | BA24: =SUM(AU24:AY27) -> 0 | BB24: =IF(AZ24>0,4,IF(BA24>0,3,2)) -> 2 | BC24: =IF(ISERROR(VLOOKUP(F24,antisubmarine_ex,1,FALSE)),E24,VLOOKUP(F24,antisubmarine_ex,2,FALSE)&"") -> 駆逐艦 | BD24: =IF(ISERROR(VLOOKUP(BC24,antisubmarine,BB24,FALSE)),0,VLOOKUP(BC24,antisubmarine,BB24,FALSE)) -> 13 | BE24: =IF(AND(AS24>0,AT24>0),1.15,1) -> 1 | BF24: =IF(H24="探照灯",1,0)+IF(H25="探照灯",1,0)+IF(H26="探照灯",1,0)+IF(H27="探照灯",1,0) -> 0 | BG24: =IF(H24="照明弾",1,0)+IF(H25="照明弾",1,0)+IF(H26="照明弾",1,0)+IF(H27="照明弾",1,0) -> 0 | BH24: =IF(H24="熟練見張員",1,0)+IF(H25="熟練見張員",1,0)+IF(H26="熟練見張員",1,0)+IF(H27="熟練見張員",1,0) -> 0 | BI24: =AA24+BH24*VLOOKUP("運",watcher,2,FALSE) -> 0 | BJ24: =IF(AP24>=2,"魚雷",IF(AH24+AI24+AJ24>=3,"主砲",IF(AND(AH24+AI24+AJ24=2,AL24>=1),"主砲副砲",IF(OR(AND(AH24+AI24+AJ24=1,AP24=1),AND(AH24+AI24+AJ24=2,AL24=0,AP24=1)),"主砲魚雷",0)))) -> 0 | BK24: =IF(AP24>=2,VLOOKUP("魚雷",luck_cap,2,FALSE),IF(AH24+AI24+AJ24>=3,VLOOKUP("主砲",luck_cap,2,FALSE),IF(AND(AH24+AI24+AJ24=2,AL24>=1),VLOOKUP("主砲副砲",luck_cap,2,FALSE),IF(OR(AND(AH24+AI24+AJ24=1,AP24=1),AND(AH24+AI24+AJ24=2,AL24=0,AP24=1)),VLOOKUP("主砲魚雷",luck_cap,2,FALSE),0)))) -> 0 | BL24: =IF(H24="ドラム缶",1,0)+IF(H25="ドラム缶",1,0)+IF(H26="ドラム缶",1,0)+IF(H27="ドラム缶",1,0) -> 0
G25: =IF(F24="",,VLOOKUP(F24,carrierlist,3,FALSE)&"") -> 0 | H25: 12.7cm連装砲B型改二 | J25: 1 | K25: 小口径主砲 | L25: 0 | P25: 1 | Q25: 4 | R25: 0 | S25: 0 | T25: =IF(ISERROR(VLOOKUP(H25,fighterlist,1,FALSE)),"",IF(OR(E24="装甲空母",E24="正規空母",E24="軽空母",E24="水上機母艦",E24="航空戦艦",E24="航空巡洋艦",E24="潜水空母"),IF(VLOOKUP(H25,fighterlist,11,FALSE)="艦上攻撃機",ROUNDDOWN(0.8*(R25*SQRT(G25)+25),0),IF(OR(VLOOKUP(H25,fighterlist,11,FALSE)="艦上爆撃機",VLOOKUP(H25,fighterlist,11,FALSE)="水上爆撃機"),ROUNDDOWN(1*(S25*SQRT(G25)+25),0),"")),"")) ->  | U25: =IF(OR(E24="装甲空母",E24="正規空母",E24="軽空母",E24="水上機母艦",E24="航空戦艦",E24="航空巡洋艦",E24="潜水空母"),IF(K25="艦上攻撃機",ROUNDDOWN(1.5*(R25*SQRT(G25)+25),0),IF(OR(K25="艦上爆撃機",K25="水上爆撃機"),ROUNDDOWN(1*(S25*SQRT(G25)+25),0),"")),"") ->  | AD25: 0 | AE25: 0
G26: =IF(F24="",,VLOOKUP(F24,carrierlist,4,FALSE)&"") -> 0 | H26: 33号対水上電探 | K26: 小型電探 | L26: 0 | O26: 4.2 | P26: 5 | Q26: 0 | R26: 0 | S26: 0 | T26: =IF(ISERROR(VLOOKUP(H26,fighterlist,1,FALSE)),"",IF(OR(E24="装甲空母",E24="正規空母",E24="軽空母",E24="水上機母艦",E24="航空戦艦",E24="航空巡洋艦",E24="潜水空母"),IF(VLOOKUP(H26,fighterlist,11,FALSE)="艦上攻撃機",ROUNDDOWN(0.8*(R26*SQRT(G26)+25),0),IF(OR(VLOOKUP(H26,fighterlist,11,FALSE)="艦上爆撃機",VLOOKUP(H26,fighterlist,11,FALSE)="水上爆撃機"),ROUNDDOWN(1*(S26*SQRT(G26)+25),0),"")),"")) ->  | U26: =IF(OR(E24="装甲空母",E24="正規空母",E24="軽空母",E24="水上機母艦",E24="航空戦艦",E24="航空巡洋艦",E24="潜水空母"),IF(K26="艦上攻撃機",ROUNDDOWN(1.5*(R26*SQRT(G26)+25),0),IF(OR(K26="艦上爆撃機",K26="水上爆撃機"),ROUNDDOWN(1*(S26*SQRT(G26)+25),0),"")),"") ->  | AD26: 0 | AE26: 0
G27: =IF(F24="",,VLOOKUP(F24,carrierlist,5,FALSE)&"") ->  | L27: 0 | P27: 0 | Q27: 0 | R27: 0 | S27: 0 | T27: =IF(ISERROR(VLOOKUP(H27,fighterlist,1,FALSE)),"",IF(OR(E24="装甲空母",E24="正規空母",E24="軽空母",E24="水上機母艦",E24="航空戦艦",E24="航空巡洋艦",E24="潜水空母"),IF(VLOOKUP(H27,fighterlist,11,FALSE)="艦上攻撃機",ROUNDDOWN(0.8*(R27*SQRT(G27)+25),0),IF(OR(VLOOKUP(H27,fighterlist,11,FALSE)="艦上爆撃機",VLOOKUP(H27,fighterlist,11,FALSE)="水上爆撃機"),ROUNDDOWN(1*(S27*SQRT(G27)+25),0),"")),"")) ->  | U27: =IF(OR(E24="装甲空母",E24="正規空母",E24="軽空母",E24="水上機母艦",E24="航空戦艦",E24="航空巡洋艦",E24="潜水空母"),IF(K27="艦上攻撃機",ROUNDDOWN(1.5*(R27*SQRT(G27)+25),0),IF(OR(K27="艦上爆撃機",K27="水上爆撃機"),ROUNDDOWN(1*(S27*SQRT(G27)+25),0),"")),"") ->  | AD27: 0 | AE27: 0
E28: =IF(F28="","",VLOOKUP(F28,carrierlist,8,FALSE)&"") -> 駆逐艦 | F28: 綾波改二 | G28: =IF(F28="",,VLOOKUP(F28,carrierlist,2,FALSE)&"") -> 0 | H28: 12.7cm連装砲B型改二 | J28: 1 | K28: 小口径主砲 | L28: 0 | P28: 1 | Q28: 4 | R28: 0 | S28: 0 | T28: =IF(ISERROR(VLOOKUP(H28,fighterlist,1,FALSE)),"",IF(OR(E28="装甲空母",E28="正規空母",E28="軽空母",E28="水上機母艦",E28="航空戦艦",E28="航空巡洋艦",E28="潜水空母"),IF(VLOOKUP(H28,fighterlist,11,FALSE)="艦上攻撃機",ROUNDDOWN(0.8*(R28*SQRT(G28)+25),0),IF(OR(VLOOKUP(H28,fighterlist,11,FALSE)="艦上爆撃機",VLOOKUP(H28,fighterlist,11,FALSE)="水上爆撃機"),ROUNDDOWN(1*(S28*SQRT(G28)+25),0),"")),"")) ->  | U28: =IF(OR(E28="装甲空母",E28="正規空母",E28="軽空母",E28="水上機母艦",E28="航空戦艦",E28="航空巡洋艦",E28="潜水空母"),IF(K28="艦上攻撃機",ROUNDDOWN(1.5*(R28*SQRT(G28)+25),0),IF(OR(K28="艦上爆撃機",K28="水上爆撃機"),ROUNDDOWN(1*(S28*SQRT(G28)+25),0),"")),"") ->  | V28: =IF(OR(F28="",F28="[その他]",),"",IF(F28="","",IF(OR(E28="装甲空母",E28="正規空母",E28="軽空母"),IF(SUM(R28:R31)+SUM(S28:S31)=0,0,ROUNDDOWN(55+(VLOOKUP(F28,carrierlist,6,FALSE)+SUM(Q28:Q31))*1.5+SUM(R28:R31)*1.5+SUM(S28:S31)*2,0)),ROUNDDOWN(5+VLOOKUP(F28,carrierlist,6,FALSE)+SUM(Q28:Q31),0)))) -> 85 | W28: =IF(OR(E28="潜水艦",E28="潜水空母",E28="駆逐艦",E28="軽巡洋艦",E28="重雷装巡洋艦",E28="重巡洋艦",E28="航空巡洋艦",E28="水上機母艦"),ROUNDDOWN(5+VLOOKUP(F28,carrierlist,7,FALSE)+SUM(R28:R31),0),"") -> 93 | X28: =IF(OR(F28="",F28="[その他]",E28="装甲空母",E28="正規空母",E28="軽空母"),"",ROUNDDOWN(VLOOKUP(F28,carrierlist,6,FALSE)+VLOOKUP(F28,carrierlist,7,FALSE)+SUM(Q28:R31),0)) -> 168 | Y28: =IF(OR(AP28>=2,AK28>=3,AND(AK28=2,AL28>=1),AND(AK28>=1,AK28<=2,AP28>=1)),"カットイン",IF(OR(AND(AK28=2,AL28=0,AP28=0),AND(AK28=1,AL28>=1,AP28=0),AND(AK28=0,AL28>=2,AP28<=1)),"連撃","")) -> 連撃 | Z28: =IF(AP28>=2,ROUNDDOWN(X28*1.5,0)&"×2",IF(AH28>=3,X28*2,IF(AND(AH28=2,AL28>=1),ROUNDDOWN(X28*1.75,0),IF(AND(AH28>=1,AH28<=2,AP28>=1),ROUNDDOWN(X28*1.3,0)&"×2",IF(Y28="連撃",ROUNDDOWN(X28*1.2,0)&"×2",""))))) -> 201×2 | AB28: =IF(Y28="連撃",0.99,IF(Y28="",0,SQRT(VLOOKUP(BJ28,ci_coefficient,2,FALSE)*IF(BI28>BK28,BK28,BI28))*0.01+0.05*IF(BF32>=1,1,0)+0.05*IF(BG32>=1,1-(0.5)^BG32,0))) -> 0.99 | AD28: 0 | AE28: 0 | AF28: =IF(BD28=0,"",ROUNDDOWN((SQRT(AC28)*2+SUM(AE28:AE31)*1.5+SUM(AD28:AD31)+BD28)*BE28,1)) -> 13 | AH28: =IF($K28="大口径主砲",1,0)+IF($K29="大口径主砲",1,0)+IF($K30="大口径主砲",1,0)+IF($K31="大口径主砲",1,0) -> 0 | AI28: =IF($K28="中口径主砲",1,0)+IF($K29="中口径主砲",1,0)+IF($K30="中口径主砲",1,0)+IF($K31="中口径主砲",1,0) -> 0 | AJ28: =IF($K28="小口径主砲",1,0)+IF($K29="小口径主砲",1,0)+IF($K30="小口径主砲",1,0)+IF($K31="小口径主砲",1,0) -> 2 | AK28: =AH28+AI28+AJ28 -> 2 | AL28: =IF($K28="副砲",1,0)+IF($K29="副砲",1,0)+IF($K30="副砲",1,0)+IF($K31="副砲",1,0) -> 0 | AM28: =IF($K28="大型電探",1,0)+IF($K29="大型電探",1,0)+IF($K30="大型電探",1,0)+IF($K31="大型電探",1,0) -> 0 | AN28: =IF($K28="小型電探",1,0)+IF($K29="小型電探",1,0)+IF($K30="小型電探",1,0)+IF($K31="小型電探",1,0) -> 1 | AO28: =AM28+AN28 -> 1 | AP28: =IF($K28="魚雷",1,0)+IF($K29="魚雷",1,0)+IF($K30="魚雷",1,0)+IF($K31="魚雷",1,0) -> 0 | AQ28: =IF($K28="対艦強化弾",1,0)+IF($K29="対艦強化弾",1,0)+IF($K30="対艦強化弾",1,0)+IF($K31="対艦強化弾",1,0) -> 0 | AR28: =IF(OR($K28="水上偵察機",$K28="水上爆撃機"),1,0)+IF(OR($K29="水上偵察機",$K29="水上爆撃機"),1,0)+IF(OR($K30="水上偵察機",$K30="水上爆撃機"),1,0)+IF(OR($K31="水上偵察機",$K31="水上爆撃機"),1,0) -> 0 | AS28: =IF($K28="爆雷",1,0)+IF($K29="爆雷",1,0)+IF($K30="爆雷",1,0)+IF($K31="爆雷",1,0) -> 0 | AT28: =IF($K28="ソナー",1,0)+IF($K29="ソナー",1,0)+IF($K30="ソナー",1,0)+IF($K31="ソナー",1,0) -> 0 | AU28: =IF(OR($K28="オートジャイロ",$K28="対潜哨戒機"),1,0)+IF(OR($K29="オートジャイロ",$K29="対潜哨戒機"),1,0)+IF(OR($K30="オートジャイロ",$K30="対潜哨戒機"),1,0)+IF(OR($K31="オートジャイロ",$K31="対潜哨戒機"),1,0) -> 0 | AV28: =IF($K28="艦上爆撃機",1,0)+IF($K29="艦上爆撃機",1,0)+IF($K30="艦上爆撃機",1,0)+IF($K31="艦上爆撃機",1,0) -> 0 | AW28: =IF($K28="艦上攻撃機",1,0)+IF($K29="艦上攻撃機",1,0)+IF($K30="艦上攻撃機",1,0)+IF($K31="艦上攻撃機",1,0) -> 0 | AX28: =IF($K28="大型飛行艇",1,0)+IF($K29="大型飛行艇",1,0)+IF($K30="大型飛行艇",1,0)+IF($K31="大型飛行艇",1,0) -> 0 | AY28: =IF($K28="水上爆撃機",1,0)+IF($K29="水上爆撃機",1,0)+IF($K30="水上爆撃機",1,0)+IF($K31="水上爆撃機",1,0) -> 0 | AZ28: =SUM(AV28:AY31) -> 0 | BA28: =SUM(AU28:AY31) -> 0 | BB28: =IF(AZ28>0,4,IF(BA28>0,3,2)) -> 2 | BC28: =IF(ISERROR(VLOOKUP(F28,antisubmarine_ex,1,FALSE)),E28,VLOOKUP(F28,antisubmarine_ex,2,FALSE)&"") -> 駆逐艦 | BD28: =IF(ISERROR(VLOOKUP(BC28,antisubmarine,BB28,FALSE)),0,VLOOKUP(BC28,antisubmarine,BB28,FALSE)) -> 13 | BE28: =IF(AND(AS28>0,AT28>0),1.15,1) -> 1 | BF28: =IF(H28="探照灯",1,0)+IF(H29="探照灯",1,0)+IF(H30="探照灯",1,0)+IF(H31="探照灯",1,0) -> 0 | BG28: =IF(H28="照明弾",1,0)+IF(H29="照明弾",1,0)+IF(H30="照明弾",1,0)+IF(H31="照明弾",1,0) -> 0 | BH28: =IF(H28="熟練見張員",1,0)+IF(H29="熟練見張員",1,0)+IF(H30="熟練見張員",1,0)+IF(H31="熟練見張員",1,0) -> 0 | BI28: =AA28+BH28*VLOOKUP("運",watcher,2,FALSE) -> 0 | BJ28: =IF(AP28>=2,"魚雷",IF(AH28+AI28+AJ28>=3,"主砲",IF(AND(AH28+AI28+AJ28=2,AL28>=1),"主砲副砲",IF(OR(AND(AH28+AI28+AJ28=1,AP28=1),AND(AH28+AI28+AJ28=2,AL28=0,AP28=1)),"主砲魚雷",0)))) -> 0 | BK28: =IF(AP28>=2,VLOOKUP("魚雷",luck_cap,2,FALSE),IF(AH28+AI28+AJ28>=3,VLOOKUP("主砲",luck_cap,2,FALSE),IF(AND(AH28+AI28+AJ28=2,AL28>=1),VLOOKUP("主砲副砲",luck_cap,2,FALSE),IF(OR(AND(AH28+AI28+AJ28=1,AP28=1),AND(AH28+AI28+AJ28=2,AL28=0,AP28=1)),VLOOKUP("主砲魚雷",luck_cap,2,FALSE),0)))) -> 0 | BL28: =IF(H28="ドラム缶",1,0)+IF(H29="ドラム缶",1,0)+IF(H30="ドラム缶",1,0)+IF(H31="ドラム缶",1,0) -> 0
G29: =IF(F28="",,VLOOKUP(F28,carrierlist,3,FALSE)&"") -> 0 | H29: 10cm連装高角砲 | K29: 小口径主砲 | L29: 0 | P29: 0 | Q29: 2 | R29: 0 | S29: 0 | T29: =IF(ISERROR(VLOOKUP(H29,fighterlist,1,FALSE)),"",IF(OR(E28="装甲空母",E28="正規空母",E28="軽空母",E28="水上機母艦",E28="航空戦艦",E28="航空巡洋艦",E28="潜水空母"),IF(VLOOKUP(H29,fighterlist,11,FALSE)="艦上攻撃機",ROUNDDOWN(0.8*(R29*SQRT(G29)+25),0),IF(OR(VLOOKUP(H29,fighterlist,11,FALSE)="艦上爆撃機",VLOOKUP(H29,fighterlist,11,FALSE)="水上爆撃機"),ROUNDDOWN(1*(S29*SQRT(G29)+25),0),"")),"")) ->  | U29: =IF(OR(E28="装甲空母",E28="正規空母",E28="軽空母",E28="水上機母艦",E28="航空戦艦",E28="航空巡洋艦",E28="潜水空母"),IF(K29="艦上攻撃機",ROUNDDOWN(1.5*(R29*SQRT(G29)+25),0),IF(OR(K29="艦上爆撃機",K29="水上爆撃機"),ROUNDDOWN(1*(S29*SQRT(G29)+25),0),"")),"") ->  | AD29: 0 | AE29: 0
G30: =IF(F28="",,VLOOKUP(F28,carrierlist,4,FALSE)&"") -> 0 | H30: 33号対水上電探 | K30: 小型電探 | L30: 0 | O30: 4.2 | P30: 5 | Q30: 0 | R30: 0 | S30: 0 | T30: =IF(ISERROR(VLOOKUP(H30,fighterlist,1,FALSE)),"",IF(OR(E28="装甲空母",E28="正規空母",E28="軽空母",E28="水上機母艦",E28="航空戦艦",E28="航空巡洋艦",E28="潜水空母"),IF(VLOOKUP(H30,fighterlist,11,FALSE)="艦上攻撃機",ROUNDDOWN(0.8*(R30*SQRT(G30)+25),0),IF(OR(VLOOKUP(H30,fighterlist,11,FALSE)="艦上爆撃機",VLOOKUP(H30,fighterlist,11,FALSE)="水上爆撃機"),ROUNDDOWN(1*(S30*SQRT(G30)+25),0),"")),"")) ->  | U30: =IF(OR(E28="装甲空母",E28="正規空母",E28="軽空母",E28="水上機母艦",E28="航空戦艦",E28="航空巡洋艦",E28="潜水空母"),IF(K30="艦上攻撃機",ROUNDDOWN(1.5*(R30*SQRT(G30)+25),0),IF(OR(K30="艦上爆撃機",K30="水上爆撃機"),ROUNDDOWN(1*(S30*SQRT(G30)+25),0),"")),"") ->  | AD30: 0 | AE30: 0
G31: =IF(F28="",,VLOOKUP(F28,carrierlist,5,FALSE)&"") ->  | L31: 0 | P31: 0 | Q31: 0 | R31: 0 | S31: 0 | T31: =IF(ISERROR(VLOOKUP(H31,fighterlist,1,FALSE)),"",IF(OR(E28="装甲空母",E28="正規空母",E28="軽空母",E28="水上機母艦",E28="航空戦艦",E28="航空巡洋艦",E28="潜水空母"),IF(VLOOKUP(H31,fighterlist,11,FALSE)="艦上攻撃機",ROUNDDOWN(0.8*(R31*SQRT(G31)+25),0),IF(OR(VLOOKUP(H31,fighterlist,11,FALSE)="艦上爆撃機",VLOOKUP(H31,fighterlist,11,FALSE)="水上爆撃機"),ROUNDDOWN(1*(S31*SQRT(G31)+25),0),"")),"")) ->  | U31: =IF(OR(E28="装甲空母",E28="正規空母",E28="軽空母",E28="水上機母艦",E28="航空戦艦",E28="航空巡洋艦",E28="潜水空母"),IF(K31="艦上攻撃機",ROUNDDOWN(1.5*(R31*SQRT(G31)+25),0),IF(OR(K31="艦上爆撃機",K31="水上爆撃機"),ROUNDDOWN(1*(S31*SQRT(G31)+25),0),"")),"") ->  | AD31: 0 | AE31: 0
E32: 制空合計 | L32: =SUM(L8:L31) -> 0 | M32: 総索敵値 | O32: =ROUNDDOWN(1.69*(SQRT(M8)+SQRT(M12)+SQRT(M16)+SQRT(M20)+SQRT(M24)+SQRT(M28))+SUM(O8:O31)-($G$2*0.61),2) -> -16.8 | AH32: 積載艦数 | BF32: =IF(BF8>0,1,0)+IF(BF12>0,1,0)+IF(BF16>0,1,0)+IF(BF20>0,1,0)+IF(BF24>0,1,0)+IF(BF28>0,1,0) -> 0 | BG32: =IF(BG8>0,1,0)+IF(BG12>0,1,0)+IF(BG16>0,1,0)+IF(BG20>0,1,0)+IF(BG24>0,1,0)+IF(BG28>0,1,0) -> 0 | BL32: =IF(BL8>0,1,0)+IF(BL12>0,1,0)+IF(BL16>0,1,0)+IF(BL20>0,1,0)+IF(BL24>0,1,0)+IF(BL28>0,1,0) -> 0
E33: =IF(AND(OR(C13=0,C13=""),SUM(AV8:AY31)=0),"航空均衡",IF(L32>=C13*3,"制空権確保",IF(L32>=C13*1.5,"航空優勢",IF(L32>=C13*2/3,"航空均衡",IF(L32>=C13*1/3,"航空劣勢","制空権喪失"))))) -> 航空均衡 | M33: 索敵要求比 | O33: =IF(C17="","",O32/C17) ->  | AH33: 合計積載数 | BL33: =SUM(BL8:BL31) -> 0
E35: 決戦支援艦隊
E36: 艦種 | F36: 艦名 | G36: 装備スロット | L36: 制空値 | M36: 索敵 | P36: その他変動 | T36: 航空戦攻撃力 | V36: 昼戦 | X36: 夜戦 | AC36: 対潜 | AH36: 装備カウント
G37: 積載 | H37: 装備 | J37: ★ | K37: 分類 | M37: 基礎 | N37: 基礎+ | O37: 装備 | P37: 命中 | Q37: 火力 | R37: 雷装 | S37: 爆装 | T37: 弱攻撃 | U37: 強攻撃 | V37: 砲撃 | W37: 雷撃 | X37: 攻撃 | Y37: 特分類 | Z37: 特攻撃 | AA37: 運 | AB37: 特発動 | AC37: 基礎 | AD37: + | AE37: 装備 | AF37: 攻撃力 | AH37: 大口径主砲 | AI37: 中口径主砲 | AJ37: 小口径主砲 | AK37: 主砲合計 | AL37: 副砲 | AM37: 大型電探 | AN37: 小型電探 | AO37: 電探合計 | AP37: 魚雷 | AQ37: 徹甲弾 | AR37: 索敵機 | AS37: 爆雷 | AT37: ソナー | AU37: 対潜機 | AV37: 艦爆 | AW37: 艦攻 | AX37: 大型飛行艇 | AY37: 水上爆撃機 | AZ37: 軽空母対潜可 | BA37: 航空艦対潜可 | BB37: 対潜種別 | BC37: 対潜艦種 | BD37: 対潜定数 | BE37: 対潜シナジー | BF37: 探照灯 | BG37: 照明弾 | BH37: 見張員 | BI37: 運 | BJ37: CI分類 | BK37: 運上限 | BL37: ドラム缶
E38: =IF(F38="","",VLOOKUP(F38,carrierlist,8,FALSE)&"") -> 戦艦 | F38: 陸奥改 | G38: =IF(F38="",,VLOOKUP(F38,carrierlist,2,FALSE)&"") -> 3 | H38: 試製51cm連装砲 | K38: =IF(ISERROR(VLOOKUP(H38,fighterlist,1,FALSE)),"",VLOOKUP(H38,fighterlist,11,FALSE)&"") -> 大口径主砲 | L38: =ROUNDDOWN(IF(OR(H38="",G38="",G38=0,ISERROR(VLOOKUP(H38,fighterlist,1,FALSE))),0,SQRT(G38)*IF(H38="","",VLOOKUP(H38,fighterlist,3,FALSE)+IF(J38>0,J38*VLOOKUP(K38,customlist,10,FALSE),0))+IF(AND(I38>=1,I38<=7),IF(ISERROR(VLOOKUP(K38,superior_skill_bonus,I38+1,FALSE)),0,VLOOKUP(K38,superior_skill_bonus,I38+1,FALSE)+SQRT(VLOOKUP(I38,skill_inner_level,2,FALSE)/10)),0)),0) -> 0 | N38: =IF(ISERROR(VLOOKUP(H38,fighterlist,1,FALSE)),"",IF(VLOOKUP(H38,fighterlist,5,FALSE)=0,VLOOKUP(H38,fighterlist,4,FALSE),"")) ->  | O38: =IF(ISERROR(VLOOKUP(H38,fighterlist,1,FALSE)),"",VLOOKUP(H38,fighterlist,5,FALSE)) ->  | P38: =IF(ISERROR(VLOOKUP(H38,fighterlist,1,FALSE)),0,VLOOKUP(H38,fighterlist,6,FALSE)+ROUNDDOWN(SQRT(J38*VLOOKUP(K38,customlist,7,FALSE)),2)) -> 1 | Q38: =IF(ISERROR(VLOOKUP(H38,fighterlist,1,FALSE)),0,VLOOKUP(H38,fighterlist,7,FALSE)+ROUNDDOWN(SQRT(J38*VLOOKUP(K38,customlist,2,FALSE)),2)) -> 30 | R38: =IF(ISERROR(VLOOKUP(H38,fighterlist,1,FALSE)),0,VLOOKUP(H38,fighterlist,8,FALSE)+ROUNDDOWN(SQRT(J38*VLOOKUP(K38,customlist,3,FALSE)),2)) -> 0 | S38: =IF(ISERROR(VLOOKUP(H38,fighterlist,1,FALSE)),0,VLOOKUP(H38,fighterlist,9,FALSE)+ROUNDDOWN(J38*VLOOKUP(K38,customlist,4,FALSE),1)) -> 0 | T38: =IF(ISERROR(VLOOKUP(H38,fighterlist,1,FALSE)),"",IF(OR(E38="装甲空母",E38="正規空母",E38="軽空母",E38="水上機母艦",E38="航空戦艦",E38="航空巡洋艦",E38="潜水空母"),IF(VLOOKUP(H38,fighterlist,11,FALSE)="艦上攻撃機",ROUNDDOWN(0.8*(R38*SQRT(G38)+25),0),IF(OR(VLOOKUP(H38,fighterlist,11,FALSE)="艦上爆撃機",VLOOKUP(H38,fighterlist,11,FALSE)="水上爆撃機"),ROUNDDOWN(1*(S38*SQRT(G38)+25),0),"")),"")) ->  | U38: =IF(OR(E38="装甲空母",E38="正規空母",E38="軽空母",E38="水上機母艦",E38="航空戦艦",E38="航空巡洋艦",E38="潜水空母"),IF(K38="艦上攻撃機",ROUNDDOWN(1.5*(R38*SQRT(G38)+25),0),IF(OR(K38="艦上爆撃機",K38="水上爆撃機"),ROUNDDOWN(1*(S38*SQRT(G38)+25),0),"")),"") ->  | V38: =IF(OR(F38="",F38="[その他]",),"",IF(F38="","",IF(OR(E38="装甲空母",E38="正規空母",E38="軽空母"),IF(SUM(R38:R41)+SUM(S38:S41)=0,0,ROUNDDOWN(55+(VLOOKUP(F38,carrierlist,6,FALSE)+SUM(Q38:Q41))*1.5+SUM(R38:R41)*1.5+SUM(S38:S41)*2,0)),ROUNDDOWN(5+VLOOKUP(F38,carrierlist,6,FALSE)+SUM(Q38:Q41),0)))) -> 164 | W38: =IF(OR(E38="潜水艦",E38="潜水空母",E38="駆逐艦",E38="軽巡洋艦",E38="重雷装巡洋艦",E38="重巡洋艦",E38="航空巡洋艦",E38="水上機母艦"),ROUNDDOWN(5+VLOOKUP(F38,carrierlist,7,FALSE)+SUM(R38:R41),0),"") ->  | X38: =IF(OR(F38="",F38="[その他]",E38="装甲空母",E38="正規空母",E38="軽空母"),"",ROUNDDOWN(VLOOKUP(F38,carrierlist,6,FALSE)+VLOOKUP(F38,carrierlist,7,FALSE)+SUM(Q38:R41),0)) -> 159 | Y38: =IF(OR(AP38>=2,AK38>=3,AND(AK38=2,AL38>=1),AND(AK38>=1,AK38<=2,AP38>=1)),"カットイン",IF(OR(AND(AK38=2,AL38=0,AP38=0),AND(AK38=1,AL38>=1,AP38=0),AND(AK38=0,AL38>=2,AP38<=1)),"連撃","")) -> 連撃 | Z38: =IF(AP38>=2,ROUNDDOWN(X38*1.5,0)&"×2",IF(AH38>=3,X38*2,IF(AND(AH38=2,AL38>=1),ROUNDDOWN(X38*1.75,0),IF(AND(AH38>=1,AH38<=2,AP38>=1),ROUNDDOWN(X38*1.3,0)&"×2",IF(Y38="連撃",ROUNDDOWN(X38*1.2,0)&"×2",""))))) -> 190×2 | AB38: =IF(Y38="連撃",0.99,IF(Y38="",0,SQRT(VLOOKUP(BJ38,ci_coefficient,2,FALSE)*IF(BI38>BK38,BK38,BI38))*0.01+0.125+0.05*IF(BF62>=1,1,0)+0.05*IF(BG62>=1,1-(0.5)^BG62,0))) -> 0.99 | AD38: =IF(ISERROR(VLOOKUP(K38,customlist,1,FALSE)),0,SQRT(J38*VLOOKUP(K38,customlist,5,FALSE))) -> 0 | AE38: =IF(ISERROR(VLOOKUP(H38,fighterlist,1,FALSE)),0,IF(ISERROR(VLOOKUP(K38,antisubmarine_flag,1,FALSE)),0,VLOOKUP(K38,antisubmarine_flag,2,FALSE)*VLOOKUP(H38,fighterlist,10,FALSE))) -> 0 | AF38: =IF(BD38=0,"",ROUNDDOWN((SQRT(AC38)*2+SUM(AE38:AE41)*1.5+SUM(AD38:AD41)+BD38)*BE38,1)) ->  | AH38: =IF($K38="大口径主砲",1,0)+IF($K39="大口径主砲",1,0)+IF($K40="大口径主砲",1,0)+IF($K41="大口径主砲",1,0) -> 2 | AI38: =IF($K38="中口径主砲",1,0)+IF($K39="中口径主砲",1,0)+IF($K40="中口径主砲",1,0)+IF($K41="中口径主砲",1,0) -> 0 | AJ38: =IF($K38="小口径主砲",1,0)+IF($K39="小口径主砲",1,0)+IF($K40="小口径主砲",1,0)+IF($K41="小口径主砲",1,0) -> 0 | AK38: =AH38+AI38+AJ38 -> 2 | AL38: =IF($K38="副砲",1,0)+IF($K39="副砲",1,0)+IF($K40="副砲",1,0)+IF($K41="副砲",1,0) -> 0 | AM38: =IF($K38="大型電探",1,0)+IF($K39="大型電探",1,0)+IF($K40="大型電探",1,0)+IF($K41="大型電探",1,0) -> 2 | AN38: =IF($K38="小型電探",1,0)+IF($K39="小型電探",1,0)+IF($K40="小型電探",1,0)+IF($K41="小型電探",1,0) -> 0 | AO38: =AM38+AN38 -> 2 | AP38: =IF($K38="魚雷",1,0)+IF($K39="魚雷",1,0)+IF($K40="魚雷",1,0)+IF($K41="魚雷",1,0) -> 0 | AQ38: =IF($K38="対艦強化弾",1,0)+IF($K39="対艦強化弾",1,0)+IF($K40="対艦強化弾",1,0)+IF($K41="対艦強化弾",1,0) -> 0 | AR38: =IF(OR($K38="水上偵察機",$K38="水上爆撃機"),1,0)+IF(OR($K39="水上偵察機",$K39="水上爆撃機"),1,0)+IF(OR($K40="水上偵察機",$K40="水上爆撃機"),1,0)+IF(OR($K41="水上偵察機",$K41="水上爆撃機"),1,0) -> 0 | AS38: =IF($K38="爆雷",1,0)+IF($K39="爆雷",1,0)+IF($K40="爆雷",1,0)+IF($K41="爆雷",1,0) -> 0 | AT38: =IF($K38="ソナー",1,0)+IF($K39="ソナー",1,0)+IF($K40="ソナー",1,0)+IF($K41="ソナー",1,0) -> 0 | AU38: =IF(OR($K38="オートジャイロ",$K38="対潜哨戒機"),1,0)+IF(OR($K39="オートジャイロ",$K39="対潜哨戒機"),1,0)+IF(OR($K40="オートジャイロ",$K40="対潜哨戒機"),1,0)+IF(OR($K41="オートジャイロ",$K41="対潜哨戒機"),1,0) -> 0 | AV38: =IF($K38="艦上爆撃機",1,0)+IF($K39="艦上爆撃機",1,0)+IF($K40="艦上爆撃機",1,0)+IF($K41="艦上爆撃機",1,0) -> 0 | AW38: =IF($K38="艦上攻撃機",1,0)+IF($K39="艦上攻撃機",1,0)+IF($K40="艦上攻撃機",1,0)+IF($K41="艦上攻撃機",1,0) -> 0 | AX38: =IF($K38="大型飛行艇",1,0)+IF($K39="大型飛行艇",1,0)+IF($K40="大型飛行艇",1,0)+IF($K41="大型飛行艇",1,0) -> 0 | AY38: =IF($K38="水上爆撃機",1,0)+IF($K39="水上爆撃機",1,0)+IF($K40="水上爆撃機",1,0)+IF($K41="水上爆撃機",1,0) -> 0 | AZ38: =SUM(AV38:AY41) -> 0 | BA38: =SUM(AU38:AY41) -> 0 | BB38: =IF(AZ38>0,4,IF(BA38>0,3,2)) -> 2 | BC38: =IF(ISERROR(VLOOKUP(F38,antisubmarine_ex,1,FALSE)),E38,VLOOKUP(F38,antisubmarine_ex,2,FALSE)&"") -> 戦艦 | BD38: =IF(ISERROR(VLOOKUP(BC38,antisubmarine,BB38,FALSE)),0,VLOOKUP(BC38,antisubmarine,BB38,FALSE)) -> 0 | BE38: =IF(AND(AS38>0,AT38>0),1.15,1) -> 1 | BF38: =IF(H38="探照灯",1,0)+IF(H39="探照灯",1,0)+IF(H40="探照灯",1,0)+IF(H41="探照灯",1,0) -> 0 | BG38: =IF(H38="照明弾",1,0)+IF(H39="照明弾",1,0)+IF(H40="照明弾",1,0)+IF(H41="照明弾",1,0) -> 0 | BH38: =IF(H38="熟練見張員",1,0)+IF(H39="熟練見張員",1,0)+IF(H40="熟練見張員",1,0)+IF(H41="熟練見張員",1,0) -> 0 | BI38: =AA38+BH38*VLOOKUP("運",watcher,2,FALSE) -> 0 | BJ38: =IF(AP38>=2,"魚雷",IF(AH38+AI38+AJ38>=3,"主砲",IF(AND(AH38+AI38+AJ38=2,AL38>=1),"主砲副砲",IF(OR(AND(AH38+AI38+AJ38=1,AP38=1),AND(AH38+AI38+AJ38=2,AL38=0,AP38=1)),"主砲魚雷",0)))) -> 0 | BK38: =IF(AP38>=2,VLOOKUP("魚雷",luck_cap,2,FALSE),IF(AH38+AI38+AJ38>=3,VLOOKUP("主砲",luck_cap,2,FALSE),IF(AND(AH38+AI38+AJ38=2,AL38>=1),VLOOKUP("主砲副砲",luck_cap,2,FALSE),IF(OR(AND(AH38+AI38+AJ38=1,AP38=1),AND(AH38+AI38+AJ38=2,AL38=0,AP38=1)),VLOOKUP("主砲魚雷",luck_cap,2,FALSE),0)))) -> 0 | BL38: =IF(H38="ドラム缶",1,0)+IF(H39="ドラム缶",1,0)+IF(H40="ドラム缶",1,0)+IF(H41="ドラム缶",1,0) -> 0
G39: =IF(F38="",,VLOOKUP(F38,carrierlist,3,FALSE)&"") -> 3 | H39: 46cm三連装砲 | J39: 8 | K39: 大口径主砲 | L39: 0 | P39: 2.82 | Q39: 30.24 | R39: 0 | S39: 0 | T39: =IF(ISERROR(VLOOKUP(H39,fighterlist,1,FALSE)),"",IF(OR(E38="装甲空母",E38="正規空母",E38="軽空母",E38="水上機母艦",E38="航空戦艦",E38="航空巡洋艦",E38="潜水空母"),IF(VLOOKUP(H39,fighterlist,11,FALSE)="艦上攻撃機",ROUNDDOWN(0.8*(R39*SQRT(G39)+25),0),IF(OR(VLOOKUP(H39,fighterlist,11,FALSE)="艦上爆撃機",VLOOKUP(H39,fighterlist,11,FALSE)="水上爆撃機"),ROUNDDOWN(1*(S39*SQRT(G39)+25),0),"")),"")) ->  | U39: =IF(OR(E38="装甲空母",E38="正規空母",E38="軽空母",E38="水上機母艦",E38="航空戦艦",E38="航空巡洋艦",E38="潜水空母"),IF(K39="艦上攻撃機",ROUNDDOWN(1.5*(R39*SQRT(G39)+25),0),IF(OR(K39="艦上爆撃機",K39="水上爆撃機"),ROUNDDOWN(1*(S39*SQRT(G39)+25),0),"")),"") ->  | AD39: 0 | AE39: 0
G40: =IF(F38="",,VLOOKUP(F38,carrierlist,4,FALSE)&"") -> 3 | H40: 32号対水上電探 | K40: 大型電探 | L40: 0 | O40: 6 | P40: 8 | Q40: 0 | R40: 0 | S40: 0 | T40: =IF(ISERROR(VLOOKUP(H40,fighterlist,1,FALSE)),"",IF(OR(E38="装甲空母",E38="正規空母",E38="軽空母",E38="水上機母艦",E38="航空戦艦",E38="航空巡洋艦",E38="潜水空母"),IF(VLOOKUP(H40,fighterlist,11,FALSE)="艦上攻撃機",ROUNDDOWN(0.8*(R40*SQRT(G40)+25),0),IF(OR(VLOOKUP(H40,fighterlist,11,FALSE)="艦上爆撃機",VLOOKUP(H40,fighterlist,11,FALSE)="水上爆撃機"),ROUNDDOWN(1*(S40*SQRT(G40)+25),0),"")),"")) ->  | U40: =IF(OR(E38="装甲空母",E38="正規空母",E38="軽空母",E38="水上機母艦",E38="航空戦艦",E38="航空巡洋艦",E38="潜水空母"),IF(K40="艦上攻撃機",ROUNDDOWN(1.5*(R40*SQRT(G40)+25),0),IF(OR(K40="艦上爆撃機",K40="水上爆撃機"),ROUNDDOWN(1*(S40*SQRT(G40)+25),0),"")),"") ->  | AD40: 0 | AE40: 0
G41: =IF(F38="",,VLOOKUP(F38,carrierlist,5,FALSE)&"") -> 3 | H41: 32号対水上電探 | K41: 大型電探 | L41: 0 | O41: 6 | P41: 8 | Q41: 0 | R41: 0 | S41: 0 | T41: =IF(ISERROR(VLOOKUP(H41,fighterlist,1,FALSE)),"",IF(OR(E38="装甲空母",E38="正規空母",E38="軽空母",E38="水上機母艦",E38="航空戦艦",E38="航空巡洋艦",E38="潜水空母"),IF(VLOOKUP(H41,fighterlist,11,FALSE)="艦上攻撃機",ROUNDDOWN(0.8*(R41*SQRT(G41)+25),0),IF(OR(VLOOKUP(H41,fighterlist,11,FALSE)="艦上爆撃機",VLOOKUP(H41,fighterlist,11,FALSE)="水上爆撃機"),ROUNDDOWN(1*(S41*SQRT(G41)+25),0),"")),"")) ->  | U41: =IF(OR(E38="装甲空母",E38="正規空母",E38="軽空母",E38="水上機母艦",E38="航空戦艦",E38="航空巡洋艦",E38="潜水空母"),IF(K41="艦上攻撃機",ROUNDDOWN(1.5*(R41*SQRT(G41)+25),0),IF(OR(K41="艦上爆撃機",K41="水上爆撃機"),ROUNDDOWN(1*(S41*SQRT(G41)+25),0),"")),"") ->  | AD41: 0 | AE41: 0
E42: =IF(F42="","",VLOOKUP(F42,carrierlist,8,FALSE)&"") -> 戦艦 | F42: ビスマルクzwei | G42: =IF(F42="",,VLOOKUP(F42,carrierlist,2,FALSE)&"") -> 4 | H42: 46cm三連装砲 | K42: 大口径主砲 | L42: 0 | P42: 0 | Q42: 26 | R42: 0 | S42: 0 | T42: =IF(ISERROR(VLOOKUP(H42,fighterlist,1,FALSE)),"",IF(OR(E42="装甲空母",E42="正規空母",E42="軽空母",E42="水上機母艦",E42="航空戦艦",E42="航空巡洋艦",E42="潜水空母"),IF(VLOOKUP(H42,fighterlist,11,FALSE)="艦上攻撃機",ROUNDDOWN(0.8*(R42*SQRT(G42)+25),0),IF(OR(VLOOKUP(H42,fighterlist,11,FALSE)="艦上爆撃機",VLOOKUP(H42,fighterlist,11,FALSE)="水上爆撃機"),ROUNDDOWN(1*(S42*SQRT(G42)+25),0),"")),"")) ->  | U42: =IF(OR(E42="装甲空母",E42="正規空母",E42="軽空母",E42="水上機母艦",E42="航空戦艦",E42="航空巡洋艦",E42="潜水空母"),IF(K42="艦上攻撃機",ROUNDDOWN(1.5*(R42*SQRT(G42)+25),0),IF(OR(K42="艦上爆撃機",K42="水上爆撃機"),ROUNDDOWN(1*(S42*SQRT(G42)+25),0),"")),"") ->  | V42: =IF(OR(F42="",F42="[その他]",),"",IF(F42="","",IF(OR(E42="装甲空母",E42="正規空母",E42="軽空母"),IF(SUM(R42:R45)+SUM(S42:S45)=0,0,ROUNDDOWN(55+(VLOOKUP(F42,carrierlist,6,FALSE)+SUM(Q42:Q45))*1.5+SUM(R42:R45)*1.5+SUM(S42:S45)*2,0)),ROUNDDOWN(5+VLOOKUP(F42,carrierlist,6,FALSE)+SUM(Q42:Q45),0)))) -> 154 | W42: =IF(OR(E42="潜水艦",E42="潜水空母",E42="駆逐艦",E42="軽巡洋艦",E42="重雷装巡洋艦",E42="重巡洋艦",E42="航空巡洋艦",E42="水上機母艦"),ROUNDDOWN(5+VLOOKUP(F42,carrierlist,7,FALSE)+SUM(R42:R45),0),"") ->  | X42: =IF(OR(F42="",F42="[その他]",E42="装甲空母",E42="正規空母",E42="軽空母"),"",ROUNDDOWN(VLOOKUP(F42,carrierlist,6,FALSE)+VLOOKUP(F42,carrierlist,7,FALSE)+SUM(Q42:R45),0)) -> 149 | Y42: =IF(OR(AP42>=2,AK42>=3,AND(AK42=2,AL42>=1),AND(AK42>=1,AK42<=2,AP42>=1)),"カットイン",IF(OR(AND(AK42=2,AL42=0,AP42=0),AND(AK42=1,AL42>=1,AP42=0),AND(AK42=0,AL42>=2,AP42<=1)),"連撃","")) -> 連撃 | Z42: =IF(AP42>=2,ROUNDDOWN(X42*1.5,0)&"×2",IF(AH42>=3,X42*2,IF(AND(AH42=2,AL42>=1),ROUNDDOWN(X42*1.75,0),IF(AND(AH42>=1,AH42<=2,AP42>=1),ROUNDDOWN(X42*1.3,0)&"×2",IF(Y42="連撃",ROUNDDOWN(X42*1.2,0)&"×2",""))))) -> 178×2 | AB42: =IF(Y42="連撃",0.99,IF(Y42="",0,SQRT(VLOOKUP(BJ42,ci_coefficient,2,FALSE)*IF(BI42>BK42,BK42,BI42))*0.01+0.05*IF(BF62>=1,1,0)+0.05*IF(BG62>=1,1-(0.5)^BG62,0))) -> 0.99 | AD42: 0 | AE42: 0 | AF42: =IF(BD42=0,"",ROUNDDOWN((SQRT(AC42)*2+SUM(AE42:AE45)*1.5+SUM(AD42:AD45)+BD42)*BE42,1)) ->  | AH42: =IF($K42="大口径主砲",1,0)+IF($K43="大口径主砲",1,0)+IF($K44="大口径主砲",1,0)+IF($K45="大口径主砲",1,0) -> 2 | AI42: =IF($K42="中口径主砲",1,0)+IF($K43="中口径主砲",1,0)+IF($K44="中口径主砲",1,0)+IF($K45="中口径主砲",1,0) -> 0 | AJ42: =IF($K42="小口径主砲",1,0)+IF($K43="小口径主砲",1,0)+IF($K44="小口径主砲",1,0)+IF($K45="小口径主砲",1,0) -> 0 | AK42: =AH42+AI42+AJ42 -> 2 | AL42: =IF($K42="副砲",1,0)+IF($K43="副砲",1,0)+IF($K44="副砲",1,0)+IF($K45="副砲",1,0) -> 0 | AM42: =IF($K42="大型電探",1,0)+IF($K43="大型電探",1,0)+IF($K44="大型電探",1,0)+IF($K45="大型電探",1,0) -> 2 | AN42: =IF($K42="小型電探",1,0)+IF($K43="小型電探",1,0)+IF($K44="小型電探",1,0)+IF($K45="小型電探",1,0) -> 0 | AO42: =AM42+AN42 -> 2 | AP42: =IF($K42="魚雷",1,0)+IF($K43="魚雷",1,0)+IF($K44="魚雷",1,0)+IF($K45="魚雷",1,0) -> 0 | AQ42: =IF($K42="対艦強化弾",1,0)+IF($K43="対艦強化弾",1,0)+IF($K44="対艦強化弾",1,0)+IF($K45="対艦強化弾",1,0) -> 0 | AR42: =IF(OR($K42="水上偵察機",$K42="水上爆撃機"),1,0)+IF(OR($K43="水上偵察機",$K43="水上爆撃機"),1,0)+IF(OR($K44="水上偵察機",$K44="水上爆撃機"),1,0)+IF(OR($K45="水上偵察機",$K45="水上爆撃機"),1,0) -> 0 | AS42: =IF($K42="爆雷",1,0)+IF($K43="爆雷",1,0)+IF($K44="爆雷",1,0)+IF($K45="爆雷",1,0) -> 0 | AT42: =IF($K42="ソナー",1,0)+IF($K43="ソナー",1,0)+IF($K44="ソナー",1,0)+IF($K45="ソナー",1,0) -> 0 | AU42: =IF(OR($K42="オートジャイロ",$K42="対潜哨戒機"),1,0)+IF(OR($K43="オートジャイロ",$K43="対潜哨戒機"),1,0)+IF(OR($K44="オートジャイロ",$K44="対潜哨戒機"),1,0)+IF(OR($K45="オートジャイロ",$K45="対潜哨戒機"),1,0) -> 0 | AV42: =IF($K42="艦上爆撃機",1,0)+IF($K43="艦上爆撃機",1,0)+IF($K44="艦上爆撃機",1,0)+IF($K45="艦上爆撃機",1,0) -> 0 | AW42: =IF($K42="艦上攻撃機",1,0)+IF($K43="艦上攻撃機",1,0)+IF($K44="艦上攻撃機",1,0)+IF($K45="艦上攻撃機",1,0) -> 0 | AX42: =IF($K42="大型飛行艇",1,0)+IF($K43="大型飛行艇",1,0)+IF($K44="大型飛行艇",1,0)+IF($K45="大型飛行艇",1,0) -> 0 | AY42: =IF($K42="水上爆撃機",1,0)+IF($K43="水上爆撃機",1,0)+IF($K44="水上爆撃機",1,0)+IF($K45="水上爆撃機",1,0) -> 0 | AZ42: =SUM(AV42:AY45) -> 0 | BA42: =SUM(AU42:AY45) -> 0 | BB42: =IF(AZ42>0,4,IF(BA42>0,3,2)) -> 2 | BC42: =IF(ISERROR(VLOOKUP(F42,antisubmarine_ex,1,FALSE)),E42,VLOOKUP(F42,antisubmarine_ex,2,FALSE)&"") -> 戦艦 | BD42: =IF(ISERROR(VLOOKUP(BC42,antisubmarine,BB42,FALSE)),0,VLOOKUP(BC42,antisubmarine,BB42,FALSE)) -> 0 | BE42: =IF(AND(AS42>0,AT42>0),1.15,1) -> 1 | BF42: =IF(H42="探照灯",1,0)+IF(H43="探照灯",1,0)+IF(H44="探照灯",1,0)+IF(H45="探照灯",1,0) -> 0 | BG42: =IF(H42="照明弾",1,0)+IF(H43="照明弾",1,0)+IF(H44="照明弾",1,0)+IF(H45="照明弾",1,0) -> 0 | BH42: =IF(H42="熟練見張員",1,0)+IF(H43="熟練見張員",1,0)+IF(H44="熟練見張員",1,0)+IF(H45="熟練見張員",1,0) -> 0 | BI42: =AA42+BH42*VLOOKUP("運",watcher,2,FALSE) -> 0 | BJ42: =IF(AP42>=2,"魚雷",IF(AH42+AI42+AJ42>=3,"主砲",IF(AND(AH42+AI42+AJ42=2,AL42>=1),"主砲副砲",IF(OR(AND(AH42+AI42+AJ42=1,AP42=1),AND(AH42+AI42+AJ42=2,AL42=0,AP42=1)),"主砲魚雷",0)))) -> 0 | BK42: =IF(AP42>=2,VLOOKUP("魚雷",luck_cap,2,FALSE),IF(AH42+AI42+AJ42>=3,VLOOKUP("主砲",luck_cap,2,FALSE),IF(AND(AH42+AI42+AJ42=2,AL42>=1),VLOOKUP("主砲副砲",luck_cap,2,FALSE),IF(OR(AND(AH42+AI42+AJ42=1,AP42=1),AND(AH42+AI42+AJ42=2,AL42=0,AP42=1)),VLOOKUP("主砲魚雷",luck_cap,2,FALSE),0)))) -> 0 | BL42: =IF(H42="ドラム缶",1,0)+IF(H43="ドラム缶",1,0)+IF(H44="ドラム缶",1,0)+IF(H45="ドラム缶",1,0) -> 0
G43: =IF(F42="",,VLOOKUP(F42,carrierlist,3,FALSE)&"") -> 4 | H43: 46cm三連装砲 | K43: 大口径主砲 | L43: 0 | P43: 0 | Q43: 26 | R43: 0 | S43: 0 | T43: =IF(ISERROR(VLOOKUP(H43,fighterlist,1,FALSE)),"",IF(OR(E42="装甲空母",E42="正規空母",E42="軽空母",E42="水上機母艦",E42="航空戦艦",E42="航空巡洋艦",E42="潜水空母"),IF(VLOOKUP(H43,fighterlist,11,FALSE)="艦上攻撃機",ROUNDDOWN(0.8*(R43*SQRT(G43)+25),0),IF(OR(VLOOKUP(H43,fighterlist,11,FALSE)="艦上爆撃機",VLOOKUP(H43,fighterlist,11,FALSE)="水上爆撃機"),ROUNDDOWN(1*(S43*SQRT(G43)+25),0),"")),"")) ->  | U43: =IF(OR(E42="装甲空母",E42="正規空母",E42="軽空母",E42="水上機母艦",E42="航空戦艦",E42="航空巡洋艦",E42="潜水空母"),IF(K43="艦上攻撃機",ROUNDDOWN(1.5*(R43*SQRT(G43)+25),0),IF(OR(K43="艦上爆撃機",K43="水上爆撃機"),ROUNDDOWN(1*(S43*SQRT(G43)+25),0),"")),"") ->  | AD43: 0 | AE43: 0
G44: =IF(F42="",,VLOOKUP(F42,carrierlist,4,FALSE)&"") -> 4 | H44: 32号対水上電探 | K44: 大型電探 | L44: 0 | O44: 6 | P44: 8 | Q44: 0 | R44: 0 | S44: 0 | T44: =IF(ISERROR(VLOOKUP(H44,fighterlist,1,FALSE)),"",IF(OR(E42="装甲空母",E42="正規空母",E42="軽空母",E42="水上機母艦",E42="航空戦艦",E42="航空巡洋艦",E42="潜水空母"),IF(VLOOKUP(H44,fighterlist,11,FALSE)="艦上攻撃機",ROUNDDOWN(0.8*(R44*SQRT(G44)+25),0),IF(OR(VLOOKUP(H44,fighterlist,11,FALSE)="艦上爆撃機",VLOOKUP(H44,fighterlist,11,FALSE)="水上爆撃機"),ROUNDDOWN(1*(S44*SQRT(G44)+25),0),"")),"")) ->  | U44: =IF(OR(E42="装甲空母",E42="正規空母",E42="軽空母",E42="水上機母艦",E42="航空戦艦",E42="航空巡洋艦",E42="潜水空母"),IF(K44="艦上攻撃機",ROUNDDOWN(1.5*(R44*SQRT(G44)+25),0),IF(OR(K44="艦上爆撃機",K44="水上爆撃機"),ROUNDDOWN(1*(S44*SQRT(G44)+25),0),"")),"") ->  | AD44: 0 | AE44: 0
G45: =IF(F42="",,VLOOKUP(F42,carrierlist,5,FALSE)&"") -> 4 | H45: 32号対水上電探 | K45: 大型電探 | L45: 0 | O45: 6 | P45: 8 | Q45: 0 | R45: 0 | S45: 0 | T45: =IF(ISERROR(VLOOKUP(H45,fighterlist,1,FALSE)),"",IF(OR(E42="装甲空母",E42="正規空母",E42="軽空母",E42="水上機母艦",E42="航空戦艦",E42="航空巡洋艦",E42="潜水空母"),IF(VLOOKUP(H45,fighterlist,11,FALSE)="艦上攻撃機",ROUNDDOWN(0.8*(R45*SQRT(G45)+25),0),IF(OR(VLOOKUP(H45,fighterlist,11,FALSE)="艦上爆撃機",VLOOKUP(H45,fighterlist,11,FALSE)="水上爆撃機"),ROUNDDOWN(1*(S45*SQRT(G45)+25),0),"")),"")) ->  | U45: =IF(OR(E42="装甲空母",E42="正規空母",E42="軽空母",E42="水上機母艦",E42="航空戦艦",E42="航空巡洋艦",E42="潜水空母"),IF(K45="艦上攻撃機",ROUNDDOWN(1.5*(R45*SQRT(G45)+25),0),IF(OR(K45="艦上爆撃機",K45="水上爆撃機"),ROUNDDOWN(1*(S45*SQRT(G45)+25),0),"")),"") ->  | AD45: 0 | AE45: 0
E46: =IF(F46="","",VLOOKUP(F46,carrierlist,8,FALSE)&"") -> 正規空母 | F46: 蒼龍改二 | G46: =IF(F46="",,VLOOKUP(F46,carrierlist,2,FALSE)&"") -> 18 | H46: 彗星一二型甲 | K46: 艦上爆撃機 | L46: 0 | O46: 0.6 | P46: 0 | Q46: 0 | R46: 0 | S46: 10 | T46: =IF(ISERROR(VLOOKUP(H46,fighterlist,1,FALSE)),"",IF(OR(E46="装甲空母",E46="正規空母",E46="軽空母",E46="水上機母艦",E46="航空戦艦",E46="航空巡洋艦",E46="潜水空母"),IF(VLOOKUP(H46,fighterlist,11,FALSE)="艦上攻撃機",ROUNDDOWN(0.8*(R46*SQRT(G46)+25),0),IF(OR(VLOOKUP(H46,fighterlist,11,FALSE)="艦上爆撃機",VLOOKUP(H46,fighterlist,11,FALSE)="水上爆撃機"),ROUNDDOWN(1*(S46*SQRT(G46)+25),0),"")),"")) -> 67 | U46: =IF(OR(E46="装甲空母",E46="正規空母",E46="軽空母",E46="水上機母艦",E46="航空戦艦",E46="航空巡洋艦",E46="潜水空母"),IF(K46="艦上攻撃機",ROUNDDOWN(1.5*(R46*SQRT(G46)+25),0),IF(OR(K46="艦上爆撃機",K46="水上爆撃機"),ROUNDDOWN(1*(S46*SQRT(G46)+25),0),"")),"") -> 67 | V46: =IF(OR(F46="",F46="[その他]",),"",IF(F46="","",IF(OR(E46="装甲空母",E46="正規空母",E46="軽空母"),IF(SUM(R46:R49)+SUM(S46:S49)=0,0,ROUNDDOWN(55+(VLOOKUP(F46,carrierlist,6,FALSE)+SUM(Q46:Q49))*1.5+SUM(R46:R49)*1.5+SUM(S46:S49)*2,0)),ROUNDDOWN(5+VLOOKUP(F46,carrierlist,6,FALSE)+SUM(Q46:Q49),0)))) -> 180 | W46: =IF(OR(E46="潜水艦",E46="潜水空母",E46="駆逐艦",E46="軽巡洋艦",E46="重雷装巡洋艦",E46="重巡洋艦",E46="航空巡洋艦",E46="水上機母艦"),ROUNDDOWN(5+VLOOKUP(F46,carrierlist,7,FALSE)+SUM(R46:R49),0),"") ->  | X46: =IF(OR(F46="",F46="[その他]",E46="装甲空母",E46="正規空母",E46="軽空母"),"",ROUNDDOWN(VLOOKUP(F46,carrierlist,6,FALSE)+VLOOKUP(F46,carrierlist,7,FALSE)+SUM(Q46:R49),0)) ->  | Y46: =IF(OR(AP46>=2,AK46>=3,AND(AK46=2,AL46>=1),AND(AK46>=1,AK46<=2,AP46>=1)),"カットイン",IF(OR(AND(AK46=2,AL46=0,AP46=0),AND(AK46=1,AL46>=1,AP46=0),AND(AK46=0,AL46>=2,AP46<=1)),"連撃","")) ->  | Z46: =IF(AP46>=2,ROUNDDOWN(X46*1.5,0)&"×2",IF(AH46>=3,X46*2,IF(AND(AH46=2,AL46>=1),ROUNDDOWN(X46*1.75,0),IF(AND(AH46>=1,AH46<=2,AP46>=1),ROUNDDOWN(X46*1.3,0)&"×2",IF(Y46="連撃",ROUNDDOWN(X46*1.2,0)&"×2",""))))) ->  | AB46: =IF(Y46="連撃",0.99,IF(Y46="",0,SQRT(VLOOKUP(BJ46,ci_coefficient,2,FALSE)*IF(BI46>BK46,BK46,BI46))*0.01+0.05*IF(BF62>=1,1,0)+0.05*IF(BG62>=1,1-(0.5)^BG62,0))) -> 0 | AD46: 0 | AE46: 3 | AF46: =IF(BD46=0,"",ROUNDDOWN((SQRT(AC46)*2+SUM(AE46:AE49)*1.5+SUM(AD46:AD49)+BD46)*BE46,1)) ->  | AH46: =IF($K46="大口径主砲",1,0)+IF($K47="大口径主砲",1,0)+IF($K48="大口径主砲",1,0)+IF($K49="大口径主砲",1,0) -> 0 | AI46: =IF($K46="中口径主砲",1,0)+IF($K47="中口径主砲",1,0)+IF($K48="中口径主砲",1,0)+IF($K49="中口径主砲",1,0) -> 0 | AJ46: =IF($K46="小口径主砲",1,0)+IF($K47="小口径主砲",1,0)+IF($K48="小口径主砲",1,0)+IF($K49="小口径主砲",1,0) -> 0 | AK46: =AH46+AI46+AJ46 -> 0 | AL46: =IF($K46="副砲",1,0)+IF($K47="副砲",1,0)+IF($K48="副砲",1,0)+IF($K49="副砲",1,0) -> 0 | AM46: =IF($K46="大型電探",1,0)+IF($K47="大型電探",1,0)+IF($K48="大型電探",1,0)+IF($K49="大型電探",1,0) -> 2 | AN46: =IF($K46="小型電探",1,0)+IF($K47="小型電探",1,0)+IF($K48="小型電探",1,0)+IF($K49="小型電探",1,0) -> 0 | AO46: =AM46+AN46 -> 2 | AP46: =IF($K46="魚雷",1,0)+IF($K47="魚雷",1,0)+IF($K48="魚雷",1,0)+IF($K49="魚雷",1,0) -> 0 | AQ46: =IF($K46="対艦強化弾",1,0)+IF($K47="対艦強化弾",1,0)+IF($K48="対艦強化弾",1,0)+IF($K49="対艦強化弾",1,0) -> 0 | AR46: =IF(OR($K46="水上偵察機",$K46="水上爆撃機"),1,0)+IF(OR($K47="水上偵察機",$K47="水上爆撃機"),1,0)+IF(OR($K48="水上偵察機",$K48="水上爆撃機"),1,0)+IF(OR($K49="水上偵察機",$K49="水上爆撃機"),1,0) -> 0 | AS46: =IF($K46="爆雷",1,0)+IF($K47="爆雷",1,0)+IF($K48="爆雷",1,0)+IF($K49="爆雷",1,0) -> 0 | AT46: =IF($K46="ソナー",1,0)+IF($K47="ソナー",1,0)+IF($K48="ソナー",1,0)+IF($K49="ソナー",1,0) -> 0 | AU46: =IF(OR($K46="オートジャイロ",$K46="対潜哨戒機"),1,0)+IF(OR($K47="オートジャイロ",$K47="対潜哨戒機"),1,0)+IF(OR($K48="オートジャイロ",$K48="対潜哨戒機"),1,0)+IF(OR($K49="オートジャイロ",$K49="対潜哨戒機"),1,0) -> 0 | AV46: =IF($K46="艦上爆撃機",1,0)+IF($K47="艦上爆撃機",1,0)+IF($K48="艦上爆撃機",1,0)+IF($K49="艦上爆撃機",1,0) -> 2 | AW46: =IF($K46="艦上攻撃機",1,0)+IF($K47="艦上攻撃機",1,0)+IF($K48="艦上攻撃機",1,0)+IF($K49="艦上攻撃機",1,0) -> 0 | AX46: =IF($K46="大型飛行艇",1,0)+IF($K47="大型飛行艇",1,0)+IF($K48="大型飛行艇",1,0)+IF($K49="大型飛行艇",1,0) -> 0 | AY46: =IF($K46="水上爆撃機",1,0)+IF($K47="水上爆撃機",1,0)+IF($K48="水上爆撃機",1,0)+IF($K49="水上爆撃機",1,0) -> 0 | AZ46: =SUM(AV46:AY49) -> 2 | BA46: =SUM(AU46:AY49) -> 2 | BB46: =IF(AZ46>0,4,IF(BA46>0,3,2)) -> 4 | BC46: =IF(ISERROR(VLOOKUP(F46,antisubmarine_ex,1,FALSE)),E46,VLOOKUP(F46,antisubmarine_ex,2,FALSE)&"") -> 正規空母 | BD46: =IF(ISERROR(VLOOKUP(BC46,antisubmarine,BB46,FALSE)),0,VLOOKUP(BC46,antisubmarine,BB46,FALSE)) -> 0 | BE46: =IF(AND(AS46>0,AT46>0),1.15,1) -> 1 | BF46: =IF(H46="探照灯",1,0)+IF(H47="探照灯",1,0)+IF(H48="探照灯",1,0)+IF(H49="探照灯",1,0) -> 0 | BG46: =IF(H46="照明弾",1,0)+IF(H47="照明弾",1,0)+IF(H48="照明弾",1,0)+IF(H49="照明弾",1,0) -> 0 | BH46: =IF(H46="熟練見張員",1,0)+IF(H47="熟練見張員",1,0)+IF(H48="熟練見張員",1,0)+IF(H49="熟練見張員",1,0) -> 0 | BI46: =AA46+BH46*VLOOKUP("運",watcher,2,FALSE) -> 0 | BJ46: =IF(AP46>=2,"魚雷",IF(AH46+AI46+AJ46>=3,"主砲",IF(AND(AH46+AI46+AJ46=2,AL46>=1),"主砲副砲",IF(OR(AND(AH46+AI46+AJ46=1,AP46=1),AND(AH46+AI46+AJ46=2,AL46=0,AP46=1)),"主砲魚雷",0)))) -> 0 | BK46: =IF(AP46>=2,VLOOKUP("魚雷",luck_cap,2,FALSE),IF(AH46+AI46+AJ46>=3,VLOOKUP("主砲",luck_cap,2,FALSE),IF(AND(AH46+AI46+AJ46=2,AL46>=1),VLOOKUP("主砲副砲",luck_cap,2,FALSE),IF(OR(AND(AH46+AI46+AJ46=1,AP46=1),AND(AH46+AI46+AJ46=2,AL46=0,AP46=1)),VLOOKUP("主砲魚雷",luck_cap,2,FALSE),0)))) -> 0 | BL46: =IF(H46="ドラム缶",1,0)+IF(H47="ドラム缶",1,0)+IF(H48="ドラム缶",1,0)+IF(H49="ドラム缶",1,0) -> 0
G47: =IF(F46="",,VLOOKUP(F46,carrierlist,3,FALSE)&"") -> 35 | H47: 彗星一二型甲 | K47: 艦上爆撃機 | L47: 0 | O47: 0.6 | P47: 0 | Q47: 0 | R47: 0 | S47: 10 | T47: =IF(ISERROR(VLOOKUP(H47,fighterlist,1,FALSE)),"",IF(OR(E46="装甲空母",E46="正規空母",E46="軽空母",E46="水上機母艦",E46="航空戦艦",E46="航空巡洋艦",E46="潜水空母"),IF(VLOOKUP(H47,fighterlist,11,FALSE)="艦上攻撃機",ROUNDDOWN(0.8*(R47*SQRT(G47)+25),0),IF(OR(VLOOKUP(H47,fighterlist,11,FALSE)="艦上爆撃機",VLOOKUP(H47,fighterlist,11,FALSE)="水上爆撃機"),ROUNDDOWN(1*(S47*SQRT(G47)+25),0),"")),"")) -> 84 | U47: =IF(OR(E46="装甲空母",E46="正規空母",E46="軽空母",E46="水上機母艦",E46="航空戦艦",E46="航空巡洋艦",E46="潜水空母"),IF(K47="艦上攻撃機",ROUNDDOWN(1.5*(R47*SQRT(G47)+25),0),IF(OR(K47="艦上爆撃機",K47="水上爆撃機"),ROUNDDOWN(1*(S47*SQRT(G47)+25),0),"")),"") -> 84 | AD47: 0 | AE47: 3
G48: =IF(F46="",,VLOOKUP(F46,carrierlist,4,FALSE)&"") -> 20 | H48: 32号対水上電探 | K48: 大型電探 | L48: 0 | O48: 6 | P48: 8 | Q48: 0 | R48: 0 | S48: 0 | T48: =IF(ISERROR(VLOOKUP(H48,fighterlist,1,FALSE)),"",IF(OR(E46="装甲空母",E46="正規空母",E46="軽空母",E46="水上機母艦",E46="航空戦艦",E46="航空巡洋艦",E46="潜水空母"),IF(VLOOKUP(H48,fighterlist,11,FALSE)="艦上攻撃機",ROUNDDOWN(0.8*(R48*SQRT(G48)+25),0),IF(OR(VLOOKUP(H48,fighterlist,11,FALSE)="艦上爆撃機",VLOOKUP(H48,fighterlist,11,FALSE)="水上爆撃機"),ROUNDDOWN(1*(S48*SQRT(G48)+25),0),"")),"")) ->  | U48: =IF(OR(E46="装甲空母",E46="正規空母",E46="軽空母",E46="水上機母艦",E46="航空戦艦",E46="航空巡洋艦",E46="潜水空母"),IF(K48="艦上攻撃機",ROUNDDOWN(1.5*(R48*SQRT(G48)+25),0),IF(OR(K48="艦上爆撃機",K48="水上爆撃機"),ROUNDDOWN(1*(S48*SQRT(G48)+25),0),"")),"") ->  | AD48: 0 | AE48: 0
G49: =IF(F46="",,VLOOKUP(F46,carrierlist,5,FALSE)&"") -> 6 | H49: 32号対水上電探 | K49: 大型電探 | L49: 0 | O49: 6 | P49: 8 | Q49: 0 | R49: 0 | S49: 0 | T49: =IF(ISERROR(VLOOKUP(H49,fighterlist,1,FALSE)),"",IF(OR(E46="装甲空母",E46="正規空母",E46="軽空母",E46="水上機母艦",E46="航空戦艦",E46="航空巡洋艦",E46="潜水空母"),IF(VLOOKUP(H49,fighterlist,11,FALSE)="艦上攻撃機",ROUNDDOWN(0.8*(R49*SQRT(G49)+25),0),IF(OR(VLOOKUP(H49,fighterlist,11,FALSE)="艦上爆撃機",VLOOKUP(H49,fighterlist,11,FALSE)="水上爆撃機"),ROUNDDOWN(1*(S49*SQRT(G49)+25),0),"")),"")) ->  | U49: =IF(OR(E46="装甲空母",E46="正規空母",E46="軽空母",E46="水上機母艦",E46="航空戦艦",E46="航空巡洋艦",E46="潜水空母"),IF(K49="艦上攻撃機",ROUNDDOWN(1.5*(R49*SQRT(G49)+25),0),IF(OR(K49="艦上爆撃機",K49="水上爆撃機"),ROUNDDOWN(1*(S49*SQRT(G49)+25),0),"")),"") ->  | AD49: 0 | AE49: 0
E50: =IF(F50="","",VLOOKUP(F50,carrierlist,8,FALSE)&"") -> 正規空母 | F50: 飛龍改二 | G50: =IF(F50="",,VLOOKUP(F50,carrierlist,2,FALSE)&"") -> 18 | H50: 彗星一二型甲 | K50: 艦上爆撃機 | L50: 0 | O50: 0.6 | P50: 0 | Q50: 0 | R50: 0 | S50: 10 | T50: =IF(ISERROR(VLOOKUP(H50,fighterlist,1,FALSE)),"",IF(OR(E50="装甲空母",E50="正規空母",E50="軽空母",E50="水上機母艦",E50="航空戦艦",E50="航空巡洋艦",E50="潜水空母"),IF(VLOOKUP(H50,fighterlist,11,FALSE)="艦上攻撃機",ROUNDDOWN(0.8*(R50*SQRT(G50)+25),0),IF(OR(VLOOKUP(H50,fighterlist,11,FALSE)="艦上爆撃機",VLOOKUP(H50,fighterlist,11,FALSE)="水上爆撃機"),ROUNDDOWN(1*(S50*SQRT(G50)+25),0),"")),"")) -> 67 | U50: =IF(OR(E50="装甲空母",E50="正規空母",E50="軽空母",E50="水上機母艦",E50="航空戦艦",E50="航空巡洋艦",E50="潜水空母"),IF(K50="艦上攻撃機",ROUNDDOWN(1.5*(R50*SQRT(G50)+25),0),IF(OR(K50="艦上爆撃機",K50="水上爆撃機"),ROUNDDOWN(1*(S50*SQRT(G50)+25),0),"")),"") -> 67 | V50: =IF(OR(F50="",F50="[その他]",),"",IF(F50="","",IF(OR(E50="装甲空母",E50="正規空母",E50="軽空母"),IF(SUM(R50:R53)+SUM(S50:S53)=0,0,ROUNDDOWN(55+(VLOOKUP(F50,carrierlist,6,FALSE)+SUM(Q50:Q53))*1.5+SUM(R50:R53)*1.5+SUM(S50:S53)*2,0)),ROUNDDOWN(5+VLOOKUP(F50,carrierlist,6,FALSE)+SUM(Q50:Q53),0)))) -> 191 | W50: =IF(OR(E50="潜水艦",E50="潜水空母",E50="駆逐艦",E50="軽巡洋艦",E50="重雷装巡洋艦",E50="重巡洋艦",E50="航空巡洋艦",E50="水上機母艦"),ROUNDDOWN(5+VLOOKUP(F50,carrierlist,7,FALSE)+SUM(R50:R53),0),"") ->  | X50: =IF(OR(F50="",F50="[その他]",E50="装甲空母",E50="正規空母",E50="軽空母"),"",ROUNDDOWN(VLOOKUP(F50,carrierlist,6,FALSE)+VLOOKUP(F50,carrierlist,7,FALSE)+SUM(Q50:R53),0)) ->  | Y50: =IF(OR(AP50>=2,AK50>=3,AND(AK50=2,AL50>=1),AND(AK50>=1,AK50<=2,AP50>=1)),"カットイン",IF(OR(AND(AK50=2,AL50=0,AP50=0),AND(AK50=1,AL50>=1,AP50=0),AND(AK50=0,AL50>=2,AP50<=1)),"連撃","")) ->  | Z50: =IF(AP50>=2,ROUNDDOWN(X50*1.5,0)&"×2",IF(AH50>=3,X50*2,IF(AND(AH50=2,AL50>=1),ROUNDDOWN(X50*1.75,0),IF(AND(AH50>=1,AH50<=2,AP50>=1),ROUNDDOWN(X50*1.3,0)&"×2",IF(Y50="連撃",ROUNDDOWN(X50*1.2,0)&"×2",""))))) ->  | AB50: =IF(Y50="連撃",0.99,IF(Y50="",0,SQRT(VLOOKUP(BJ50,ci_coefficient,2,FALSE)*IF(BI50>BK50,BK50,BI50))*0.01+0.05*IF(BF62>=1,1,0)+0.05*IF(BG62>=1,1-(0.5)^BG62,0))) -> 0 | AD50: 0 | AE50: 3 | AF50: =IF(BD50=0,"",ROUNDDOWN((SQRT(AC50)*2+SUM(AE50:AE53)*1.5+SUM(AD50:AD53)+BD50)*BE50,1)) ->  | AH50: =IF($K50="大口径主砲",1,0)+IF($K51="大口径主砲",1,0)+IF($K52="大口径主砲",1,0)+IF($K53="大口径主砲",1,0) -> 0 | AI50: =IF($K50="中口径主砲",1,0)+IF($K51="中口径主砲",1,0)+IF($K52="中口径主砲",1,0)+IF($K53="中口径主砲",1,0) -> 0 | AJ50: =IF($K50="小口径主砲",1,0)+IF($K51="小口径主砲",1,0)+IF($K52="小口径主砲",1,0)+IF($K53="小口径主砲",1,0) -> 0 | AK50: =AH50+AI50+AJ50 -> 0 | AL50: =IF($K50="副砲",1,0)+IF($K51="副砲",1,0)+IF($K52="副砲",1,0)+IF($K53="副砲",1,0) -> 0 | AM50: =IF($K50="大型電探",1,0)+IF($K51="大型電探",1,0)+IF($K52="大型電探",1,0)+IF($K53="大型電探",1,0) -> 2 | AN50: =IF($K50="小型電探",1,0)+IF($K51="小型電探",1,0)+IF($K52="小型電探",1,0)+IF($K53="小型電探",1,0) -> 0 | AO50: =AM50+AN50 -> 2 | AP50: =IF($K50="魚雷",1,0)+IF($K51="魚雷",1,0)+IF($K52="魚雷",1,0)+IF($K53="魚雷",1,0) -> 0 | AQ50: =IF($K50="対艦強化弾",1,0)+IF($K51="対艦強化弾",1,0)+IF($K52="対艦強化弾",1,0)+IF($K53="対艦強化弾",1,0) -> 0 | AR50: =IF(OR($K50="水上偵察機",$K50="水上爆撃機"),1,0)+IF(OR($K51="水上偵察機",$K51="水上爆撃機"),1,0)+IF(OR($K52="水上偵察機",$K52="水上爆撃機"),1,0)+IF(OR($K53="水上偵察機",$K53="水上爆撃機"),1,0) -> 0 | AS50: =IF($K50="爆雷",1,0)+IF($K51="爆雷",1,0)+IF($K52="爆雷",1,0)+IF($K53="爆雷",1,0) -> 0 | AT50: =IF($K50="ソナー",1,0)+IF($K51="ソナー",1,0)+IF($K52="ソナー",1,0)+IF($K53="ソナー",1,0) -> 0 | AU50: =IF(OR($K50="オートジャイロ",$K50="対潜哨戒機"),1,0)+IF(OR($K51="オートジャイロ",$K51="対潜哨戒機"),1,0)+IF(OR($K52="オートジャイロ",$K52="対潜哨戒機"),1,0)+IF(OR($K53="オートジャイロ",$K53="対潜哨戒機"),1,0) -> 0 | AV50: =IF($K50="艦上爆撃機",1,0)+IF($K51="艦上爆撃機",1,0)+IF($K52="艦上爆撃機",1,0)+IF($K53="艦上爆撃機",1,0) -> 2 | AW50: =IF($K50="艦上攻撃機",1,0)+IF($K51="艦上攻撃機",1,0)+IF($K52="艦上攻撃機",1,0)+IF($K53="艦上攻撃機",1,0) -> 0 | AX50: =IF($K50="大型飛行艇",1,0)+IF($K51="大型飛行艇",1,0)+IF($K52="大型飛行艇",1,0)+IF($K53="大型飛行艇",1,0) -> 0 | AY50: =IF($K50="水上爆撃機",1,0)+IF($K51="水上爆撃機",1,0)+IF($K52="水上爆撃機",1,0)+IF($K53="水上爆撃機",1,0) -> 0 | AZ50: =SUM(AV50:AY53) -> 2 | BA50: =SUM(AU50:AY53) -> 2 | BB50: =IF(AZ50>0,4,IF(BA50>0,3,2)) -> 4 | BC50: =IF(ISERROR(VLOOKUP(F50,antisubmarine_ex,1,FALSE)),E50,VLOOKUP(F50,antisubmarine_ex,2,FALSE)&"") -> 正規空母 | BD50: =IF(ISERROR(VLOOKUP(BC50,antisubmarine,BB50,FALSE)),0,VLOOKUP(BC50,antisubmarine,BB50,FALSE)) -> 0 | BE50: =IF(AND(AS50>0,AT50>0),1.15,1) -> 1 | BF50: =IF(H50="探照灯",1,0)+IF(H51="探照灯",1,0)+IF(H52="探照灯",1,0)+IF(H53="探照灯",1,0) -> 0 | BG50: =IF(H50="照明弾",1,0)+IF(H51="照明弾",1,0)+IF(H52="照明弾",1,0)+IF(H53="照明弾",1,0) -> 0 | BH50: =IF(H50="熟練見張員",1,0)+IF(H51="熟練見張員",1,0)+IF(H52="熟練見張員",1,0)+IF(H53="熟練見張員",1,0) -> 0 | BI50: =AA50+BH50*VLOOKUP("運",watcher,2,FALSE) -> 0 | BJ50: =IF(AP50>=2,"魚雷",IF(AH50+AI50+AJ50>=3,"主砲",IF(AND(AH50+AI50+AJ50=2,AL50>=1),"主砲副砲",IF(OR(AND(AH50+AI50+AJ50=1,AP50=1),AND(AH50+AI50+AJ50=2,AL50=0,AP50=1)),"主砲魚雷",0)))) -> 0 | BK50: =IF(AP50>=2,VLOOKUP("魚雷",luck_cap,2,FALSE),IF(AH50+AI50+AJ50>=3,VLOOKUP("主砲",luck_cap,2,FALSE),IF(AND(AH50+AI50+AJ50=2,AL50>=1),VLOOKUP("主砲副砲",luck_cap,2,FALSE),IF(OR(AND(AH50+AI50+AJ50=1,AP50=1),AND(AH50+AI50+AJ50=2,AL50=0,AP50=1)),VLOOKUP("主砲魚雷",luck_cap,2,FALSE),0)))) -> 0 | BL50: =IF(H50="ドラム缶",1,0)+IF(H51="ドラム缶",1,0)+IF(H52="ドラム缶",1,0)+IF(H53="ドラム缶",1,0) -> 0
G51: =IF(F50="",,VLOOKUP(F50,carrierlist,3,FALSE)&"") -> 36 | H51: 彗星一二型甲 | K51: 艦上爆撃機 | L51: 0 | O51: 0.6 | P51: 0 | Q51: 0 | R51: 0 | S51: 10 | T51: =IF(ISERROR(VLOOKUP(H51,fighterlist,1,FALSE)),"",IF(OR(E50="装甲空母",E50="正規空母",E50="軽空母",E50="水上機母艦",E50="航空戦艦",E50="航空巡洋艦",E50="潜水空母"),IF(VLOOKUP(H51,fighterlist,11,FALSE)="艦上攻撃機",ROUNDDOWN(0.8*(R51*SQRT(G51)+25),0),IF(OR(VLOOKUP(H51,fighterlist,11,FALSE)="艦上爆撃機",VLOOKUP(H51,fighterlist,11,FALSE)="水上爆撃機"),ROUNDDOWN(1*(S51*SQRT(G51)+25),0),"")),"")) -> 85 | U51: =IF(OR(E50="装甲空母",E50="正規空母",E50="軽空母",E50="水上機母艦",E50="航空戦艦",E50="航空巡洋艦",E50="潜水空母"),IF(K51="艦上攻撃機",ROUNDDOWN(1.5*(R51*SQRT(G51)+25),0),IF(OR(K51="艦上爆撃機",K51="水上爆撃機"),ROUNDDOWN(1*(S51*SQRT(G51)+25),0),"")),"") -> 85 | AD51: 0 | AE51: 3
G52: =IF(F50="",,VLOOKUP(F50,carrierlist,4,FALSE)&"") -> 22 | H52: 32号対水上電探 | K52: 大型電探 | L52: 0 | O52: 6 | P52: 8 | Q52: 0 | R52: 0 | S52: 0 | T52: =IF(ISERROR(VLOOKUP(H52,fighterlist,1,FALSE)),"",IF(OR(E50="装甲空母",E50="正規空母",E50="軽空母",E50="水上機母艦",E50="航空戦艦",E50="航空巡洋艦",E50="潜水空母"),IF(VLOOKUP(H52,fighterlist,11,FALSE)="艦上攻撃機",ROUNDDOWN(0.8*(R52*SQRT(G52)+25),0),IF(OR(VLOOKUP(H52,fighterlist,11,FALSE)="艦上爆撃機",VLOOKUP(H52,fighterlist,11,FALSE)="水上爆撃機"),ROUNDDOWN(1*(S52*SQRT(G52)+25),0),"")),"")) ->  | U52: =IF(OR(E50="装甲空母",E50="正規空母",E50="軽空母",E50="水上機母艦",E50="航空戦艦",E50="航空巡洋艦",E50="潜水空母"),IF(K52="艦上攻撃機",ROUNDDOWN(1.5*(R52*SQRT(G52)+25),0),IF(OR(K52="艦上爆撃機",K52="水上爆撃機"),ROUNDDOWN(1*(S52*SQRT(G52)+25),0),"")),"") ->  | AD52: 0 | AE52: 0
G53: =IF(F50="",,VLOOKUP(F50,carrierlist,5,FALSE)&"") -> 3 | H53: 32号対水上電探 | K53: 大型電探 | L53: 0 | O53: 6 | P53: 8 | Q53: 0 | R53: 0 | S53: 0 | T53: =IF(ISERROR(VLOOKUP(H53,fighterlist,1,FALSE)),"",IF(OR(E50="装甲空母",E50="正規空母",E50="軽空母",E50="水上機母艦",E50="航空戦艦",E50="航空巡洋艦",E50="潜水空母"),IF(VLOOKUP(H53,fighterlist,11,FALSE)="艦上攻撃機",ROUNDDOWN(0.8*(R53*SQRT(G53)+25),0),IF(OR(VLOOKUP(H53,fighterlist,11,FALSE)="艦上爆撃機",VLOOKUP(H53,fighterlist,11,FALSE)="水上爆撃機"),ROUNDDOWN(1*(S53*SQRT(G53)+25),0),"")),"")) ->  | U53: =IF(OR(E50="装甲空母",E50="正規空母",E50="軽空母",E50="水上機母艦",E50="航空戦艦",E50="航空巡洋艦",E50="潜水空母"),IF(K53="艦上攻撃機",ROUNDDOWN(1.5*(R53*SQRT(G53)+25),0),IF(OR(K53="艦上爆撃機",K53="水上爆撃機"),ROUNDDOWN(1*(S53*SQRT(G53)+25),0),"")),"") ->  | AD53: 0 | AE53: 0
E54: =IF(F54="","",VLOOKUP(F54,carrierlist,8,FALSE)&"") -> 駆逐艦 | F54: 雪風改 | G54: =IF(F54="",,VLOOKUP(F54,carrierlist,2,FALSE)&"") -> 0 | H54: 10cm連装高角砲 | K54: 小口径主砲 | L54: 0 | P54: 0 | Q54: 2 | R54: 0 | S54: 0 | T54: =IF(ISERROR(VLOOKUP(H54,fighterlist,1,FALSE)),"",IF(OR(E54="装甲空母",E54="正規空母",E54="軽空母",E54="水上機母艦",E54="航空戦艦",E54="航空巡洋艦",E54="潜水空母"),IF(VLOOKUP(H54,fighterlist,11,FALSE)="艦上攻撃機",ROUNDDOWN(0.8*(R54*SQRT(G54)+25),0),IF(OR(VLOOKUP(H54,fighterlist,11,FALSE)="艦上爆撃機",VLOOKUP(H54,fighterlist,11,FALSE)="水上爆撃機"),ROUNDDOWN(1*(S54*SQRT(G54)+25),0),"")),"")) ->  | U54: =IF(OR(E54="装甲空母",E54="正規空母",E54="軽空母",E54="水上機母艦",E54="航空戦艦",E54="航空巡洋艦",E54="潜水空母"),IF(K54="艦上攻撃機",ROUNDDOWN(1.5*(R54*SQRT(G54)+25),0),IF(OR(K54="艦上爆撃機",K54="水上爆撃機"),ROUNDDOWN(1*(S54*SQRT(G54)+25),0),"")),"") ->  | V54: =IF(OR(F54="",F54="[その他]",),"",IF(F54="","",IF(OR(E54="装甲空母",E54="正規空母",E54="軽空母"),IF(SUM(R54:R57)+SUM(S54:S57)=0,0,ROUNDDOWN(55+(VLOOKUP(F54,carrierlist,6,FALSE)+SUM(Q54:Q57))*1.5+SUM(R54:R57)*1.5+SUM(S54:S57)*2,0)),ROUNDDOWN(5+VLOOKUP(F54,carrierlist,6,FALSE)+SUM(Q54:Q57),0)))) -> 68 | W54: =IF(OR(E54="潜水艦",E54="潜水空母",E54="駆逐艦",E54="軽巡洋艦",E54="重雷装巡洋艦",E54="重巡洋艦",E54="航空巡洋艦",E54="水上機母艦"),ROUNDDOWN(5+VLOOKUP(F54,carrierlist,7,FALSE)+SUM(R54:R57),0),"") -> 94 | X54: =IF(OR(F54="",F54="[その他]",E54="装甲空母",E54="正規空母",E54="軽空母"),"",ROUNDDOWN(VLOOKUP(F54,carrierlist,6,FALSE)+VLOOKUP(F54,carrierlist,7,FALSE)+SUM(Q54:R57),0)) -> 152 | Y54: =IF(OR(AP54>=2,AK54>=3,AND(AK54=2,AL54>=1),AND(AK54>=1,AK54<=2,AP54>=1)),"カットイン",IF(OR(AND(AK54=2,AL54=0,AP54=0),AND(AK54=1,AL54>=1,AP54=0),AND(AK54=0,AL54>=2,AP54<=1)),"連撃","")) -> 連撃 | Z54: =IF(AP54>=2,ROUNDDOWN(X54*1.5,0)&"×2",IF(AH54>=3,X54*2,IF(AND(AH54=2,AL54>=1),ROUNDDOWN(X54*1.75,0),IF(AND(AH54>=1,AH54<=2,AP54>=1),ROUNDDOWN(X54*1.3,0)&"×2",IF(Y54="連撃",ROUNDDOWN(X54*1.2,0)&"×2",""))))) -> 182×2 | AB54: =IF(Y54="連撃",0.99,IF(Y54="",0,SQRT(VLOOKUP(BJ54,ci_coefficient,2,FALSE)*IF(BI54>BK54,BK54,BI54))*0.01+0.05*IF(BF62>=1,1,0)+0.05*IF(BG62>=1,1-(0.5)^BG62,0))) -> 0.99 | AD54: 0 | AE54: 0 | AF54: =IF(BD54=0,"",ROUNDDOWN((SQRT(AC54)*2+SUM(AE54:AE57)*1.5+SUM(AD54:AD57)+BD54)*BE54,1)) -> 13 | AH54: =IF($K54="大口径主砲",1,0)+IF($K55="大口径主砲",1,0)+IF($K56="大口径主砲",1,0)+IF($K57="大口径主砲",1,0) -> 0 | AI54: =IF($K54="中口径主砲",1,0)+IF($K55="中口径主砲",1,0)+IF($K56="中口径主砲",1,0)+IF($K57="中口径主砲",1,0) -> 0 | AJ54: =IF($K54="小口径主砲",1,0)+IF($K55="小口径主砲",1,0)+IF($K56="小口径主砲",1,0)+IF($K57="小口径主砲",1,0) -> 2 | AK54: =AH54+AI54+AJ54 -> 2 | AL54: =IF($K54="副砲",1,0)+IF($K55="副砲",1,0)+IF($K56="副砲",1,0)+IF($K57="副砲",1,0) -> 0 | AM54: =IF($K54="大型電探",1,0)+IF($K55="大型電探",1,0)+IF($K56="大型電探",1,0)+IF($K57="大型電探",1,0) -> 0 | AN54: =IF($K54="小型電探",1,0)+IF($K55="小型電探",1,0)+IF($K56="小型電探",1,0)+IF($K57="小型電探",1,0) -> 1 | AO54: =AM54+AN54 -> 1 | AP54: =IF($K54="魚雷",1,0)+IF($K55="魚雷",1,0)+IF($K56="魚雷",1,0)+IF($K57="魚雷",1,0) -> 0 | AQ54: =IF($K54="対艦強化弾",1,0)+IF($K55="対艦強化弾",1,0)+IF($K56="対艦強化弾",1,0)+IF($K57="対艦強化弾",1,0) -> 0 | AR54: =IF(OR($K54="水上偵察機",$K54="水上爆撃機"),1,0)+IF(OR($K55="水上偵察機",$K55="水上爆撃機"),1,0)+IF(OR($K56="水上偵察機",$K56="水上爆撃機"),1,0)+IF(OR($K57="水上偵察機",$K57="水上爆撃機"),1,0) -> 0 | AS54: =IF($K54="爆雷",1,0)+IF($K55="爆雷",1,0)+IF($K56="爆雷",1,0)+IF($K57="爆雷",1,0) -> 0 | AT54: =IF($K54="ソナー",1,0)+IF($K55="ソナー",1,0)+IF($K56="ソナー",1,0)+IF($K57="ソナー",1,0) -> 0 | AU54: =IF(OR($K54="オートジャイロ",$K54="対潜哨戒機"),1,0)+IF(OR($K55="オートジャイロ",$K55="対潜哨戒機"),1,0)+IF(OR($K56="オートジャイロ",$K56="対潜哨戒機"),1,0)+IF(OR($K57="オートジャイロ",$K57="対潜哨戒機"),1,0) -> 0 | AV54: =IF($K54="艦上爆撃機",1,0)+IF($K55="艦上爆撃機",1,0)+IF($K56="艦上爆撃機",1,0)+IF($K57="艦上爆撃機",1,0) -> 0 | AW54: =IF($K54="艦上攻撃機",1,0)+IF($K55="艦上攻撃機",1,0)+IF($K56="艦上攻撃機",1,0)+IF($K57="艦上攻撃機",1,0) -> 0 | AX54: =IF($K54="大型飛行艇",1,0)+IF($K55="大型飛行艇",1,0)+IF($K56="大型飛行艇",1,0)+IF($K57="大型飛行艇",1,0) -> 0 | AY54: =IF($K54="水上爆撃機",1,0)+IF($K55="水上爆撃機",1,0)+IF($K56="水上爆撃機",1,0)+IF($K57="水上爆撃機",1,0) -> 0 | AZ54: =SUM(AV54:AY57) -> 0 | BA54: =SUM(AU54:AY57) -> 0 | BB54: =IF(AZ54>0,4,IF(BA54>0,3,2)) -> 2 | BC54: =IF(ISERROR(VLOOKUP(F54,antisubmarine_ex,1,FALSE)),E54,VLOOKUP(F54,antisubmarine_ex,2,FALSE)&"") -> 駆逐艦 | BD54: =IF(ISERROR(VLOOKUP(BC54,antisubmarine,BB54,FALSE)),0,VLOOKUP(BC54,antisubmarine,BB54,FALSE)) -> 13 | BE54: =IF(AND(AS54>0,AT54>0),1.15,1) -> 1 | BF54: =IF(H54="探照灯",1,0)+IF(H55="探照灯",1,0)+IF(H56="探照灯",1,0)+IF(H57="探照灯",1,0) -> 0 | BG54: =IF(H54="照明弾",1,0)+IF(H55="照明弾",1,0)+IF(H56="照明弾",1,0)+IF(H57="照明弾",1,0) -> 0 | BH54: =IF(H54="熟練見張員",1,0)+IF(H55="熟練見張員",1,0)+IF(H56="熟練見張員",1,0)+IF(H57="熟練見張員",1,0) -> 0 | BI54: =AA54+BH54*VLOOKUP("運",watcher,2,FALSE) -> 0 | BJ54: =IF(AP54>=2,"魚雷",IF(AH54+AI54+AJ54>=3,"主砲",IF(AND(AH54+AI54+AJ54=2,AL54>=1),"主砲副砲",IF(OR(AND(AH54+AI54+AJ54=1,AP54=1),AND(AH54+AI54+AJ54=2,AL54=0,AP54=1)),"主砲魚雷",0)))) -> 0 | BK54: =IF(AP54>=2,VLOOKUP("魚雷",luck_cap,2,FALSE),IF(AH54+AI54+AJ54>=3,VLOOKUP("主砲",luck_cap,2,FALSE),IF(AND(AH54+AI54+AJ54=2,AL54>=1),VLOOKUP("主砲副砲",luck_cap,2,FALSE),IF(OR(AND(AH54+AI54+AJ54=1,AP54=1),AND(AH54+AI54+AJ54=2,AL54=0,AP54=1)),VLOOKUP("主砲魚雷",luck_cap,2,FALSE),0)))) -> 0 | BL54: =IF(H54="ドラム缶",1,0)+IF(H55="ドラム缶",1,0)+IF(H56="ドラム缶",1,0)+IF(H57="ドラム缶",1,0) -> 0
G55: =IF(F54="",,VLOOKUP(F54,carrierlist,3,FALSE)&"") -> 0 | H55: 10cm連装高角砲 | K55: 小口径主砲 | L55: 0 | P55: 0 | Q55: 2 | R55: 0 | S55: 0 | T55: =IF(ISERROR(VLOOKUP(H55,fighterlist,1,FALSE)),"",IF(OR(E54="装甲空母",E54="正規空母",E54="軽空母",E54="水上機母艦",E54="航空戦艦",E54="航空巡洋艦",E54="潜水空母"),IF(VLOOKUP(H55,fighterlist,11,FALSE)="艦上攻撃機",ROUNDDOWN(0.8*(R55*SQRT(G55)+25),0),IF(OR(VLOOKUP(H55,fighterlist,11,FALSE)="艦上爆撃機",VLOOKUP(H55,fighterlist,11,FALSE)="水上爆撃機"),ROUNDDOWN(1*(S55*SQRT(G55)+25),0),"")),"")) ->  | U55: =IF(OR(E54="装甲空母",E54="正規空母",E54="軽空母",E54="水上機母艦",E54="航空戦艦",E54="航空巡洋艦",E54="潜水空母"),IF(K55="艦上攻撃機",ROUNDDOWN(1.5*(R55*SQRT(G55)+25),0),IF(OR(K55="艦上爆撃機",K55="水上爆撃機"),ROUNDDOWN(1*(S55*SQRT(G55)+25),0),"")),"") ->  | AD55: 0 | AE55: 0
G56: =IF(F54="",,VLOOKUP(F54,carrierlist,4,FALSE)&"") -> 0 | H56: 33号対水上電探 | K56: 小型電探 | L56: 0 | O56: 4.2 | P56: 5 | Q56: 0 | R56: 0 | S56: 0 | T56: =IF(ISERROR(VLOOKUP(H56,fighterlist,1,FALSE)),"",IF(OR(E54="装甲空母",E54="正規空母",E54="軽空母",E54="水上機母艦",E54="航空戦艦",E54="航空巡洋艦",E54="潜水空母"),IF(VLOOKUP(H56,fighterlist,11,FALSE)="艦上攻撃機",ROUNDDOWN(0.8*(R56*SQRT(G56)+25),0),IF(OR(VLOOKUP(H56,fighterlist,11,FALSE)="艦上爆撃機",VLOOKUP(H56,fighterlist,11,FALSE)="水上爆撃機"),ROUNDDOWN(1*(S56*SQRT(G56)+25),0),"")),"")) ->  | U56: =IF(OR(E54="装甲空母",E54="正規空母",E54="軽空母",E54="水上機母艦",E54="航空戦艦",E54="航空巡洋艦",E54="潜水空母"),IF(K56="艦上攻撃機",ROUNDDOWN(1.5*(R56*SQRT(G56)+25),0),IF(OR(K56="艦上爆撃機",K56="水上爆撃機"),ROUNDDOWN(1*(S56*SQRT(G56)+25),0),"")),"") ->  | AD56: 0 | AE56: 0
G57: =IF(F54="",,VLOOKUP(F54,carrierlist,5,FALSE)&"") ->  | L57: 0 | P57: 0 | Q57: 0 | R57: 0 | S57: 0 | T57: =IF(ISERROR(VLOOKUP(H57,fighterlist,1,FALSE)),"",IF(OR(E54="装甲空母",E54="正規空母",E54="軽空母",E54="水上機母艦",E54="航空戦艦",E54="航空巡洋艦",E54="潜水空母"),IF(VLOOKUP(H57,fighterlist,11,FALSE)="艦上攻撃機",ROUNDDOWN(0.8*(R57*SQRT(G57)+25),0),IF(OR(VLOOKUP(H57,fighterlist,11,FALSE)="艦上爆撃機",VLOOKUP(H57,fighterlist,11,FALSE)="水上爆撃機"),ROUNDDOWN(1*(S57*SQRT(G57)+25),0),"")),"")) ->  | U57: =IF(OR(E54="装甲空母",E54="正規空母",E54="軽空母",E54="水上機母艦",E54="航空戦艦",E54="航空巡洋艦",E54="潜水空母"),IF(K57="艦上攻撃機",ROUNDDOWN(1.5*(R57*SQRT(G57)+25),0),IF(OR(K57="艦上爆撃機",K57="水上爆撃機"),ROUNDDOWN(1*(S57*SQRT(G57)+25),0),"")),"") ->  | AD57: 0 | AE57: 0
E58: =IF(F58="","",VLOOKUP(F58,carrierlist,8,FALSE)&"") -> 駆逐艦 | F58: 島風改 | G58: =IF(F58="",,VLOOKUP(F58,carrierlist,2,FALSE)&"") -> 0 | H58: 10cm連装高角砲 | K58: 小口径主砲 | L58: 0 | P58: 0 | Q58: 2 | R58: 0 | S58: 0 | T58: =IF(ISERROR(VLOOKUP(H58,fighterlist,1,FALSE)),"",IF(OR(E58="装甲空母",E58="正規空母",E58="軽空母",E58="水上機母艦",E58="航空戦艦",E58="航空巡洋艦",E58="潜水空母"),IF(VLOOKUP(H58,fighterlist,11,FALSE)="艦上攻撃機",ROUNDDOWN(0.8*(R58*SQRT(G58)+25),0),IF(OR(VLOOKUP(H58,fighterlist,11,FALSE)="艦上爆撃機",VLOOKUP(H58,fighterlist,11,FALSE)="水上爆撃機"),ROUNDDOWN(1*(S58*SQRT(G58)+25),0),"")),"")) ->  | U58: =IF(OR(E58="装甲空母",E58="正規空母",E58="軽空母",E58="水上機母艦",E58="航空戦艦",E58="航空巡洋艦",E58="潜水空母"),IF(K58="艦上攻撃機",ROUNDDOWN(1.5*(R58*SQRT(G58)+25),0),IF(OR(K58="艦上爆撃機",K58="水上爆撃機"),ROUNDDOWN(1*(S58*SQRT(G58)+25),0),"")),"") ->  | V58: =IF(OR(F58="",F58="[その他]",),"",IF(F58="","",IF(OR(E58="装甲空母",E58="正規空母",E58="軽空母"),IF(SUM(R58:R61)+SUM(S58:S61)=0,0,ROUNDDOWN(55+(VLOOKUP(F58,carrierlist,6,FALSE)+SUM(Q58:Q61))*1.5+SUM(R58:R61)*1.5+SUM(S58:S61)*2,0)),ROUNDDOWN(5+VLOOKUP(F58,carrierlist,6,FALSE)+SUM(Q58:Q61),0)))) -> 68 | W58: =IF(OR(E58="潜水艦",E58="潜水空母",E58="駆逐艦",E58="軽巡洋艦",E58="重雷装巡洋艦",E58="重巡洋艦",E58="航空巡洋艦",E58="水上機母艦"),ROUNDDOWN(5+VLOOKUP(F58,carrierlist,7,FALSE)+SUM(R58:R61),0),"") -> 104 | X58: =IF(OR(F58="",F58="[その他]",E58="装甲空母",E58="正規空母",E58="軽空母"),"",ROUNDDOWN(VLOOKUP(F58,carrierlist,6,FALSE)+VLOOKUP(F58,carrierlist,7,FALSE)+SUM(Q58:R61),0)) -> 162 | Y58: =IF(OR(AP58>=2,AK58>=3,AND(AK58=2,AL58>=1),AND(AK58>=1,AK58<=2,AP58>=1)),"カットイン",IF(OR(AND(AK58=2,AL58=0,AP58=0),AND(AK58=1,AL58>=1,AP58=0),AND(AK58=0,AL58>=2,AP58<=1)),"連撃","")) -> 連撃 | Z58: =IF(AP58>=2,ROUNDDOWN(X58*1.5,0)&"×2",IF(AH58>=3,X58*2,IF(AND(AH58=2,AL58>=1),ROUNDDOWN(X58*1.75,0),IF(AND(AH58>=1,AH58<=2,AP58>=1),ROUNDDOWN(X58*1.3,0)&"×2",IF(Y58="連撃",ROUNDDOWN(X58*1.2,0)&"×2",""))))) -> 194×2 | AB58: =IF(Y58="連撃",0.99,IF(Y58="",0,SQRT(VLOOKUP(BJ58,ci_coefficient,2,FALSE)*IF(BI58>BK58,BK58,BI58))*0.01+0.05*IF(BF62>=1,1,0)+0.05*IF(BG62>=1,1-(0.5)^BG62,0))) -> 0.99 | AD58: 0 | AE58: 0 | AF58: =IF(BD58=0,"",ROUNDDOWN((SQRT(AC58)*2+SUM(AE58:AE61)*1.5+SUM(AD58:AD61)+BD58)*BE58,1)) -> 13 | AH58: =IF($K58="大口径主砲",1,0)+IF($K59="大口径主砲",1,0)+IF($K60="大口径主砲",1,0)+IF($K61="大口径主砲",1,0) -> 0 | AI58: =IF($K58="中口径主砲",1,0)+IF($K59="中口径主砲",1,0)+IF($K60="中口径主砲",1,0)+IF($K61="中口径主砲",1,0) -> 0 | AJ58: =IF($K58="小口径主砲",1,0)+IF($K59="小口径主砲",1,0)+IF($K60="小口径主砲",1,0)+IF($K61="小口径主砲",1,0) -> 2 | AK58: =AH58+AI58+AJ58 -> 2 | AL58: =IF($K58="副砲",1,0)+IF($K59="副砲",1,0)+IF($K60="副砲",1,0)+IF($K61="副砲",1,0) -> 0 | AM58: =IF($K58="大型電探",1,0)+IF($K59="大型電探",1,0)+IF($K60="大型電探",1,0)+IF($K61="大型電探",1,0) -> 0 | AN58: =IF($K58="小型電探",1,0)+IF($K59="小型電探",1,0)+IF($K60="小型電探",1,0)+IF($K61="小型電探",1,0) -> 1 | AO58: =AM58+AN58 -> 1 | AP58: =IF($K58="魚雷",1,0)+IF($K59="魚雷",1,0)+IF($K60="魚雷",1,0)+IF($K61="魚雷",1,0) -> 0 | AQ58: =IF($K58="対艦強化弾",1,0)+IF($K59="対艦強化弾",1,0)+IF($K60="対艦強化弾",1,0)+IF($K61="対艦強化弾",1,0) -> 0 | AR58: =IF(OR($K58="水上偵察機",$K58="水上爆撃機"),1,0)+IF(OR($K59="水上偵察機",$K59="水上爆撃機"),1,0)+IF(OR($K60="水上偵察機",$K60="水上爆撃機"),1,0)+IF(OR($K61="水上偵察機",$K61="水上爆撃機"),1,0) -> 0 | AS58: =IF($K58="爆雷",1,0)+IF($K59="爆雷",1,0)+IF($K60="爆雷",1,0)+IF($K61="爆雷",1,0) -> 0 | AT58: =IF($K58="ソナー",1,0)+IF($K59="ソナー",1,0)+IF($K60="ソナー",1,0)+IF($K61="ソナー",1,0) -> 0 | AU58: =IF(OR($K58="オートジャイロ",$K58="対潜哨戒機"),1,0)+IF(OR($K59="オートジャイロ",$K59="対潜哨戒機"),1,0)+IF(OR($K60="オートジャイロ",$K60="対潜哨戒機"),1,0)+IF(OR($K61="オートジャイロ",$K61="対潜哨戒機"),1,0) -> 0 | AV58: =IF($K58="艦上爆撃機",1,0)+IF($K59="艦上爆撃機",1,0)+IF($K60="艦上爆撃機",1,0)+IF($K61="艦上爆撃機",1,0) -> 0 | AW58: =IF($K58="艦上攻撃機",1,0)+IF($K59="艦上攻撃機",1,0)+IF($K60="艦上攻撃機",1,0)+IF($K61="艦上攻撃機",1,0) -> 0 | AX58: =IF($K58="大型飛行艇",1,0)+IF($K59="大型飛行艇",1,0)+IF($K60="大型飛行艇",1,0)+IF($K61="大型飛行艇",1,0) -> 0 | AY58: =IF($K58="水上爆撃機",1,0)+IF($K59="水上爆撃機",1,0)+IF($K60="水上爆撃機",1,0)+IF($K61="水上爆撃機",1,0) -> 0 | AZ58: =SUM(AV58:AY61) -> 0 | BA58: =SUM(AU58:AY61) -> 0 | BB58: =IF(AZ58>0,4,IF(BA58>0,3,2)) -> 2 | BC58: =IF(ISERROR(VLOOKUP(F58,antisubmarine_ex,1,FALSE)),E58,VLOOKUP(F58,antisubmarine_ex,2,FALSE)&"") -> 駆逐艦 | BD58: =IF(ISERROR(VLOOKUP(BC58,antisubmarine,BB58,FALSE)),0,VLOOKUP(BC58,antisubmarine,BB58,FALSE)) -> 13 | BE58: =IF(AND(AS58>0,AT58>0),1.15,1) -> 1 | BF58: =IF(H58="探照灯",1,0)+IF(H59="探照灯",1,0)+IF(H60="探照灯",1,0)+IF(H61="探照灯",1,0) -> 0 | BG58: =IF(H58="照明弾",1,0)+IF(H59="照明弾",1,0)+IF(H60="照明弾",1,0)+IF(H61="照明弾",1,0) -> 0 | BH58: =IF(H58="熟練見張員",1,0)+IF(H59="熟練見張員",1,0)+IF(H60="熟練見張員",1,0)+IF(H61="熟練見張員",1,0) -> 0 | BI58: =AA58+BH58*VLOOKUP("運",watcher,2,FALSE) -> 0 | BJ58: =IF(AP58>=2,"魚雷",IF(AH58+AI58+AJ58>=3,"主砲",IF(AND(AH58+AI58+AJ58=2,AL58>=1),"主砲副砲",IF(OR(AND(AH58+AI58+AJ58=1,AP58=1),AND(AH58+AI58+AJ58=2,AL58=0,AP58=1)),"主砲魚雷",0)))) -> 0 | BK58: =IF(AP58>=2,VLOOKUP("魚雷",luck_cap,2,FALSE),IF(AH58+AI58+AJ58>=3,VLOOKUP("主砲",luck_cap,2,FALSE),IF(AND(AH58+AI58+AJ58=2,AL58>=1),VLOOKUP("主砲副砲",luck_cap,2,FALSE),IF(OR(AND(AH58+AI58+AJ58=1,AP58=1),AND(AH58+AI58+AJ58=2,AL58=0,AP58=1)),VLOOKUP("主砲魚雷",luck_cap,2,FALSE),0)))) -> 0 | BL58: =IF(H58="ドラム缶",1,0)+IF(H59="ドラム缶",1,0)+IF(H60="ドラム缶",1,0)+IF(H61="ドラム缶",1,0) -> 0
G59: =IF(F58="",,VLOOKUP(F58,carrierlist,3,FALSE)&"") -> 0 | H59: 10cm連装高角砲 | K59: 小口径主砲 | L59: 0 | P59: 0 | Q59: 2 | R59: 0 | S59: 0 | T59: =IF(ISERROR(VLOOKUP(H59,fighterlist,1,FALSE)),"",IF(OR(E58="装甲空母",E58="正規空母",E58="軽空母",E58="水上機母艦",E58="航空戦艦",E58="航空巡洋艦",E58="潜水空母"),IF(VLOOKUP(H59,fighterlist,11,FALSE)="艦上攻撃機",ROUNDDOWN(0.8*(R59*SQRT(G59)+25),0),IF(OR(VLOOKUP(H59,fighterlist,11,FALSE)="艦上爆撃機",VLOOKUP(H59,fighterlist,11,FALSE)="水上爆撃機"),ROUNDDOWN(1*(S59*SQRT(G59)+25),0),"")),"")) ->  | U59: =IF(OR(E58="装甲空母",E58="正規空母",E58="軽空母",E58="水上機母艦",E58="航空戦艦",E58="航空巡洋艦",E58="潜水空母"),IF(K59="艦上攻撃機",ROUNDDOWN(1.5*(R59*SQRT(G59)+25),0),IF(OR(K59="艦上爆撃機",K59="水上爆撃機"),ROUNDDOWN(1*(S59*SQRT(G59)+25),0),"")),"") ->  | AD59: 0 | AE59: 0
G60: =IF(F58="",,VLOOKUP(F58,carrierlist,4,FALSE)&"") -> 0 | H60: 33号対水上電探 | K60: 小型電探 | L60: 0 | O60: 4.2 | P60: 5 | Q60: 0 | R60: 0 | S60: 0 | T60: =IF(ISERROR(VLOOKUP(H60,fighterlist,1,FALSE)),"",IF(OR(E58="装甲空母",E58="正規空母",E58="軽空母",E58="水上機母艦",E58="航空戦艦",E58="航空巡洋艦",E58="潜水空母"),IF(VLOOKUP(H60,fighterlist,11,FALSE)="艦上攻撃機",ROUNDDOWN(0.8*(R60*SQRT(G60)+25),0),IF(OR(VLOOKUP(H60,fighterlist,11,FALSE)="艦上爆撃機",VLOOKUP(H60,fighterlist,11,FALSE)="水上爆撃機"),ROUNDDOWN(1*(S60*SQRT(G60)+25),0),"")),"")) ->  | U60: =IF(OR(E58="装甲空母",E58="正規空母",E58="軽空母",E58="水上機母艦",E58="航空戦艦",E58="航空巡洋艦",E58="潜水空母"),IF(K60="艦上攻撃機",ROUNDDOWN(1.5*(R60*SQRT(G60)+25),0),IF(OR(K60="艦上爆撃機",K60="水上爆撃機"),ROUNDDOWN(1*(S60*SQRT(G60)+25),0),"")),"") ->  | AD60: 0 | AE60: 0
G61: =IF(F58="",,VLOOKUP(F58,carrierlist,5,FALSE)&"") ->  | L61: 0 | P61: 0 | Q61: 0 | R61: 0 | S61: 0 | T61: =IF(ISERROR(VLOOKUP(H61,fighterlist,1,FALSE)),"",IF(OR(E58="装甲空母",E58="正規空母",E58="軽空母",E58="水上機母艦",E58="航空戦艦",E58="航空巡洋艦",E58="潜水空母"),IF(VLOOKUP(H61,fighterlist,11,FALSE)="艦上攻撃機",ROUNDDOWN(0.8*(R61*SQRT(G61)+25),0),IF(OR(VLOOKUP(H61,fighterlist,11,FALSE)="艦上爆撃機",VLOOKUP(H61,fighterlist,11,FALSE)="水上爆撃機"),ROUNDDOWN(1*(S61*SQRT(G61)+25),0),"")),"")) ->  | U61: =IF(OR(E58="装甲空母",E58="正規空母",E58="軽空母",E58="水上機母艦",E58="航空戦艦",E58="航空巡洋艦",E58="潜水空母"),IF(K61="艦上攻撃機",ROUNDDOWN(1.5*(R61*SQRT(G61)+25),0),IF(OR(K61="艦上爆撃機",K61="水上爆撃機"),ROUNDDOWN(1*(S61*SQRT(G61)+25),0),"")),"") ->  | AD61: 0 | AE61: 0
E62: 制空合計 | L62: =SUM(L38:L61) -> 0 | M62: 総索敵値 | O62: =ROUNDDOWN(1.69*(SQRT(M38)+SQRT(M42)+SQRT(M46)+SQRT(M50)+SQRT(M54)+SQRT(M58))+SUM(O38:O61)-($G$2*0.61),2) -> -14.4 | AH62: 積載艦数 | BF62: =IF(BF38>0,1,0)+IF(BF42>0,1,0)+IF(BF46>0,1,0)+IF(BF50>0,1,0)+IF(BF54>0,1,0)+IF(BF58>0,1,0) -> 0 | BG62: =IF(BG38>0,1,0)+IF(BG42>0,1,0)+IF(BG46>0,1,0)+IF(BG50>0,1,0)+IF(BG54>0,1,0)+IF(BG58>0,1,0) -> 0 | BL62: =IF(BL38>0,1,0)+IF(BL42>0,1,0)+IF(BL46>0,1,0)+IF(BL50>0,1,0)+IF(BL54>0,1,0)+IF(BL58>0,1,0) -> 0
E63: =IF(AND(OR(C43=0,C43=""),SUM(AV38:AY61)=0),"航空均衡",IF(L62>=C43*3,"制空権確保",IF(L62>=C43*1.5,"航空優勢",IF(L62>=C43*2/3,"航空均衡",IF(L62>=C43*1/3,"航空劣勢","制空権喪失"))))) -> 制空権確保 | M63: 索敵要求比 | O63: =IF(C47="","",O62/C47) ->  | AH63: 合計積載数 | BL63: =SUM(BL38:BL61) -> 0
B66: 1-3
B67: 敵旗艦艦隊 | E67: 味方編成
B68: 艦種 | C68: 制空値 | E68: 艦種 | F68: 艦名 | G68: 装備スロット | L68: 制空値 | M68: 索敵 | P68: その他変動 | T68: 航空戦攻撃力 | V68: 昼戦 | X68: 夜戦 | AC68: 対潜 | AH68: 装備カウント
B69: [艦載機なし] | C69: =IF(B69="","",VLOOKUP(B69,enemyforcelist,2,FALSE)) -> 0 | G69: 積載 | H69: 装備 | I69: ≫ | J69: ★ | K69: 分類 | M69: 基礎 | N69: 基礎+ | O69: 装備 | P69: 命中 | Q69: 火力 | R69: 雷装 | S69: 爆装 | T69: 弱攻撃 | U69: 強攻撃 | V69: 砲撃 | W69: 雷撃 | X69: 攻撃 | Y69: 特分類 | Z69: 特攻撃 | AA69: 運 | AB69: 特発動 | AC69: 基礎 | AD69: + | AE69: 装備 | AF69: 攻撃力 | AH69: 大口径主砲 | AI69: 中口径主砲 | AJ69: 小口径主砲 | AK69: 主砲合計 | AL69: 副砲 | AM69: 大型電探 | AN69: 小型電探 | AO69: 電探合計 | AP69: 魚雷 | AQ69: 徹甲弾 | AR69: 索敵機 | AS69: 爆雷 | AT69: ソナー | AU69: 対潜機 | AV69: 艦爆 | AW69: 艦攻 | AX69: 大型飛行艇 | AY69: 水上爆撃機 | AZ69: 軽空母対潜可 | BA69: 航空艦対潜可 | BB69: 対潜種別 | BC69: 対潜艦種 | BD69: 対潜定数 | BE69: 対潜シナジー | BF69: 探照灯 | BG69: 照明弾 | BH69: 見張員 | BI69: 運 | BJ69: CI分類 | BK69: 運上限 | BL69: ドラム缶
B70: [艦載機なし] | C70: 0 | E70: =IF(F70="","",VLOOKUP(F70,carrierlist,8,FALSE)&"") -> 軽空母 | F70: 隼鷹改二 | G70: =IF(F70="",,VLOOKUP(F70,carrierlist,2,FALSE)&"") -> 24 | H70: 流星改 | I70: 7 | K70: =IF(ISERROR(VLOOKUP(H70,fighterlist,1,FALSE)),"",VLOOKUP(H70,fighterlist,11,FALSE)&"") -> 艦上攻撃機 | L70: =IF(OR(H70="",G70="",G70=0,ISERROR(VLOOKUP(H70,fighterlist,1,FALSE))),0,SQRT(G70)*IF(H70="","",VLOOKUP(H70,fighterlist,3,FALSE)+IF(J70>0,J70*VLOOKUP(K70,customlist,10,FALSE),0))+IF(I70=7,IF(ISERROR(VLOOKUP(K70,superior_skill,2,FALSE)),0,VLOOKUP(K70,superior_skill,2,FALSE)),0)) -> 3.16227766 | N70: =IF(ISERROR(VLOOKUP(H70,fighterlist,1,FALSE)),"",IF(VLOOKUP(H70,fighterlist,5,FALSE)=0,VLOOKUP(H70,fighterlist,4,FALSE),"")) ->  | O70: =IF(ISERROR(VLOOKUP(H70,fighterlist,1,FALSE)),"",VLOOKUP(H70,fighterlist,5,FALSE)) -> 1.6 | P70: =IF(ISERROR(VLOOKUP(H70,fighterlist,1,FALSE)),0,VLOOKUP(H70,fighterlist,6,FALSE)+ROUNDDOWN(SQRT(J70*VLOOKUP(K70,customlist,7,FALSE)),2)) -> 0 | Q70: =IF(ISERROR(VLOOKUP(H70,fighterlist,1,FALSE)),0,VLOOKUP(H70,fighterlist,7,FALSE)+ROUNDDOWN(SQRT(J70*VLOOKUP(K70,customlist,2,FALSE)),2)) -> 0 | R70: =IF(ISERROR(VLOOKUP(H70,fighterlist,1,FALSE)),0,VLOOKUP(H70,fighterlist,8,FALSE)+ROUNDDOWN(SQRT(J70*VLOOKUP(K70,customlist,3,FALSE)),2)) -> 13 | S70: =IF(ISERROR(VLOOKUP(H70,fighterlist,1,FALSE)),0,VLOOKUP(H70,fighterlist,9,FALSE)+ROUNDDOWN(J70*VLOOKUP(K70,customlist,4,FALSE),1)) -> 0 | T70: =IF(ISERROR(VLOOKUP(H70,fighterlist,1,FALSE)),"",IF(OR(E70="装甲空母",E70="正規空母",E70="軽空母",E70="水上機母艦",E70="航空戦艦",E70="航空巡洋艦",E70="潜水空母"),IF(VLOOKUP(H70,fighterlist,11,FALSE)="艦上攻撃機",ROUNDDOWN(0.8*(R70*SQRT(G70)+25),0),IF(OR(VLOOKUP(H70,fighterlist,11,FALSE)="艦上爆撃機",VLOOKUP(H70,fighterlist,11,FALSE)="水上爆撃機"),ROUNDDOWN(1*(S70*SQRT(G70)+25),0),"")),"")) -> 70 | U70: =IF(OR(E70="装甲空母",E70="正規空母",E70="軽空母",E70="水上機母艦",E70="航空戦艦",E70="航空巡洋艦",E70="潜水空母"),IF(K70="艦上攻撃機",ROUNDDOWN(1.5*(R70*SQRT(G70)+25),0),IF(OR(K70="艦上爆撃機",K70="水上爆撃機"),ROUNDDOWN(1*(S70*SQRT(G70)+25),0),"")),"") -> 133 | V70: =IF(OR(F70="",F70="[その他]",),"",IF(F70="","",IF(OR(E70="装甲空母",E70="正規空母",E70="軽空母"),IF(SUM(R70:R73)+SUM(S70:S73)=0,0,ROUNDDOWN(55+(VLOOKUP(F70,carrierlist,6,FALSE)+SUM(Q70:Q73))*1.5+SUM(R70:R73)*1.5+SUM(S70:S73)*2,0)),ROUNDDOWN(5+VLOOKUP(F70,carrierlist,6,FALSE)+SUM(Q70:Q73),0)))) -> 188 | W70: =IF(OR(E70="潜水艦",E70="潜水空母",E70="駆逐艦",E70="軽巡洋艦",E70="重雷装巡洋艦",E70="重巡洋艦",E70="航空巡洋艦",E70="水上機母艦"),ROUNDDOWN(5+VLOOKUP(F70,carrierlist,7,FALSE)+SUM(R70:R73),0),"") ->  | X70: =IF(OR(F70="",F70="[その他]",E70="装甲空母",E70="正規空母",E70="軽空母"),"",ROUNDDOWN(VLOOKUP(F70,carrierlist,6,FALSE)+VLOOKUP(F70,carrierlist,7,FALSE)+SUM(Q70:R73),0)) ->  | Y70: =IF(OR(AP70>=2,AK70>=3,AND(AK70=2,AL70>=1),AND(AK70>=1,AK70<=2,AP70>=1)),"カットイン",IF(OR(AND(AK70=2,AL70=0,AP70=0),AND(AK70=1,AL70>=1,AP70=0),AND(AK70=0,AL70>=2,AP70<=1)),"連撃","")) ->  | Z70: =IF(AP70>=2,ROUNDDOWN(X70*1.5,0)&"×2",IF(AH70>=3,X70*2,IF(AND(AH70=2,AL70>=1),ROUNDDOWN(X70*1.75,0),IF(AND(AH70>=1,AH70<=2,AP70>=1),ROUNDDOWN(X70*1.3,0)&"×2",IF(Y70="連撃",ROUNDDOWN(X70*1.2,0)&"×2",""))))) ->  | AB70: =IF(Y70="連撃",0.99,IF(Y70="",0,SQRT(VLOOKUP(BJ70,ci_coefficient,2,FALSE)*IF(BI70>BK70,BK70,BI70))*0.01+0.125+0.05*IF(BF94>=1,1,0)+0.05*IF(BG94>=1,1-(0.5)^BG94,0))) -> 0 | AD70: =IF(ISERROR(VLOOKUP(K70,customlist,1,FALSE)),0,SQRT(J70*VLOOKUP(K70,customlist,5,FALSE))) -> 0 | AE70: =IF(ISERROR(VLOOKUP(H70,fighterlist,1,FALSE)),0,IF(ISERROR(VLOOKUP(K70,antisubmarine_flag,1,FALSE)),0,VLOOKUP(K70,antisubmarine_flag,2,FALSE)*VLOOKUP(H70,fighterlist,10,FALSE))) -> 3 | AF70: =IF(BD70=0,"",ROUNDDOWN((SQRT(AC70)*2+SUM(AE70:AE73)*1.5+SUM(AD70:AD73)+BD70)*BE70,1)) -> 21.5 | AH70: =IF($K70="大口径主砲",1,0)+IF($K71="大口径主砲",1,0)+IF($K72="大口径主砲",1,0)+IF($K73="大口径主砲",1,0) -> 0 | AI70: =IF($K70="中口径主砲",1,0)+IF($K71="中口径主砲",1,0)+IF($K72="中口径主砲",1,0)+IF($K73="中口径主砲",1,0) -> 0 | AJ70: =IF($K70="小口径主砲",1,0)+IF($K71="小口径主砲",1,0)+IF($K72="小口径主砲",1,0)+IF($K73="小口径主砲",1,0) -> 0 | AK70: =AH70+AI70+AJ70 -> 0 | AL70: =IF($K70="副砲",1,0)+IF($K71="副砲",1,0)+IF($K72="副砲",1,0)+IF($K73="副砲",1,0) -> 0 | AM70: =IF($K70="大型電探",1,0)+IF($K71="大型電探",1,0)+IF($K72="大型電探",1,0)+IF($K73="大型電探",1,0) -> 0 | AN70: =IF($K70="小型電探",1,0)+IF($K71="小型電探",1,0)+IF($K72="小型電探",1,0)+IF($K73="小型電探",1,0) -> 0 | AO70: =AM70+AN70 -> 0 | AP70: =IF($K70="魚雷",1,0)+IF($K71="魚雷",1,0)+IF($K72="魚雷",1,0)+IF($K73="魚雷",1,0) -> 0 | AQ70: =IF($K70="対艦強化弾",1,0)+IF($K71="対艦強化弾",1,0)+IF($K72="対艦強化弾",1,0)+IF($K73="対艦強化弾",1,0) -> 0 | AR70: =IF(OR($K70="水上偵察機",$K70="水上爆撃機"),1,0)+IF(OR($K71="水上偵察機",$K71="水上爆撃機"),1,0)+IF(OR($K72="水上偵察機",$K72="水上爆撃機"),1,0)+IF(OR($K73="水上偵察機",$K73="水上爆撃機"),1,0) -> 0 | AS70: =IF($K70="爆雷",1,0)+IF($K71="爆雷",1,0)+IF($K72="爆雷",1,0)+IF($K73="爆雷",1,0) -> 0 | AT70: =IF($K70="ソナー",1,0)+IF($K71="ソナー",1,0)+IF($K72="ソナー",1,0)+IF($K73="ソナー",1,0) -> 0 | AU70: =IF(OR($K70="オートジャイロ",$K70="対潜哨戒機"),1,0)+IF(OR($K71="オートジャイロ",$K71="対潜哨戒機"),1,0)+IF(OR($K72="オートジャイロ",$K72="対潜哨戒機"),1,0)+IF(OR($K73="オートジャイロ",$K73="対潜哨戒機"),1,0) -> 0 | AV70: =IF($K70="艦上爆撃機",1,0)+IF($K71="艦上爆撃機",1,0)+IF($K72="艦上爆撃機",1,0)+IF($K73="艦上爆撃機",1,0) -> 0 | AW70: =IF($K70="艦上攻撃機",1,0)+IF($K71="艦上攻撃機",1,0)+IF($K72="艦上攻撃機",1,0)+IF($K73="艦上攻撃機",1,0) -> 3 | AX70: =IF($K70="大型飛行艇",1,0)+IF($K71="大型飛行艇",1,0)+IF($K72="大型飛行艇",1,0)+IF($K73="大型飛行艇",1,0) -> 0 | AY70: =IF($K70="水上爆撃機",1,0)+IF($K71="水上爆撃機",1,0)+IF($K72="水上爆撃機",1,0)+IF($K73="水上爆撃機",1,0) -> 0 | AZ70: =SUM(AV70:AY73) -> 3 | BA70: =SUM(AU70:AY73) -> 3 | BB70: =IF(AZ70>0,4,IF(BA70>0,3,2)) -> 4 | BC70: =IF(ISERROR(VLOOKUP(F70,antisubmarine_ex,1,FALSE)),E70,VLOOKUP(F70,antisubmarine_ex,2,FALSE)&"") -> 軽空母 | BD70: =IF(ISERROR(VLOOKUP(BC70,antisubmarine,BB70,FALSE)),0,VLOOKUP(BC70,antisubmarine,BB70,FALSE)) -> 8 | BE70: =IF(AND(AS70>0,AT70>0),1.15,1) -> 1 | BF70: =IF(H70="探照灯",1,0)+IF(H71="探照灯",1,0)+IF(H72="探照灯",1,0)+IF(H73="探照灯",1,0) -> 0 | BG70: =IF(H70="照明弾",1,0)+IF(H71="照明弾",1,0)+IF(H72="照明弾",1,0)+IF(H73="照明弾",1,0) -> 0 | BH70: =IF(H70="熟練見張員",1,0)+IF(H71="熟練見張員",1,0)+IF(H72="熟練見張員",1,0)+IF(H73="熟練見張員",1,0) -> 0 | BI70: =AA70+BH70*VLOOKUP("運",watcher,2,FALSE) -> 0 | BJ70: =IF(AP70>=2,"魚雷",IF(AH70+AI70+AJ70>=3,"主砲",IF(AND(AH70+AI70+AJ70=2,AL70>=1),"主砲副砲",IF(OR(AND(AH70+AI70+AJ70=1,AP70=1),AND(AH70+AI70+AJ70=2,AL70=0,AP70=1)),"主砲魚雷",0)))) -> 0 | BK70: =IF(AP70>=2,VLOOKUP("魚雷",luck_cap,2,FALSE),IF(AH70+AI70+AJ70>=3,VLOOKUP("主砲",luck_cap,2,FALSE),IF(AND(AH70+AI70+AJ70=2,AL70>=1),VLOOKUP("主砲副砲",luck_cap,2,FALSE),IF(OR(AND(AH70+AI70+AJ70=1,AP70=1),AND(AH70+AI70+AJ70=2,AL70=0,AP70=1)),VLOOKUP("主砲魚雷",luck_cap,2,FALSE),0)))) -> 0 | BL70: =IF(H70="ドラム缶",1,0)+IF(H71="ドラム缶",1,0)+IF(H72="ドラム缶",1,0)+IF(H73="ドラム缶",1,0) -> 0
B71: [艦載機なし] | C71: 0 | G71: =IF(F70="",,VLOOKUP(F70,carrierlist,3,FALSE)&"") -> 18 | H71: 流星改 | I71: 7 | K71: 艦上攻撃機 | L71: 3.16227766 | O71: 1.6 | P71: 0 | Q71: =IF(ISERROR(VLOOKUP(H71,fighterlist,1,FALSE)),0,VLOOKUP(H71,fighterlist,7,FALSE)+ROUNDDOWN(SQRT(J71*VLOOKUP(K71,customlist,2,FALSE)),2)) -> 0 | R71: 13 | S71: 0 | T71: =IF(ISERROR(VLOOKUP(H71,fighterlist,1,FALSE)),"",IF(OR(E70="装甲空母",E70="正規空母",E70="軽空母",E70="水上機母艦",E70="航空戦艦",E70="航空巡洋艦",E70="潜水空母"),IF(VLOOKUP(H71,fighterlist,11,FALSE)="艦上攻撃機",ROUNDDOWN(0.8*(R71*SQRT(G71)+25),0),IF(OR(VLOOKUP(H71,fighterlist,11,FALSE)="艦上爆撃機",VLOOKUP(H71,fighterlist,11,FALSE)="水上爆撃機"),ROUNDDOWN(1*(S71*SQRT(G71)+25),0),"")),"")) -> 64 | U71: =IF(OR(E70="装甲空母",E70="正規空母",E70="軽空母",E70="水上機母艦",E70="航空戦艦",E70="航空巡洋艦",E70="潜水空母"),IF(K71="艦上攻撃機",ROUNDDOWN(1.5*(R71*SQRT(G71)+25),0),IF(OR(K71="艦上爆撃機",K71="水上爆撃機"),ROUNDDOWN(1*(S71*SQRT(G71)+25),0),"")),"") -> 120 | AD71: 0 | AE71: 3
B72: [艦載機なし] | C72: 0 | G72: =IF(F70="",,VLOOKUP(F70,carrierlist,4,FALSE)&"") -> 20 | H72: 流星改 | I72: 7 | K72: 艦上攻撃機 | L72: 3.16227766 | O72: 1.6 | P72: 0 | Q72: 0 | R72: 13 | S72: 0 | T72: =IF(ISERROR(VLOOKUP(H72,fighterlist,1,FALSE)),"",IF(OR(E70="装甲空母",E70="正規空母",E70="軽空母",E70="水上機母艦",E70="航空戦艦",E70="航空巡洋艦",E70="潜水空母"),IF(VLOOKUP(H72,fighterlist,11,FALSE)="艦上攻撃機",ROUNDDOWN(0.8*(R72*SQRT(G72)+25),0),IF(OR(VLOOKUP(H72,fighterlist,11,FALSE)="艦上爆撃機",VLOOKUP(H72,fighterlist,11,FALSE)="水上爆撃機"),ROUNDDOWN(1*(S72*SQRT(G72)+25),0),"")),"")) -> 66 | U72: =IF(OR(E70="装甲空母",E70="正規空母",E70="軽空母",E70="水上機母艦",E70="航空戦艦",E70="航空巡洋艦",E70="潜水空母"),IF(K72="艦上攻撃機",ROUNDDOWN(1.5*(R72*SQRT(G72)+25),0),IF(OR(K72="艦上爆撃機",K72="水上爆撃機"),ROUNDDOWN(1*(S72*SQRT(G72)+25),0),"")),"") -> 124 | AD72: 0 | AE72: 3
B73: [艦載機なし] | C73: 0 | G73: =IF(F70="",,VLOOKUP(F70,carrierlist,5,FALSE)&"") -> 4 | H73: 熟練艦載機整備員 | K73: 航空要員 | L73: 0 | P73: 1 | Q73: 10 | R73: 0 | S73: 0 | T73: =IF(ISERROR(VLOOKUP(H73,fighterlist,1,FALSE)),"",IF(OR(E70="装甲空母",E70="正規空母",E70="軽空母",E70="水上機母艦",E70="航空戦艦",E70="航空巡洋艦",E70="潜水空母"),IF(VLOOKUP(H73,fighterlist,11,FALSE)="艦上攻撃機",ROUNDDOWN(0.8*(R73*SQRT(G73)+25),0),IF(OR(VLOOKUP(H73,fighterlist,11,FALSE)="艦上爆撃機",VLOOKUP(H73,fighterlist,11,FALSE)="水上爆撃機"),ROUNDDOWN(1*(S73*SQRT(G73)+25),0),"")),"")) ->  | U73: =IF(OR(E70="装甲空母",E70="正規空母",E70="軽空母",E70="水上機母艦",E70="航空戦艦",E70="航空巡洋艦",E70="潜水空母"),IF(K73="艦上攻撃機",ROUNDDOWN(1.5*(R73*SQRT(G73)+25),0),IF(OR(K73="艦上爆撃機",K73="水上爆撃機"),ROUNDDOWN(1*(S73*SQRT(G73)+25),0),"")),"") ->  | AD73: 0 | AE73: 0
B74: [艦載機なし] | C74: 0 | E74: =IF(F74="","",VLOOKUP(F74,carrierlist,8,FALSE)&"") -> 軽空母 | F74: 龍驤改二 | G74: =IF(F74="",,VLOOKUP(F74,carrierlist,2,FALSE)&"") -> 18 | H74: 流星改 | I74: 7 | K74: 艦上攻撃機 | L74: 3.16227766 | O74: 1.6 | P74: 0 | Q74: 0 | R74: 13 | S74: 0 | T74: =IF(ISERROR(VLOOKUP(H74,fighterlist,1,FALSE)),"",IF(OR(E74="装甲空母",E74="正規空母",E74="軽空母",E74="水上機母艦",E74="航空戦艦",E74="航空巡洋艦",E74="潜水空母"),IF(VLOOKUP(H74,fighterlist,11,FALSE)="艦上攻撃機",ROUNDDOWN(0.8*(R74*SQRT(G74)+25),0),IF(OR(VLOOKUP(H74,fighterlist,11,FALSE)="艦上爆撃機",VLOOKUP(H74,fighterlist,11,FALSE)="水上爆撃機"),ROUNDDOWN(1*(S74*SQRT(G74)+25),0),"")),"")) -> 64 | U74: =IF(OR(E74="装甲空母",E74="正規空母",E74="軽空母",E74="水上機母艦",E74="航空戦艦",E74="航空巡洋艦",E74="潜水空母"),IF(K74="艦上攻撃機",ROUNDDOWN(1.5*(R74*SQRT(G74)+25),0),IF(OR(K74="艦上爆撃機",K74="水上爆撃機"),ROUNDDOWN(1*(S74*SQRT(G74)+25),0),"")),"") -> 120 | V74: =IF(OR(F74="",F74="[その他]",),"",IF(F74="","",IF(OR(E74="装甲空母",E74="正規空母",E74="軽空母"),IF(SUM(R74:R77)+SUM(S74:S77)=0,0,ROUNDDOWN(55+(VLOOKUP(F74,carrierlist,6,FALSE)+SUM(Q74:Q77))*1.5+SUM(R74:R77)*1.5+SUM(S74:S77)*2,0)),ROUNDDOWN(5+VLOOKUP(F74,carrierlist,6,FALSE)+SUM(Q74:Q77),0)))) -> 169 | W74: =IF(OR(E74="潜水艦",E74="潜水空母",E74="駆逐艦",E74="軽巡洋艦",E74="重雷装巡洋艦",E74="重巡洋艦",E74="航空巡洋艦",E74="水上機母艦"),ROUNDDOWN(5+VLOOKUP(F74,carrierlist,7,FALSE)+SUM(R74:R77),0),"") ->  | X74: =IF(OR(F74="",F74="[その他]",E74="装甲空母",E74="正規空母",E74="軽空母"),"",ROUNDDOWN(VLOOKUP(F74,carrierlist,6,FALSE)+VLOOKUP(F74,carrierlist,7,FALSE)+SUM(Q74:R77),0)) ->  | Y74: =IF(OR(AP74>=2,AK74>=3,AND(AK74=2,AL74>=1),AND(AK74>=1,AK74<=2,AP74>=1)),"カットイン",IF(OR(AND(AK74=2,AL74=0,AP74=0),AND(AK74=1,AL74>=1,AP74=0),AND(AK74=0,AL74>=2,AP74<=1)),"連撃","")) ->  | Z74: =IF(AP74>=2,ROUNDDOWN(X74*1.5,0)&"×2",IF(AH74>=3,X74*2,IF(AND(AH74=2,AL74>=1),ROUNDDOWN(X74*1.75,0),IF(AND(AH74>=1,AH74<=2,AP74>=1),ROUNDDOWN(X74*1.3,0)&"×2",IF(Y74="連撃",ROUNDDOWN(X74*1.2,0)&"×2",""))))) ->  | AB74: =IF(Y74="連撃",0.99,IF(Y74="",0,SQRT(VLOOKUP(BJ74,ci_coefficient,2,FALSE)*IF(BI74>BK74,BK74,BI74))*0.01+0.05*IF(BF94>=1,1,0)+0.05*IF(BG94>=1,1-(0.5)^BG94,0))) -> 0 | AD74: 0 | AE74: 3 | AF74: =IF(BD74=0,"",ROUNDDOWN((SQRT(AC74)*2+SUM(AE74:AE77)*1.5+SUM(AD74:AD77)+BD74)*BE74,1)) -> 17 | AH74: =IF($K74="大口径主砲",1,0)+IF($K75="大口径主砲",1,0)+IF($K76="大口径主砲",1,0)+IF($K77="大口径主砲",1,0) -> 0 | AI74: =IF($K74="中口径主砲",1,0)+IF($K75="中口径主砲",1,0)+IF($K76="中口径主砲",1,0)+IF($K77="中口径主砲",1,0) -> 0 | AJ74: =IF($K74="小口径主砲",1,0)+IF($K75="小口径主砲",1,0)+IF($K76="小口径主砲",1,0)+IF($K77="小口径主砲",1,0) -> 0 | AK74: =AH74+AI74+AJ74 -> 0 | AL74: =IF($K74="副砲",1,0)+IF($K75="副砲",1,0)+IF($K76="副砲",1,0)+IF($K77="副砲",1,0) -> 0 | AM74: =IF($K74="大型電探",1,0)+IF($K75="大型電探",1,0)+IF($K76="大型電探",1,0)+IF($K77="大型電探",1,0) -> 0 | AN74: =IF($K74="小型電探",1,0)+IF($K75="小型電探",1,0)+IF($K76="小型電探",1,0)+IF($K77="小型電探",1,0) -> 0 | AO74: =AM74+AN74 -> 0 | AP74: =IF($K74="魚雷",1,0)+IF($K75="魚雷",1,0)+IF($K76="魚雷",1,0)+IF($K77="魚雷",1,0) -> 0 | AQ74: =IF($K74="対艦強化弾",1,0)+IF($K75="対艦強化弾",1,0)+IF($K76="対艦強化弾",1,0)+IF($K77="対艦強化弾",1,0) -> 0 | AR74: =IF(OR($K74="水上偵察機",$K74="水上爆撃機"),1,0)+IF(OR($K75="水上偵察機",$K75="水上爆撃機"),1,0)+IF(OR($K76="水上偵察機",$K76="水上爆撃機"),1,0)+IF(OR($K77="水上偵察機",$K77="水上爆撃機"),1,0) -> 0 | AS74: =IF($K74="爆雷",1,0)+IF($K75="爆雷",1,0)+IF($K76="爆雷",1,0)+IF($K77="爆雷",1,0) -> 0 | AT74: =IF($K74="ソナー",1,0)+IF($K75="ソナー",1,0)+IF($K76="ソナー",1,0)+IF($K77="ソナー",1,0) -> 0 | AU74: =IF(OR($K74="オートジャイロ",$K74="対潜哨戒機"),1,0)+IF(OR($K75="オートジャイロ",$K75="対潜哨戒機"),1,0)+IF(OR($K76="オートジャイロ",$K76="対潜哨戒機"),1,0)+IF(OR($K77="オートジャイロ",$K77="対潜哨戒機"),1,0) -> 0 | AV74: =IF($K74="艦上爆撃機",1,0)+IF($K75="艦上爆撃機",1,0)+IF($K76="艦上爆撃機",1,0)+IF($K77="艦上爆撃機",1,0) -> 0 | AW74: =IF($K74="艦上攻撃機",1,0)+IF($K75="艦上攻撃機",1,0)+IF($K76="艦上攻撃機",1,0)+IF($K77="艦上攻撃機",1,0) -> 2 | AX74: =IF($K74="大型飛行艇",1,0)+IF($K75="大型飛行艇",1,0)+IF($K76="大型飛行艇",1,0)+IF($K77="大型飛行艇",1,0) -> 0 | AY74: =IF($K74="水上爆撃機",1,0)+IF($K75="水上爆撃機",1,0)+IF($K76="水上爆撃機",1,0)+IF($K77="水上爆撃機",1,0) -> 0 | AZ74: =SUM(AV74:AY77) -> 2 | BA74: =SUM(AU74:AY77) -> 2 | BB74: =IF(AZ74>0,4,IF(BA74>0,3,2)) -> 4 | BC74: =IF(ISERROR(VLOOKUP(F74,antisubmarine_ex,1,FALSE)),E74,VLOOKUP(F74,antisubmarine_ex,2,FALSE)&"") -> 軽空母 | BD74: =IF(ISERROR(VLOOKUP(BC74,antisubmarine,BB74,FALSE)),0,VLOOKUP(BC74,antisubmarine,BB74,FALSE)) -> 8 | BE74: =IF(AND(AS74>0,AT74>0),1.15,1) -> 1 | BF74: =IF(H74="探照灯",1,0)+IF(H75="探照灯",1,0)+IF(H76="探照灯",1,0)+IF(H77="探照灯",1,0) -> 0 | BG74: =IF(H74="照明弾",1,0)+IF(H75="照明弾",1,0)+IF(H76="照明弾",1,0)+IF(H77="照明弾",1,0) -> 0 | BH74: =IF(H74="熟練見張員",1,0)+IF(H75="熟練見張員",1,0)+IF(H76="熟練見張員",1,0)+IF(H77="熟練見張員",1,0) -> 0 | BI74: =AA74+BH74*VLOOKUP("運",watcher,2,FALSE) -> 0 | BJ74: =IF(AP74>=2,"魚雷",IF(AH74+AI74+AJ74>=3,"主砲",IF(AND(AH74+AI74+AJ74=2,AL74>=1),"主砲副砲",IF(OR(AND(AH74+AI74+AJ74=1,AP74=1),AND(AH74+AI74+AJ74=2,AL74=0,AP74=1)),"主砲魚雷",0)))) -> 0 | BK74: =IF(AP74>=2,VLOOKUP("魚雷",luck_cap,2,FALSE),IF(AH74+AI74+AJ74>=3,VLOOKUP("主砲",luck_cap,2,FALSE),IF(AND(AH74+AI74+AJ74=2,AL74>=1),VLOOKUP("主砲副砲",luck_cap,2,FALSE),IF(OR(AND(AH74+AI74+AJ74=1,AP74=1),AND(AH74+AI74+AJ74=2,AL74=0,AP74=1)),VLOOKUP("主砲魚雷",luck_cap,2,FALSE),0)))) -> 0 | BL74: =IF(H74="ドラム缶",1,0)+IF(H75="ドラム缶",1,0)+IF(H76="ドラム缶",1,0)+IF(H77="ドラム缶",1,0) -> 0
B75: 敵制空合計 | C75: =SUM(C69:C74) -> 0 | G75: =IF(F74="",,VLOOKUP(F74,carrierlist,3,FALSE)&"") -> 28 | H75: 流星改 | I75: 7 | K75: 艦上攻撃機 | L75: 3.16227766 | O75: 1.6 | P75: 0 | Q75: 0 | R75: 13 | S75: 0 | T75: =IF(ISERROR(VLOOKUP(H75,fighterlist,1,FALSE)),"",IF(OR(E74="装甲空母",E74="正規空母",E74="軽空母",E74="水上機母艦",E74="航空戦艦",E74="航空巡洋艦",E74="潜水空母"),IF(VLOOKUP(H75,fighterlist,11,FALSE)="艦上攻撃機",ROUNDDOWN(0.8*(R75*SQRT(G75)+25),0),IF(OR(VLOOKUP(H75,fighterlist,11,FALSE)="艦上爆撃機",VLOOKUP(H75,fighterlist,11,FALSE)="水上爆撃機"),ROUNDDOWN(1*(S75*SQRT(G75)+25),0),"")),"")) -> 75 | U75: =IF(OR(E74="装甲空母",E74="正規空母",E74="軽空母",E74="水上機母艦",E74="航空戦艦",E74="航空巡洋艦",E74="潜水空母"),IF(K75="艦上攻撃機",ROUNDDOWN(1.5*(R75*SQRT(G75)+25),0),IF(OR(K75="艦上爆撃機",K75="水上爆撃機"),ROUNDDOWN(1*(S75*SQRT(G75)+25),0),"")),"") -> 140 | AD75: 0 | AE75: 3
B76: 航空優勢 | C76: =ROUNDUP(C75*1.5,0) -> 0 | G76: =IF(F74="",,VLOOKUP(F74,carrierlist,4,FALSE)&"") -> 6 | H76: 彩雲 | I76: 7 | K76: 艦上偵察機 | L76: 0 | O76: 9 | P76: 2 | Q76: 0 | R76: 0 | S76: 0 | T76: =IF(ISERROR(VLOOKUP(H76,fighterlist,1,FALSE)),"",IF(OR(E74="装甲空母",E74="正規空母",E74="軽空母",E74="水上機母艦",E74="航空戦艦",E74="航空巡洋艦",E74="潜水空母"),IF(VLOOKUP(H76,fighterlist,11,FALSE)="艦上攻撃機",ROUNDDOWN(0.8*(R76*SQRT(G76)+25),0),IF(OR(VLOOKUP(H76,fighterlist,11,FALSE)="艦上爆撃機",VLOOKUP(H76,fighterlist,11,FALSE)="水上爆撃機"),ROUNDDOWN(1*(S76*SQRT(G76)+25),0),"")),"")) ->  | U76: =IF(OR(E74="装甲空母",E74="正規空母",E74="軽空母",E74="水上機母艦",E74="航空戦艦",E74="航空巡洋艦",E74="潜水空母"),IF(K76="艦上攻撃機",ROUNDDOWN(1.5*(R76*SQRT(G76)+25),0),IF(OR(K76="艦上爆撃機",K76="水上爆撃機"),ROUNDDOWN(1*(S76*SQRT(G76)+25),0),"")),"") ->  | AD76: 0 | AE76: 0
B77: 制空権確保 | C77: =C75*3 -> 0 | G77: =IF(F74="",,VLOOKUP(F74,carrierlist,5,FALSE)&"") -> 3 | H77: 熟練艦載機整備員 | K77: 航空要員 | L77: 0 | P77: 1 | Q77: 10 | R77: 0 | S77: 0 | T77: =IF(ISERROR(VLOOKUP(H77,fighterlist,1,FALSE)),"",IF(OR(E74="装甲空母",E74="正規空母",E74="軽空母",E74="水上機母艦",E74="航空戦艦",E74="航空巡洋艦",E74="潜水空母"),IF(VLOOKUP(H77,fighterlist,11,FALSE)="艦上攻撃機",ROUNDDOWN(0.8*(R77*SQRT(G77)+25),0),IF(OR(VLOOKUP(H77,fighterlist,11,FALSE)="艦上爆撃機",VLOOKUP(H77,fighterlist,11,FALSE)="水上爆撃機"),ROUNDDOWN(1*(S77*SQRT(G77)+25),0),"")),"")) ->  | U77: =IF(OR(E74="装甲空母",E74="正規空母",E74="軽空母",E74="水上機母艦",E74="航空戦艦",E74="航空巡洋艦",E74="潜水空母"),IF(K77="艦上攻撃機",ROUNDDOWN(1.5*(R77*SQRT(G77)+25),0),IF(OR(K77="艦上爆撃機",K77="水上爆撃機"),ROUNDDOWN(1*(S77*SQRT(G77)+25),0),"")),"") ->  | AD77: 0 | AE77: 0
E78: =IF(F78="","",VLOOKUP(F78,carrierlist,8,FALSE)&"") -> 軽巡洋艦 | F78: 長良改 | G78: =IF(F78="",,VLOOKUP(F78,carrierlist,2,FALSE)&"") -> 1 | H78: 20.3cm(3号)連装砲 | J78: 10 | K78: =IF(ISERROR(VLOOKUP(H78,fighterlist,1,FALSE)),"",VLOOKUP(H78,fighterlist,11,FALSE)&"") -> 中口径主砲 | L78: 0 | P78: 4.16 | Q78: 13.16 | R78: 0 | S78: 0 | T78: =IF(ISERROR(VLOOKUP(H78,fighterlist,1,FALSE)),"",IF(OR(E78="装甲空母",E78="正規空母",E78="軽空母",E78="水上機母艦",E78="航空戦艦",E78="航空巡洋艦",E78="潜水空母"),IF(VLOOKUP(H78,fighterlist,11,FALSE)="艦上攻撃機",ROUNDDOWN(0.8*(R78*SQRT(G78)+25),0),IF(OR(VLOOKUP(H78,fighterlist,11,FALSE)="艦上爆撃機",VLOOKUP(H78,fighterlist,11,FALSE)="水上爆撃機"),ROUNDDOWN(1*(S78*SQRT(G78)+25),0),"")),"")) ->  | U78: =IF(OR(E78="装甲空母",E78="正規空母",E78="軽空母",E78="水上機母艦",E78="航空戦艦",E78="航空巡洋艦",E78="潜水空母"),IF(K78="艦上攻撃機",ROUNDDOWN(1.5*(R78*SQRT(G78)+25),0),IF(OR(K78="艦上爆撃機",K78="水上爆撃機"),ROUNDDOWN(1*(S78*SQRT(G78)+25),0),"")),"") ->  | V78: =IF(OR(F78="",F78="[その他]",),"",IF(F78="","",IF(OR(E78="装甲空母",E78="正規空母",E78="軽空母"),IF(SUM(R78:R81)+SUM(S78:S81)=0,0,ROUNDDOWN(55+(VLOOKUP(F78,carrierlist,6,FALSE)+SUM(Q78:Q81))*1.5+SUM(R78:R81)*1.5+SUM(S78:S81)*2,0)),ROUNDDOWN(5+VLOOKUP(F78,carrierlist,6,FALSE)+SUM(Q78:Q81),0)))) -> 100 | W78: =IF(OR(E78="潜水艦",E78="潜水空母",E78="駆逐艦",E78="軽巡洋艦",E78="重雷装巡洋艦",E78="重巡洋艦",E78="航空巡洋艦",E78="水上機母艦"),ROUNDDOWN(5+VLOOKUP(F78,carrierlist,7,FALSE)+SUM(R78:R81),0),"") -> 94 | X78: =IF(OR(F78="",F78="[その他]",E78="装甲空母",E78="正規空母",E78="軽空母"),"",ROUNDDOWN(VLOOKUP(F78,carrierlist,6,FALSE)+VLOOKUP(F78,carrierlist,7,FALSE)+SUM(Q78:R81),0)) -> 184 | Y78: =IF(OR(AP78>=2,AK78>=3,AND(AK78=2,AL78>=1),AND(AK78>=1,AK78<=2,AP78>=1)),"カットイン",IF(OR(AND(AK78=2,AL78=0,AP78=0),AND(AK78=1,AL78>=1,AP78=0),AND(AK78=0,AL78>=2,AP78<=1)),"連撃","")) -> 連撃 | Z78: =IF(AP78>=2,ROUNDDOWN(X78*1.5,0)&"×2",IF(AH78>=3,X78*2,IF(AND(AH78=2,AL78>=1),ROUNDDOWN(X78*1.75,0),IF(AND(AH78>=1,AH78<=2,AP78>=1),ROUNDDOWN(X78*1.3,0)&"×2",IF(Y78="連撃",ROUNDDOWN(X78*1.2,0)&"×2",""))))) -> 220×2 | AB78: =IF(Y78="連撃",0.99,IF(Y78="",0,SQRT(VLOOKUP(BJ78,ci_coefficient,2,FALSE)*IF(BI78>BK78,BK78,BI78))*0.01+0.05*IF(BF94>=1,1,0)+0.05*IF(BG94>=1,1-(0.5)^BG94,0))) -> 0.99 | AD78: 0 | AE78: 0 | AF78: =IF(BD78=0,"",ROUNDDOWN((SQRT(AC78)*2+SUM(AE78:AE81)*1.5+SUM(AD78:AD81)+BD78)*BE78,1)) -> 13 | AH78: =IF($K78="大口径主砲",1,0)+IF($K79="大口径主砲",1,0)+IF($K80="大口径主砲",1,0)+IF($K81="大口径主砲",1,0) -> 0 | AI78: =IF($K78="中口径主砲",1,0)+IF($K79="中口径主砲",1,0)+IF($K80="中口径主砲",1,0)+IF($K81="中口径主砲",1,0) -> 2 | AJ78: =IF($K78="小口径主砲",1,0)+IF($K79="小口径主砲",1,0)+IF($K80="小口径主砲",1,0)+IF($K81="小口径主砲",1,0) -> 0 | AK78: =AH78+AI78+AJ78 -> 2 | AL78: =IF($K78="副砲",1,0)+IF($K79="副砲",1,0)+IF($K80="副砲",1,0)+IF($K81="副砲",1,0) -> 0 | AM78: =IF($K78="大型電探",1,0)+IF($K79="大型電探",1,0)+IF($K80="大型電探",1,0)+IF($K81="大型電探",1,0) -> 0 | AN78: =IF($K78="小型電探",1,0)+IF($K79="小型電探",1,0)+IF($K80="小型電探",1,0)+IF($K81="小型電探",1,0) -> 0 | AO78: =AM78+AN78 -> 0 | AP78: =IF($K78="魚雷",1,0)+IF($K79="魚雷",1,0)+IF($K80="魚雷",1,0)+IF($K81="魚雷",1,0) -> 0 | AQ78: =IF($K78="対艦強化弾",1,0)+IF($K79="対艦強化弾",1,0)+IF($K80="対艦強化弾",1,0)+IF($K81="対艦強化弾",1,0) -> 0 | AR78: =IF(OR($K78="水上偵察機",$K78="水上爆撃機"),1,0)+IF(OR($K79="水上偵察機",$K79="水上爆撃機"),1,0)+IF(OR($K80="水上偵察機",$K80="水上爆撃機"),1,0)+IF(OR($K81="水上偵察機",$K81="水上爆撃機"),1,0) -> 1 | AS78: =IF($K78="爆雷",1,0)+IF($K79="爆雷",1,0)+IF($K80="爆雷",1,0)+IF($K81="爆雷",1,0) -> 0 | AT78: =IF($K78="ソナー",1,0)+IF($K79="ソナー",1,0)+IF($K80="ソナー",1,0)+IF($K81="ソナー",1,0) -> 0 | AU78: =IF(OR($K78="オートジャイロ",$K78="対潜哨戒機"),1,0)+IF(OR($K79="オートジャイロ",$K79="対潜哨戒機"),1,0)+IF(OR($K80="オートジャイロ",$K80="対潜哨戒機"),1,0)+IF(OR($K81="オートジャイロ",$K81="対潜哨戒機"),1,0) -> 0 | AV78: =IF($K78="艦上爆撃機",1,0)+IF($K79="艦上爆撃機",1,0)+IF($K80="艦上爆撃機",1,0)+IF($K81="艦上爆撃機",1,0) -> 0 | AW78: =IF($K78="艦上攻撃機",1,0)+IF($K79="艦上攻撃機",1,0)+IF($K80="艦上攻撃機",1,0)+IF($K81="艦上攻撃機",1,0) -> 0 | AX78: =IF($K78="大型飛行艇",1,0)+IF($K79="大型飛行艇",1,0)+IF($K80="大型飛行艇",1,0)+IF($K81="大型飛行艇",1,0) -> 0 | AY78: =IF($K78="水上爆撃機",1,0)+IF($K79="水上爆撃機",1,0)+IF($K80="水上爆撃機",1,0)+IF($K81="水上爆撃機",1,0) -> 0 | AZ78: =SUM(AV78:AY81) -> 0 | BA78: =SUM(AU78:AY81) -> 0 | BB78: =IF(AZ78>0,4,IF(BA78>0,3,2)) -> 2 | BC78: =IF(ISERROR(VLOOKUP(F78,antisubmarine_ex,1,FALSE)),E78,VLOOKUP(F78,antisubmarine_ex,2,FALSE)&"") -> 軽巡洋艦 | BD78: =IF(ISERROR(VLOOKUP(BC78,antisubmarine,BB78,FALSE)),0,VLOOKUP(BC78,antisubmarine,BB78,FALSE)) -> 13 | BE78: =IF(AND(AS78>0,AT78>0),1.15,1) -> 1 | BF78: =IF(H78="探照灯",1,0)+IF(H79="探照灯",1,0)+IF(H80="探照灯",1,0)+IF(H81="探照灯",1,0) -> 0 | BG78: =IF(H78="照明弾",1,0)+IF(H79="照明弾",1,0)+IF(H80="照明弾",1,0)+IF(H81="照明弾",1,0) -> 0 | BH78: =IF(H78="熟練見張員",1,0)+IF(H79="熟練見張員",1,0)+IF(H80="熟練見張員",1,0)+IF(H81="熟練見張員",1,0) -> 0 | BI78: =AA78+BH78*VLOOKUP("運",watcher,2,FALSE) -> 0 | BJ78: =IF(AP78>=2,"魚雷",IF(AH78+AI78+AJ78>=3,"主砲",IF(AND(AH78+AI78+AJ78=2,AL78>=1),"主砲副砲",IF(OR(AND(AH78+AI78+AJ78=1,AP78=1),AND(AH78+AI78+AJ78=2,AL78=0,AP78=1)),"主砲魚雷",0)))) -> 0 | BK78: =IF(AP78>=2,VLOOKUP("魚雷",luck_cap,2,FALSE),IF(AH78+AI78+AJ78>=3,VLOOKUP("主砲",luck_cap,2,FALSE),IF(AND(AH78+AI78+AJ78=2,AL78>=1),VLOOKUP("主砲副砲",luck_cap,2,FALSE),IF(OR(AND(AH78+AI78+AJ78=1,AP78=1),AND(AH78+AI78+AJ78=2,AL78=0,AP78=1)),VLOOKUP("主砲魚雷",luck_cap,2,FALSE),0)))) -> 0 | BL78: =IF(H78="ドラム缶",1,0)+IF(H79="ドラム缶",1,0)+IF(H80="ドラム缶",1,0)+IF(H81="ドラム缶",1,0) -> 0
B79: 遭遇する制空最高艦隊 | G79: =IF(F78="",,VLOOKUP(F78,carrierlist,3,FALSE)&"") -> 1 | H79: 20.3cm(3号)連装砲 | J79: 10 | K79: 中口径主砲 | L79: 0 | P79: 4.16 | Q79: 13.16 | R79: 0 | S79: 0 | T79: =IF(ISERROR(VLOOKUP(H79,fighterlist,1,FALSE)),"",IF(OR(E78="装甲空母",E78="正規空母",E78="軽空母",E78="水上機母艦",E78="航空戦艦",E78="航空巡洋艦",E78="潜水空母"),IF(VLOOKUP(H79,fighterlist,11,FALSE)="艦上攻撃機",ROUNDDOWN(0.8*(R79*SQRT(G79)+25),0),IF(OR(VLOOKUP(H79,fighterlist,11,FALSE)="艦上爆撃機",VLOOKUP(H79,fighterlist,11,FALSE)="水上爆撃機"),ROUNDDOWN(1*(S79*SQRT(G79)+25),0),"")),"")) ->  | U79: =IF(OR(E78="装甲空母",E78="正規空母",E78="軽空母",E78="水上機母艦",E78="航空戦艦",E78="航空巡洋艦",E78="潜水空母"),IF(K79="艦上攻撃機",ROUNDDOWN(1.5*(R79*SQRT(G79)+25),0),IF(OR(K79="艦上爆撃機",K79="水上爆撃機"),ROUNDDOWN(1*(S79*SQRT(G79)+25),0),"")),"") ->  | AD79: 0 | AE79: 0
B80: 艦種 | C80: 制空値 | G80: =IF(F78="",,VLOOKUP(F78,carrierlist,4,FALSE)&"") -> 1 | H80: 紫雲 | I80: 7 | K80: 水上偵察機 | L80: 0 | O80: 9.6 | P80: 1 | Q80: 0 | R80: 0 | S80: 1 | T80: =IF(ISERROR(VLOOKUP(H80,fighterlist,1,FALSE)),"",IF(OR(E78="装甲空母",E78="正規空母",E78="軽空母",E78="水上機母艦",E78="航空戦艦",E78="航空巡洋艦",E78="潜水空母"),IF(VLOOKUP(H80,fighterlist,11,FALSE)="艦上攻撃機",ROUNDDOWN(0.8*(R80*SQRT(G80)+25),0),IF(OR(VLOOKUP(H80,fighterlist,11,FALSE)="艦上爆撃機",VLOOKUP(H80,fighterlist,11,FALSE)="水上爆撃機"),ROUNDDOWN(1*(S80*SQRT(G80)+25),0),"")),"")) ->  | U80: =IF(OR(E78="装甲空母",E78="正規空母",E78="軽空母",E78="水上機母艦",E78="航空戦艦",E78="航空巡洋艦",E78="潜水空母"),IF(K80="艦上攻撃機",ROUNDDOWN(1.5*(R80*SQRT(G80)+25),0),IF(OR(K80="艦上爆撃機",K80="水上爆撃機"),ROUNDDOWN(1*(S80*SQRT(G80)+25),0),"")),"") ->  | AD80: 0 | AE80: 0
B81: [艦載機なし] | C81: =IF(B81="","",VLOOKUP(B81,enemyforcelist,2,FALSE)) -> 0 | G81: =IF(F78="",,VLOOKUP(F78,carrierlist,5,FALSE)&"") ->  | I81: 7 | L81: 0 | P81: 0 | Q81: 0 | R81: 0 | S81: 0 | T81: =IF(ISERROR(VLOOKUP(H81,fighterlist,1,FALSE)),"",IF(OR(E78="装甲空母",E78="正規空母",E78="軽空母",E78="水上機母艦",E78="航空戦艦",E78="航空巡洋艦",E78="潜水空母"),IF(VLOOKUP(H81,fighterlist,11,FALSE)="艦上攻撃機",ROUNDDOWN(0.8*(R81*SQRT(G81)+25),0),IF(OR(VLOOKUP(H81,fighterlist,11,FALSE)="艦上爆撃機",VLOOKUP(H81,fighterlist,11,FALSE)="水上爆撃機"),ROUNDDOWN(1*(S81*SQRT(G81)+25),0),"")),"")) ->  | U81: =IF(OR(E78="装甲空母",E78="正規空母",E78="軽空母",E78="水上機母艦",E78="航空戦艦",E78="航空巡洋艦",E78="潜水空母"),IF(K81="艦上攻撃機",ROUNDDOWN(1.5*(R81*SQRT(G81)+25),0),IF(OR(K81="艦上爆撃機",K81="水上爆撃機"),ROUNDDOWN(1*(S81*SQRT(G81)+25),0),"")),"") ->  | AD81: 0 | AE81: 0
B82: [艦載機なし] | C82: 0 | E82: =IF(F82="","",VLOOKUP(F82,carrierlist,8,FALSE)&"") -> 駆逐艦 | F82: 夕雲改 | G82: =IF(F82="",,VLOOKUP(F82,carrierlist,2,FALSE)&"") -> 0 | H82: 10cm高角砲＋高射装置 | J82: 10 | K82: 小口径主砲 | L82: 0 | P82: 4.16 | Q82: 6.16 | R82: 0 | S82: 0 | T82: =IF(ISERROR(VLOOKUP(H82,fighterlist,1,FALSE)),"",IF(OR(E82="装甲空母",E82="正規空母",E82="軽空母",E82="水上機母艦",E82="航空戦艦",E82="航空巡洋艦",E82="潜水空母"),IF(VLOOKUP(H82,fighterlist,11,FALSE)="艦上攻撃機",ROUNDDOWN(0.8*(R82*SQRT(G82)+25),0),IF(OR(VLOOKUP(H82,fighterlist,11,FALSE)="艦上爆撃機",VLOOKUP(H82,fighterlist,11,FALSE)="水上爆撃機"),ROUNDDOWN(1*(S82*SQRT(G82)+25),0),"")),"")) ->  | U82: =IF(OR(E82="装甲空母",E82="正規空母",E82="軽空母",E82="水上機母艦",E82="航空戦艦",E82="航空巡洋艦",E82="潜水空母"),IF(K82="艦上攻撃機",ROUNDDOWN(1.5*(R82*SQRT(G82)+25),0),IF(OR(K82="艦上爆撃機",K82="水上爆撃機"),ROUNDDOWN(1*(S82*SQRT(G82)+25),0),"")),"") ->  | V82: =IF(OR(F82="",F82="[その他]",),"",IF(F82="","",IF(OR(E82="装甲空母",E82="正規空母",E82="軽空母"),IF(SUM(R82:R85)+SUM(S82:S85)=0,0,ROUNDDOWN(55+(VLOOKUP(F82,carrierlist,6,FALSE)+SUM(Q82:Q85))*1.5+SUM(R82:R85)*1.5+SUM(S82:S85)*2,0)),ROUNDDOWN(5+VLOOKUP(F82,carrierlist,6,FALSE)+SUM(Q82:Q85),0)))) -> 67 | W82: =IF(OR(E82="潜水艦",E82="潜水空母",E82="駆逐艦",E82="軽巡洋艦",E82="重雷装巡洋艦",E82="重巡洋艦",E82="航空巡洋艦",E82="水上機母艦"),ROUNDDOWN(5+VLOOKUP(F82,carrierlist,7,FALSE)+SUM(R82:R85),0),"") -> 85 | X82: =IF(OR(F82="",F82="[その他]",E82="装甲空母",E82="正規空母",E82="軽空母"),"",ROUNDDOWN(VLOOKUP(F82,carrierlist,6,FALSE)+VLOOKUP(F82,carrierlist,7,FALSE)+SUM(Q82:R85),0)) -> 142 | Y82: =IF(OR(AP82>=2,AK82>=3,AND(AK82=2,AL82>=1),AND(AK82>=1,AK82<=2,AP82>=1)),"カットイン",IF(OR(AND(AK82=2,AL82=0,AP82=0),AND(AK82=1,AL82>=1,AP82=0),AND(AK82=0,AL82>=2,AP82<=1)),"連撃","")) -> 連撃 | Z82: =IF(AP82>=2,ROUNDDOWN(X82*1.5,0)&"×2",IF(AH82>=3,X82*2,IF(AND(AH82=2,AL82>=1),ROUNDDOWN(X82*1.75,0),IF(AND(AH82>=1,AH82<=2,AP82>=1),ROUNDDOWN(X82*1.3,0)&"×2",IF(Y82="連撃",ROUNDDOWN(X82*1.2,0)&"×2",""))))) -> 170×2 | AB82: =IF(Y82="連撃",0.99,IF(Y82="",0,SQRT(VLOOKUP(BJ82,ci_coefficient,2,FALSE)*IF(BI82>BK82,BK82,BI82))*0.01+0.05*IF(BF94>=1,1,0)+0.05*IF(BG94>=1,1-(0.5)^BG94,0))) -> 0.99 | AD82: 0 | AE82: 0 | AF82: =IF(BD82=0,"",ROUNDDOWN((SQRT(AC82)*2+SUM(AE82:AE85)*1.5+SUM(AD82:AD85)+BD82)*BE82,1)) -> 13 | AH82: =IF($K82="大口径主砲",1,0)+IF($K83="大口径主砲",1,0)+IF($K84="大口径主砲",1,0)+IF($K85="大口径主砲",1,0) -> 0 | AI82: =IF($K82="中口径主砲",1,0)+IF($K83="中口径主砲",1,0)+IF($K84="中口径主砲",1,0)+IF($K85="中口径主砲",1,0) -> 0 | AJ82: =IF($K82="小口径主砲",1,0)+IF($K83="小口径主砲",1,0)+IF($K84="小口径主砲",1,0)+IF($K85="小口径主砲",1,0) -> 2 | AK82: =AH82+AI82+AJ82 -> 2 | AL82: =IF($K82="副砲",1,0)+IF($K83="副砲",1,0)+IF($K84="副砲",1,0)+IF($K85="副砲",1,0) -> 0 | AM82: =IF($K82="大型電探",1,0)+IF($K83="大型電探",1,0)+IF($K84="大型電探",1,0)+IF($K85="大型電探",1,0) -> 0 | AN82: =IF($K82="小型電探",1,0)+IF($K83="小型電探",1,0)+IF($K84="小型電探",1,0)+IF($K85="小型電探",1,0) -> 1 | AO82: =AM82+AN82 -> 1 | AP82: =IF($K82="魚雷",1,0)+IF($K83="魚雷",1,0)+IF($K84="魚雷",1,0)+IF($K85="魚雷",1,0) -> 0 | AQ82: =IF($K82="対艦強化弾",1,0)+IF($K83="対艦強化弾",1,0)+IF($K84="対艦強化弾",1,0)+IF($K85="対艦強化弾",1,0) -> 0 | AR82: =IF(OR($K82="水上偵察機",$K82="水上爆撃機"),1,0)+IF(OR($K83="水上偵察機",$K83="水上爆撃機"),1,0)+IF(OR($K84="水上偵察機",$K84="水上爆撃機"),1,0)+IF(OR($K85="水上偵察機",$K85="水上爆撃機"),1,0) -> 0 | AS82: =IF($K82="爆雷",1,0)+IF($K83="爆雷",1,0)+IF($K84="爆雷",1,0)+IF($K85="爆雷",1,0) -> 0 | AT82: =IF($K82="ソナー",1,0)+IF($K83="ソナー",1,0)+IF($K84="ソナー",1,0)+IF($K85="ソナー",1,0) -> 0 | AU82: =IF(OR($K82="オートジャイロ",$K82="対潜哨戒機"),1,0)+IF(OR($K83="オートジャイロ",$K83="対潜哨戒機"),1,0)+IF(OR($K84="オートジャイロ",$K84="対潜哨戒機"),1,0)+IF(OR($K85="オートジャイロ",$K85="対潜哨戒機"),1,0) -> 0 | AV82: =IF($K82="艦上爆撃機",1,0)+IF($K83="艦上爆撃機",1,0)+IF($K84="艦上爆撃機",1,0)+IF($K85="艦上爆撃機",1,0) -> 0 | AW82: =IF($K82="艦上攻撃機",1,0)+IF($K83="艦上攻撃機",1,0)+IF($K84="艦上攻撃機",1,0)+IF($K85="艦上攻撃機",1,0) -> 0 | AX82: =IF($K82="大型飛行艇",1,0)+IF($K83="大型飛行艇",1,0)+IF($K84="大型飛行艇",1,0)+IF($K85="大型飛行艇",1,0) -> 0 | AY82: =IF($K82="水上爆撃機",1,0)+IF($K83="水上爆撃機",1,0)+IF($K84="水上爆撃機",1,0)+IF($K85="水上爆撃機",1,0) -> 0 | AZ82: =SUM(AV82:AY85) -> 0 | BA82: =SUM(AU82:AY85) -> 0 | BB82: =IF(AZ82>0,4,IF(BA82>0,3,2)) -> 2 | BC82: =IF(ISERROR(VLOOKUP(F82,antisubmarine_ex,1,FALSE)),E82,VLOOKUP(F82,antisubmarine_ex,2,FALSE)&"") -> 駆逐艦 | BD82: =IF(ISERROR(VLOOKUP(BC82,antisubmarine,BB82,FALSE)),0,VLOOKUP(BC82,antisubmarine,BB82,FALSE)) -> 13 | BE82: =IF(AND(AS82>0,AT82>0),1.15,1) -> 1 | BF82: =IF(H82="探照灯",1,0)+IF(H83="探照灯",1,0)+IF(H84="探照灯",1,0)+IF(H85="探照灯",1,0) -> 0 | BG82: =IF(H82="照明弾",1,0)+IF(H83="照明弾",1,0)+IF(H84="照明弾",1,0)+IF(H85="照明弾",1,0) -> 0 | BH82: =IF(H82="熟練見張員",1,0)+IF(H83="熟練見張員",1,0)+IF(H84="熟練見張員",1,0)+IF(H85="熟練見張員",1,0) -> 0 | BI82: =AA82+BH82*VLOOKUP("運",watcher,2,FALSE) -> 0 | BJ82: =IF(AP82>=2,"魚雷",IF(AH82+AI82+AJ82>=3,"主砲",IF(AND(AH82+AI82+AJ82=2,AL82>=1),"主砲副砲",IF(OR(AND(AH82+AI82+AJ82=1,AP82=1),AND(AH82+AI82+AJ82=2,AL82=0,AP82=1)),"主砲魚雷",0)))) -> 0 | BK82: =IF(AP82>=2,VLOOKUP("魚雷",luck_cap,2,FALSE),IF(AH82+AI82+AJ82>=3,VLOOKUP("主砲",luck_cap,2,FALSE),IF(AND(AH82+AI82+AJ82=2,AL82>=1),VLOOKUP("主砲副砲",luck_cap,2,FALSE),IF(OR(AND(AH82+AI82+AJ82=1,AP82=1),AND(AH82+AI82+AJ82=2,AL82=0,AP82=1)),VLOOKUP("主砲魚雷",luck_cap,2,FALSE),0)))) -> 0 | BL82: =IF(H82="ドラム缶",1,0)+IF(H83="ドラム缶",1,0)+IF(H84="ドラム缶",1,0)+IF(H85="ドラム缶",1,0) -> 0
B83: [艦載機なし] | C83: 0 | G83: =IF(F82="",,VLOOKUP(F82,carrierlist,3,FALSE)&"") -> 0 | H83: 10cm高角砲＋高射装置 | J83: 10 | K83: 小口径主砲 | L83: 0 | P83: 4.16 | Q83: 6.16 | R83: 0 | S83: 0 | T83: =IF(ISERROR(VLOOKUP(H83,fighterlist,1,FALSE)),"",IF(OR(E82="装甲空母",E82="正規空母",E82="軽空母",E82="水上機母艦",E82="航空戦艦",E82="航空巡洋艦",E82="潜水空母"),IF(VLOOKUP(H83,fighterlist,11,FALSE)="艦上攻撃機",ROUNDDOWN(0.8*(R83*SQRT(G83)+25),0),IF(OR(VLOOKUP(H83,fighterlist,11,FALSE)="艦上爆撃機",VLOOKUP(H83,fighterlist,11,FALSE)="水上爆撃機"),ROUNDDOWN(1*(S83*SQRT(G83)+25),0),"")),"")) ->  | U83: =IF(OR(E82="装甲空母",E82="正規空母",E82="軽空母",E82="水上機母艦",E82="航空戦艦",E82="航空巡洋艦",E82="潜水空母"),IF(K83="艦上攻撃機",ROUNDDOWN(1.5*(R83*SQRT(G83)+25),0),IF(OR(K83="艦上爆撃機",K83="水上爆撃機"),ROUNDDOWN(1*(S83*SQRT(G83)+25),0),"")),"") ->  | AD83: 0 | AE83: 0
B84: [艦載機なし] | C84: 0 | G84: =IF(F82="",,VLOOKUP(F82,carrierlist,4,FALSE)&"") -> 0 | H84: 22号対水上電探改四 | J84: 6 | K84: 小型電探 | L84: 0 | O84: 3 | P84: 10.44 | Q84: 0 | R84: 0 | S84: 0 | T84: =IF(ISERROR(VLOOKUP(H84,fighterlist,1,FALSE)),"",IF(OR(E82="装甲空母",E82="正規空母",E82="軽空母",E82="水上機母艦",E82="航空戦艦",E82="航空巡洋艦",E82="潜水空母"),IF(VLOOKUP(H84,fighterlist,11,FALSE)="艦上攻撃機",ROUNDDOWN(0.8*(R84*SQRT(G84)+25),0),IF(OR(VLOOKUP(H84,fighterlist,11,FALSE)="艦上爆撃機",VLOOKUP(H84,fighterlist,11,FALSE)="水上爆撃機"),ROUNDDOWN(1*(S84*SQRT(G84)+25),0),"")),"")) ->  | U84: =IF(OR(E82="装甲空母",E82="正規空母",E82="軽空母",E82="水上機母艦",E82="航空戦艦",E82="航空巡洋艦",E82="潜水空母"),IF(K84="艦上攻撃機",ROUNDDOWN(1.5*(R84*SQRT(G84)+25),0),IF(OR(K84="艦上爆撃機",K84="水上爆撃機"),ROUNDDOWN(1*(S84*SQRT(G84)+25),0),"")),"") ->  | AD84: 0 | AE84: 0
B85: [艦載機なし] | C85: 0 | G85: =IF(F82="",,VLOOKUP(F82,carrierlist,5,FALSE)&"") ->  | L85: 0 | P85: 0 | Q85: 0 | R85: 0 | S85: 0 | T85: =IF(ISERROR(VLOOKUP(H85,fighterlist,1,FALSE)),"",IF(OR(E82="装甲空母",E82="正規空母",E82="軽空母",E82="水上機母艦",E82="航空戦艦",E82="航空巡洋艦",E82="潜水空母"),IF(VLOOKUP(H85,fighterlist,11,FALSE)="艦上攻撃機",ROUNDDOWN(0.8*(R85*SQRT(G85)+25),0),IF(OR(VLOOKUP(H85,fighterlist,11,FALSE)="艦上爆撃機",VLOOKUP(H85,fighterlist,11,FALSE)="水上爆撃機"),ROUNDDOWN(1*(S85*SQRT(G85)+25),0),"")),"")) ->  | U85: =IF(OR(E82="装甲空母",E82="正規空母",E82="軽空母",E82="水上機母艦",E82="航空戦艦",E82="航空巡洋艦",E82="潜水空母"),IF(K85="艦上攻撃機",ROUNDDOWN(1.5*(R85*SQRT(G85)+25),0),IF(OR(K85="艦上爆撃機",K85="水上爆撃機"),ROUNDDOWN(1*(S85*SQRT(G85)+25),0),"")),"") ->  | AD85: 0 | AE85: 0
B86: [艦載機なし] | C86: 0 | E86: =IF(F86="","",VLOOKUP(F86,carrierlist,8,FALSE)&"") -> 駆逐艦 | F86: 巻雲改 | G86: =IF(F86="",,VLOOKUP(F86,carrierlist,2,FALSE)&"") -> 0 | H86: 10cm高角砲＋高射装置 | J86: 10 | K86: 小口径主砲 | L86: 0 | P86: 4.16 | Q86: 6.16 | R86: 0 | S86: 0 | T86: =IF(ISERROR(VLOOKUP(H86,fighterlist,1,FALSE)),"",IF(OR(E86="装甲空母",E86="正規空母",E86="軽空母",E86="水上機母艦",E86="航空戦艦",E86="航空巡洋艦",E86="潜水空母"),IF(VLOOKUP(H86,fighterlist,11,FALSE)="艦上攻撃機",ROUNDDOWN(0.8*(R86*SQRT(G86)+25),0),IF(OR(VLOOKUP(H86,fighterlist,11,FALSE)="艦上爆撃機",VLOOKUP(H86,fighterlist,11,FALSE)="水上爆撃機"),ROUNDDOWN(1*(S86*SQRT(G86)+25),0),"")),"")) ->  | U86: =IF(OR(E86="装甲空母",E86="正規空母",E86="軽空母",E86="水上機母艦",E86="航空戦艦",E86="航空巡洋艦",E86="潜水空母"),IF(K86="艦上攻撃機",ROUNDDOWN(1.5*(R86*SQRT(G86)+25),0),IF(OR(K86="艦上爆撃機",K86="水上爆撃機"),ROUNDDOWN(1*(S86*SQRT(G86)+25),0),"")),"") ->  | V86: =IF(OR(F86="",F86="[その他]",),"",IF(F86="","",IF(OR(E86="装甲空母",E86="正規空母",E86="軽空母"),IF(SUM(R86:R89)+SUM(S86:S89)=0,0,ROUNDDOWN(55+(VLOOKUP(F86,carrierlist,6,FALSE)+SUM(Q86:Q89))*1.5+SUM(R86:R89)*1.5+SUM(S86:S89)*2,0)),ROUNDDOWN(5+VLOOKUP(F86,carrierlist,6,FALSE)+SUM(Q86:Q89),0)))) -> 67 | W86: =IF(OR(E86="潜水艦",E86="潜水空母",E86="駆逐艦",E86="軽巡洋艦",E86="重雷装巡洋艦",E86="重巡洋艦",E86="航空巡洋艦",E86="水上機母艦"),ROUNDDOWN(5+VLOOKUP(F86,carrierlist,7,FALSE)+SUM(R86:R89),0),"") -> 85 | X86: =IF(OR(F86="",F86="[その他]",E86="装甲空母",E86="正規空母",E86="軽空母"),"",ROUNDDOWN(VLOOKUP(F86,carrierlist,6,FALSE)+VLOOKUP(F86,carrierlist,7,FALSE)+SUM(Q86:R89),0)) -> 142 | Y86: =IF(OR(AP86>=2,AK86>=3,AND(AK86=2,AL86>=1),AND(AK86>=1,AK86<=2,AP86>=1)),"カットイン",IF(OR(AND(AK86=2,AL86=0,AP86=0),AND(AK86=1,AL86>=1,AP86=0),AND(AK86=0,AL86>=2,AP86<=1)),"連撃","")) -> 連撃 | Z86: =IF(AP86>=2,ROUNDDOWN(X86*1.5,0)&"×2",IF(AH86>=3,X86*2,IF(AND(AH86=2,AL86>=1),ROUNDDOWN(X86*1.75,0),IF(AND(AH86>=1,AH86<=2,AP86>=1),ROUNDDOWN(X86*1.3,0)&"×2",IF(Y86="連撃",ROUNDDOWN(X86*1.2,0)&"×2",""))))) -> 170×2 | AB86: =IF(Y86="連撃",0.99,IF(Y86="",0,SQRT(VLOOKUP(BJ86,ci_coefficient,2,FALSE)*IF(BI86>BK86,BK86,BI86))*0.01+0.05*IF(BF94>=1,1,0)+0.05*IF(BG94>=1,1-(0.5)^BG94,0))) -> 0.99 | AD86: 0 | AE86: 0 | AF86: =IF(BD86=0,"",ROUNDDOWN((SQRT(AC86)*2+SUM(AE86:AE89)*1.5+SUM(AD86:AD89)+BD86)*BE86,1)) -> 13 | AH86: =IF($K86="大口径主砲",1,0)+IF($K87="大口径主砲",1,0)+IF($K88="大口径主砲",1,0)+IF($K89="大口径主砲",1,0) -> 0 | AI86: =IF($K86="中口径主砲",1,0)+IF($K87="中口径主砲",1,0)+IF($K88="中口径主砲",1,0)+IF($K89="中口径主砲",1,0) -> 0 | AJ86: =IF($K86="小口径主砲",1,0)+IF($K87="小口径主砲",1,0)+IF($K88="小口径主砲",1,0)+IF($K89="小口径主砲",1,0) -> 2 | AK86: =AH86+AI86+AJ86 -> 2 | AL86: =IF($K86="副砲",1,0)+IF($K87="副砲",1,0)+IF($K88="副砲",1,0)+IF($K89="副砲",1,0) -> 0 | AM86: =IF($K86="大型電探",1,0)+IF($K87="大型電探",1,0)+IF($K88="大型電探",1,0)+IF($K89="大型電探",1,0) -> 0 | AN86: =IF($K86="小型電探",1,0)+IF($K87="小型電探",1,0)+IF($K88="小型電探",1,0)+IF($K89="小型電探",1,0) -> 1 | AO86: =AM86+AN86 -> 1 | AP86: =IF($K86="魚雷",1,0)+IF($K87="魚雷",1,0)+IF($K88="魚雷",1,0)+IF($K89="魚雷",1,0) -> 0 | AQ86: =IF($K86="対艦強化弾",1,0)+IF($K87="対艦強化弾",1,0)+IF($K88="対艦強化弾",1,0)+IF($K89="対艦強化弾",1,0) -> 0 | AR86: =IF(OR($K86="水上偵察機",$K86="水上爆撃機"),1,0)+IF(OR($K87="水上偵察機",$K87="水上爆撃機"),1,0)+IF(OR($K88="水上偵察機",$K88="水上爆撃機"),1,0)+IF(OR($K89="水上偵察機",$K89="水上爆撃機"),1,0) -> 0 | AS86: =IF($K86="爆雷",1,0)+IF($K87="爆雷",1,0)+IF($K88="爆雷",1,0)+IF($K89="爆雷",1,0) -> 0 | AT86: =IF($K86="ソナー",1,0)+IF($K87="ソナー",1,0)+IF($K88="ソナー",1,0)+IF($K89="ソナー",1,0) -> 0 | AU86: =IF(OR($K86="オートジャイロ",$K86="対潜哨戒機"),1,0)+IF(OR($K87="オートジャイロ",$K87="対潜哨戒機"),1,0)+IF(OR($K88="オートジャイロ",$K88="対潜哨戒機"),1,0)+IF(OR($K89="オートジャイロ",$K89="対潜哨戒機"),1,0) -> 0 | AV86: =IF($K86="艦上爆撃機",1,0)+IF($K87="艦上爆撃機",1,0)+IF($K88="艦上爆撃機",1,0)+IF($K89="艦上爆撃機",1,0) -> 0 | AW86: =IF($K86="艦上攻撃機",1,0)+IF($K87="艦上攻撃機",1,0)+IF($K88="艦上攻撃機",1,0)+IF($K89="艦上攻撃機",1,0) -> 0 | AX86: =IF($K86="大型飛行艇",1,0)+IF($K87="大型飛行艇",1,0)+IF($K88="大型飛行艇",1,0)+IF($K89="大型飛行艇",1,0) -> 0 | AY86: =IF($K86="水上爆撃機",1,0)+IF($K87="水上爆撃機",1,0)+IF($K88="水上爆撃機",1,0)+IF($K89="水上爆撃機",1,0) -> 0 | AZ86: =SUM(AV86:AY89) -> 0 | BA86: =SUM(AU86:AY89) -> 0 | BB86: =IF(AZ86>0,4,IF(BA86>0,3,2)) -> 2 | BC86: =IF(ISERROR(VLOOKUP(F86,antisubmarine_ex,1,FALSE)),E86,VLOOKUP(F86,antisubmarine_ex,2,FALSE)&"") -> 駆逐艦 | BD86: =IF(ISERROR(VLOOKUP(BC86,antisubmarine,BB86,FALSE)),0,VLOOKUP(BC86,antisubmarine,BB86,FALSE)) -> 13 | BE86: =IF(AND(AS86>0,AT86>0),1.15,1) -> 1 | BF86: =IF(H86="探照灯",1,0)+IF(H87="探照灯",1,0)+IF(H88="探照灯",1,0)+IF(H89="探照灯",1,0) -> 0 | BG86: =IF(H86="照明弾",1,0)+IF(H87="照明弾",1,0)+IF(H88="照明弾",1,0)+IF(H89="照明弾",1,0) -> 0 | BH86: =IF(H86="熟練見張員",1,0)+IF(H87="熟練見張員",1,0)+IF(H88="熟練見張員",1,0)+IF(H89="熟練見張員",1,0) -> 0 | BI86: =AA86+BH86*VLOOKUP("運",watcher,2,FALSE) -> 0 | BJ86: =IF(AP86>=2,"魚雷",IF(AH86+AI86+AJ86>=3,"主砲",IF(AND(AH86+AI86+AJ86=2,AL86>=1),"主砲副砲",IF(OR(AND(AH86+AI86+AJ86=1,AP86=1),AND(AH86+AI86+AJ86=2,AL86=0,AP86=1)),"主砲魚雷",0)))) -> 0 | BK86: =IF(AP86>=2,VLOOKUP("魚雷",luck_cap,2,FALSE),IF(AH86+AI86+AJ86>=3,VLOOKUP("主砲",luck_cap,2,FALSE),IF(AND(AH86+AI86+AJ86=2,AL86>=1),VLOOKUP("主砲副砲",luck_cap,2,FALSE),IF(OR(AND(AH86+AI86+AJ86=1,AP86=1),AND(AH86+AI86+AJ86=2,AL86=0,AP86=1)),VLOOKUP("主砲魚雷",luck_cap,2,FALSE),0)))) -> 0 | BL86: =IF(H86="ドラム缶",1,0)+IF(H87="ドラム缶",1,0)+IF(H88="ドラム缶",1,0)+IF(H89="ドラム缶",1,0) -> 0
B87: 敵制空合計 | C87: =SUM(C81:C86) -> 0 | G87: =IF(F86="",,VLOOKUP(F86,carrierlist,3,FALSE)&"") -> 0 | H87: 10cm高角砲＋高射装置 | J87: 10 | K87: 小口径主砲 | L87: 0 | P87: 4.16 | Q87: 6.16 | R87: 0 | S87: 0 | T87: =IF(ISERROR(VLOOKUP(H87,fighterlist,1,FALSE)),"",IF(OR(E86="装甲空母",E86="正規空母",E86="軽空母",E86="水上機母艦",E86="航空戦艦",E86="航空巡洋艦",E86="潜水空母"),IF(VLOOKUP(H87,fighterlist,11,FALSE)="艦上攻撃機",ROUNDDOWN(0.8*(R87*SQRT(G87)+25),0),IF(OR(VLOOKUP(H87,fighterlist,11,FALSE)="艦上爆撃機",VLOOKUP(H87,fighterlist,11,FALSE)="水上爆撃機"),ROUNDDOWN(1*(S87*SQRT(G87)+25),0),"")),"")) ->  | U87: =IF(OR(E86="装甲空母",E86="正規空母",E86="軽空母",E86="水上機母艦",E86="航空戦艦",E86="航空巡洋艦",E86="潜水空母"),IF(K87="艦上攻撃機",ROUNDDOWN(1.5*(R87*SQRT(G87)+25),0),IF(OR(K87="艦上爆撃機",K87="水上爆撃機"),ROUNDDOWN(1*(S87*SQRT(G87)+25),0),"")),"") ->  | AD87: 0 | AE87: 0
B88: 航空優勢 | C88: =ROUNDUP(C87*1.5,0) -> 0 | G88: =IF(F86="",,VLOOKUP(F86,carrierlist,4,FALSE)&"") -> 0 | H88: 22号対水上電探改四 | J88: 6 | K88: 小型電探 | L88: 0 | O88: 3 | P88: 10.44 | Q88: 0 | R88: 0 | S88: 0 | T88: =IF(ISERROR(VLOOKUP(H88,fighterlist,1,FALSE)),"",IF(OR(E86="装甲空母",E86="正規空母",E86="軽空母",E86="水上機母艦",E86="航空戦艦",E86="航空巡洋艦",E86="潜水空母"),IF(VLOOKUP(H88,fighterlist,11,FALSE)="艦上攻撃機",ROUNDDOWN(0.8*(R88*SQRT(G88)+25),0),IF(OR(VLOOKUP(H88,fighterlist,11,FALSE)="艦上爆撃機",VLOOKUP(H88,fighterlist,11,FALSE)="水上爆撃機"),ROUNDDOWN(1*(S88*SQRT(G88)+25),0),"")),"")) ->  | U88: =IF(OR(E86="装甲空母",E86="正規空母",E86="軽空母",E86="水上機母艦",E86="航空戦艦",E86="航空巡洋艦",E86="潜水空母"),IF(K88="艦上攻撃機",ROUNDDOWN(1.5*(R88*SQRT(G88)+25),0),IF(OR(K88="艦上爆撃機",K88="水上爆撃機"),ROUNDDOWN(1*(S88*SQRT(G88)+25),0),"")),"") ->  | AD88: 0 | AE88: 0
B89: 制空権確保 | C89: =C87*3 -> 0 | G89: =IF(F86="",,VLOOKUP(F86,carrierlist,5,FALSE)&"") ->  | L89: 0 | P89: 0 | Q89: 0 | R89: 0 | S89: 0 | T89: =IF(ISERROR(VLOOKUP(H89,fighterlist,1,FALSE)),"",IF(OR(E86="装甲空母",E86="正規空母",E86="軽空母",E86="水上機母艦",E86="航空戦艦",E86="航空巡洋艦",E86="潜水空母"),IF(VLOOKUP(H89,fighterlist,11,FALSE)="艦上攻撃機",ROUNDDOWN(0.8*(R89*SQRT(G89)+25),0),IF(OR(VLOOKUP(H89,fighterlist,11,FALSE)="艦上爆撃機",VLOOKUP(H89,fighterlist,11,FALSE)="水上爆撃機"),ROUNDDOWN(1*(S89*SQRT(G89)+25),0),"")),"")) ->  | U89: =IF(OR(E86="装甲空母",E86="正規空母",E86="軽空母",E86="水上機母艦",E86="航空戦艦",E86="航空巡洋艦",E86="潜水空母"),IF(K89="艦上攻撃機",ROUNDDOWN(1.5*(R89*SQRT(G89)+25),0),IF(OR(K89="艦上爆撃機",K89="水上爆撃機"),ROUNDDOWN(1*(S89*SQRT(G89)+25),0),"")),"") ->  | AD89: 0 | AE89: 0
E90: =IF(F90="","",VLOOKUP(F90,carrierlist,8,FALSE)&"") -> 駆逐艦 | F90: 長波改 | G90: =IF(F90="",,VLOOKUP(F90,carrierlist,2,FALSE)&"") -> 0 | H90: 10cm高角砲＋高射装置 | J90: 10 | K90: 小口径主砲 | L90: 0 | P90: 4.16 | Q90: 6.16 | R90: 0 | S90: 0 | T90: =IF(ISERROR(VLOOKUP(H90,fighterlist,1,FALSE)),"",IF(OR(E90="装甲空母",E90="正規空母",E90="軽空母",E90="水上機母艦",E90="航空戦艦",E90="航空巡洋艦",E90="潜水空母"),IF(VLOOKUP(H90,fighterlist,11,FALSE)="艦上攻撃機",ROUNDDOWN(0.8*(R90*SQRT(G90)+25),0),IF(OR(VLOOKUP(H90,fighterlist,11,FALSE)="艦上爆撃機",VLOOKUP(H90,fighterlist,11,FALSE)="水上爆撃機"),ROUNDDOWN(1*(S90*SQRT(G90)+25),0),"")),"")) ->  | U90: =IF(OR(E90="装甲空母",E90="正規空母",E90="軽空母",E90="水上機母艦",E90="航空戦艦",E90="航空巡洋艦",E90="潜水空母"),IF(K90="艦上攻撃機",ROUNDDOWN(1.5*(R90*SQRT(G90)+25),0),IF(OR(K90="艦上爆撃機",K90="水上爆撃機"),ROUNDDOWN(1*(S90*SQRT(G90)+25),0),"")),"") ->  | V90: =IF(OR(F90="",F90="[その他]",),"",IF(F90="","",IF(OR(E90="装甲空母",E90="正規空母",E90="軽空母"),IF(SUM(R90:R93)+SUM(S90:S93)=0,0,ROUNDDOWN(55+(VLOOKUP(F90,carrierlist,6,FALSE)+SUM(Q90:Q93))*1.5+SUM(R90:R93)*1.5+SUM(S90:S93)*2,0)),ROUNDDOWN(5+VLOOKUP(F90,carrierlist,6,FALSE)+SUM(Q90:Q93),0)))) -> 67 | W90: =IF(OR(E90="潜水艦",E90="潜水空母",E90="駆逐艦",E90="軽巡洋艦",E90="重雷装巡洋艦",E90="重巡洋艦",E90="航空巡洋艦",E90="水上機母艦"),ROUNDDOWN(5+VLOOKUP(F90,carrierlist,7,FALSE)+SUM(R90:R93),0),"") -> 85 | X90: =IF(OR(F90="",F90="[その他]",E90="装甲空母",E90="正規空母",E90="軽空母"),"",ROUNDDOWN(VLOOKUP(F90,carrierlist,6,FALSE)+VLOOKUP(F90,carrierlist,7,FALSE)+SUM(Q90:R93),0)) -> 142 | Y90: =IF(OR(AP90>=2,AK90>=3,AND(AK90=2,AL90>=1),AND(AK90>=1,AK90<=2,AP90>=1)),"カットイン",IF(OR(AND(AK90=2,AL90=0,AP90=0),AND(AK90=1,AL90>=1,AP90=0),AND(AK90=0,AL90>=2,AP90<=1)),"連撃","")) -> 連撃 | Z90: =IF(AP90>=2,ROUNDDOWN(X90*1.5,0)&"×2",IF(AH90>=3,X90*2,IF(AND(AH90=2,AL90>=1),ROUNDDOWN(X90*1.75,0),IF(AND(AH90>=1,AH90<=2,AP90>=1),ROUNDDOWN(X90*1.3,0)&"×2",IF(Y90="連撃",ROUNDDOWN(X90*1.2,0)&"×2",""))))) -> 170×2 | AB90: =IF(Y90="連撃",0.99,IF(Y90="",0,SQRT(VLOOKUP(BJ90,ci_coefficient,2,FALSE)*IF(BI90>BK90,BK90,BI90))*0.01+0.05*IF(BF94>=1,1,0)+0.05*IF(BG94>=1,1-(0.5)^BG94,0))) -> 0.99 | AD90: 0 | AE90: 0 | AF90: =IF(BD90=0,"",ROUNDDOWN((SQRT(AC90)*2+SUM(AE90:AE93)*1.5+SUM(AD90:AD93)+BD90)*BE90,1)) -> 13 | AH90: =IF($K90="大口径主砲",1,0)+IF($K91="大口径主砲",1,0)+IF($K92="大口径主砲",1,0)+IF($K93="大口径主砲",1,0) -> 0 | AI90: =IF($K90="中口径主砲",1,0)+IF($K91="中口径主砲",1,0)+IF($K92="中口径主砲",1,0)+IF($K93="中口径主砲",1,0) -> 0 | AJ90: =IF($K90="小口径主砲",1,0)+IF($K91="小口径主砲",1,0)+IF($K92="小口径主砲",1,0)+IF($K93="小口径主砲",1,0) -> 2 | AK90: =AH90+AI90+AJ90 -> 2 | AL90: =IF($K90="副砲",1,0)+IF($K91="副砲",1,0)+IF($K92="副砲",1,0)+IF($K93="副砲",1,0) -> 0 | AM90: =IF($K90="大型電探",1,0)+IF($K91="大型電探",1,0)+IF($K92="大型電探",1,0)+IF($K93="大型電探",1,0) -> 0 | AN90: =IF($K90="小型電探",1,0)+IF($K91="小型電探",1,0)+IF($K92="小型電探",1,0)+IF($K93="小型電探",1,0) -> 1 | AO90: =AM90+AN90 -> 1 | AP90: =IF($K90="魚雷",1,0)+IF($K91="魚雷",1,0)+IF($K92="魚雷",1,0)+IF($K93="魚雷",1,0) -> 0 | AQ90: =IF($K90="対艦強化弾",1,0)+IF($K91="対艦強化弾",1,0)+IF($K92="対艦強化弾",1,0)+IF($K93="対艦強化弾",1,0) -> 0 | AR90: =IF(OR($K90="水上偵察機",$K90="水上爆撃機"),1,0)+IF(OR($K91="水上偵察機",$K91="水上爆撃機"),1,0)+IF(OR($K92="水上偵察機",$K92="水上爆撃機"),1,0)+IF(OR($K93="水上偵察機",$K93="水上爆撃機"),1,0) -> 0 | AS90: =IF($K90="爆雷",1,0)+IF($K91="爆雷",1,0)+IF($K92="爆雷",1,0)+IF($K93="爆雷",1,0) -> 0 | AT90: =IF($K90="ソナー",1,0)+IF($K91="ソナー",1,0)+IF($K92="ソナー",1,0)+IF($K93="ソナー",1,0) -> 0 | AU90: =IF(OR($K90="オートジャイロ",$K90="対潜哨戒機"),1,0)+IF(OR($K91="オートジャイロ",$K91="対潜哨戒機"),1,0)+IF(OR($K92="オートジャイロ",$K92="対潜哨戒機"),1,0)+IF(OR($K93="オートジャイロ",$K93="対潜哨戒機"),1,0) -> 0 | AV90: =IF($K90="艦上爆撃機",1,0)+IF($K91="艦上爆撃機",1,0)+IF($K92="艦上爆撃機",1,0)+IF($K93="艦上爆撃機",1,0) -> 0 | AW90: =IF($K90="艦上攻撃機",1,0)+IF($K91="艦上攻撃機",1,0)+IF($K92="艦上攻撃機",1,0)+IF($K93="艦上攻撃機",1,0) -> 0 | AX90: =IF($K90="大型飛行艇",1,0)+IF($K91="大型飛行艇",1,0)+IF($K92="大型飛行艇",1,0)+IF($K93="大型飛行艇",1,0) -> 0 | AY90: =IF($K90="水上爆撃機",1,0)+IF($K91="水上爆撃機",1,0)+IF($K92="水上爆撃機",1,0)+IF($K93="水上爆撃機",1,0) -> 0 | AZ90: =SUM(AV90:AY93) -> 0 | BA90: =SUM(AU90:AY93) -> 0 | BB90: =IF(AZ90>0,4,IF(BA90>0,3,2)) -> 2 | BC90: =IF(ISERROR(VLOOKUP(F90,antisubmarine_ex,1,FALSE)),E90,VLOOKUP(F90,antisubmarine_ex,2,FALSE)&"") -> 駆逐艦 | BD90: =IF(ISERROR(VLOOKUP(BC90,antisubmarine,BB90,FALSE)),0,VLOOKUP(BC90,antisubmarine,BB90,FALSE)) -> 13 | BE90: =IF(AND(AS90>0,AT90>0),1.15,1) -> 1 | BF90: =IF(H90="探照灯",1,0)+IF(H91="探照灯",1,0)+IF(H92="探照灯",1,0)+IF(H93="探照灯",1,0) -> 0 | BG90: =IF(H90="照明弾",1,0)+IF(H91="照明弾",1,0)+IF(H92="照明弾",1,0)+IF(H93="照明弾",1,0) -> 0 | BH90: =IF(H90="熟練見張員",1,0)+IF(H91="熟練見張員",1,0)+IF(H92="熟練見張員",1,0)+IF(H93="熟練見張員",1,0) -> 0 | BI90: =AA90+BH90*VLOOKUP("運",watcher,2,FALSE) -> 0 | BJ90: =IF(AP90>=2,"魚雷",IF(AH90+AI90+AJ90>=3,"主砲",IF(AND(AH90+AI90+AJ90=2,AL90>=1),"主砲副砲",IF(OR(AND(AH90+AI90+AJ90=1,AP90=1),AND(AH90+AI90+AJ90=2,AL90=0,AP90=1)),"主砲魚雷",0)))) -> 0 | BK90: =IF(AP90>=2,VLOOKUP("魚雷",luck_cap,2,FALSE),IF(AH90+AI90+AJ90>=3,VLOOKUP("主砲",luck_cap,2,FALSE),IF(AND(AH90+AI90+AJ90=2,AL90>=1),VLOOKUP("主砲副砲",luck_cap,2,FALSE),IF(OR(AND(AH90+AI90+AJ90=1,AP90=1),AND(AH90+AI90+AJ90=2,AL90=0,AP90=1)),VLOOKUP("主砲魚雷",luck_cap,2,FALSE),0)))) -> 0 | BL90: =IF(H90="ドラム缶",1,0)+IF(H91="ドラム缶",1,0)+IF(H92="ドラム缶",1,0)+IF(H93="ドラム缶",1,0) -> 0
B91: 要求索敵値 | G91: =IF(F90="",,VLOOKUP(F90,carrierlist,3,FALSE)&"") -> 0 | H91: 10cm高角砲＋高射装置 | J91: 10 | K91: 小口径主砲 | L91: 0 | P91: 4.16 | Q91: 6.16 | R91: 0 | S91: 0 | T91: =IF(ISERROR(VLOOKUP(H91,fighterlist,1,FALSE)),"",IF(OR(E90="装甲空母",E90="正規空母",E90="軽空母",E90="水上機母艦",E90="航空戦艦",E90="航空巡洋艦",E90="潜水空母"),IF(VLOOKUP(H91,fighterlist,11,FALSE)="艦上攻撃機",ROUNDDOWN(0.8*(R91*SQRT(G91)+25),0),IF(OR(VLOOKUP(H91,fighterlist,11,FALSE)="艦上爆撃機",VLOOKUP(H91,fighterlist,11,FALSE)="水上爆撃機"),ROUNDDOWN(1*(S91*SQRT(G91)+25),0),"")),"")) ->  | U91: =IF(OR(E90="装甲空母",E90="正規空母",E90="軽空母",E90="水上機母艦",E90="航空戦艦",E90="航空巡洋艦",E90="潜水空母"),IF(K91="艦上攻撃機",ROUNDDOWN(1.5*(R91*SQRT(G91)+25),0),IF(OR(K91="艦上爆撃機",K91="水上爆撃機"),ROUNDDOWN(1*(S91*SQRT(G91)+25),0),"")),"") ->  | AD91: 0 | AE91: 0
G92: =IF(F90="",,VLOOKUP(F90,carrierlist,4,FALSE)&"") -> 0 | H92: 22号対水上電探改四 | J92: 6 | K92: 小型電探 | L92: 0 | O92: 3 | P92: 10.44 | Q92: 0 | R92: 0 | S92: 0 | T92: =IF(ISERROR(VLOOKUP(H92,fighterlist,1,FALSE)),"",IF(OR(E90="装甲空母",E90="正規空母",E90="軽空母",E90="水上機母艦",E90="航空戦艦",E90="航空巡洋艦",E90="潜水空母"),IF(VLOOKUP(H92,fighterlist,11,FALSE)="艦上攻撃機",ROUNDDOWN(0.8*(R92*SQRT(G92)+25),0),IF(OR(VLOOKUP(H92,fighterlist,11,FALSE)="艦上爆撃機",VLOOKUP(H92,fighterlist,11,FALSE)="水上爆撃機"),ROUNDDOWN(1*(S92*SQRT(G92)+25),0),"")),"")) ->  | U92: =IF(OR(E90="装甲空母",E90="正規空母",E90="軽空母",E90="水上機母艦",E90="航空戦艦",E90="航空巡洋艦",E90="潜水空母"),IF(K92="艦上攻撃機",ROUNDDOWN(1.5*(R92*SQRT(G92)+25),0),IF(OR(K92="艦上爆撃機",K92="水上爆撃機"),ROUNDDOWN(1*(S92*SQRT(G92)+25),0),"")),"") ->  | AD92: 0 | AE92: 0
G93: =IF(F90="",,VLOOKUP(F90,carrierlist,5,FALSE)&"") ->  | L93: 0 | P93: 0 | Q93: 0 | R93: 0 | S93: 0 | T93: =IF(ISERROR(VLOOKUP(H93,fighterlist,1,FALSE)),"",IF(OR(E90="装甲空母",E90="正規空母",E90="軽空母",E90="水上機母艦",E90="航空戦艦",E90="航空巡洋艦",E90="潜水空母"),IF(VLOOKUP(H93,fighterlist,11,FALSE)="艦上攻撃機",ROUNDDOWN(0.8*(R93*SQRT(G93)+25),0),IF(OR(VLOOKUP(H93,fighterlist,11,FALSE)="艦上爆撃機",VLOOKUP(H93,fighterlist,11,FALSE)="水上爆撃機"),ROUNDDOWN(1*(S93*SQRT(G93)+25),0),"")),"")) ->  | U93: =IF(OR(E90="装甲空母",E90="正規空母",E90="軽空母",E90="水上機母艦",E90="航空戦艦",E90="航空巡洋艦",E90="潜水空母"),IF(K93="艦上攻撃機",ROUNDDOWN(1.5*(R93*SQRT(G93)+25),0),IF(OR(K93="艦上爆撃機",K93="水上爆撃機"),ROUNDDOWN(1*(S93*SQRT(G93)+25),0),"")),"") ->  | AD93: 0 | AE93: 0
E94: 制空合計 | L94: =ROUNDDOWN(SUM(L70:L93),1) -> 15.8 | M94: 総索敵値 | O94: =ROUNDDOWN(1.69*(SQRT(M70)+SQRT(M74)+SQRT(M78)+SQRT(M82)+SQRT(M86)+SQRT(M90))+SUM(O70:O93)-($G$2*0.61),2) -> -37.6 | AH94: 積載艦数 | BF94: =IF(BF70>0,1,0)+IF(BF74>0,1,0)+IF(BF78>0,1,0)+IF(BF82>0,1,0)+IF(BF86>0,1,0)+IF(BF90>0,1,0) -> 0 | BG94: =IF(BG70>0,1,0)+IF(BG74>0,1,0)+IF(BG78>0,1,0)+IF(BG82>0,1,0)+IF(BG86>0,1,0)+IF(BG90>0,1,0) -> 0 | BL94: =IF(BL70>0,1,0)+IF(BL74>0,1,0)+IF(BL78>0,1,0)+IF(BL82>0,1,0)+IF(BL86>0,1,0)+IF(BL90>0,1,0) -> 0
E95: =IF(AND(OR(C75=0,C75=""),SUM(AV70:AY93)=0),"航空均衡",IF(L94>=C75*3,"制空権確保",IF(L94>=C75*1.5,"航空優勢",IF(L94>=C75*2/3,"航空均衡",IF(L94>=C75*1/3,"航空劣勢","制空権喪失"))))) -> 制空権確保 | M95: 索敵要求比 | O95: =IF(C79="","",O94/C79) ->  | AH95: 合計積載数 | BL95: =SUM(BL70:BL93) -> 0
B97: 1-4
B98: 敵編成 | E98: 味方編成
B99: 艦種 | C99: 制空値 | E99: 艦種 | F99: 艦名 | G99: 装備スロット | L99: 制空値 | M99: 索敵 | P99: その他変動 | T99: 航空戦攻撃力 | V99: 昼戦 | X99: 夜戦 | AC99: 対潜 | AH99: 装備カウント
B100: 空母ヲ級 | C100: =IF(B100="","",VLOOKUP(B100,enemyforcelist,2,FALSE)) -> 10 | G100: 積載 | H100: 装備 | J100: ★ | K100: 分類 | M100: 基礎 | N100: 基礎+ | O100: 装備 | P100: 命中 | Q100: 火力 | R100: 雷装 | S100: 爆装 | T100: 弱攻撃 | U100: 強攻撃 | V100: 砲撃 | W100: 雷撃 | X100: 攻撃 | Y100: 特分類 | Z100: 特攻撃 | AA100: 運 | AB100: 特発動 | AC100: 基礎 | AD100: + | AE100: 装備 | AF100: 攻撃力 | AH100: 大口径主砲 | AI100: 中口径主砲 | AJ100: 小口径主砲 | AK100: 主砲合計 | AL100: 副砲 | AM100: 大型電探 | AN100: 小型電探 | AO100: 電探合計 | AP100: 魚雷 | AQ100: 徹甲弾 | AR100: 索敵機 | AS100: 爆雷 | AT100: ソナー | AU100: 対潜機 | AV100: 艦爆 | AW100: 艦攻 | AX100: 大型飛行艇 | AY100: 水上爆撃機 | AZ100: 軽空母対潜可 | BA100: 航空艦対潜可 | BB100: 対潜種別 | BC100: 対潜艦種 | BD100: 対潜定数 | BE100: 対潜シナジー | BF100: 探照灯 | BG100: 照明弾 | BH100: 見張員 | BI100: 運 | BJ100: CI分類 | BK100: 運上限 | BL100: ドラム缶
B101: 空母ヲ級 | C101: 10 | E101: =IF(F101="","",VLOOKUP(F101,carrierlist,8,FALSE)&"") -> 軽巡洋艦 | F101: 阿武隈改二 | G101: =IF(F101="",,VLOOKUP(F101,carrierlist,2,FALSE)&"") -> 1 | H101: 試製61cm六連装(酸素)魚雷 | J101: 10 | K101: =IF(ISERROR(VLOOKUP(H101,fighterlist,1,FALSE)),"",VLOOKUP(H101,fighterlist,11,FALSE)&"") -> 魚雷 | L101: =IF(OR(H101="",G101="",G101=0,ISERROR(VLOOKUP(H101,fighterlist,1,FALSE))),0,SQRT(G101)*IF(H101="","",VLOOKUP(H101,fighterlist,3,FALSE)+IF(J101>0,J101*VLOOKUP(K101,customlist,10,FALSE),0))+IF(I101=7,IF(ISERROR(VLOOKUP(K101,superior_skill,2,FALSE)),0,VLOOKUP(K101,superior_skill,2,FALSE)),0)) -> 0 | M101: 60 | N101: =IF(ISERROR(VLOOKUP(H101,fighterlist,1,FALSE)),"",IF(VLOOKUP(H101,fighterlist,5,FALSE)=0,VLOOKUP(H101,fighterlist,4,FALSE),"")) ->  | O101: =IF(ISERROR(VLOOKUP(H101,fighterlist,1,FALSE)),"",VLOOKUP(H101,fighterlist,5,FALSE)) ->  | P101: =IF(ISERROR(VLOOKUP(H101,fighterlist,1,FALSE)),0,VLOOKUP(H101,fighterlist,6,FALSE)+ROUNDDOWN(SQRT(J101*VLOOKUP(K101,customlist,7,FALSE)),2)) -> 2 | Q101: =IF(ISERROR(VLOOKUP(H101,fighterlist,1,FALSE)),0,VLOOKUP(H101,fighterlist,7,FALSE)+ROUNDDOWN(SQRT(J101*VLOOKUP(K101,customlist,2,FALSE)),2)) -> 0 | R101: =IF(ISERROR(VLOOKUP(H101,fighterlist,1,FALSE)),0,VLOOKUP(H101,fighterlist,8,FALSE)+ROUNDDOWN(SQRT(J101*VLOOKUP(K101,customlist,3,FALSE)),2)) -> 17.79 | S101: =IF(ISERROR(VLOOKUP(H101,fighterlist,1,FALSE)),0,VLOOKUP(H101,fighterlist,9,FALSE)+ROUNDDOWN(J101*VLOOKUP(K101,customlist,4,FALSE),1)) -> 0 | T101: =IF(ISERROR(VLOOKUP(H101,fighterlist,1,FALSE)),"",IF(OR(E101="装甲空母",E101="正規空母",E101="軽空母",E101="水上機母艦",E101="航空戦艦",E101="航空巡洋艦",E101="潜水空母"),IF(VLOOKUP(H101,fighterlist,11,FALSE)="艦上攻撃機",ROUNDDOWN(0.8*(R101*SQRT(G101)+25),0),IF(OR(VLOOKUP(H101,fighterlist,11,FALSE)="艦上爆撃機",VLOOKUP(H101,fighterlist,11,FALSE)="水上爆撃機"),ROUNDDOWN(1*(S101*SQRT(G101)+25),0),"")),"")) ->  | U101: =IF(OR(E101="装甲空母",E101="正規空母",E101="軽空母",E101="水上機母艦",E101="航空戦艦",E101="航空巡洋艦",E101="潜水空母"),IF(K101="艦上攻撃機",ROUNDDOWN(1.5*(R101*SQRT(G101)+25),0),IF(OR(K101="艦上爆撃機",K101="水上爆撃機"),ROUNDDOWN(1*(S101*SQRT(G101)+25),0),"")),"") ->  | V101: =IF(OR(F101="",F101="[その他]",),"",IF(F101="","",IF(OR(E101="装甲空母",E101="正規空母",E101="軽空母"),IF(SUM(R101:R104)+SUM(S101:S104)=0,0,ROUNDDOWN(55+(VLOOKUP(F101,carrierlist,6,FALSE)+SUM(Q101:Q104))*1.5+SUM(R101:R104)*1.5+SUM(S101:S104)*2,0)),ROUNDDOWN(5+VLOOKUP(F101,carrierlist,6,FALSE)+SUM(Q101:Q104),0)))) -> 61 | W101: =IF(OR(E101="潜水艦",E101="潜水空母",E101="駆逐艦",E101="軽巡洋艦",E101="重雷装巡洋艦",E101="重巡洋艦",E101="航空巡洋艦",E101="水上機母艦"),ROUNDDOWN(5+VLOOKUP(F101,carrierlist,7,FALSE)+SUM(R101:R104),0),"") -> 146 | X101: =IF(OR(F101="",F101="[その他]",E101="装甲空母",E101="正規空母",E101="軽空母"),"",ROUNDDOWN(VLOOKUP(F101,carrierlist,6,FALSE)+VLOOKUP(F101,carrierlist,7,FALSE)+SUM(Q101:R104),0)) -> 197 | Y101: =IF(OR(AP101>=2,AK101>=3,AND(AK101=2,AL101>=1),AND(AK101>=1,AK101<=2,AP101>=1)),"カットイン",IF(OR(AND(AK101=2,AL101=0,AP101=0),AND(AK101=1,AL101>=1,AP101=0),AND(AK101=0,AL101>=2,AP101<=1)),"連撃","")) -> カットイン | Z101: =IF(AP101>=2,ROUNDDOWN(X101*1.5,0)&"×2",IF(AH101>=3,X101*2,IF(AND(AH101=2,AL101>=1),ROUNDDOWN(X101*1.75,0),IF(AND(AH101>=1,AH101<=2,AP101>=1),ROUNDDOWN(X101*1.3,0)&"×2",IF(Y101="連撃",ROUNDDOWN(X101*1.2,0)&"×2",""))))) -> 295×2 | AB101: =IF(Y101="連撃",0.99,IF(Y101="",0,SQRT(VLOOKUP(BJ101,ci_coefficient,2,FALSE)*IF(BI101>BK101,BK101,BI101))*0.01+0.125+0.05*IF(BF125>=1,1,0)+0.05*IF(BG125>=1,1-(0.5)^BG125,0))) -> 0.125 | AD101: =IF(ISERROR(VLOOKUP(K101,customlist,1,FALSE)),0,SQRT(J101*VLOOKUP(K101,customlist,5,FALSE))) -> 0 | AE101: =IF(ISERROR(VLOOKUP(H101,fighterlist,1,FALSE)),0,IF(ISERROR(VLOOKUP(K101,antisubmarine_flag,1,FALSE)),0,VLOOKUP(K101,antisubmarine_flag,2,FALSE)*VLOOKUP(H101,fighterlist,10,FALSE))) -> 0 | AF101: =IF(BD101=0,"",ROUNDDOWN((SQRT(AC101)*2+SUM(AE101:AE104)*1.5+SUM(AD101:AD104)+BD101)*BE101,1)) -> 13 | AH101: =IF($K101="大口径主砲",1,0)+IF($K102="大口径主砲",1,0)+IF($K103="大口径主砲",1,0)+IF($K104="大口径主砲",1,0) -> 0 | AI101: =IF($K101="中口径主砲",1,0)+IF($K102="中口径主砲",1,0)+IF($K103="中口径主砲",1,0)+IF($K104="中口径主砲",1,0) -> 0 | AJ101: =IF($K101="小口径主砲",1,0)+IF($K102="小口径主砲",1,0)+IF($K103="小口径主砲",1,0)+IF($K104="小口径主砲",1,0) -> 0 | AK101: =AH101+AI101+AJ101 -> 0 | AL101: =IF($K101="副砲",1,0)+IF($K102="副砲",1,0)+IF($K103="副砲",1,0)+IF($K104="副砲",1,0) -> 0 | AM101: =IF($K101="大型電探",1,0)+IF($K102="大型電探",1,0)+IF($K103="大型電探",1,0)+IF($K104="大型電探",1,0) -> 0 | AN101: =IF($K101="小型電探",1,0)+IF($K102="小型電探",1,0)+IF($K103="小型電探",1,0)+IF($K104="小型電探",1,0) -> 0 | AO101: =AM101+AN101 -> 0 | AP101: =IF($K101="魚雷",1,0)+IF($K102="魚雷",1,0)+IF($K103="魚雷",1,0)+IF($K104="魚雷",1,0) -> 2 | AQ101: =IF($K101="対艦強化弾",1,0)+IF($K102="対艦強化弾",1,0)+IF($K103="対艦強化弾",1,0)+IF($K104="対艦強化弾",1,0) -> 0 | AR101: =IF(OR($K101="水上偵察機",$K101="水上爆撃機"),1,0)+IF(OR($K102="水上偵察機",$K102="水上爆撃機"),1,0)+IF(OR($K103="水上偵察機",$K103="水上爆撃機"),1,0)+IF(OR($K104="水上偵察機",$K104="水上爆撃機"),1,0) -> 0 | AS101: =IF($K101="爆雷",1,0)+IF($K102="爆雷",1,0)+IF($K103="爆雷",1,0)+IF($K104="爆雷",1,0) -> 0 | AT101: =IF($K101="ソナー",1,0)+IF($K102="ソナー",1,0)+IF($K103="ソナー",1,0)+IF($K104="ソナー",1,0) -> 0 | AU101: =IF(OR($K101="オートジャイロ",$K101="対潜哨戒機"),1,0)+IF(OR($K102="オートジャイロ",$K102="対潜哨戒機"),1,0)+IF(OR($K103="オートジャイロ",$K103="対潜哨戒機"),1,0)+IF(OR($K104="オートジャイロ",$K104="対潜哨戒機"),1,0) -> 0 | AV101: =IF($K101="艦上爆撃機",1,0)+IF($K102="艦上爆撃機",1,0)+IF($K103="艦上爆撃機",1,0)+IF($K104="艦上爆撃機",1,0) -> 0 | AW101: =IF($K101="艦上攻撃機",1,0)+IF($K102="艦上攻撃機",1,0)+IF($K103="艦上攻撃機",1,0)+IF($K104="艦上攻撃機",1,0) -> 0 | AX101: =IF($K101="大型飛行艇",1,0)+IF($K102="大型飛行艇",1,0)+IF($K103="大型飛行艇",1,0)+IF($K104="大型飛行艇",1,0) -> 0 | AY101: =IF($K101="水上爆撃機",1,0)+IF($K102="水上爆撃機",1,0)+IF($K103="水上爆撃機",1,0)+IF($K104="水上爆撃機",1,0) -> 0 | AZ101: =SUM(AV101:AY104) -> 0 | BA101: =SUM(AU101:AY104) -> 0 | BB101: =IF(AZ101>0,4,IF(BA101>0,3,2)) -> 2 | BC101: =IF(ISERROR(VLOOKUP(F101,antisubmarine_ex,1,FALSE)),E101,VLOOKUP(F101,antisubmarine_ex,2,FALSE)&"") -> 軽巡洋艦 | BD101: =IF(ISERROR(VLOOKUP(BC101,antisubmarine,BB101,FALSE)),0,VLOOKUP(BC101,antisubmarine,BB101,FALSE)) -> 13 | BE101: =IF(AND(AS101>0,AT101>0),1.15,1) -> 1 | BF101: =IF(H101="探照灯",1,0)+IF(H102="探照灯",1,0)+IF(H103="探照灯",1,0)+IF(H104="探照灯",1,0) -> 0 | BG101: =IF(H101="照明弾",1,0)+IF(H102="照明弾",1,0)+IF(H103="照明弾",1,0)+IF(H104="照明弾",1,0) -> 0 | BH101: =IF(H101="熟練見張員",1,0)+IF(H102="熟練見張員",1,0)+IF(H103="熟練見張員",1,0)+IF(H104="熟練見張員",1,0) -> 0 | BI101: =AA101+BH101*VLOOKUP("運",watcher,2,FALSE) -> 0 | BJ101: =IF(AP101>=2,"魚雷",IF(AH101+AI101+AJ101>=3,"主砲",IF(AND(AH101+AI101+AJ101=2,AL101>=1),"主砲副砲",IF(OR(AND(AH101+AI101+AJ101=1,AP101=1),AND(AH101+AI101+AJ101=2,AL101=0,AP101=1)),"主砲魚雷",0)))) -> 魚雷 | BK101: =IF(AP101>=2,VLOOKUP("魚雷",luck_cap,2,FALSE),IF(AH101+AI101+AJ101>=3,VLOOKUP("主砲",luck_cap,2,FALSE),IF(AND(AH101+AI101+AJ101=2,AL101>=1),VLOOKUP("主砲副砲",luck_cap,2,FALSE),IF(OR(AND(AH101+AI101+AJ101=1,AP101=1),AND(AH101+AI101+AJ101=2,AL101=0,AP101=1)),VLOOKUP("主砲魚雷",luck_cap,2,FALSE),0)))) -> 60 | BL101: =IF(H101="ドラム缶",1,0)+IF(H102="ドラム缶",1,0)+IF(H103="ドラム缶",1,0)+IF(H104="ドラム缶",1,0) -> 0
B102: 軽空母ヌ級 | C102: 8 | G102: =IF(F101="",,VLOOKUP(F101,carrierlist,3,FALSE)&"") -> 1 | H102: 試製61cm六連装(酸素)魚雷 | J102: 10 | K102: 魚雷 | L102: 0 | P102: 2 | Q102: 0 | R102: 17.79 | S102: 0 | T102: =IF(ISERROR(VLOOKUP(H102,fighterlist,1,FALSE)),"",IF(OR(E101="装甲空母",E101="正規空母",E101="軽空母",E101="水上機母艦",E101="航空戦艦",E101="航空巡洋艦",E101="潜水空母"),IF(VLOOKUP(H102,fighterlist,11,FALSE)="艦上攻撃機",ROUNDDOWN(0.8*(R102*SQRT(G102)+25),0),IF(OR(VLOOKUP(H102,fighterlist,11,FALSE)="艦上爆撃機",VLOOKUP(H102,fighterlist,11,FALSE)="水上爆撃機"),ROUNDDOWN(1*(S102*SQRT(G102)+25),0),"")),"")) ->  | U102: =IF(OR(E101="装甲空母",E101="正規空母",E101="軽空母",E101="水上機母艦",E101="航空戦艦",E101="航空巡洋艦",E101="潜水空母"),IF(K102="艦上攻撃機",ROUNDDOWN(1.5*(R102*SQRT(G102)+25),0),IF(OR(K102="艦上爆撃機",K102="水上爆撃機"),ROUNDDOWN(1*(S102*SQRT(G102)+25),0),"")),"") ->  | AD102: 0 | AE102: 0
B103: [艦載機なし] | C103: 0 | G103: =IF(F101="",,VLOOKUP(F101,carrierlist,4,FALSE)&"") -> 1 | H103: 甲標的 甲 | K103: 特殊潜航艇 | L103: 0 | P103: 0 | Q103: 0 | R103: 12 | S103: 0 | T103: =IF(ISERROR(VLOOKUP(H103,fighterlist,1,FALSE)),"",IF(OR(E101="装甲空母",E101="正規空母",E101="軽空母",E101="水上機母艦",E101="航空戦艦",E101="航空巡洋艦",E101="潜水空母"),IF(VLOOKUP(H103,fighterlist,11,FALSE)="艦上攻撃機",ROUNDDOWN(0.8*(R103*SQRT(G103)+25),0),IF(OR(VLOOKUP(H103,fighterlist,11,FALSE)="艦上爆撃機",VLOOKUP(H103,fighterlist,11,FALSE)="水上爆撃機"),ROUNDDOWN(1*(S103*SQRT(G103)+25),0),"")),"")) ->  | U103: =IF(OR(E101="装甲空母",E101="正規空母",E101="軽空母",E101="水上機母艦",E101="航空戦艦",E101="航空巡洋艦",E101="潜水空母"),IF(K103="艦上攻撃機",ROUNDDOWN(1.5*(R103*SQRT(G103)+25),0),IF(OR(K103="艦上爆撃機",K103="水上爆撃機"),ROUNDDOWN(1*(S103*SQRT(G103)+25),0),"")),"") ->  | AD103: 0 | AE103: 0
B104: [艦載機なし] | C104: 0 | G104: =IF(F101="",,VLOOKUP(F101,carrierlist,5,FALSE)&"") ->  | L104: 0 | P104: 0 | Q104: 0 | R104: 0 | S104: 0 | T104: =IF(ISERROR(VLOOKUP(H104,fighterlist,1,FALSE)),"",IF(OR(E101="装甲空母",E101="正規空母",E101="軽空母",E101="水上機母艦",E101="航空戦艦",E101="航空巡洋艦",E101="潜水空母"),IF(VLOOKUP(H104,fighterlist,11,FALSE)="艦上攻撃機",ROUNDDOWN(0.8*(R104*SQRT(G104)+25),0),IF(OR(VLOOKUP(H104,fighterlist,11,FALSE)="艦上爆撃機",VLOOKUP(H104,fighterlist,11,FALSE)="水上爆撃機"),ROUNDDOWN(1*(S104*SQRT(G104)+25),0),"")),"")) ->  | U104: =IF(OR(E101="装甲空母",E101="正規空母",E101="軽空母",E101="水上機母艦",E101="航空戦艦",E101="航空巡洋艦",E101="潜水空母"),IF(K104="艦上攻撃機",ROUNDDOWN(1.5*(R104*SQRT(G104)+25),0),IF(OR(K104="艦上爆撃機",K104="水上爆撃機"),ROUNDDOWN(1*(S104*SQRT(G104)+25),0),"")),"") ->  | AD104: 0 | AE104: 0
B105: [艦載機なし] | C105: 0 | E105: =IF(F105="","",VLOOKUP(F105,carrierlist,8,FALSE)&"") -> 軽巡洋艦 | F105: 由良改二 | G105: =IF(F105="",,VLOOKUP(F105,carrierlist,2,FALSE)&"") -> 1 | H105: 二式水戦改(熟練) | I105: 7 | J105: 10 | K105: 水上戦闘機 | L105: 32.16227766 | M105: 60 | O105: 0.6 | P105: 1 | Q105: 0 | R105: 0 | S105: 0 | T105: =IF(ISERROR(VLOOKUP(H105,fighterlist,1,FALSE)),"",IF(OR(E105="装甲空母",E105="正規空母",E105="軽空母",E105="水上機母艦",E105="航空戦艦",E105="航空巡洋艦",E105="潜水空母"),IF(VLOOKUP(H105,fighterlist,11,FALSE)="艦上攻撃機",ROUNDDOWN(0.8*(R105*SQRT(G105)+25),0),IF(OR(VLOOKUP(H105,fighterlist,11,FALSE)="艦上爆撃機",VLOOKUP(H105,fighterlist,11,FALSE)="水上爆撃機"),ROUNDDOWN(1*(S105*SQRT(G105)+25),0),"")),"")) ->  | U105: =IF(OR(E105="装甲空母",E105="正規空母",E105="軽空母",E105="水上機母艦",E105="航空戦艦",E105="航空巡洋艦",E105="潜水空母"),IF(K105="艦上攻撃機",ROUNDDOWN(1.5*(R105*SQRT(G105)+25),0),IF(OR(K105="艦上爆撃機",K105="水上爆撃機"),ROUNDDOWN(1*(S105*SQRT(G105)+25),0),"")),"") ->  | V105: =IF(OR(F105="",F105="[その他]",),"",IF(F105="","",IF(OR(E105="装甲空母",E105="正規空母",E105="軽空母"),IF(SUM(R105:R108)+SUM(S105:S108)=0,0,ROUNDDOWN(55+(VLOOKUP(F105,carrierlist,6,FALSE)+SUM(Q105:Q108))*1.5+SUM(R105:R108)*1.5+SUM(S105:S108)*2,0)),ROUNDDOWN(5+VLOOKUP(F105,carrierlist,6,FALSE)+SUM(Q105:Q108),0)))) -> 58 | W105: =IF(OR(E105="潜水艦",E105="潜水空母",E105="駆逐艦",E105="軽巡洋艦",E105="重雷装巡洋艦",E105="重巡洋艦",E105="航空巡洋艦",E105="水上機母艦"),ROUNDDOWN(5+VLOOKUP(F105,carrierlist,7,FALSE)+SUM(R105:R108),0),"") -> 97 | X105: =IF(OR(F105="",F105="[その他]",E105="装甲空母",E105="正規空母",E105="軽空母"),"",ROUNDDOWN(VLOOKUP(F105,carrierlist,6,FALSE)+VLOOKUP(F105,carrierlist,7,FALSE)+SUM(Q105:R108),0)) -> 145 | Y105: =IF(OR(AP105>=2,AK105>=3,AND(AK105=2,AL105>=1),AND(AK105>=1,AK105<=2,AP105>=1)),"カットイン",IF(OR(AND(AK105=2,AL105=0,AP105=0),AND(AK105=1,AL105>=1,AP105=0),AND(AK105=0,AL105>=2,AP105<=1)),"連撃","")) ->  | Z105: =IF(AP105>=2,ROUNDDOWN(X105*1.5,0)&"×2",IF(AH105>=3,X105*2,IF(AND(AH105=2,AL105>=1),ROUNDDOWN(X105*1.75,0),IF(AND(AH105>=1,AH105<=2,AP105>=1),ROUNDDOWN(X105*1.3,0)&"×2",IF(Y105="連撃",ROUNDDOWN(X105*1.2,0)&"×2",""))))) ->  | AB105: =IF(Y105="連撃",0.99,IF(Y105="",0,SQRT(VLOOKUP(BJ105,ci_coefficient,2,FALSE)*IF(BI105>BK105,BK105,BI105))*0.01+0.05*IF(BF125>=1,1,0)+0.05*IF(BG125>=1,1-(0.5)^BG125,0))) -> 0 | AD105: 0 | AE105: 0 | AF105: =IF(BD105=0,"",ROUNDDOWN((SQRT(AC105)*2+SUM(AE105:AE108)*1.5+SUM(AD105:AD108)+BD105)*BE105,1)) -> 13 | AH105: =IF($K105="大口径主砲",1,0)+IF($K106="大口径主砲",1,0)+IF($K107="大口径主砲",1,0)+IF($K108="大口径主砲",1,0) -> 0 | AI105: =IF($K105="中口径主砲",1,0)+IF($K106="中口径主砲",1,0)+IF($K107="中口径主砲",1,0)+IF($K108="中口径主砲",1,0) -> 0 | AJ105: =IF($K105="小口径主砲",1,0)+IF($K106="小口径主砲",1,0)+IF($K107="小口径主砲",1,0)+IF($K108="小口径主砲",1,0) -> 0 | AK105: =AH105+AI105+AJ105 -> 0 | AL105: =IF($K105="副砲",1,0)+IF($K106="副砲",1,0)+IF($K107="副砲",1,0)+IF($K108="副砲",1,0) -> 0 | AM105: =IF($K105="大型電探",1,0)+IF($K106="大型電探",1,0)+IF($K107="大型電探",1,0)+IF($K108="大型電探",1,0) -> 0 | AN105: =IF($K105="小型電探",1,0)+IF($K106="小型電探",1,0)+IF($K107="小型電探",1,0)+IF($K108="小型電探",1,0) -> 0 | AO105: =AM105+AN105 -> 0 | AP105: =IF($K105="魚雷",1,0)+IF($K106="魚雷",1,0)+IF($K107="魚雷",1,0)+IF($K108="魚雷",1,0) -> 0 | AQ105: =IF($K105="対艦強化弾",1,0)+IF($K106="対艦強化弾",1,0)+IF($K107="対艦強化弾",1,0)+IF($K108="対艦強化弾",1,0) -> 0 | AR105: =IF(OR($K105="水上偵察機",$K105="水上爆撃機"),1,0)+IF(OR($K106="水上偵察機",$K106="水上爆撃機"),1,0)+IF(OR($K107="水上偵察機",$K107="水上爆撃機"),1,0)+IF(OR($K108="水上偵察機",$K108="水上爆撃機"),1,0) -> 0 | AS105: =IF($K105="爆雷",1,0)+IF($K106="爆雷",1,0)+IF($K107="爆雷",1,0)+IF($K108="爆雷",1,0) -> 0 | AT105: =IF($K105="ソナー",1,0)+IF($K106="ソナー",1,0)+IF($K107="ソナー",1,0)+IF($K108="ソナー",1,0) -> 0 | AU105: =IF(OR($K105="オートジャイロ",$K105="対潜哨戒機"),1,0)+IF(OR($K106="オートジャイロ",$K106="対潜哨戒機"),1,0)+IF(OR($K107="オートジャイロ",$K107="対潜哨戒機"),1,0)+IF(OR($K108="オートジャイロ",$K108="対潜哨戒機"),1,0) -> 0 | AV105: =IF($K105="艦上爆撃機",1,0)+IF($K106="艦上爆撃機",1,0)+IF($K107="艦上爆撃機",1,0)+IF($K108="艦上爆撃機",1,0) -> 0 | AW105: =IF($K105="艦上攻撃機",1,0)+IF($K106="艦上攻撃機",1,0)+IF($K107="艦上攻撃機",1,0)+IF($K108="艦上攻撃機",1,0) -> 0 | AX105: =IF($K105="大型飛行艇",1,0)+IF($K106="大型飛行艇",1,0)+IF($K107="大型飛行艇",1,0)+IF($K108="大型飛行艇",1,0) -> 0 | AY105: =IF($K105="水上爆撃機",1,0)+IF($K106="水上爆撃機",1,0)+IF($K107="水上爆撃機",1,0)+IF($K108="水上爆撃機",1,0) -> 0 | AZ105: =SUM(AV105:AY108) -> 0 | BA105: =SUM(AU105:AY108) -> 0 | BB105: =IF(AZ105>0,4,IF(BA105>0,3,2)) -> 2 | BC105: =IF(ISERROR(VLOOKUP(F105,antisubmarine_ex,1,FALSE)),E105,VLOOKUP(F105,antisubmarine_ex,2,FALSE)&"") -> 軽巡洋艦 | BD105: =IF(ISERROR(VLOOKUP(BC105,antisubmarine,BB105,FALSE)),0,VLOOKUP(BC105,antisubmarine,BB105,FALSE)) -> 13 | BE105: =IF(AND(AS105>0,AT105>0),1.15,1) -> 1 | BF105: =IF(H105="探照灯",1,0)+IF(H106="探照灯",1,0)+IF(H107="探照灯",1,0)+IF(H108="探照灯",1,0) -> 0 | BG105: =IF(H105="照明弾",1,0)+IF(H106="照明弾",1,0)+IF(H107="照明弾",1,0)+IF(H108="照明弾",1,0) -> 0 | BH105: =IF(H105="熟練見張員",1,0)+IF(H106="熟練見張員",1,0)+IF(H107="熟練見張員",1,0)+IF(H108="熟練見張員",1,0) -> 0 | BI105: =AA105+BH105*VLOOKUP("運",watcher,2,FALSE) -> 0 | BJ105: =IF(AP105>=2,"魚雷",IF(AH105+AI105+AJ105>=3,"主砲",IF(AND(AH105+AI105+AJ105=2,AL105>=1),"主砲副砲",IF(OR(AND(AH105+AI105+AJ105=1,AP105=1),AND(AH105+AI105+AJ105=2,AL105=0,AP105=1)),"主砲魚雷",0)))) -> 0 | BK105: =IF(AP105>=2,VLOOKUP("魚雷",luck_cap,2,FALSE),IF(AH105+AI105+AJ105>=3,VLOOKUP("主砲",luck_cap,2,FALSE),IF(AND(AH105+AI105+AJ105=2,AL105>=1),VLOOKUP("主砲副砲",luck_cap,2,FALSE),IF(OR(AND(AH105+AI105+AJ105=1,AP105=1),AND(AH105+AI105+AJ105=2,AL105=0,AP105=1)),VLOOKUP("主砲魚雷",luck_cap,2,FALSE),0)))) -> 0 | BL105: =IF(H105="ドラム缶",1,0)+IF(H106="ドラム缶",1,0)+IF(H107="ドラム缶",1,0)+IF(H108="ドラム缶",1,0) -> 0
B106: 敵制空合計 | C106: =SUM(C100:C105) -> 28 | G106: =IF(F105="",,VLOOKUP(F105,carrierlist,3,FALSE)&"") -> 2 | H106: 二式水戦改(熟練) | I106: 7 | J106: 10 | K106: 水上戦闘機 | L106: 35.0617726 | O106: 0.6 | P106: 1 | Q106: 0 | R106: 0 | S106: 0 | T106: =IF(ISERROR(VLOOKUP(H106,fighterlist,1,FALSE)),"",IF(OR(E105="装甲空母",E105="正規空母",E105="軽空母",E105="水上機母艦",E105="航空戦艦",E105="航空巡洋艦",E105="潜水空母"),IF(VLOOKUP(H106,fighterlist,11,FALSE)="艦上攻撃機",ROUNDDOWN(0.8*(R106*SQRT(G106)+25),0),IF(OR(VLOOKUP(H106,fighterlist,11,FALSE)="艦上爆撃機",VLOOKUP(H106,fighterlist,11,FALSE)="水上爆撃機"),ROUNDDOWN(1*(S106*SQRT(G106)+25),0),"")),"")) ->  | U106: =IF(OR(E105="装甲空母",E105="正規空母",E105="軽空母",E105="水上機母艦",E105="航空戦艦",E105="航空巡洋艦",E105="潜水空母"),IF(K106="艦上攻撃機",ROUNDDOWN(1.5*(R106*SQRT(G106)+25),0),IF(OR(K106="艦上爆撃機",K106="水上爆撃機"),ROUNDDOWN(1*(S106*SQRT(G106)+25),0),"")),"") ->  | AD106: 0 | AE106: 0
B107: 航空優勢 | C107: =ROUNDUP(C106*1.5,0) -> 42 | G107: =IF(F105="",,VLOOKUP(F105,carrierlist,4,FALSE)&"") -> 1 | H107: 甲標的 甲 | K107: 特殊潜航艇 | L107: 0 | P107: 0 | Q107: 0 | R107: 12 | S107: 0 | T107: =IF(ISERROR(VLOOKUP(H107,fighterlist,1,FALSE)),"",IF(OR(E105="装甲空母",E105="正規空母",E105="軽空母",E105="水上機母艦",E105="航空戦艦",E105="航空巡洋艦",E105="潜水空母"),IF(VLOOKUP(H107,fighterlist,11,FALSE)="艦上攻撃機",ROUNDDOWN(0.8*(R107*SQRT(G107)+25),0),IF(OR(VLOOKUP(H107,fighterlist,11,FALSE)="艦上爆撃機",VLOOKUP(H107,fighterlist,11,FALSE)="水上爆撃機"),ROUNDDOWN(1*(S107*SQRT(G107)+25),0),"")),"")) ->  | U107: =IF(OR(E105="装甲空母",E105="正規空母",E105="軽空母",E105="水上機母艦",E105="航空戦艦",E105="航空巡洋艦",E105="潜水空母"),IF(K107="艦上攻撃機",ROUNDDOWN(1.5*(R107*SQRT(G107)+25),0),IF(OR(K107="艦上爆撃機",K107="水上爆撃機"),ROUNDDOWN(1*(S107*SQRT(G107)+25),0),"")),"") ->  | AD107: 0 | AE107: 0
B108: 制空権確保 | C108: =C106*3 -> 84 | G108: =IF(F105="",,VLOOKUP(F105,carrierlist,5,FALSE)&"") ->  | L108: 0 | P108: 0 | Q108: 0 | R108: 0 | S108: 0 | T108: =IF(ISERROR(VLOOKUP(H108,fighterlist,1,FALSE)),"",IF(OR(E105="装甲空母",E105="正規空母",E105="軽空母",E105="水上機母艦",E105="航空戦艦",E105="航空巡洋艦",E105="潜水空母"),IF(VLOOKUP(H108,fighterlist,11,FALSE)="艦上攻撃機",ROUNDDOWN(0.8*(R108*SQRT(G108)+25),0),IF(OR(VLOOKUP(H108,fighterlist,11,FALSE)="艦上爆撃機",VLOOKUP(H108,fighterlist,11,FALSE)="水上爆撃機"),ROUNDDOWN(1*(S108*SQRT(G108)+25),0),"")),"")) ->  | U108: =IF(OR(E105="装甲空母",E105="正規空母",E105="軽空母",E105="水上機母艦",E105="航空戦艦",E105="航空巡洋艦",E105="潜水空母"),IF(K108="艦上攻撃機",ROUNDDOWN(1.5*(R108*SQRT(G108)+25),0),IF(OR(K108="艦上爆撃機",K108="水上爆撃機"),ROUNDDOWN(1*(S108*SQRT(G108)+25),0),"")),"") ->  | AD108: 0 | AE108: 0
E109: =IF(F109="","",VLOOKUP(F109,carrierlist,8,FALSE)&"") -> 軽巡洋艦 | F109: 神通改二 | G109: =IF(F109="",,VLOOKUP(F109,carrierlist,2,FALSE)&"") -> 1 | H109: 20.3cm(3号)連装砲 | J109: 10 | K109: 中口径主砲 | L109: 0 | M109: 59 | P109: 4.16 | Q109: 13.16 | R109: 0 | S109: 0 | T109: =IF(ISERROR(VLOOKUP(H109,fighterlist,1,FALSE)),"",IF(OR(E109="装甲空母",E109="正規空母",E109="軽空母",E109="水上機母艦",E109="航空戦艦",E109="航空巡洋艦",E109="潜水空母"),IF(VLOOKUP(H109,fighterlist,11,FALSE)="艦上攻撃機",ROUNDDOWN(0.8*(R109*SQRT(G109)+25),0),IF(OR(VLOOKUP(H109,fighterlist,11,FALSE)="艦上爆撃機",VLOOKUP(H109,fighterlist,11,FALSE)="水上爆撃機"),ROUNDDOWN(1*(S109*SQRT(G109)+25),0),"")),"")) ->  | U109: =IF(OR(E109="装甲空母",E109="正規空母",E109="軽空母",E109="水上機母艦",E109="航空戦艦",E109="航空巡洋艦",E109="潜水空母"),IF(K109="艦上攻撃機",ROUNDDOWN(1.5*(R109*SQRT(G109)+25),0),IF(OR(K109="艦上爆撃機",K109="水上爆撃機"),ROUNDDOWN(1*(S109*SQRT(G109)+25),0),"")),"") ->  | V109: =IF(OR(F109="",F109="[その他]",),"",IF(F109="","",IF(OR(E109="装甲空母",E109="正規空母",E109="軽空母"),IF(SUM(R109:R112)+SUM(S109:S112)=0,0,ROUNDDOWN(55+(VLOOKUP(F109,carrierlist,6,FALSE)+SUM(Q109:Q112))*1.5+SUM(R109:R112)*1.5+SUM(S109:S112)*2,0)),ROUNDDOWN(5+VLOOKUP(F109,carrierlist,6,FALSE)+SUM(Q109:Q112),0)))) -> 99 | W109: =IF(OR(E109="潜水艦",E109="潜水空母",E109="駆逐艦",E109="軽巡洋艦",E109="重雷装巡洋艦",E109="重巡洋艦",E109="航空巡洋艦",E109="水上機母艦"),ROUNDDOWN(5+VLOOKUP(F109,carrierlist,7,FALSE)+SUM(R109:R112),0),"") -> 103 | X109: =IF(OR(F109="",F109="[その他]",E109="装甲空母",E109="正規空母",E109="軽空母"),"",ROUNDDOWN(VLOOKUP(F109,carrierlist,6,FALSE)+VLOOKUP(F109,carrierlist,7,FALSE)+SUM(Q109:R112),0)) -> 192 | Y109: =IF(OR(AP109>=2,AK109>=3,AND(AK109=2,AL109>=1),AND(AK109>=1,AK109<=2,AP109>=1)),"カットイン",IF(OR(AND(AK109=2,AL109=0,AP109=0),AND(AK109=1,AL109>=1,AP109=0),AND(AK109=0,AL109>=2,AP109<=1)),"連撃","")) -> 連撃 | Z109: =IF(AP109>=2,ROUNDDOWN(X109*1.5,0)&"×2",IF(AH109>=3,X109*2,IF(AND(AH109=2,AL109>=1),ROUNDDOWN(X109*1.75,0),IF(AND(AH109>=1,AH109<=2,AP109>=1),ROUNDDOWN(X109*1.3,0)&"×2",IF(Y109="連撃",ROUNDDOWN(X109*1.2,0)&"×2",""))))) -> 230×2 | AB109: =IF(Y109="連撃",0.99,IF(Y109="",0,SQRT(VLOOKUP(BJ109,ci_coefficient,2,FALSE)*IF(BI109>BK109,BK109,BI109))*0.01+0.05*IF(BF125>=1,1,0)+0.05*IF(BG125>=1,1-(0.5)^BG125,0))) -> 0.99 | AD109: 0 | AE109: 0 | AF109: =IF(BD109=0,"",ROUNDDOWN((SQRT(AC109)*2+SUM(AE109:AE112)*1.5+SUM(AD109:AD112)+BD109)*BE109,1)) -> 13 | AH109: =IF($K109="大口径主砲",1,0)+IF($K110="大口径主砲",1,0)+IF($K111="大口径主砲",1,0)+IF($K112="大口径主砲",1,0) -> 0 | AI109: =IF($K109="中口径主砲",1,0)+IF($K110="中口径主砲",1,0)+IF($K111="中口径主砲",1,0)+IF($K112="中口径主砲",1,0) -> 2 | AJ109: =IF($K109="小口径主砲",1,0)+IF($K110="小口径主砲",1,0)+IF($K111="小口径主砲",1,0)+IF($K112="小口径主砲",1,0) -> 0 | AK109: =AH109+AI109+AJ109 -> 2 | AL109: =IF($K109="副砲",1,0)+IF($K110="副砲",1,0)+IF($K111="副砲",1,0)+IF($K112="副砲",1,0) -> 0 | AM109: =IF($K109="大型電探",1,0)+IF($K110="大型電探",1,0)+IF($K111="大型電探",1,0)+IF($K112="大型電探",1,0) -> 0 | AN109: =IF($K109="小型電探",1,0)+IF($K110="小型電探",1,0)+IF($K111="小型電探",1,0)+IF($K112="小型電探",1,0) -> 0 | AO109: =AM109+AN109 -> 0 | AP109: =IF($K109="魚雷",1,0)+IF($K110="魚雷",1,0)+IF($K111="魚雷",1,0)+IF($K112="魚雷",1,0) -> 0 | AQ109: =IF($K109="対艦強化弾",1,0)+IF($K110="対艦強化弾",1,0)+IF($K111="対艦強化弾",1,0)+IF($K112="対艦強化弾",1,0) -> 0 | AR109: =IF(OR($K109="水上偵察機",$K109="水上爆撃機"),1,0)+IF(OR($K110="水上偵察機",$K110="水上爆撃機"),1,0)+IF(OR($K111="水上偵察機",$K111="水上爆撃機"),1,0)+IF(OR($K112="水上偵察機",$K112="水上爆撃機"),1,0) -> 1 | AS109: =IF($K109="爆雷",1,0)+IF($K110="爆雷",1,0)+IF($K111="爆雷",1,0)+IF($K112="爆雷",1,0) -> 0 | AT109: =IF($K109="ソナー",1,0)+IF($K110="ソナー",1,0)+IF($K111="ソナー",1,0)+IF($K112="ソナー",1,0) -> 0 | AU109: =IF(OR($K109="オートジャイロ",$K109="対潜哨戒機"),1,0)+IF(OR($K110="オートジャイロ",$K110="対潜哨戒機"),1,0)+IF(OR($K111="オートジャイロ",$K111="対潜哨戒機"),1,0)+IF(OR($K112="オートジャイロ",$K112="対潜哨戒機"),1,0) -> 0 | AV109: =IF($K109="艦上爆撃機",1,0)+IF($K110="艦上爆撃機",1,0)+IF($K111="艦上爆撃機",1,0)+IF($K112="艦上爆撃機",1,0) -> 0 | AW109: =IF($K109="艦上攻撃機",1,0)+IF($K110="艦上攻撃機",1,0)+IF($K111="艦上攻撃機",1,0)+IF($K112="艦上攻撃機",1,0) -> 0 | AX109: =IF($K109="大型飛行艇",1,0)+IF($K110="大型飛行艇",1,0)+IF($K111="大型飛行艇",1,0)+IF($K112="大型飛行艇",1,0) -> 0 | AY109: =IF($K109="水上爆撃機",1,0)+IF($K110="水上爆撃機",1,0)+IF($K111="水上爆撃機",1,0)+IF($K112="水上爆撃機",1,0) -> 0 | AZ109: =SUM(AV109:AY112) -> 0 | BA109: =SUM(AU109:AY112) -> 0 | BB109: =IF(AZ109>0,4,IF(BA109>0,3,2)) -> 2 | BC109: =IF(ISERROR(VLOOKUP(F109,antisubmarine_ex,1,FALSE)),E109,VLOOKUP(F109,antisubmarine_ex,2,FALSE)&"") -> 軽巡洋艦 | BD109: =IF(ISERROR(VLOOKUP(BC109,antisubmarine,BB109,FALSE)),0,VLOOKUP(BC109,antisubmarine,BB109,FALSE)) -> 13 | BE109: =IF(AND(AS109>0,AT109>0),1.15,1) -> 1 | BF109: =IF(H109="探照灯",1,0)+IF(H110="探照灯",1,0)+IF(H111="探照灯",1,0)+IF(H112="探照灯",1,0) -> 0 | BG109: =IF(H109="照明弾",1,0)+IF(H110="照明弾",1,0)+IF(H111="照明弾",1,0)+IF(H112="照明弾",1,0) -> 0 | BH109: =IF(H109="熟練見張員",1,0)+IF(H110="熟練見張員",1,0)+IF(H111="熟練見張員",1,0)+IF(H112="熟練見張員",1,0) -> 0 | BI109: =AA109+BH109*VLOOKUP("運",watcher,2,FALSE) -> 0 | BJ109: =IF(AP109>=2,"魚雷",IF(AH109+AI109+AJ109>=3,"主砲",IF(AND(AH109+AI109+AJ109=2,AL109>=1),"主砲副砲",IF(OR(AND(AH109+AI109+AJ109=1,AP109=1),AND(AH109+AI109+AJ109=2,AL109=0,AP109=1)),"主砲魚雷",0)))) -> 0 | BK109: =IF(AP109>=2,VLOOKUP("魚雷",luck_cap,2,FALSE),IF(AH109+AI109+AJ109>=3,VLOOKUP("主砲",luck_cap,2,FALSE),IF(AND(AH109+AI109+AJ109=2,AL109>=1),VLOOKUP("主砲副砲",luck_cap,2,FALSE),IF(OR(AND(AH109+AI109+AJ109=1,AP109=1),AND(AH109+AI109+AJ109=2,AL109=0,AP109=1)),VLOOKUP("主砲魚雷",luck_cap,2,FALSE),0)))) -> 0 | BL109: =IF(H109="ドラム缶",1,0)+IF(H110="ドラム缶",1,0)+IF(H111="ドラム缶",1,0)+IF(H112="ドラム缶",1,0) -> 0
B110: 要求索敵値 | G110: =IF(F109="",,VLOOKUP(F109,carrierlist,3,FALSE)&"") -> 1 | H110: 15.2cm連装砲改 | J110: 10 | K110: 中口径主砲 | L110: 0 | P110: 7.16 | Q110: 9.16 | R110: 0 | S110: 0 | T110: =IF(ISERROR(VLOOKUP(H110,fighterlist,1,FALSE)),"",IF(OR(E109="装甲空母",E109="正規空母",E109="軽空母",E109="水上機母艦",E109="航空戦艦",E109="航空巡洋艦",E109="潜水空母"),IF(VLOOKUP(H110,fighterlist,11,FALSE)="艦上攻撃機",ROUNDDOWN(0.8*(R110*SQRT(G110)+25),0),IF(OR(VLOOKUP(H110,fighterlist,11,FALSE)="艦上爆撃機",VLOOKUP(H110,fighterlist,11,FALSE)="水上爆撃機"),ROUNDDOWN(1*(S110*SQRT(G110)+25),0),"")),"")) ->  | U110: =IF(OR(E109="装甲空母",E109="正規空母",E109="軽空母",E109="水上機母艦",E109="航空戦艦",E109="航空巡洋艦",E109="潜水空母"),IF(K110="艦上攻撃機",ROUNDDOWN(1.5*(R110*SQRT(G110)+25),0),IF(OR(K110="艦上爆撃機",K110="水上爆撃機"),ROUNDDOWN(1*(S110*SQRT(G110)+25),0),"")),"") ->  | AD110: 0 | AE110: 0
G111: =IF(F109="",,VLOOKUP(F109,carrierlist,4,FALSE)&"") -> 1 | H111: 零式水上偵察機11型乙 | I111: 7 | K111: 水上偵察機 | L111: 0 | O111: 7.2 | P111: 2 | Q111: 1 | R111: 0 | S111: 0 | T111: =IF(ISERROR(VLOOKUP(H111,fighterlist,1,FALSE)),"",IF(OR(E109="装甲空母",E109="正規空母",E109="軽空母",E109="水上機母艦",E109="航空戦艦",E109="航空巡洋艦",E109="潜水空母"),IF(VLOOKUP(H111,fighterlist,11,FALSE)="艦上攻撃機",ROUNDDOWN(0.8*(R111*SQRT(G111)+25),0),IF(OR(VLOOKUP(H111,fighterlist,11,FALSE)="艦上爆撃機",VLOOKUP(H111,fighterlist,11,FALSE)="水上爆撃機"),ROUNDDOWN(1*(S111*SQRT(G111)+25),0),"")),"")) ->  | U111: =IF(OR(E109="装甲空母",E109="正規空母",E109="軽空母",E109="水上機母艦",E109="航空戦艦",E109="航空巡洋艦",E109="潜水空母"),IF(K111="艦上攻撃機",ROUNDDOWN(1.5*(R111*SQRT(G111)+25),0),IF(OR(K111="艦上爆撃機",K111="水上爆撃機"),ROUNDDOWN(1*(S111*SQRT(G111)+25),0),"")),"") ->  | AD111: 0 | AE111: 0
G112: =IF(F109="",,VLOOKUP(F109,carrierlist,5,FALSE)&"") ->  | L112: 0 | P112: 0 | Q112: 0 | R112: 0 | S112: 0 | T112: =IF(ISERROR(VLOOKUP(H112,fighterlist,1,FALSE)),"",IF(OR(E109="装甲空母",E109="正規空母",E109="軽空母",E109="水上機母艦",E109="航空戦艦",E109="航空巡洋艦",E109="潜水空母"),IF(VLOOKUP(H112,fighterlist,11,FALSE)="艦上攻撃機",ROUNDDOWN(0.8*(R112*SQRT(G112)+25),0),IF(OR(VLOOKUP(H112,fighterlist,11,FALSE)="艦上爆撃機",VLOOKUP(H112,fighterlist,11,FALSE)="水上爆撃機"),ROUNDDOWN(1*(S112*SQRT(G112)+25),0),"")),"")) ->  | U112: =IF(OR(E109="装甲空母",E109="正規空母",E109="軽空母",E109="水上機母艦",E109="航空戦艦",E109="航空巡洋艦",E109="潜水空母"),IF(K112="艦上攻撃機",ROUNDDOWN(1.5*(R112*SQRT(G112)+25),0),IF(OR(K112="艦上爆撃機",K112="水上爆撃機"),ROUNDDOWN(1*(S112*SQRT(G112)+25),0),"")),"") ->  | AD112: 0 | AE112: 0
E113: =IF(F113="","",VLOOKUP(F113,carrierlist,8,FALSE)&"") -> 駆逐艦 | F113: 夕立改二 | G113: =IF(F113="",,VLOOKUP(F113,carrierlist,2,FALSE)&"") -> 0 | H113: 10cm高角砲＋高射装置 | J113: 10 | K113: 小口径主砲 | L113: 0 | M113: 54 | P113: 4.16 | Q113: 6.16 | R113: 0 | S113: 0 | T113: =IF(ISERROR(VLOOKUP(H113,fighterlist,1,FALSE)),"",IF(OR(E113="装甲空母",E113="正規空母",E113="軽空母",E113="水上機母艦",E113="航空戦艦",E113="航空巡洋艦",E113="潜水空母"),IF(VLOOKUP(H113,fighterlist,11,FALSE)="艦上攻撃機",ROUNDDOWN(0.8*(R113*SQRT(G113)+25),0),IF(OR(VLOOKUP(H113,fighterlist,11,FALSE)="艦上爆撃機",VLOOKUP(H113,fighterlist,11,FALSE)="水上爆撃機"),ROUNDDOWN(1*(S113*SQRT(G113)+25),0),"")),"")) ->  | U113: =IF(OR(E113="装甲空母",E113="正規空母",E113="軽空母",E113="水上機母艦",E113="航空戦艦",E113="航空巡洋艦",E113="潜水空母"),IF(K113="艦上攻撃機",ROUNDDOWN(1.5*(R113*SQRT(G113)+25),0),IF(OR(K113="艦上爆撃機",K113="水上爆撃機"),ROUNDDOWN(1*(S113*SQRT(G113)+25),0),"")),"") ->  | V113: =IF(OR(F113="",F113="[その他]",),"",IF(F113="","",IF(OR(E113="装甲空母",E113="正規空母",E113="軽空母"),IF(SUM(R113:R116)+SUM(S113:S116)=0,0,ROUNDDOWN(55+(VLOOKUP(F113,carrierlist,6,FALSE)+SUM(Q113:Q116))*1.5+SUM(R113:R116)*1.5+SUM(S113:S116)*2,0)),ROUNDDOWN(5+VLOOKUP(F113,carrierlist,6,FALSE)+SUM(Q113:Q116),0)))) -> 90 | W113: =IF(OR(E113="潜水艦",E113="潜水空母",E113="駆逐艦",E113="軽巡洋艦",E113="重雷装巡洋艦",E113="重巡洋艦",E113="航空巡洋艦",E113="水上機母艦"),ROUNDDOWN(5+VLOOKUP(F113,carrierlist,7,FALSE)+SUM(R113:R116),0),"") -> 98 | X113: =IF(OR(F113="",F113="[その他]",E113="装甲空母",E113="正規空母",E113="軽空母"),"",ROUNDDOWN(VLOOKUP(F113,carrierlist,6,FALSE)+VLOOKUP(F113,carrierlist,7,FALSE)+SUM(Q113:R116),0)) -> 178 | Y113: =IF(OR(AP113>=2,AK113>=3,AND(AK113=2,AL113>=1),AND(AK113>=1,AK113<=2,AP113>=1)),"カットイン",IF(OR(AND(AK113=2,AL113=0,AP113=0),AND(AK113=1,AL113>=1,AP113=0),AND(AK113=0,AL113>=2,AP113<=1)),"連撃","")) -> 連撃 | Z113: =IF(AP113>=2,ROUNDDOWN(X113*1.5,0)&"×2",IF(AH113>=3,X113*2,IF(AND(AH113=2,AL113>=1),ROUNDDOWN(X113*1.75,0),IF(AND(AH113>=1,AH113<=2,AP113>=1),ROUNDDOWN(X113*1.3,0)&"×2",IF(Y113="連撃",ROUNDDOWN(X113*1.2,0)&"×2",""))))) -> 213×2 | AB113: =IF(Y113="連撃",0.99,IF(Y113="",0,SQRT(VLOOKUP(BJ113,ci_coefficient,2,FALSE)*IF(BI113>BK113,BK113,BI113))*0.01+0.05*IF(BF125>=1,1,0)+0.05*IF(BG125>=1,1-(0.5)^BG125,0))) -> 0.99 | AD113: 0 | AE113: 0 | AF113: =IF(BD113=0,"",ROUNDDOWN((SQRT(AC113)*2+SUM(AE113:AE116)*1.5+SUM(AD113:AD116)+BD113)*BE113,1)) -> 13 | AH113: =IF($K113="大口径主砲",1,0)+IF($K114="大口径主砲",1,0)+IF($K115="大口径主砲",1,0)+IF($K116="大口径主砲",1,0) -> 0 | AI113: =IF($K113="中口径主砲",1,0)+IF($K114="中口径主砲",1,0)+IF($K115="中口径主砲",1,0)+IF($K116="中口径主砲",1,0) -> 0 | AJ113: =IF($K113="小口径主砲",1,0)+IF($K114="小口径主砲",1,0)+IF($K115="小口径主砲",1,0)+IF($K116="小口径主砲",1,0) -> 2 | AK113: =AH113+AI113+AJ113 -> 2 | AL113: =IF($K113="副砲",1,0)+IF($K114="副砲",1,0)+IF($K115="副砲",1,0)+IF($K116="副砲",1,0) -> 0 | AM113: =IF($K113="大型電探",1,0)+IF($K114="大型電探",1,0)+IF($K115="大型電探",1,0)+IF($K116="大型電探",1,0) -> 0 | AN113: =IF($K113="小型電探",1,0)+IF($K114="小型電探",1,0)+IF($K115="小型電探",1,0)+IF($K116="小型電探",1,0) -> 1 | AO113: =AM113+AN113 -> 1 | AP113: =IF($K113="魚雷",1,0)+IF($K114="魚雷",1,0)+IF($K115="魚雷",1,0)+IF($K116="魚雷",1,0) -> 0 | AQ113: =IF($K113="対艦強化弾",1,0)+IF($K114="対艦強化弾",1,0)+IF($K115="対艦強化弾",1,0)+IF($K116="対艦強化弾",1,0) -> 0 | AR113: =IF(OR($K113="水上偵察機",$K113="水上爆撃機"),1,0)+IF(OR($K114="水上偵察機",$K114="水上爆撃機"),1,0)+IF(OR($K115="水上偵察機",$K115="水上爆撃機"),1,0)+IF(OR($K116="水上偵察機",$K116="水上爆撃機"),1,0) -> 0 | AS113: =IF($K113="爆雷",1,0)+IF($K114="爆雷",1,0)+IF($K115="爆雷",1,0)+IF($K116="爆雷",1,0) -> 0 | AT113: =IF($K113="ソナー",1,0)+IF($K114="ソナー",1,0)+IF($K115="ソナー",1,0)+IF($K116="ソナー",1,0) -> 0 | AU113: =IF(OR($K113="オートジャイロ",$K113="対潜哨戒機"),1,0)+IF(OR($K114="オートジャイロ",$K114="対潜哨戒機"),1,0)+IF(OR($K115="オートジャイロ",$K115="対潜哨戒機"),1,0)+IF(OR($K116="オートジャイロ",$K116="対潜哨戒機"),1,0) -> 0 | AV113: =IF($K113="艦上爆撃機",1,0)+IF($K114="艦上爆撃機",1,0)+IF($K115="艦上爆撃機",1,0)+IF($K116="艦上爆撃機",1,0) -> 0 | AW113: =IF($K113="艦上攻撃機",1,0)+IF($K114="艦上攻撃機",1,0)+IF($K115="艦上攻撃機",1,0)+IF($K116="艦上攻撃機",1,0) -> 0 | AX113: =IF($K113="大型飛行艇",1,0)+IF($K114="大型飛行艇",1,0)+IF($K115="大型飛行艇",1,0)+IF($K116="大型飛行艇",1,0) -> 0 | AY113: =IF($K113="水上爆撃機",1,0)+IF($K114="水上爆撃機",1,0)+IF($K115="水上爆撃機",1,0)+IF($K116="水上爆撃機",1,0) -> 0 | AZ113: =SUM(AV113:AY116) -> 0 | BA113: =SUM(AU113:AY116) -> 0 | BB113: =IF(AZ113>0,4,IF(BA113>0,3,2)) -> 2 | BC113: =IF(ISERROR(VLOOKUP(F113,antisubmarine_ex,1,FALSE)),E113,VLOOKUP(F113,antisubmarine_ex,2,FALSE)&"") -> 駆逐艦 | BD113: =IF(ISERROR(VLOOKUP(BC113,antisubmarine,BB113,FALSE)),0,VLOOKUP(BC113,antisubmarine,BB113,FALSE)) -> 13 | BE113: =IF(AND(AS113>0,AT113>0),1.15,1) -> 1 | BF113: =IF(H113="探照灯",1,0)+IF(H114="探照灯",1,0)+IF(H115="探照灯",1,0)+IF(H116="探照灯",1,0) -> 0 | BG113: =IF(H113="照明弾",1,0)+IF(H114="照明弾",1,0)+IF(H115="照明弾",1,0)+IF(H116="照明弾",1,0) -> 0 | BH113: =IF(H113="熟練見張員",1,0)+IF(H114="熟練見張員",1,0)+IF(H115="熟練見張員",1,0)+IF(H116="熟練見張員",1,0) -> 0 | BI113: =AA113+BH113*VLOOKUP("運",watcher,2,FALSE) -> 0 | BJ113: =IF(AP113>=2,"魚雷",IF(AH113+AI113+AJ113>=3,"主砲",IF(AND(AH113+AI113+AJ113=2,AL113>=1),"主砲副砲",IF(OR(AND(AH113+AI113+AJ113=1,AP113=1),AND(AH113+AI113+AJ113=2,AL113=0,AP113=1)),"主砲魚雷",0)))) -> 0 | BK113: =IF(AP113>=2,VLOOKUP("魚雷",luck_cap,2,FALSE),IF(AH113+AI113+AJ113>=3,VLOOKUP("主砲",luck_cap,2,FALSE),IF(AND(AH113+AI113+AJ113=2,AL113>=1),VLOOKUP("主砲副砲",luck_cap,2,FALSE),IF(OR(AND(AH113+AI113+AJ113=1,AP113=1),AND(AH113+AI113+AJ113=2,AL113=0,AP113=1)),VLOOKUP("主砲魚雷",luck_cap,2,FALSE),0)))) -> 0 | BL113: =IF(H113="ドラム缶",1,0)+IF(H114="ドラム缶",1,0)+IF(H115="ドラム缶",1,0)+IF(H116="ドラム缶",1,0) -> 0
G114: =IF(F113="",,VLOOKUP(F113,carrierlist,3,FALSE)&"") -> 0 | H114: 10cm高角砲＋高射装置 | J114: 10 | K114: 小口径主砲 | L114: 0 | P114: 4.16 | Q114: 6.16 | R114: 0 | S114: 0 | T114: =IF(ISERROR(VLOOKUP(H114,fighterlist,1,FALSE)),"",IF(OR(E113="装甲空母",E113="正規空母",E113="軽空母",E113="水上機母艦",E113="航空戦艦",E113="航空巡洋艦",E113="潜水空母"),IF(VLOOKUP(H114,fighterlist,11,FALSE)="艦上攻撃機",ROUNDDOWN(0.8*(R114*SQRT(G114)+25),0),IF(OR(VLOOKUP(H114,fighterlist,11,FALSE)="艦上爆撃機",VLOOKUP(H114,fighterlist,11,FALSE)="水上爆撃機"),ROUNDDOWN(1*(S114*SQRT(G114)+25),0),"")),"")) ->  | U114: =IF(OR(E113="装甲空母",E113="正規空母",E113="軽空母",E113="水上機母艦",E113="航空戦艦",E113="航空巡洋艦",E113="潜水空母"),IF(K114="艦上攻撃機",ROUNDDOWN(1.5*(R114*SQRT(G114)+25),0),IF(OR(K114="艦上爆撃機",K114="水上爆撃機"),ROUNDDOWN(1*(S114*SQRT(G114)+25),0),"")),"") ->  | AD114: 0 | AE114: 0
G115: =IF(F113="",,VLOOKUP(F113,carrierlist,4,FALSE)&"") -> 0 | H115: 22号対水上電探改四 | J115: 6 | K115: 小型電探 | L115: 0 | O115: 3 | P115: 10.44 | Q115: 0 | R115: 0 | S115: 0 | T115: =IF(ISERROR(VLOOKUP(H115,fighterlist,1,FALSE)),"",IF(OR(E113="装甲空母",E113="正規空母",E113="軽空母",E113="水上機母艦",E113="航空戦艦",E113="航空巡洋艦",E113="潜水空母"),IF(VLOOKUP(H115,fighterlist,11,FALSE)="艦上攻撃機",ROUNDDOWN(0.8*(R115*SQRT(G115)+25),0),IF(OR(VLOOKUP(H115,fighterlist,11,FALSE)="艦上爆撃機",VLOOKUP(H115,fighterlist,11,FALSE)="水上爆撃機"),ROUNDDOWN(1*(S115*SQRT(G115)+25),0),"")),"")) ->  | U115: =IF(OR(E113="装甲空母",E113="正規空母",E113="軽空母",E113="水上機母艦",E113="航空戦艦",E113="航空巡洋艦",E113="潜水空母"),IF(K115="艦上攻撃機",ROUNDDOWN(1.5*(R115*SQRT(G115)+25),0),IF(OR(K115="艦上爆撃機",K115="水上爆撃機"),ROUNDDOWN(1*(S115*SQRT(G115)+25),0),"")),"") ->  | AD115: 0 | AE115: 0
G116: =IF(F113="",,VLOOKUP(F113,carrierlist,5,FALSE)&"") ->  | L116: 0 | P116: 0 | Q116: 0 | R116: 0 | S116: 0 | T116: =IF(ISERROR(VLOOKUP(H116,fighterlist,1,FALSE)),"",IF(OR(E113="装甲空母",E113="正規空母",E113="軽空母",E113="水上機母艦",E113="航空戦艦",E113="航空巡洋艦",E113="潜水空母"),IF(VLOOKUP(H116,fighterlist,11,FALSE)="艦上攻撃機",ROUNDDOWN(0.8*(R116*SQRT(G116)+25),0),IF(OR(VLOOKUP(H116,fighterlist,11,FALSE)="艦上爆撃機",VLOOKUP(H116,fighterlist,11,FALSE)="水上爆撃機"),ROUNDDOWN(1*(S116*SQRT(G116)+25),0),"")),"")) ->  | U116: =IF(OR(E113="装甲空母",E113="正規空母",E113="軽空母",E113="水上機母艦",E113="航空戦艦",E113="航空巡洋艦",E113="潜水空母"),IF(K116="艦上攻撃機",ROUNDDOWN(1.5*(R116*SQRT(G116)+25),0),IF(OR(K116="艦上爆撃機",K116="水上爆撃機"),ROUNDDOWN(1*(S116*SQRT(G116)+25),0),"")),"") ->  | AD116: 0 | AE116: 0
E117: =IF(F117="","",VLOOKUP(F117,carrierlist,8,FALSE)&"") -> 駆逐艦 | F117: 綾波改二 | G117: =IF(F117="",,VLOOKUP(F117,carrierlist,2,FALSE)&"") -> 0 | H117: 10cm高角砲＋高射装置 | J117: 10 | K117: 小口径主砲 | L117: 0 | M117: 53 | P117: 4.16 | Q117: 6.16 | R117: 0 | S117: 0 | T117: =IF(ISERROR(VLOOKUP(H117,fighterlist,1,FALSE)),"",IF(OR(E117="装甲空母",E117="正規空母",E117="軽空母",E117="水上機母艦",E117="航空戦艦",E117="航空巡洋艦",E117="潜水空母"),IF(VLOOKUP(H117,fighterlist,11,FALSE)="艦上攻撃機",ROUNDDOWN(0.8*(R117*SQRT(G117)+25),0),IF(OR(VLOOKUP(H117,fighterlist,11,FALSE)="艦上爆撃機",VLOOKUP(H117,fighterlist,11,FALSE)="水上爆撃機"),ROUNDDOWN(1*(S117*SQRT(G117)+25),0),"")),"")) ->  | U117: =IF(OR(E117="装甲空母",E117="正規空母",E117="軽空母",E117="水上機母艦",E117="航空戦艦",E117="航空巡洋艦",E117="潜水空母"),IF(K117="艦上攻撃機",ROUNDDOWN(1.5*(R117*SQRT(G117)+25),0),IF(OR(K117="艦上爆撃機",K117="水上爆撃機"),ROUNDDOWN(1*(S117*SQRT(G117)+25),0),"")),"") ->  | V117: =IF(OR(F117="",F117="[その他]",),"",IF(F117="","",IF(OR(E117="装甲空母",E117="正規空母",E117="軽空母"),IF(SUM(R117:R120)+SUM(S117:S120)=0,0,ROUNDDOWN(55+(VLOOKUP(F117,carrierlist,6,FALSE)+SUM(Q117:Q120))*1.5+SUM(R117:R120)*1.5+SUM(S117:S120)*2,0)),ROUNDDOWN(5+VLOOKUP(F117,carrierlist,6,FALSE)+SUM(Q117:Q120),0)))) -> 91 | W117: =IF(OR(E117="潜水艦",E117="潜水空母",E117="駆逐艦",E117="軽巡洋艦",E117="重雷装巡洋艦",E117="重巡洋艦",E117="航空巡洋艦",E117="水上機母艦"),ROUNDDOWN(5+VLOOKUP(F117,carrierlist,7,FALSE)+SUM(R117:R120),0),"") -> 93 | X117: =IF(OR(F117="",F117="[その他]",E117="装甲空母",E117="正規空母",E117="軽空母"),"",ROUNDDOWN(VLOOKUP(F117,carrierlist,6,FALSE)+VLOOKUP(F117,carrierlist,7,FALSE)+SUM(Q117:R120),0)) -> 174 | Y117: =IF(OR(AP117>=2,AK117>=3,AND(AK117=2,AL117>=1),AND(AK117>=1,AK117<=2,AP117>=1)),"カットイン",IF(OR(AND(AK117=2,AL117=0,AP117=0),AND(AK117=1,AL117>=1,AP117=0),AND(AK117=0,AL117>=2,AP117<=1)),"連撃","")) -> 連撃 | Z117: =IF(AP117>=2,ROUNDDOWN(X117*1.5,0)&"×2",IF(AH117>=3,X117*2,IF(AND(AH117=2,AL117>=1),ROUNDDOWN(X117*1.75,0),IF(AND(AH117>=1,AH117<=2,AP117>=1),ROUNDDOWN(X117*1.3,0)&"×2",IF(Y117="連撃",ROUNDDOWN(X117*1.2,0)&"×2",""))))) -> 208×2 | AB117: =IF(Y117="連撃",0.99,IF(Y117="",0,SQRT(VLOOKUP(BJ117,ci_coefficient,2,FALSE)*IF(BI117>BK117,BK117,BI117))*0.01+0.05*IF(BF125>=1,1,0)+0.05*IF(BG125>=1,1-(0.5)^BG125,0))) -> 0.99 | AD117: 0 | AE117: 0 | AF117: =IF(BD117=0,"",ROUNDDOWN((SQRT(AC117)*2+SUM(AE117:AE120)*1.5+SUM(AD117:AD120)+BD117)*BE117,1)) -> 13 | AH117: =IF($K117="大口径主砲",1,0)+IF($K118="大口径主砲",1,0)+IF($K119="大口径主砲",1,0)+IF($K120="大口径主砲",1,0) -> 0 | AI117: =IF($K117="中口径主砲",1,0)+IF($K118="中口径主砲",1,0)+IF($K119="中口径主砲",1,0)+IF($K120="中口径主砲",1,0) -> 0 | AJ117: =IF($K117="小口径主砲",1,0)+IF($K118="小口径主砲",1,0)+IF($K119="小口径主砲",1,0)+IF($K120="小口径主砲",1,0) -> 2 | AK117: =AH117+AI117+AJ117 -> 2 | AL117: =IF($K117="副砲",1,0)+IF($K118="副砲",1,0)+IF($K119="副砲",1,0)+IF($K120="副砲",1,0) -> 0 | AM117: =IF($K117="大型電探",1,0)+IF($K118="大型電探",1,0)+IF($K119="大型電探",1,0)+IF($K120="大型電探",1,0) -> 0 | AN117: =IF($K117="小型電探",1,0)+IF($K118="小型電探",1,0)+IF($K119="小型電探",1,0)+IF($K120="小型電探",1,0) -> 1 | AO117: =AM117+AN117 -> 1 | AP117: =IF($K117="魚雷",1,0)+IF($K118="魚雷",1,0)+IF($K119="魚雷",1,0)+IF($K120="魚雷",1,0) -> 0 | AQ117: =IF($K117="対艦強化弾",1,0)+IF($K118="対艦強化弾",1,0)+IF($K119="対艦強化弾",1,0)+IF($K120="対艦強化弾",1,0) -> 0 | AR117: =IF(OR($K117="水上偵察機",$K117="水上爆撃機"),1,0)+IF(OR($K118="水上偵察機",$K118="水上爆撃機"),1,0)+IF(OR($K119="水上偵察機",$K119="水上爆撃機"),1,0)+IF(OR($K120="水上偵察機",$K120="水上爆撃機"),1,0) -> 0 | AS117: =IF($K117="爆雷",1,0)+IF($K118="爆雷",1,0)+IF($K119="爆雷",1,0)+IF($K120="爆雷",1,0) -> 0 | AT117: =IF($K117="ソナー",1,0)+IF($K118="ソナー",1,0)+IF($K119="ソナー",1,0)+IF($K120="ソナー",1,0) -> 0 | AU117: =IF(OR($K117="オートジャイロ",$K117="対潜哨戒機"),1,0)+IF(OR($K118="オートジャイロ",$K118="対潜哨戒機"),1,0)+IF(OR($K119="オートジャイロ",$K119="対潜哨戒機"),1,0)+IF(OR($K120="オートジャイロ",$K120="対潜哨戒機"),1,0) -> 0 | AV117: =IF($K117="艦上爆撃機",1,0)+IF($K118="艦上爆撃機",1,0)+IF($K119="艦上爆撃機",1,0)+IF($K120="艦上爆撃機",1,0) -> 0 | AW117: =IF($K117="艦上攻撃機",1,0)+IF($K118="艦上攻撃機",1,0)+IF($K119="艦上攻撃機",1,0)+IF($K120="艦上攻撃機",1,0) -> 0 | AX117: =IF($K117="大型飛行艇",1,0)+IF($K118="大型飛行艇",1,0)+IF($K119="大型飛行艇",1,0)+IF($K120="大型飛行艇",1,0) -> 0 | AY117: =IF($K117="水上爆撃機",1,0)+IF($K118="水上爆撃機",1,0)+IF($K119="水上爆撃機",1,0)+IF($K120="水上爆撃機",1,0) -> 0 | AZ117: =SUM(AV117:AY120) -> 0 | BA117: =SUM(AU117:AY120) -> 0 | BB117: =IF(AZ117>0,4,IF(BA117>0,3,2)) -> 2 | BC117: =IF(ISERROR(VLOOKUP(F117,antisubmarine_ex,1,FALSE)),E117,VLOOKUP(F117,antisubmarine_ex,2,FALSE)&"") -> 駆逐艦 | BD117: =IF(ISERROR(VLOOKUP(BC117,antisubmarine,BB117,FALSE)),0,VLOOKUP(BC117,antisubmarine,BB117,FALSE)) -> 13 | BE117: =IF(AND(AS117>0,AT117>0),1.15,1) -> 1 | BF117: =IF(H117="探照灯",1,0)+IF(H118="探照灯",1,0)+IF(H119="探照灯",1,0)+IF(H120="探照灯",1,0) -> 0 | BG117: =IF(H117="照明弾",1,0)+IF(H118="照明弾",1,0)+IF(H119="照明弾",1,0)+IF(H120="照明弾",1,0) -> 0 | BH117: =IF(H117="熟練見張員",1,0)+IF(H118="熟練見張員",1,0)+IF(H119="熟練見張員",1,0)+IF(H120="熟練見張員",1,0) -> 0 | BI117: =AA117+BH117*VLOOKUP("運",watcher,2,FALSE) -> 0 | BJ117: =IF(AP117>=2,"魚雷",IF(AH117+AI117+AJ117>=3,"主砲",IF(AND(AH117+AI117+AJ117=2,AL117>=1),"主砲副砲",IF(OR(AND(AH117+AI117+AJ117=1,AP117=1),AND(AH117+AI117+AJ117=2,AL117=0,AP117=1)),"主砲魚雷",0)))) -> 0 | BK117: =IF(AP117>=2,VLOOKUP("魚雷",luck_cap,2,FALSE),IF(AH117+AI117+AJ117>=3,VLOOKUP("主砲",luck_cap,2,FALSE),IF(AND(AH117+AI117+AJ117=2,AL117>=1),VLOOKUP("主砲副砲",luck_cap,2,FALSE),IF(OR(AND(AH117+AI117+AJ117=1,AP117=1),AND(AH117+AI117+AJ117=2,AL117=0,AP117=1)),VLOOKUP("主砲魚雷",luck_cap,2,FALSE),0)))) -> 0 | BL117: =IF(H117="ドラム缶",1,0)+IF(H118="ドラム缶",1,0)+IF(H119="ドラム缶",1,0)+IF(H120="ドラム缶",1,0) -> 0
G118: =IF(F117="",,VLOOKUP(F117,carrierlist,3,FALSE)&"") -> 0 | H118: 10cm高角砲＋高射装置 | J118: 10 | K118: 小口径主砲 | L118: 0 | P118: 4.16 | Q118: 6.16 | R118: 0 | S118: 0 | T118: =IF(ISERROR(VLOOKUP(H118,fighterlist,1,FALSE)),"",IF(OR(E117="装甲空母",E117="正規空母",E117="軽空母",E117="水上機母艦",E117="航空戦艦",E117="航空巡洋艦",E117="潜水空母"),IF(VLOOKUP(H118,fighterlist,11,FALSE)="艦上攻撃機",ROUNDDOWN(0.8*(R118*SQRT(G118)+25),0),IF(OR(VLOOKUP(H118,fighterlist,11,FALSE)="艦上爆撃機",VLOOKUP(H118,fighterlist,11,FALSE)="水上爆撃機"),ROUNDDOWN(1*(S118*SQRT(G118)+25),0),"")),"")) ->  | U118: =IF(OR(E117="装甲空母",E117="正規空母",E117="軽空母",E117="水上機母艦",E117="航空戦艦",E117="航空巡洋艦",E117="潜水空母"),IF(K118="艦上攻撃機",ROUNDDOWN(1.5*(R118*SQRT(G118)+25),0),IF(OR(K118="艦上爆撃機",K118="水上爆撃機"),ROUNDDOWN(1*(S118*SQRT(G118)+25),0),"")),"") ->  | AD118: 0 | AE118: 0
G119: =IF(F117="",,VLOOKUP(F117,carrierlist,4,FALSE)&"") -> 0 | H119: 22号対水上電探改四 | J119: 6 | K119: 小型電探 | L119: 0 | O119: 3 | P119: 10.44 | Q119: 0 | R119: 0 | S119: 0 | T119: =IF(ISERROR(VLOOKUP(H119,fighterlist,1,FALSE)),"",IF(OR(E117="装甲空母",E117="正規空母",E117="軽空母",E117="水上機母艦",E117="航空戦艦",E117="航空巡洋艦",E117="潜水空母"),IF(VLOOKUP(H119,fighterlist,11,FALSE)="艦上攻撃機",ROUNDDOWN(0.8*(R119*SQRT(G119)+25),0),IF(OR(VLOOKUP(H119,fighterlist,11,FALSE)="艦上爆撃機",VLOOKUP(H119,fighterlist,11,FALSE)="水上爆撃機"),ROUNDDOWN(1*(S119*SQRT(G119)+25),0),"")),"")) ->  | U119: =IF(OR(E117="装甲空母",E117="正規空母",E117="軽空母",E117="水上機母艦",E117="航空戦艦",E117="航空巡洋艦",E117="潜水空母"),IF(K119="艦上攻撃機",ROUNDDOWN(1.5*(R119*SQRT(G119)+25),0),IF(OR(K119="艦上爆撃機",K119="水上爆撃機"),ROUNDDOWN(1*(S119*SQRT(G119)+25),0),"")),"") ->  | AD119: 0 | AE119: 0
G120: =IF(F117="",,VLOOKUP(F117,carrierlist,5,FALSE)&"") ->  | L120: 0 | P120: 0 | Q120: 0 | R120: 0 | S120: 0 | T120: =IF(ISERROR(VLOOKUP(H120,fighterlist,1,FALSE)),"",IF(OR(E117="装甲空母",E117="正規空母",E117="軽空母",E117="水上機母艦",E117="航空戦艦",E117="航空巡洋艦",E117="潜水空母"),IF(VLOOKUP(H120,fighterlist,11,FALSE)="艦上攻撃機",ROUNDDOWN(0.8*(R120*SQRT(G120)+25),0),IF(OR(VLOOKUP(H120,fighterlist,11,FALSE)="艦上爆撃機",VLOOKUP(H120,fighterlist,11,FALSE)="水上爆撃機"),ROUNDDOWN(1*(S120*SQRT(G120)+25),0),"")),"")) ->  | U120: =IF(OR(E117="装甲空母",E117="正規空母",E117="軽空母",E117="水上機母艦",E117="航空戦艦",E117="航空巡洋艦",E117="潜水空母"),IF(K120="艦上攻撃機",ROUNDDOWN(1.5*(R120*SQRT(G120)+25),0),IF(OR(K120="艦上爆撃機",K120="水上爆撃機"),ROUNDDOWN(1*(S120*SQRT(G120)+25),0),"")),"") ->  | AD120: 0 | AE120: 0
E121: =IF(F121="","",VLOOKUP(F121,carrierlist,8,FALSE)&"") -> 駆逐艦 | F121: 秋月改 | G121: =IF(F121="",,VLOOKUP(F121,carrierlist,2,FALSE)&"") -> 0 | H121: 10cm高角砲＋高射装置 | J121: 10 | K121: 小口径主砲 | L121: 0 | M121: 42 | P121: 4.16 | Q121: 6.16 | R121: 0 | S121: 0 | T121: =IF(ISERROR(VLOOKUP(H121,fighterlist,1,FALSE)),"",IF(OR(E121="装甲空母",E121="正規空母",E121="軽空母",E121="水上機母艦",E121="航空戦艦",E121="航空巡洋艦",E121="潜水空母"),IF(VLOOKUP(H121,fighterlist,11,FALSE)="艦上攻撃機",ROUNDDOWN(0.8*(R121*SQRT(G121)+25),0),IF(OR(VLOOKUP(H121,fighterlist,11,FALSE)="艦上爆撃機",VLOOKUP(H121,fighterlist,11,FALSE)="水上爆撃機"),ROUNDDOWN(1*(S121*SQRT(G121)+25),0),"")),"")) ->  | U121: =IF(OR(E121="装甲空母",E121="正規空母",E121="軽空母",E121="水上機母艦",E121="航空戦艦",E121="航空巡洋艦",E121="潜水空母"),IF(K121="艦上攻撃機",ROUNDDOWN(1.5*(R121*SQRT(G121)+25),0),IF(OR(K121="艦上爆撃機",K121="水上爆撃機"),ROUNDDOWN(1*(S121*SQRT(G121)+25),0),"")),"") ->  | V121: =IF(OR(F121="",F121="[その他]",),"",IF(F121="","",IF(OR(E121="装甲空母",E121="正規空母",E121="軽空母"),IF(SUM(R121:R124)+SUM(S121:S124)=0,0,ROUNDDOWN(55+(VLOOKUP(F121,carrierlist,6,FALSE)+SUM(Q121:Q124))*1.5+SUM(R121:R124)*1.5+SUM(S121:S124)*2,0)),ROUNDDOWN(5+VLOOKUP(F121,carrierlist,6,FALSE)+SUM(Q121:Q124),0)))) -> 74 | W121: =IF(OR(E121="潜水艦",E121="潜水空母",E121="駆逐艦",E121="軽巡洋艦",E121="重雷装巡洋艦",E121="重巡洋艦",E121="航空巡洋艦",E121="水上機母艦"),ROUNDDOWN(5+VLOOKUP(F121,carrierlist,7,FALSE)+SUM(R121:R124),0),"") -> 59 | X121: =IF(OR(F121="",F121="[その他]",E121="装甲空母",E121="正規空母",E121="軽空母"),"",ROUNDDOWN(VLOOKUP(F121,carrierlist,6,FALSE)+VLOOKUP(F121,carrierlist,7,FALSE)+SUM(Q121:R124),0)) -> 123 | Y121: =IF(OR(AP121>=2,AK121>=3,AND(AK121=2,AL121>=1),AND(AK121>=1,AK121<=2,AP121>=1)),"カットイン",IF(OR(AND(AK121=2,AL121=0,AP121=0),AND(AK121=1,AL121>=1,AP121=0),AND(AK121=0,AL121>=2,AP121<=1)),"連撃","")) -> 連撃 | Z121: =IF(AP121>=2,ROUNDDOWN(X121*1.5,0)&"×2",IF(AH121>=3,X121*2,IF(AND(AH121=2,AL121>=1),ROUNDDOWN(X121*1.75,0),IF(AND(AH121>=1,AH121<=2,AP121>=1),ROUNDDOWN(X121*1.3,0)&"×2",IF(Y121="連撃",ROUNDDOWN(X121*1.2,0)&"×2",""))))) -> 147×2 | AB121: =IF(Y121="連撃",0.99,IF(Y121="",0,SQRT(VLOOKUP(BJ121,ci_coefficient,2,FALSE)*IF(BI121>BK121,BK121,BI121))*0.01+0.05*IF(BF125>=1,1,0)+0.05*IF(BG125>=1,1-(0.5)^BG125,0))) -> 0.99 | AD121: 0 | AE121: 0 | AF121: =IF(BD121=0,"",ROUNDDOWN((SQRT(AC121)*2+SUM(AE121:AE124)*1.5+SUM(AD121:AD124)+BD121)*BE121,1)) -> 13 | AH121: =IF($K121="大口径主砲",1,0)+IF($K122="大口径主砲",1,0)+IF($K123="大口径主砲",1,0)+IF($K124="大口径主砲",1,0) -> 0 | AI121: =IF($K121="中口径主砲",1,0)+IF($K122="中口径主砲",1,0)+IF($K123="中口径主砲",1,0)+IF($K124="中口径主砲",1,0) -> 0 | AJ121: =IF($K121="小口径主砲",1,0)+IF($K122="小口径主砲",1,0)+IF($K123="小口径主砲",1,0)+IF($K124="小口径主砲",1,0) -> 2 | AK121: =AH121+AI121+AJ121 -> 2 | AL121: =IF($K121="副砲",1,0)+IF($K122="副砲",1,0)+IF($K123="副砲",1,0)+IF($K124="副砲",1,0) -> 0 | AM121: =IF($K121="大型電探",1,0)+IF($K122="大型電探",1,0)+IF($K123="大型電探",1,0)+IF($K124="大型電探",1,0) -> 0 | AN121: =IF($K121="小型電探",1,0)+IF($K122="小型電探",1,0)+IF($K123="小型電探",1,0)+IF($K124="小型電探",1,0) -> 1 | AO121: =AM121+AN121 -> 1 | AP121: =IF($K121="魚雷",1,0)+IF($K122="魚雷",1,0)+IF($K123="魚雷",1,0)+IF($K124="魚雷",1,0) -> 0 | AQ121: =IF($K121="対艦強化弾",1,0)+IF($K122="対艦強化弾",1,0)+IF($K123="対艦強化弾",1,0)+IF($K124="対艦強化弾",1,0) -> 0 | AR121: =IF(OR($K121="水上偵察機",$K121="水上爆撃機"),1,0)+IF(OR($K122="水上偵察機",$K122="水上爆撃機"),1,0)+IF(OR($K123="水上偵察機",$K123="水上爆撃機"),1,0)+IF(OR($K124="水上偵察機",$K124="水上爆撃機"),1,0) -> 0 | AS121: =IF($K121="爆雷",1,0)+IF($K122="爆雷",1,0)+IF($K123="爆雷",1,0)+IF($K124="爆雷",1,0) -> 0 | AT121: =IF($K121="ソナー",1,0)+IF($K122="ソナー",1,0)+IF($K123="ソナー",1,0)+IF($K124="ソナー",1,0) -> 0 | AU121: =IF(OR($K121="オートジャイロ",$K121="対潜哨戒機"),1,0)+IF(OR($K122="オートジャイロ",$K122="対潜哨戒機"),1,0)+IF(OR($K123="オートジャイロ",$K123="対潜哨戒機"),1,0)+IF(OR($K124="オートジャイロ",$K124="対潜哨戒機"),1,0) -> 0 | AV121: =IF($K121="艦上爆撃機",1,0)+IF($K122="艦上爆撃機",1,0)+IF($K123="艦上爆撃機",1,0)+IF($K124="艦上爆撃機",1,0) -> 0 | AW121: =IF($K121="艦上攻撃機",1,0)+IF($K122="艦上攻撃機",1,0)+IF($K123="艦上攻撃機",1,0)+IF($K124="艦上攻撃機",1,0) -> 0 | AX121: =IF($K121="大型飛行艇",1,0)+IF($K122="大型飛行艇",1,0)+IF($K123="大型飛行艇",1,0)+IF($K124="大型飛行艇",1,0) -> 0 | AY121: =IF($K121="水上爆撃機",1,0)+IF($K122="水上爆撃機",1,0)+IF($K123="水上爆撃機",1,0)+IF($K124="水上爆撃機",1,0) -> 0 | AZ121: =SUM(AV121:AY124) -> 0 | BA121: =SUM(AU121:AY124) -> 0 | BB121: =IF(AZ121>0,4,IF(BA121>0,3,2)) -> 2 | BC121: =IF(ISERROR(VLOOKUP(F121,antisubmarine_ex,1,FALSE)),E121,VLOOKUP(F121,antisubmarine_ex,2,FALSE)&"") -> 駆逐艦 | BD121: =IF(ISERROR(VLOOKUP(BC121,antisubmarine,BB121,FALSE)),0,VLOOKUP(BC121,antisubmarine,BB121,FALSE)) -> 13 | BE121: =IF(AND(AS121>0,AT121>0),1.15,1) -> 1 | BF121: =IF(H121="探照灯",1,0)+IF(H122="探照灯",1,0)+IF(H123="探照灯",1,0)+IF(H124="探照灯",1,0) -> 0 | BG121: =IF(H121="照明弾",1,0)+IF(H122="照明弾",1,0)+IF(H123="照明弾",1,0)+IF(H124="照明弾",1,0) -> 0 | BH121: =IF(H121="熟練見張員",1,0)+IF(H122="熟練見張員",1,0)+IF(H123="熟練見張員",1,0)+IF(H124="熟練見張員",1,0) -> 0 | BI121: =AA121+BH121*VLOOKUP("運",watcher,2,FALSE) -> 0 | BJ121: =IF(AP121>=2,"魚雷",IF(AH121+AI121+AJ121>=3,"主砲",IF(AND(AH121+AI121+AJ121=2,AL121>=1),"主砲副砲",IF(OR(AND(AH121+AI121+AJ121=1,AP121=1),AND(AH121+AI121+AJ121=2,AL121=0,AP121=1)),"主砲魚雷",0)))) -> 0 | BK121: =IF(AP121>=2,VLOOKUP("魚雷",luck_cap,2,FALSE),IF(AH121+AI121+AJ121>=3,VLOOKUP("主砲",luck_cap,2,FALSE),IF(AND(AH121+AI121+AJ121=2,AL121>=1),VLOOKUP("主砲副砲",luck_cap,2,FALSE),IF(OR(AND(AH121+AI121+AJ121=1,AP121=1),AND(AH121+AI121+AJ121=2,AL121=0,AP121=1)),VLOOKUP("主砲魚雷",luck_cap,2,FALSE),0)))) -> 0 | BL121: =IF(H121="ドラム缶",1,0)+IF(H122="ドラム缶",1,0)+IF(H123="ドラム缶",1,0)+IF(H124="ドラム缶",1,0) -> 0
G122: =IF(F121="",,VLOOKUP(F121,carrierlist,3,FALSE)&"") -> 0 | H122: 10cm高角砲＋高射装置 | J122: 10 | K122: 小口径主砲 | L122: 0 | P122: 4.16 | Q122: 6.16 | R122: 0 | S122: 0 | T122: =IF(ISERROR(VLOOKUP(H122,fighterlist,1,FALSE)),"",IF(OR(E121="装甲空母",E121="正規空母",E121="軽空母",E121="水上機母艦",E121="航空戦艦",E121="航空巡洋艦",E121="潜水空母"),IF(VLOOKUP(H122,fighterlist,11,FALSE)="艦上攻撃機",ROUNDDOWN(0.8*(R122*SQRT(G122)+25),0),IF(OR(VLOOKUP(H122,fighterlist,11,FALSE)="艦上爆撃機",VLOOKUP(H122,fighterlist,11,FALSE)="水上爆撃機"),ROUNDDOWN(1*(S122*SQRT(G122)+25),0),"")),"")) ->  | U122: =IF(OR(E121="装甲空母",E121="正規空母",E121="軽空母",E121="水上機母艦",E121="航空戦艦",E121="航空巡洋艦",E121="潜水空母"),IF(K122="艦上攻撃機",ROUNDDOWN(1.5*(R122*SQRT(G122)+25),0),IF(OR(K122="艦上爆撃機",K122="水上爆撃機"),ROUNDDOWN(1*(S122*SQRT(G122)+25),0),"")),"") ->  | AD122: 0 | AE122: 0
G123: =IF(F121="",,VLOOKUP(F121,carrierlist,4,FALSE)&"") -> 0 | H123: 13号対空電探改 | J123: 10 | K123: 小型電探 | L123: 0 | O123: 2.4 | P123: 5.16 | Q123: 0 | R123: 0 | S123: 0 | T123: =IF(ISERROR(VLOOKUP(H123,fighterlist,1,FALSE)),"",IF(OR(E121="装甲空母",E121="正規空母",E121="軽空母",E121="水上機母艦",E121="航空戦艦",E121="航空巡洋艦",E121="潜水空母"),IF(VLOOKUP(H123,fighterlist,11,FALSE)="艦上攻撃機",ROUNDDOWN(0.8*(R123*SQRT(G123)+25),0),IF(OR(VLOOKUP(H123,fighterlist,11,FALSE)="艦上爆撃機",VLOOKUP(H123,fighterlist,11,FALSE)="水上爆撃機"),ROUNDDOWN(1*(S123*SQRT(G123)+25),0),"")),"")) ->  | U123: =IF(OR(E121="装甲空母",E121="正規空母",E121="軽空母",E121="水上機母艦",E121="航空戦艦",E121="航空巡洋艦",E121="潜水空母"),IF(K123="艦上攻撃機",ROUNDDOWN(1.5*(R123*SQRT(G123)+25),0),IF(OR(K123="艦上爆撃機",K123="水上爆撃機"),ROUNDDOWN(1*(S123*SQRT(G123)+25),0),"")),"") ->  | AD123: 0 | AE123: 0
G124: =IF(F121="",,VLOOKUP(F121,carrierlist,5,FALSE)&"") ->  | L124: 0 | P124: 0 | Q124: 0 | R124: 0 | S124: 0 | T124: =IF(ISERROR(VLOOKUP(H124,fighterlist,1,FALSE)),"",IF(OR(E121="装甲空母",E121="正規空母",E121="軽空母",E121="水上機母艦",E121="航空戦艦",E121="航空巡洋艦",E121="潜水空母"),IF(VLOOKUP(H124,fighterlist,11,FALSE)="艦上攻撃機",ROUNDDOWN(0.8*(R124*SQRT(G124)+25),0),IF(OR(VLOOKUP(H124,fighterlist,11,FALSE)="艦上爆撃機",VLOOKUP(H124,fighterlist,11,FALSE)="水上爆撃機"),ROUNDDOWN(1*(S124*SQRT(G124)+25),0),"")),"")) ->  | U124: =IF(OR(E121="装甲空母",E121="正規空母",E121="軽空母",E121="水上機母艦",E121="航空戦艦",E121="航空巡洋艦",E121="潜水空母"),IF(K124="艦上攻撃機",ROUNDDOWN(1.5*(R124*SQRT(G124)+25),0),IF(OR(K124="艦上爆撃機",K124="水上爆撃機"),ROUNDDOWN(1*(S124*SQRT(G124)+25),0),"")),"") ->  | AD124: 0 | AE124: 0
E125: 制空合計 | L125: =ROUNDDOWN(SUM(L101:L124),1) -> 67.2 | M125: 総索敵値 | O125: =ROUNDDOWN(1.69*(SQRT(M101)+SQRT(M105)+SQRT(M109)+SQRT(M113)+SQRT(M117)+SQRT(M121))+SUM(O101:O124)-($G$2*0.61),2) -> 18.43 | AH125: 積載艦数 | BF125: =IF(BF101>0,1,0)+IF(BF105>0,1,0)+IF(BF109>0,1,0)+IF(BF113>0,1,0)+IF(BF117>0,1,0)+IF(BF121>0,1,0) -> 0 | BG125: =IF(BG101>0,1,0)+IF(BG105>0,1,0)+IF(BG109>0,1,0)+IF(BG113>0,1,0)+IF(BG117>0,1,0)+IF(BG121>0,1,0) -> 0 | BL125: =IF(BL101>0,1,0)+IF(BL105>0,1,0)+IF(BL109>0,1,0)+IF(BL113>0,1,0)+IF(BL117>0,1,0)+IF(BL121>0,1,0) -> 0
E126: =IF(AND(OR(C106=0,C106=""),SUM(AV101:AY124)=0),"航空均衡",IF(L125>=C106*3,"制空権確保",IF(L125>=C106*1.5,"航空優勢",IF(L125>=C106*2/3,"航空均衡",IF(L125>=C106*1/3,"航空劣勢","制空権喪失"))))) -> 航空優勢 | M126: 索敵要求比 | O126: =IF(C110="","",O125/C110) ->  | AH126: 合計積載数 | BL126: =SUM(BL101:BL124) -> 0
B128: 艦種 | C128: 制空値 | E128: 艦種 | F128: 艦名 | G128: 装備スロット | L128: 制空値 | M128: 索敵 | P128: その他変動 | T128: 航空戦攻撃力 | V128: 昼戦 | X128: 夜戦 | AC128: 対潜 | AH128: 装備カウント
B129: 空母ヲ級 | C129: =IF(B129="","",VLOOKUP(B129,enemyforcelist,2,FALSE)) -> 10 | G129: 積載 | H129: 装備 | I129: ≫ | J129: ★ | K129: 分類 | M129: 基礎 | N129: 基礎+ | O129: 装備 | P129: 命中 | Q129: 火力 | R129: 雷装 | S129: 爆装 | T129: 弱攻撃 | U129: 強攻撃 | V129: 砲撃 | W129: 雷撃 | X129: 攻撃 | Y129: 特分類 | Z129: 特攻撃 | AA129: 運 | AB129: 特発動 | AC129: 基礎 | AD129: + | AE129: 装備 | AF129: 攻撃力 | AH129: 大口径主砲 | AI129: 中口径主砲 | AJ129: 小口径主砲 | AK129: 主砲合計 | AL129: 副砲 | AM129: 大型電探 | AN129: 小型電探 | AO129: 電探合計 | AP129: 魚雷 | AQ129: 徹甲弾 | AR129: 索敵機 | AS129: 爆雷 | AT129: ソナー | AU129: 対潜機 | AV129: 艦爆 | AW129: 艦攻 | AX129: 大型飛行艇 | AY129: 水上爆撃機 | AZ129: 軽空母対潜可 | BA129: 航空艦対潜可 | BB129: 対潜種別 | BC129: 対潜艦種 | BD129: 対潜定数 | BE129: 対潜シナジー | BF129: 探照灯 | BG129: 照明弾 | BH129: 見張員 | BI129: 運 | BJ129: CI分類 | BK129: 運上限 | BL129: ドラム缶
B130: 空母ヲ級 | C130: 10 | E130: =IF(F130="","",VLOOKUP(F130,carrierlist,8,FALSE)&"") -> 重雷装巡洋艦 | F130: 北上改二 | G130: =IF(F130="",,VLOOKUP(F130,carrierlist,2,FALSE)&"") -> 0 | H130: 20.3cm(3号)連装砲 | J130: 10 | K130: =IF(ISERROR(VLOOKUP(H130,fighterlist,1,FALSE)),"",VLOOKUP(H130,fighterlist,11,FALSE)&"") -> 中口径主砲 | L130: =ROUNDDOWN(IF(OR(H130="",G130="",G130=0,ISERROR(VLOOKUP(H130,fighterlist,1,FALSE))),0,SQRT(G130)*IF(H130="","",VLOOKUP(H130,fighterlist,3,FALSE)+IF(J130>0,J130*VLOOKUP(K130,customlist,10,FALSE),0))+IF(AND(I130>=1,I130<=7),IF(ISERROR(VLOOKUP(K130,superior_skill_bonus,I130+1,FALSE)),0,VLOOKUP(K130,superior_skill_bonus,I130+1,FALSE)+SQRT(VLOOKUP(I130,skill_inner_level,2,FALSE)/10)),0)),0) -> 0 | N130: =IF(ISERROR(VLOOKUP(H130,fighterlist,1,FALSE)),"",IF(VLOOKUP(H130,fighterlist,5,FALSE)=0,VLOOKUP(H130,fighterlist,4,FALSE),"")) ->  | O130: =IF(OR(H130="",K130="",ISERROR(VLOOKUP(K130,customlist,1,FALSE))),0,IF(VLOOKUP(H130,fighterlist,5,FALSE)="",0,VLOOKUP(H130,fighterlist,5,FALSE))+SQRT(J130*IF(VLOOKUP(K130,customlist,9,FALSE)="",0,VLOOKUP(K130,customlist,9,FALSE)))) -> 0 | P130: =IF(ISERROR(VLOOKUP(H130,fighterlist,1,FALSE)),0,VLOOKUP(H130,fighterlist,6,FALSE)+ROUNDDOWN(SQRT(J130*VLOOKUP(K130,customlist,7,FALSE)),2)) -> 4.16 | Q130: =IF(ISERROR(VLOOKUP(H130,fighterlist,1,FALSE)),0,VLOOKUP(H130,fighterlist,7,FALSE)+ROUNDDOWN(SQRT(J130*VLOOKUP(K130,customlist,2,FALSE)),2)) -> 13.16 | R130: =IF(ISERROR(VLOOKUP(H130,fighterlist,1,FALSE)),0,VLOOKUP(H130,fighterlist,8,FALSE)+ROUNDDOWN(SQRT(J130*VLOOKUP(K130,customlist,3,FALSE)),2)) -> 0 | S130: =IF(ISERROR(VLOOKUP(H130,fighterlist,1,FALSE)),0,VLOOKUP(H130,fighterlist,9,FALSE)+ROUNDDOWN(J130*VLOOKUP(K130,customlist,4,FALSE),1)) -> 0 | T130: =IF(ISERROR(VLOOKUP(H130,fighterlist,1,FALSE)),"",IF(OR(E130="装甲空母",E130="正規空母",E130="軽空母",E130="水上機母艦",E130="航空戦艦",E130="航空巡洋艦",E130="潜水空母"),IF(VLOOKUP(H130,fighterlist,11,FALSE)="艦上攻撃機",ROUNDDOWN(0.8*(R130*SQRT(G130)+25),0),IF(OR(VLOOKUP(H130,fighterlist,11,FALSE)="艦上爆撃機",VLOOKUP(H130,fighterlist,11,FALSE)="噴式戦闘爆撃機",VLOOKUP(H130,fighterlist,11,FALSE)="水上爆撃機"),ROUNDDOWN(1*(S130*SQRT(G130)+25),0),"")),"")) ->  | U130: =IF(OR(E130="装甲空母",E130="正規空母",E130="軽空母",E130="水上機母艦",E130="航空戦艦",E130="航空巡洋艦",E130="潜水空母"),IF(K130="艦上攻撃機",ROUNDDOWN(1.5*(R130*SQRT(G130)+25),0),IF(OR(K130="艦上爆撃機",K130="噴式戦闘爆撃機",K130="水上爆撃機"),ROUNDDOWN(1*(S130*SQRT(G130)+25),0),"")),"") ->  | V130: =IF(OR(F130="",F130="[その他]",),"",IF(F130="","",IF(OR(E130="装甲空母",E130="正規空母",E130="軽空母"),IF(SUM(R130:R133)+SUM(S130:S133)=0,0,ROUNDDOWN(55+(VLOOKUP(F130,carrierlist,6,FALSE)+SUM(Q130:Q133))*1.5+SUM(R130:R133)*1.5+SUM(S130:S133)*2,0)),ROUNDDOWN(5+VLOOKUP(F130,carrierlist,6,FALSE)+SUM(Q130:Q133),0)))) -> 94 | W130: =IF(OR(E130="潜水艦",E130="潜水空母",E130="駆逐艦",E130="軽巡洋艦",E130="重雷装巡洋艦",E130="重巡洋艦",E130="航空巡洋艦",E130="水上機母艦"),ROUNDDOWN(5+VLOOKUP(F130,carrierlist,7,FALSE)+SUM(R130:R133),0),"") -> 156 | X130: =IF(OR(F130="",F130="[その他]",E130="装甲空母",E130="正規空母",E130="軽空母"),"",ROUNDDOWN(VLOOKUP(F130,carrierlist,6,FALSE)+VLOOKUP(F130,carrierlist,7,FALSE)+SUM(Q130:R133),0)) -> 240 | Y130: =IF(OR(AP130>=2,AK130>=3,AND(AK130=2,AL130>=1),AND(AK130>=1,AK130<=2,AP130>=1)),"カットイン",IF(OR(AND(AK130=2,AL130=0,AP130=0),AND(AK130=1,AL130>=1,AP130=0),AND(AK130=0,AL130>=2,AP130<=1)),"連撃","")) -> 連撃 | Z130: =IF(AP130>=2,ROUNDDOWN(X130*1.5,0)&"×2",IF(AH130>=3,X130*2,IF(AND(AH130=2,AL130>=1),ROUNDDOWN(X130*1.75,0),IF(AND(AH130>=1,AH130<=2,AP130>=1),ROUNDDOWN(X130*1.3,0)&"×2",IF(Y130="連撃",ROUNDDOWN(X130*1.2,0)&"×2",""))))) -> 288×2 | AA130: 61 | AB130: =IF(Y130="連撃",0.99,IF(Y130="",0,SQRT(VLOOKUP(BJ130,ci_coefficient,2,FALSE)*IF(BI130>BK130,BK130,BI130))*0.01+0.125+0.05*IF(BF154>=1,1,0)+0.05*IF(BG154>=1,1-(0.5)^BG154,0))) -> 0.99 | AD130: =IF(ISERROR(VLOOKUP(K130,customlist,1,FALSE)),0,SQRT(J130*VLOOKUP(K130,customlist,5,FALSE))) -> 0 | AE130: =IF(ISERROR(VLOOKUP(H130,fighterlist,1,FALSE)),0,IF(ISERROR(VLOOKUP(K130,antisubmarine_flag,1,FALSE)),0,VLOOKUP(K130,antisubmarine_flag,2,FALSE)*VLOOKUP(H130,fighterlist,10,FALSE))) -> 0 | AF130: =IF(BD130=0,"",ROUNDDOWN((SQRT(AC130)*2+SUM(AE130:AE133)*1.5+SUM(AD130:AD133)+BD130)*BE130,1)) -> 13 | AH130: =IF($K130="大口径主砲",1,0)+IF($K131="大口径主砲",1,0)+IF($K132="大口径主砲",1,0)+IF($K133="大口径主砲",1,0) -> 0 | AI130: =IF($K130="中口径主砲",1,0)+IF($K131="中口径主砲",1,0)+IF($K132="中口径主砲",1,0)+IF($K133="中口径主砲",1,0) -> 2 | AJ130: =IF($K130="小口径主砲",1,0)+IF($K131="小口径主砲",1,0)+IF($K132="小口径主砲",1,0)+IF($K133="小口径主砲",1,0) -> 0 | AK130: =AH130+AI130+AJ130 -> 2 | AL130: =IF($K130="副砲",1,0)+IF($K131="副砲",1,0)+IF($K132="副砲",1,0)+IF($K133="副砲",1,0) -> 0 | AM130: =IF($K130="大型電探",1,0)+IF($K131="大型電探",1,0)+IF($K132="大型電探",1,0)+IF($K133="大型電探",1,0) -> 0 | AN130: =IF($K130="小型電探",1,0)+IF($K131="小型電探",1,0)+IF($K132="小型電探",1,0)+IF($K133="小型電探",1,0) -> 0 | AO130: =AM130+AN130 -> 0 | AP130: =IF($K130="魚雷",1,0)+IF($K131="魚雷",1,0)+IF($K132="魚雷",1,0)+IF($K133="魚雷",1,0) -> 0 | AQ130: =IF($K130="対艦強化弾",1,0)+IF($K131="対艦強化弾",1,0)+IF($K132="対艦強化弾",1,0)+IF($K133="対艦強化弾",1,0) -> 0 | AR130: =IF(OR($K130="水上偵察機",$K130="水上爆撃機"),1,0)+IF(OR($K131="水上偵察機",$K131="水上爆撃機"),1,0)+IF(OR($K132="水上偵察機",$K132="水上爆撃機"),1,0)+IF(OR($K133="水上偵察機",$K133="水上爆撃機"),1,0) -> 0 | AS130: =IF($K130="爆雷",1,0)+IF($K131="爆雷",1,0)+IF($K132="爆雷",1,0)+IF($K133="爆雷",1,0) -> 0 | AT130: =IF($K130="ソナー",1,0)+IF($K131="ソナー",1,0)+IF($K132="ソナー",1,0)+IF($K133="ソナー",1,0) -> 0 | AU130: =IF(OR($K130="オートジャイロ",$K130="対潜哨戒機"),1,0)+IF(OR($K131="オートジャイロ",$K131="対潜哨戒機"),1,0)+IF(OR($K132="オートジャイロ",$K132="対潜哨戒機"),1,0)+IF(OR($K133="オートジャイロ",$K133="対潜哨戒機"),1,0) -> 0 | AV130: =IF($K130="艦上爆撃機",1,0)+IF($K131="艦上爆撃機",1,0)+IF($K132="艦上爆撃機",1,0)+IF($K133="艦上爆撃機",1,0) -> 0 | AW130: =IF($K130="艦上攻撃機",1,0)+IF($K131="艦上攻撃機",1,0)+IF($K132="艦上攻撃機",1,0)+IF($K133="艦上攻撃機",1,0) -> 0 | AX130: =IF($K130="大型飛行艇",1,0)+IF($K131="大型飛行艇",1,0)+IF($K132="大型飛行艇",1,0)+IF($K133="大型飛行艇",1,0) -> 0 | AY130: =IF($K130="水上爆撃機",1,0)+IF($K131="水上爆撃機",1,0)+IF($K132="水上爆撃機",1,0)+IF($K133="水上爆撃機",1,0) -> 0 | AZ130: =SUM(AV130:AY133) -> 0 | BA130: =SUM(AU130:AY133) -> 0 | BB130: =IF(AZ130>0,4,IF(BA130>0,3,2)) -> 2 | BC130: =IF(ISERROR(VLOOKUP(F130,antisubmarine_ex,1,FALSE)),E130,VLOOKUP(F130,antisubmarine_ex,2,FALSE)&"") -> 重雷装巡洋艦 | BD130: =IF(ISERROR(VLOOKUP(BC130,antisubmarine,BB130,FALSE)),0,VLOOKUP(BC130,antisubmarine,BB130,FALSE)) -> 13 | BE130: =IF(AND(AS130>0,AT130>0),1.15,1) -> 1 | BF130: =IF(H130="探照灯",1,0)+IF(H131="探照灯",1,0)+IF(H132="探照灯",1,0)+IF(H133="探照灯",1,0) -> 0 | BG130: =IF(H130="照明弾",1,0)+IF(H131="照明弾",1,0)+IF(H132="照明弾",1,0)+IF(H133="照明弾",1,0) -> 0 | BH130: =IF(H130="熟練見張員",1,0)+IF(H131="熟練見張員",1,0)+IF(H132="熟練見張員",1,0)+IF(H133="熟練見張員",1,0) -> 0 | BI130: =AA130+BH130*VLOOKUP("運",watcher,2,FALSE) -> 61 | BJ130: =IF(AP130>=2,"魚雷",IF(AH130+AI130+AJ130>=3,"主砲",IF(AND(AH130+AI130+AJ130=2,AL130>=1),"主砲副砲",IF(OR(AND(AH130+AI130+AJ130=1,AP130=1),AND(AH130+AI130+AJ130=2,AL130=0,AP130=1)),"主砲魚雷",0)))) -> 0 | BK130: =IF(AP130>=2,VLOOKUP("魚雷",luck_cap,2,FALSE),IF(AH130+AI130+AJ130>=3,VLOOKUP("主砲",luck_cap,2,FALSE),IF(AND(AH130+AI130+AJ130=2,AL130>=1),VLOOKUP("主砲副砲",luck_cap,2,FALSE),IF(OR(AND(AH130+AI130+AJ130=1,AP130=1),AND(AH130+AI130+AJ130=2,AL130=0,AP130=1)),VLOOKUP("主砲魚雷",luck_cap,2,FALSE),0)))) -> 0 | BL130: =IF(H130="ドラム缶",1,0)+IF(H131="ドラム缶",1,0)+IF(H132="ドラム缶",1,0)+IF(H133="ドラム缶",1,0) -> 0
B131: [艦載機なし] | C131: 0 | G131: =IF(F130="",,VLOOKUP(F130,carrierlist,3,FALSE)&"") -> 0 | H131: 20.3cm(3号)連装砲 | J131: 10 | K131: 中口径主砲 | L131: =ROUNDDOWN(IF(OR(H131="",G131="",G131=0,ISERROR(VLOOKUP(H131,fighterlist,1,FALSE))),0,SQRT(G131)*IF(H131="","",VLOOKUP(H131,fighterlist,3,FALSE)+IF(J131>0,J131*VLOOKUP(K131,customlist,10,FALSE),0))+IF(AND(I131>=1,I131<=7),IF(ISERROR(VLOOKUP(K131,superior_skill_bonus,I131+1,FALSE)),0,VLOOKUP(K131,superior_skill_bonus,I131+1,FALSE)+SQRT(VLOOKUP(I131,skill_inner_level,2,FALSE)/10)),0)),0) -> 0 | O131: 0 | P131: 4.16 | Q131: =IF(ISERROR(VLOOKUP(H131,fighterlist,1,FALSE)),0,VLOOKUP(H131,fighterlist,7,FALSE)+ROUNDDOWN(SQRT(J131*VLOOKUP(K131,customlist,2,FALSE)),2)) -> 13.16 | R131: 0 | S131: 0 | T131: =IF(ISERROR(VLOOKUP(H131,fighterlist,1,FALSE)),"",IF(OR(E130="装甲空母",E130="正規空母",E130="軽空母",E130="水上機母艦",E130="航空戦艦",E130="航空巡洋艦",E130="潜水空母"),IF(VLOOKUP(H131,fighterlist,11,FALSE)="艦上攻撃機",ROUNDDOWN(0.8*(R131*SQRT(G131)+25),0),IF(OR(VLOOKUP(H131,fighterlist,11,FALSE)="艦上爆撃機",VLOOKUP(H131,fighterlist,11,FALSE)="噴式戦闘爆撃機",VLOOKUP(H131,fighterlist,11,FALSE)="水上爆撃機"),ROUNDDOWN(1*(S131*SQRT(G131)+25),0),"")),"")) ->  | U131: =IF(OR(E130="装甲空母",E130="正規空母",E130="軽空母",E130="水上機母艦",E130="航空戦艦",E130="航空巡洋艦",E130="潜水空母"),IF(K131="艦上攻撃機",ROUNDDOWN(1.5*(R131*SQRT(G131)+25),0),IF(OR(K131="艦上爆撃機",K131="噴式戦闘爆撃機",K131="水上爆撃機"),ROUNDDOWN(1*(S131*SQRT(G131)+25),0),"")),"") ->  | AD131: 0 | AE131: 0
B132: [艦載機なし] | C132: 0 | G132: =IF(F130="",,VLOOKUP(F130,carrierlist,4,FALSE)&"") -> 0 | H132: 甲標的 甲 | K132: 特殊潜航艇 | L132: =ROUNDDOWN(IF(OR(H132="",G132="",G132=0,ISERROR(VLOOKUP(H132,fighterlist,1,FALSE))),0,SQRT(G132)*IF(H132="","",VLOOKUP(H132,fighterlist,3,FALSE)+IF(J132>0,J132*VLOOKUP(K132,customlist,10,FALSE),0))+IF(AND(I132>=1,I132<=7),IF(ISERROR(VLOOKUP(K132,superior_skill_bonus,I132+1,FALSE)),0,VLOOKUP(K132,superior_skill_bonus,I132+1,FALSE)+SQRT(VLOOKUP(I132,skill_inner_level,2,FALSE)/10)),0)),0) -> 0 | O132: 0 | P132: 0 | Q132: 0 | R132: 12 | S132: 0 | T132: =IF(ISERROR(VLOOKUP(H132,fighterlist,1,FALSE)),"",IF(OR(E130="装甲空母",E130="正規空母",E130="軽空母",E130="水上機母艦",E130="航空戦艦",E130="航空巡洋艦",E130="潜水空母"),IF(VLOOKUP(H132,fighterlist,11,FALSE)="艦上攻撃機",ROUNDDOWN(0.8*(R132*SQRT(G132)+25),0),IF(OR(VLOOKUP(H132,fighterlist,11,FALSE)="艦上爆撃機",VLOOKUP(H132,fighterlist,11,FALSE)="噴式戦闘爆撃機",VLOOKUP(H132,fighterlist,11,FALSE)="水上爆撃機"),ROUNDDOWN(1*(S132*SQRT(G132)+25),0),"")),"")) ->  | U132: =IF(OR(E130="装甲空母",E130="正規空母",E130="軽空母",E130="水上機母艦",E130="航空戦艦",E130="航空巡洋艦",E130="潜水空母"),IF(K132="艦上攻撃機",ROUNDDOWN(1.5*(R132*SQRT(G132)+25),0),IF(OR(K132="艦上爆撃機",K132="噴式戦闘爆撃機",K132="水上爆撃機"),ROUNDDOWN(1*(S132*SQRT(G132)+25),0),"")),"") ->  | AD132: 0 | AE132: 0
B133: [艦載機なし] | C133: 0 | G133: =IF(F130="",,VLOOKUP(F130,carrierlist,5,FALSE)&"") ->  | L133: =ROUNDDOWN(IF(OR(H133="",G133="",G133=0,ISERROR(VLOOKUP(H133,fighterlist,1,FALSE))),0,SQRT(G133)*IF(H133="","",VLOOKUP(H133,fighterlist,3,FALSE)+IF(J133>0,J133*VLOOKUP(K133,customlist,10,FALSE),0))+IF(AND(I133>=1,I133<=7),IF(ISERROR(VLOOKUP(K133,superior_skill_bonus,I133+1,FALSE)),0,VLOOKUP(K133,superior_skill_bonus,I133+1,FALSE)+SQRT(VLOOKUP(I133,skill_inner_level,2,FALSE)/10)),0)),0) -> 0 | O133: 0 | P133: 0 | Q133: 0 | R133: 0 | S133: 0 | T133: =IF(ISERROR(VLOOKUP(H133,fighterlist,1,FALSE)),"",IF(OR(E130="装甲空母",E130="正規空母",E130="軽空母",E130="水上機母艦",E130="航空戦艦",E130="航空巡洋艦",E130="潜水空母"),IF(VLOOKUP(H133,fighterlist,11,FALSE)="艦上攻撃機",ROUNDDOWN(0.8*(R133*SQRT(G133)+25),0),IF(OR(VLOOKUP(H133,fighterlist,11,FALSE)="艦上爆撃機",VLOOKUP(H133,fighterlist,11,FALSE)="噴式戦闘爆撃機",VLOOKUP(H133,fighterlist,11,FALSE)="水上爆撃機"),ROUNDDOWN(1*(S133*SQRT(G133)+25),0),"")),"")) ->  | U133: =IF(OR(E130="装甲空母",E130="正規空母",E130="軽空母",E130="水上機母艦",E130="航空戦艦",E130="航空巡洋艦",E130="潜水空母"),IF(K133="艦上攻撃機",ROUNDDOWN(1.5*(R133*SQRT(G133)+25),0),IF(OR(K133="艦上爆撃機",K133="噴式戦闘爆撃機",K133="水上爆撃機"),ROUNDDOWN(1*(S133*SQRT(G133)+25),0),"")),"") ->  | AD133: 0 | AE133: 0
B134: [艦載機なし] | C134: 0 | E134: =IF(F134="","",VLOOKUP(F134,carrierlist,8,FALSE)&"") -> 装甲空母 | F134: 大鳳改 | G134: =IF(F134="",,VLOOKUP(F134,carrierlist,2,FALSE)&"") -> 30 | H134: 天山一二型(村田隊) | I134: 7 | K134: 艦上攻撃機 | L134: =ROUNDDOWN(IF(OR(H134="",G134="",G134=0,ISERROR(VLOOKUP(H134,fighterlist,1,FALSE))),0,SQRT(G134)*IF(H134="","",VLOOKUP(H134,fighterlist,3,FALSE)+IF(J134>0,J134*VLOOKUP(K134,customlist,10,FALSE),0))+IF(AND(I134>=1,I134<=7),IF(ISERROR(VLOOKUP(K134,superior_skill_bonus,I134+1,FALSE)),0,VLOOKUP(K134,superior_skill_bonus,I134+1,FALSE)+SQRT(VLOOKUP(I134,skill_inner_level,2,FALSE)/10)),0)),0) -> 8 | O134: 3.2 | P134: 2 | Q134: 0 | R134: 15 | S134: 0 | T134: =IF(ISERROR(VLOOKUP(H134,fighterlist,1,FALSE)),"",IF(OR(E134="装甲空母",E134="正規空母",E134="軽空母",E134="水上機母艦",E134="航空戦艦",E134="航空巡洋艦",E134="潜水空母"),IF(VLOOKUP(H134,fighterlist,11,FALSE)="艦上攻撃機",ROUNDDOWN(0.8*(R134*SQRT(G134)+25),0),IF(OR(VLOOKUP(H134,fighterlist,11,FALSE)="艦上爆撃機",VLOOKUP(H134,fighterlist,11,FALSE)="噴式戦闘爆撃機",VLOOKUP(H134,fighterlist,11,FALSE)="水上爆撃機"),ROUNDDOWN(1*(S134*SQRT(G134)+25),0),"")),"")) -> 85 | U134: =IF(OR(E134="装甲空母",E134="正規空母",E134="軽空母",E134="水上機母艦",E134="航空戦艦",E134="航空巡洋艦",E134="潜水空母"),IF(K134="艦上攻撃機",ROUNDDOWN(1.5*(R134*SQRT(G134)+25),0),IF(OR(K134="艦上爆撃機",K134="噴式戦闘爆撃機",K134="水上爆撃機"),ROUNDDOWN(1*(S134*SQRT(G134)+25),0),"")),"") -> 160 | V134: =IF(OR(F134="",F134="[その他]",),"",IF(F134="","",IF(OR(E134="装甲空母",E134="正規空母",E134="軽空母"),IF(SUM(R134:R137)+SUM(S134:S137)=0,0,ROUNDDOWN(55+(VLOOKUP(F134,carrierlist,6,FALSE)+SUM(Q134:Q137))*1.5+SUM(R134:R137)*1.5+SUM(S134:S137)*2,0)),ROUNDDOWN(5+VLOOKUP(F134,carrierlist,6,FALSE)+SUM(Q134:Q137),0)))) -> 198 | W134: =IF(OR(E134="潜水艦",E134="潜水空母",E134="駆逐艦",E134="軽巡洋艦",E134="重雷装巡洋艦",E134="重巡洋艦",E134="航空巡洋艦",E134="水上機母艦"),ROUNDDOWN(5+VLOOKUP(F134,carrierlist,7,FALSE)+SUM(R134:R137),0),"") ->  | X134: =IF(OR(F134="",F134="[その他]",E134="装甲空母",E134="正規空母",E134="軽空母"),"",ROUNDDOWN(VLOOKUP(F134,carrierlist,6,FALSE)+VLOOKUP(F134,carrierlist,7,FALSE)+SUM(Q134:R137),0)) ->  | Y134: =IF(OR(AP134>=2,AK134>=3,AND(AK134=2,AL134>=1),AND(AK134>=1,AK134<=2,AP134>=1)),"カットイン",IF(OR(AND(AK134=2,AL134=0,AP134=0),AND(AK134=1,AL134>=1,AP134=0),AND(AK134=0,AL134>=2,AP134<=1)),"連撃","")) ->  | Z134: =IF(AP134>=2,ROUNDDOWN(X134*1.5,0)&"×2",IF(AH134>=3,X134*2,IF(AND(AH134=2,AL134>=1),ROUNDDOWN(X134*1.75,0),IF(AND(AH134>=1,AH134<=2,AP134>=1),ROUNDDOWN(X134*1.3,0)&"×2",IF(Y134="連撃",ROUNDDOWN(X134*1.2,0)&"×2",""))))) ->  | AB134: =IF(Y134="連撃",0.99,IF(Y134="",0,SQRT(VLOOKUP(BJ134,ci_coefficient,2,FALSE)*IF(BI134>BK134,BK134,BI134))*0.01+0.05*IF(BF154>=1,1,0)+0.05*IF(BG154>=1,1-(0.5)^BG154,0))) -> 0 | AD134: 0 | AE134: 6 | AF134: =IF(BD134=0,"",ROUNDDOWN((SQRT(AC134)*2+SUM(AE134:AE137)*1.5+SUM(AD134:AD137)+BD134)*BE134,1)) ->  | AH134: =IF($K134="大口径主砲",1,0)+IF($K135="大口径主砲",1,0)+IF($K136="大口径主砲",1,0)+IF($K137="大口径主砲",1,0) -> 0 | AI134: =IF($K134="中口径主砲",1,0)+IF($K135="中口径主砲",1,0)+IF($K136="中口径主砲",1,0)+IF($K137="中口径主砲",1,0) -> 0 | AJ134: =IF($K134="小口径主砲",1,0)+IF($K135="小口径主砲",1,0)+IF($K136="小口径主砲",1,0)+IF($K137="小口径主砲",1,0) -> 0 | AK134: =AH134+AI134+AJ134 -> 0 | AL134: =IF($K134="副砲",1,0)+IF($K135="副砲",1,0)+IF($K136="副砲",1,0)+IF($K137="副砲",1,0) -> 0 | AM134: =IF($K134="大型電探",1,0)+IF($K135="大型電探",1,0)+IF($K136="大型電探",1,0)+IF($K137="大型電探",1,0) -> 0 | AN134: =IF($K134="小型電探",1,0)+IF($K135="小型電探",1,0)+IF($K136="小型電探",1,0)+IF($K137="小型電探",1,0) -> 0 | AO134: =AM134+AN134 -> 0 | AP134: =IF($K134="魚雷",1,0)+IF($K135="魚雷",1,0)+IF($K136="魚雷",1,0)+IF($K137="魚雷",1,0) -> 0 | AQ134: =IF($K134="対艦強化弾",1,0)+IF($K135="対艦強化弾",1,0)+IF($K136="対艦強化弾",1,0)+IF($K137="対艦強化弾",1,0) -> 0 | AR134: =IF(OR($K134="水上偵察機",$K134="水上爆撃機"),1,0)+IF(OR($K135="水上偵察機",$K135="水上爆撃機"),1,0)+IF(OR($K136="水上偵察機",$K136="水上爆撃機"),1,0)+IF(OR($K137="水上偵察機",$K137="水上爆撃機"),1,0) -> 0 | AS134: =IF($K134="爆雷",1,0)+IF($K135="爆雷",1,0)+IF($K136="爆雷",1,0)+IF($K137="爆雷",1,0) -> 0 | AT134: =IF($K134="ソナー",1,0)+IF($K135="ソナー",1,0)+IF($K136="ソナー",1,0)+IF($K137="ソナー",1,0) -> 0 | AU134: =IF(OR($K134="オートジャイロ",$K134="対潜哨戒機"),1,0)+IF(OR($K135="オートジャイロ",$K135="対潜哨戒機"),1,0)+IF(OR($K136="オートジャイロ",$K136="対潜哨戒機"),1,0)+IF(OR($K137="オートジャイロ",$K137="対潜哨戒機"),1,0) -> 0 | AV134: =IF($K134="艦上爆撃機",1,0)+IF($K135="艦上爆撃機",1,0)+IF($K136="艦上爆撃機",1,0)+IF($K137="艦上爆撃機",1,0) -> 1 | AW134: =IF($K134="艦上攻撃機",1,0)+IF($K135="艦上攻撃機",1,0)+IF($K136="艦上攻撃機",1,0)+IF($K137="艦上攻撃機",1,0) -> 2 | AX134: =IF($K134="大型飛行艇",1,0)+IF($K135="大型飛行艇",1,0)+IF($K136="大型飛行艇",1,0)+IF($K137="大型飛行艇",1,0) -> 0 | AY134: =IF($K134="水上爆撃機",1,0)+IF($K135="水上爆撃機",1,0)+IF($K136="水上爆撃機",1,0)+IF($K137="水上爆撃機",1,0) -> 0 | AZ134: =SUM(AV134:AY137) -> 3 | BA134: =SUM(AU134:AY137) -> 3 | BB134: =IF(AZ134>0,4,IF(BA134>0,3,2)) -> 4 | BC134: =IF(ISERROR(VLOOKUP(F134,antisubmarine_ex,1,FALSE)),E134,VLOOKUP(F134,antisubmarine_ex,2,FALSE)&"") -> 装甲空母 | BD134: =IF(ISERROR(VLOOKUP(BC134,antisubmarine,BB134,FALSE)),0,VLOOKUP(BC134,antisubmarine,BB134,FALSE)) -> 0 | BE134: =IF(AND(AS134>0,AT134>0),1.15,1) -> 1 | BF134: =IF(H134="探照灯",1,0)+IF(H135="探照灯",1,0)+IF(H136="探照灯",1,0)+IF(H137="探照灯",1,0) -> 0 | BG134: =IF(H134="照明弾",1,0)+IF(H135="照明弾",1,0)+IF(H136="照明弾",1,0)+IF(H137="照明弾",1,0) -> 0 | BH134: =IF(H134="熟練見張員",1,0)+IF(H135="熟練見張員",1,0)+IF(H136="熟練見張員",1,0)+IF(H137="熟練見張員",1,0) -> 0 | BI134: =AA134+BH134*VLOOKUP("運",watcher,2,FALSE) -> 0 | BJ134: =IF(AP134>=2,"魚雷",IF(AH134+AI134+AJ134>=3,"主砲",IF(AND(AH134+AI134+AJ134=2,AL134>=1),"主砲副砲",IF(OR(AND(AH134+AI134+AJ134=1,AP134=1),AND(AH134+AI134+AJ134=2,AL134=0,AP134=1)),"主砲魚雷",0)))) -> 0 | BK134: =IF(AP134>=2,VLOOKUP("魚雷",luck_cap,2,FALSE),IF(AH134+AI134+AJ134>=3,VLOOKUP("主砲",luck_cap,2,FALSE),IF(AND(AH134+AI134+AJ134=2,AL134>=1),VLOOKUP("主砲副砲",luck_cap,2,FALSE),IF(OR(AND(AH134+AI134+AJ134=1,AP134=1),AND(AH134+AI134+AJ134=2,AL134=0,AP134=1)),VLOOKUP("主砲魚雷",luck_cap,2,FALSE),0)))) -> 0 | BL134: =IF(H134="ドラム缶",1,0)+IF(H135="ドラム缶",1,0)+IF(H136="ドラム缶",1,0)+IF(H137="ドラム缶",1,0) -> 0
B135: 敵制空合計 | C135: =SUM(C129:C134) -> 20 | G135: =IF(F134="",,VLOOKUP(F134,carrierlist,3,FALSE)&"") -> 24 | H135: 天山一二型(村田隊) | I135: 7 | K135: 艦上攻撃機 | L135: 8 | O135: 3.2 | P135: 2 | Q135: 0 | R135: 15 | S135: 0 | T135: =IF(ISERROR(VLOOKUP(H135,fighterlist,1,FALSE)),"",IF(OR(E134="装甲空母",E134="正規空母",E134="軽空母",E134="水上機母艦",E134="航空戦艦",E134="航空巡洋艦",E134="潜水空母"),IF(VLOOKUP(H135,fighterlist,11,FALSE)="艦上攻撃機",ROUNDDOWN(0.8*(R135*SQRT(G135)+25),0),IF(OR(VLOOKUP(H135,fighterlist,11,FALSE)="艦上爆撃機",VLOOKUP(H135,fighterlist,11,FALSE)="噴式戦闘爆撃機",VLOOKUP(H135,fighterlist,11,FALSE)="水上爆撃機"),ROUNDDOWN(1*(S135*SQRT(G135)+25),0),"")),"")) -> 78 | U135: =IF(OR(E134="装甲空母",E134="正規空母",E134="軽空母",E134="水上機母艦",E134="航空戦艦",E134="航空巡洋艦",E134="潜水空母"),IF(K135="艦上攻撃機",ROUNDDOWN(1.5*(R135*SQRT(G135)+25),0),IF(OR(K135="艦上爆撃機",K135="噴式戦闘爆撃機",K135="水上爆撃機"),ROUNDDOWN(1*(S135*SQRT(G135)+25),0),"")),"") -> 147 | AD135: 0 | AE135: 6
B136: 航空優勢 | C136: =ROUNDUP(C135*1.5,0) -> 30 | G136: =IF(F134="",,VLOOKUP(F134,carrierlist,4,FALSE)&"") -> 24 | H136: 零式艦戦62型(爆戦/岩井隊) | I136: 7 | J136: 10 | K136: 艦上爆撃機 | L136: 50 | O136: 0.6 | P136: 1 | Q136: 0 | R136: 0 | S136: 4 | T136: =IF(ISERROR(VLOOKUP(H136,fighterlist,1,FALSE)),"",IF(OR(E134="装甲空母",E134="正規空母",E134="軽空母",E134="水上機母艦",E134="航空戦艦",E134="航空巡洋艦",E134="潜水空母"),IF(VLOOKUP(H136,fighterlist,11,FALSE)="艦上攻撃機",ROUNDDOWN(0.8*(R136*SQRT(G136)+25),0),IF(OR(VLOOKUP(H136,fighterlist,11,FALSE)="艦上爆撃機",VLOOKUP(H136,fighterlist,11,FALSE)="噴式戦闘爆撃機",VLOOKUP(H136,fighterlist,11,FALSE)="水上爆撃機"),ROUNDDOWN(1*(S136*SQRT(G136)+25),0),"")),"")) -> 44 | U136: =IF(OR(E134="装甲空母",E134="正規空母",E134="軽空母",E134="水上機母艦",E134="航空戦艦",E134="航空巡洋艦",E134="潜水空母"),IF(K136="艦上攻撃機",ROUNDDOWN(1.5*(R136*SQRT(G136)+25),0),IF(OR(K136="艦上爆撃機",K136="噴式戦闘爆撃機",K136="水上爆撃機"),ROUNDDOWN(1*(S136*SQRT(G136)+25),0),"")),"") -> 44 | AD136: 0 | AE136: 3
B137: 制空権確保 | C137: =C135*3 -> 60 | G137: =IF(F134="",,VLOOKUP(F134,carrierlist,5,FALSE)&"") -> 8 | H137: 彩雲(東カロリン空) | I137: 7 | K137: 艦上偵察機 | L137: 0 | O137: 10 | P137: 2 | Q137: 1 | R137: 0 | S137: 0 | T137: =IF(ISERROR(VLOOKUP(H137,fighterlist,1,FALSE)),"",IF(OR(E134="装甲空母",E134="正規空母",E134="軽空母",E134="水上機母艦",E134="航空戦艦",E134="航空巡洋艦",E134="潜水空母"),IF(VLOOKUP(H137,fighterlist,11,FALSE)="艦上攻撃機",ROUNDDOWN(0.8*(R137*SQRT(G137)+25),0),IF(OR(VLOOKUP(H137,fighterlist,11,FALSE)="艦上爆撃機",VLOOKUP(H137,fighterlist,11,FALSE)="噴式戦闘爆撃機",VLOOKUP(H137,fighterlist,11,FALSE)="水上爆撃機"),ROUNDDOWN(1*(S137*SQRT(G137)+25),0),"")),"")) ->  | U137: =IF(OR(E134="装甲空母",E134="正規空母",E134="軽空母",E134="水上機母艦",E134="航空戦艦",E134="航空巡洋艦",E134="潜水空母"),IF(K137="艦上攻撃機",ROUNDDOWN(1.5*(R137*SQRT(G137)+25),0),IF(OR(K137="艦上爆撃機",K137="噴式戦闘爆撃機",K137="水上爆撃機"),ROUNDDOWN(1*(S137*SQRT(G137)+25),0),"")),"") ->  | AD137: 0 | AE137: 0
E138: =IF(F138="","",VLOOKUP(F138,carrierlist,8,FALSE)&"") -> 重巡洋艦 | F138: 妙高改二 | G138: =IF(F138="",,VLOOKUP(F138,carrierlist,2,FALSE)&"") -> 2 | H138: 20.3cm(3号)連装砲 | J138: 10 | K138: 中口径主砲 | L138: 0 | O138: 0 | P138: 4.16 | Q138: 13.16 | R138: 0 | S138: 0 | T138: =IF(ISERROR(VLOOKUP(H138,fighterlist,1,FALSE)),"",IF(OR(E138="装甲空母",E138="正規空母",E138="軽空母",E138="水上機母艦",E138="航空戦艦",E138="航空巡洋艦",E138="潜水空母"),IF(VLOOKUP(H138,fighterlist,11,FALSE)="艦上攻撃機",ROUNDDOWN(0.8*(R138*SQRT(G138)+25),0),IF(OR(VLOOKUP(H138,fighterlist,11,FALSE)="艦上爆撃機",VLOOKUP(H138,fighterlist,11,FALSE)="噴式戦闘爆撃機",VLOOKUP(H138,fighterlist,11,FALSE)="水上爆撃機"),ROUNDDOWN(1*(S138*SQRT(G138)+25),0),"")),"")) ->  | U138: =IF(OR(E138="装甲空母",E138="正規空母",E138="軽空母",E138="水上機母艦",E138="航空戦艦",E138="航空巡洋艦",E138="潜水空母"),IF(K138="艦上攻撃機",ROUNDDOWN(1.5*(R138*SQRT(G138)+25),0),IF(OR(K138="艦上爆撃機",K138="噴式戦闘爆撃機",K138="水上爆撃機"),ROUNDDOWN(1*(S138*SQRT(G138)+25),0),"")),"") ->  | V138: =IF(OR(F138="",F138="[その他]",),"",IF(F138="","",IF(OR(E138="装甲空母",E138="正規空母",E138="軽空母"),IF(SUM(R138:R141)+SUM(S138:S141)=0,0,ROUNDDOWN(55+(VLOOKUP(F138,carrierlist,6,FALSE)+SUM(Q138:Q141))*1.5+SUM(R138:R141)*1.5+SUM(S138:S141)*2,0)),ROUNDDOWN(5+VLOOKUP(F138,carrierlist,6,FALSE)+SUM(Q138:Q141),0)))) -> 114 | W138: =IF(OR(E138="潜水艦",E138="潜水空母",E138="駆逐艦",E138="軽巡洋艦",E138="重雷装巡洋艦",E138="重巡洋艦",E138="航空巡洋艦",E138="水上機母艦"),ROUNDDOWN(5+VLOOKUP(F138,carrierlist,7,FALSE)+SUM(R138:R141),0),"") -> 93 | X138: =IF(OR(F138="",F138="[その他]",E138="装甲空母",E138="正規空母",E138="軽空母"),"",ROUNDDOWN(VLOOKUP(F138,carrierlist,6,FALSE)+VLOOKUP(F138,carrierlist,7,FALSE)+SUM(Q138:R141),0)) -> 197 | Y138: =IF(OR(AP138>=2,AK138>=3,AND(AK138=2,AL138>=1),AND(AK138>=1,AK138<=2,AP138>=1)),"カットイン",IF(OR(AND(AK138=2,AL138=0,AP138=0),AND(AK138=1,AL138>=1,AP138=0),AND(AK138=0,AL138>=2,AP138<=1)),"連撃","")) -> 連撃 | Z138: =IF(AP138>=2,ROUNDDOWN(X138*1.5,0)&"×2",IF(AH138>=3,X138*2,IF(AND(AH138=2,AL138>=1),ROUNDDOWN(X138*1.75,0),IF(AND(AH138>=1,AH138<=2,AP138>=1),ROUNDDOWN(X138*1.3,0)&"×2",IF(Y138="連撃",ROUNDDOWN(X138*1.2,0)&"×2",""))))) -> 236×2 | AB138: =IF(Y138="連撃",0.99,IF(Y138="",0,SQRT(VLOOKUP(BJ138,ci_coefficient,2,FALSE)*IF(BI138>BK138,BK138,BI138))*0.01+0.05*IF(BF154>=1,1,0)+0.05*IF(BG154>=1,1-(0.5)^BG154,0))) -> 0.99 | AD138: 0 | AE138: 0 | AF138: =IF(BD138=0,"",ROUNDDOWN((SQRT(AC138)*2+SUM(AE138:AE141)*1.5+SUM(AD138:AD141)+BD138)*BE138,1)) ->  | AH138: =IF($K138="大口径主砲",1,0)+IF($K139="大口径主砲",1,0)+IF($K140="大口径主砲",1,0)+IF($K141="大口径主砲",1,0) -> 0 | AI138: =IF($K138="中口径主砲",1,0)+IF($K139="中口径主砲",1,0)+IF($K140="中口径主砲",1,0)+IF($K141="中口径主砲",1,0) -> 2 | AJ138: =IF($K138="小口径主砲",1,0)+IF($K139="小口径主砲",1,0)+IF($K140="小口径主砲",1,0)+IF($K141="小口径主砲",1,0) -> 0 | AK138: =AH138+AI138+AJ138 -> 2 | AL138: =IF($K138="副砲",1,0)+IF($K139="副砲",1,0)+IF($K140="副砲",1,0)+IF($K141="副砲",1,0) -> 0 | AM138: =IF($K138="大型電探",1,0)+IF($K139="大型電探",1,0)+IF($K140="大型電探",1,0)+IF($K141="大型電探",1,0) -> 1 | AN138: =IF($K138="小型電探",1,0)+IF($K139="小型電探",1,0)+IF($K140="小型電探",1,0)+IF($K141="小型電探",1,0) -> 0 | AO138: =AM138+AN138 -> 1 | AP138: =IF($K138="魚雷",1,0)+IF($K139="魚雷",1,0)+IF($K140="魚雷",1,0)+IF($K141="魚雷",1,0) -> 0 | AQ138: =IF($K138="対艦強化弾",1,0)+IF($K139="対艦強化弾",1,0)+IF($K140="対艦強化弾",1,0)+IF($K141="対艦強化弾",1,0) -> 0 | AR138: =IF(OR($K138="水上偵察機",$K138="水上爆撃機"),1,0)+IF(OR($K139="水上偵察機",$K139="水上爆撃機"),1,0)+IF(OR($K140="水上偵察機",$K140="水上爆撃機"),1,0)+IF(OR($K141="水上偵察機",$K141="水上爆撃機"),1,0) -> 1 | AS138: =IF($K138="爆雷",1,0)+IF($K139="爆雷",1,0)+IF($K140="爆雷",1,0)+IF($K141="爆雷",1,0) -> 0 | AT138: =IF($K138="ソナー",1,0)+IF($K139="ソナー",1,0)+IF($K140="ソナー",1,0)+IF($K141="ソナー",1,0) -> 0 | AU138: =IF(OR($K138="オートジャイロ",$K138="対潜哨戒機"),1,0)+IF(OR($K139="オートジャイロ",$K139="対潜哨戒機"),1,0)+IF(OR($K140="オートジャイロ",$K140="対潜哨戒機"),1,0)+IF(OR($K141="オートジャイロ",$K141="対潜哨戒機"),1,0) -> 0 | AV138: =IF($K138="艦上爆撃機",1,0)+IF($K139="艦上爆撃機",1,0)+IF($K140="艦上爆撃機",1,0)+IF($K141="艦上爆撃機",1,0) -> 0 | AW138: =IF($K138="艦上攻撃機",1,0)+IF($K139="艦上攻撃機",1,0)+IF($K140="艦上攻撃機",1,0)+IF($K141="艦上攻撃機",1,0) -> 0 | AX138: =IF($K138="大型飛行艇",1,0)+IF($K139="大型飛行艇",1,0)+IF($K140="大型飛行艇",1,0)+IF($K141="大型飛行艇",1,0) -> 0 | AY138: =IF($K138="水上爆撃機",1,0)+IF($K139="水上爆撃機",1,0)+IF($K140="水上爆撃機",1,0)+IF($K141="水上爆撃機",1,0) -> 0 | AZ138: =SUM(AV138:AY141) -> 0 | BA138: =SUM(AU138:AY141) -> 0 | BB138: =IF(AZ138>0,4,IF(BA138>0,3,2)) -> 2 | BC138: =IF(ISERROR(VLOOKUP(F138,antisubmarine_ex,1,FALSE)),E138,VLOOKUP(F138,antisubmarine_ex,2,FALSE)&"") -> 重巡洋艦 | BD138: =IF(ISERROR(VLOOKUP(BC138,antisubmarine,BB138,FALSE)),0,VLOOKUP(BC138,antisubmarine,BB138,FALSE)) -> 0 | BE138: =IF(AND(AS138>0,AT138>0),1.15,1) -> 1 | BF138: =IF(H138="探照灯",1,0)+IF(H139="探照灯",1,0)+IF(H140="探照灯",1,0)+IF(H141="探照灯",1,0) -> 0 | BG138: =IF(H138="照明弾",1,0)+IF(H139="照明弾",1,0)+IF(H140="照明弾",1,0)+IF(H141="照明弾",1,0) -> 0 | BH138: =IF(H138="熟練見張員",1,0)+IF(H139="熟練見張員",1,0)+IF(H140="熟練見張員",1,0)+IF(H141="熟練見張員",1,0) -> 0 | BI138: =AA138+BH138*VLOOKUP("運",watcher,2,FALSE) -> 0 | BJ138: =IF(AP138>=2,"魚雷",IF(AH138+AI138+AJ138>=3,"主砲",IF(AND(AH138+AI138+AJ138=2,AL138>=1),"主砲副砲",IF(OR(AND(AH138+AI138+AJ138=1,AP138=1),AND(AH138+AI138+AJ138=2,AL138=0,AP138=1)),"主砲魚雷",0)))) -> 0 | BK138: =IF(AP138>=2,VLOOKUP("魚雷",luck_cap,2,FALSE),IF(AH138+AI138+AJ138>=3,VLOOKUP("主砲",luck_cap,2,FALSE),IF(AND(AH138+AI138+AJ138=2,AL138>=1),VLOOKUP("主砲副砲",luck_cap,2,FALSE),IF(OR(AND(AH138+AI138+AJ138=1,AP138=1),AND(AH138+AI138+AJ138=2,AL138=0,AP138=1)),VLOOKUP("主砲魚雷",luck_cap,2,FALSE),0)))) -> 0 | BL138: =IF(H138="ドラム缶",1,0)+IF(H139="ドラム缶",1,0)+IF(H140="ドラム缶",1,0)+IF(H141="ドラム缶",1,0) -> 0
B139: 標的2 | G139: =IF(F138="",,VLOOKUP(F138,carrierlist,3,FALSE)&"") -> 2 | H139: 20.3cm(3号)連装砲 | J139: 10 | K139: 中口径主砲 | L139: 0 | O139: 0 | P139: 4.16 | Q139: 13.16 | R139: 0 | S139: 0 | T139: =IF(ISERROR(VLOOKUP(H139,fighterlist,1,FALSE)),"",IF(OR(E138="装甲空母",E138="正規空母",E138="軽空母",E138="水上機母艦",E138="航空戦艦",E138="航空巡洋艦",E138="潜水空母"),IF(VLOOKUP(H139,fighterlist,11,FALSE)="艦上攻撃機",ROUNDDOWN(0.8*(R139*SQRT(G139)+25),0),IF(OR(VLOOKUP(H139,fighterlist,11,FALSE)="艦上爆撃機",VLOOKUP(H139,fighterlist,11,FALSE)="噴式戦闘爆撃機",VLOOKUP(H139,fighterlist,11,FALSE)="水上爆撃機"),ROUNDDOWN(1*(S139*SQRT(G139)+25),0),"")),"")) ->  | U139: =IF(OR(E138="装甲空母",E138="正規空母",E138="軽空母",E138="水上機母艦",E138="航空戦艦",E138="航空巡洋艦",E138="潜水空母"),IF(K139="艦上攻撃機",ROUNDDOWN(1.5*(R139*SQRT(G139)+25),0),IF(OR(K139="艦上爆撃機",K139="噴式戦闘爆撃機",K139="水上爆撃機"),ROUNDDOWN(1*(S139*SQRT(G139)+25),0),"")),"") ->  | AD139: 0 | AE139: 0
B140: 艦種 | C140: 制空値 | G140: =IF(F138="",,VLOOKUP(F138,carrierlist,4,FALSE)&"") -> 4 | H140: FuMO25 レーダー | J140: 10 | K140: 大型電探 | L140: 0 | O140: 9.827188724 | P140: 13.16 | Q140: 3 | R140: 0 | S140: 0 | T140: =IF(ISERROR(VLOOKUP(H140,fighterlist,1,FALSE)),"",IF(OR(E138="装甲空母",E138="正規空母",E138="軽空母",E138="水上機母艦",E138="航空戦艦",E138="航空巡洋艦",E138="潜水空母"),IF(VLOOKUP(H140,fighterlist,11,FALSE)="艦上攻撃機",ROUNDDOWN(0.8*(R140*SQRT(G140)+25),0),IF(OR(VLOOKUP(H140,fighterlist,11,FALSE)="艦上爆撃機",VLOOKUP(H140,fighterlist,11,FALSE)="噴式戦闘爆撃機",VLOOKUP(H140,fighterlist,11,FALSE)="水上爆撃機"),ROUNDDOWN(1*(S140*SQRT(G140)+25),0),"")),"")) ->  | U140: =IF(OR(E138="装甲空母",E138="正規空母",E138="軽空母",E138="水上機母艦",E138="航空戦艦",E138="航空巡洋艦",E138="潜水空母"),IF(K140="艦上攻撃機",ROUNDDOWN(1.5*(R140*SQRT(G140)+25),0),IF(OR(K140="艦上爆撃機",K140="噴式戦闘爆撃機",K140="水上爆撃機"),ROUNDDOWN(1*(S140*SQRT(G140)+25),0),"")),"") ->  | AD140: 0 | AE140: 0
B141: 空母ヲ級改flagship | C141: =IF(B141="","",VLOOKUP(B141,enemyforcelist,2,FALSE)) -> 102 | G141: =IF(F138="",,VLOOKUP(F138,carrierlist,5,FALSE)&"") -> 4 | H141: 紫雲 | I141: 7 | K141: 水上偵察機 | L141: 0 | O141: 9.6 | P141: 1 | Q141: 0 | R141: 0 | S141: 1 | T141: =IF(ISERROR(VLOOKUP(H141,fighterlist,1,FALSE)),"",IF(OR(E138="装甲空母",E138="正規空母",E138="軽空母",E138="水上機母艦",E138="航空戦艦",E138="航空巡洋艦",E138="潜水空母"),IF(VLOOKUP(H141,fighterlist,11,FALSE)="艦上攻撃機",ROUNDDOWN(0.8*(R141*SQRT(G141)+25),0),IF(OR(VLOOKUP(H141,fighterlist,11,FALSE)="艦上爆撃機",VLOOKUP(H141,fighterlist,11,FALSE)="噴式戦闘爆撃機",VLOOKUP(H141,fighterlist,11,FALSE)="水上爆撃機"),ROUNDDOWN(1*(S141*SQRT(G141)+25),0),"")),"")) ->  | U141: =IF(OR(E138="装甲空母",E138="正規空母",E138="軽空母",E138="水上機母艦",E138="航空戦艦",E138="航空巡洋艦",E138="潜水空母"),IF(K141="艦上攻撃機",ROUNDDOWN(1.5*(R141*SQRT(G141)+25),0),IF(OR(K141="艦上爆撃機",K141="噴式戦闘爆撃機",K141="水上爆撃機"),ROUNDDOWN(1*(S141*SQRT(G141)+25),0),"")),"") ->  | AD141: 0 | AE141: 0
B142: [艦載機なし] | C142: 0 | E142: =IF(F142="","",VLOOKUP(F142,carrierlist,8,FALSE)&"") -> 重巡洋艦 | F142: 鳥海改二 | G142: =IF(F142="",,VLOOKUP(F142,carrierlist,2,FALSE)&"") -> 3 | H142: 20.3cm(3号)連装砲 | J142: 10 | K142: 中口径主砲 | L142: 0 | O142: 0 | P142: 4.16 | Q142: 13.16 | R142: 0 | S142: 0 | T142: =IF(ISERROR(VLOOKUP(H142,fighterlist,1,FALSE)),"",IF(OR(E142="装甲空母",E142="正規空母",E142="軽空母",E142="水上機母艦",E142="航空戦艦",E142="航空巡洋艦",E142="潜水空母"),IF(VLOOKUP(H142,fighterlist,11,FALSE)="艦上攻撃機",ROUNDDOWN(0.8*(R142*SQRT(G142)+25),0),IF(OR(VLOOKUP(H142,fighterlist,11,FALSE)="艦上爆撃機",VLOOKUP(H142,fighterlist,11,FALSE)="噴式戦闘爆撃機",VLOOKUP(H142,fighterlist,11,FALSE)="水上爆撃機"),ROUNDDOWN(1*(S142*SQRT(G142)+25),0),"")),"")) ->  | U142: =IF(OR(E142="装甲空母",E142="正規空母",E142="軽空母",E142="水上機母艦",E142="航空戦艦",E142="航空巡洋艦",E142="潜水空母"),IF(K142="艦上攻撃機",ROUNDDOWN(1.5*(R142*SQRT(G142)+25),0),IF(OR(K142="艦上爆撃機",K142="噴式戦闘爆撃機",K142="水上爆撃機"),ROUNDDOWN(1*(S142*SQRT(G142)+25),0),"")),"") ->  | V142: =IF(OR(F142="",F142="[その他]",),"",IF(F142="","",IF(OR(E142="装甲空母",E142="正規空母",E142="軽空母"),IF(SUM(R142:R145)+SUM(S142:S145)=0,0,ROUNDDOWN(55+(VLOOKUP(F142,carrierlist,6,FALSE)+SUM(Q142:Q145))*1.5+SUM(R142:R145)*1.5+SUM(S142:S145)*2,0)),ROUNDDOWN(5+VLOOKUP(F142,carrierlist,6,FALSE)+SUM(Q142:Q145),0)))) -> 119 | W142: =IF(OR(E142="潜水艦",E142="潜水空母",E142="駆逐艦",E142="軽巡洋艦",E142="重雷装巡洋艦",E142="重巡洋艦",E142="航空巡洋艦",E142="水上機母艦"),ROUNDDOWN(5+VLOOKUP(F142,carrierlist,7,FALSE)+SUM(R142:R145),0),"") -> 91 | X142: =IF(OR(F142="",F142="[その他]",E142="装甲空母",E142="正規空母",E142="軽空母"),"",ROUNDDOWN(VLOOKUP(F142,carrierlist,6,FALSE)+VLOOKUP(F142,carrierlist,7,FALSE)+SUM(Q142:R145),0)) -> 200 | Y142: =IF(OR(AP142>=2,AK142>=3,AND(AK142=2,AL142>=1),AND(AK142>=1,AK142<=2,AP142>=1)),"カットイン",IF(OR(AND(AK142=2,AL142=0,AP142=0),AND(AK142=1,AL142>=1,AP142=0),AND(AK142=0,AL142>=2,AP142<=1)),"連撃","")) -> 連撃 | Z142: =IF(AP142>=2,ROUNDDOWN(X142*1.5,0)&"×2",IF(AH142>=3,X142*2,IF(AND(AH142=2,AL142>=1),ROUNDDOWN(X142*1.75,0),IF(AND(AH142>=1,AH142<=2,AP142>=1),ROUNDDOWN(X142*1.3,0)&"×2",IF(Y142="連撃",ROUNDDOWN(X142*1.2,0)&"×2",""))))) -> 240×2 | AB142: =IF(Y142="連撃",0.99,IF(Y142="",0,SQRT(VLOOKUP(BJ142,ci_coefficient,2,FALSE)*IF(BI142>BK142,BK142,BI142))*0.01+0.05*IF(BF154>=1,1,0)+0.05*IF(BG154>=1,1-(0.5)^BG154,0))) -> 0.99 | AD142: 0 | AE142: 0 | AF142: =IF(BD142=0,"",ROUNDDOWN((SQRT(AC142)*2+SUM(AE142:AE145)*1.5+SUM(AD142:AD145)+BD142)*BE142,1)) ->  | AH142: =IF($K142="大口径主砲",1,0)+IF($K143="大口径主砲",1,0)+IF($K144="大口径主砲",1,0)+IF($K145="大口径主砲",1,0) -> 0 | AI142: =IF($K142="中口径主砲",1,0)+IF($K143="中口径主砲",1,0)+IF($K144="中口径主砲",1,0)+IF($K145="中口径主砲",1,0) -> 2 | AJ142: =IF($K142="小口径主砲",1,0)+IF($K143="小口径主砲",1,0)+IF($K144="小口径主砲",1,0)+IF($K145="小口径主砲",1,0) -> 0 | AK142: =AH142+AI142+AJ142 -> 2 | AL142: =IF($K142="副砲",1,0)+IF($K143="副砲",1,0)+IF($K144="副砲",1,0)+IF($K145="副砲",1,0) -> 0 | AM142: =IF($K142="大型電探",1,0)+IF($K143="大型電探",1,0)+IF($K144="大型電探",1,0)+IF($K145="大型電探",1,0) -> 1 | AN142: =IF($K142="小型電探",1,0)+IF($K143="小型電探",1,0)+IF($K144="小型電探",1,0)+IF($K145="小型電探",1,0) -> 0 | AO142: =AM142+AN142 -> 1 | AP142: =IF($K142="魚雷",1,0)+IF($K143="魚雷",1,0)+IF($K144="魚雷",1,0)+IF($K145="魚雷",1,0) -> 0 | AQ142: =IF($K142="対艦強化弾",1,0)+IF($K143="対艦強化弾",1,0)+IF($K144="対艦強化弾",1,0)+IF($K145="対艦強化弾",1,0) -> 0 | AR142: =IF(OR($K142="水上偵察機",$K142="水上爆撃機"),1,0)+IF(OR($K143="水上偵察機",$K143="水上爆撃機"),1,0)+IF(OR($K144="水上偵察機",$K144="水上爆撃機"),1,0)+IF(OR($K145="水上偵察機",$K145="水上爆撃機"),1,0) -> 1 | AS142: =IF($K142="爆雷",1,0)+IF($K143="爆雷",1,0)+IF($K144="爆雷",1,0)+IF($K145="爆雷",1,0) -> 0 | AT142: =IF($K142="ソナー",1,0)+IF($K143="ソナー",1,0)+IF($K144="ソナー",1,0)+IF($K145="ソナー",1,0) -> 0 | AU142: =IF(OR($K142="オートジャイロ",$K142="対潜哨戒機"),1,0)+IF(OR($K143="オートジャイロ",$K143="対潜哨戒機"),1,0)+IF(OR($K144="オートジャイロ",$K144="対潜哨戒機"),1,0)+IF(OR($K145="オートジャイロ",$K145="対潜哨戒機"),1,0) -> 0 | AV142: =IF($K142="艦上爆撃機",1,0)+IF($K143="艦上爆撃機",1,0)+IF($K144="艦上爆撃機",1,0)+IF($K145="艦上爆撃機",1,0) -> 0 | AW142: =IF($K142="艦上攻撃機",1,0)+IF($K143="艦上攻撃機",1,0)+IF($K144="艦上攻撃機",1,0)+IF($K145="艦上攻撃機",1,0) -> 0 | AX142: =IF($K142="大型飛行艇",1,0)+IF($K143="大型飛行艇",1,0)+IF($K144="大型飛行艇",1,0)+IF($K145="大型飛行艇",1,0) -> 0 | AY142: =IF($K142="水上爆撃機",1,0)+IF($K143="水上爆撃機",1,0)+IF($K144="水上爆撃機",1,0)+IF($K145="水上爆撃機",1,0) -> 0 | AZ142: =SUM(AV142:AY145) -> 0 | BA142: =SUM(AU142:AY145) -> 0 | BB142: =IF(AZ142>0,4,IF(BA142>0,3,2)) -> 2 | BC142: =IF(ISERROR(VLOOKUP(F142,antisubmarine_ex,1,FALSE)),E142,VLOOKUP(F142,antisubmarine_ex,2,FALSE)&"") -> 重巡洋艦 | BD142: =IF(ISERROR(VLOOKUP(BC142,antisubmarine,BB142,FALSE)),0,VLOOKUP(BC142,antisubmarine,BB142,FALSE)) -> 0 | BE142: =IF(AND(AS142>0,AT142>0),1.15,1) -> 1 | BF142: =IF(H142="探照灯",1,0)+IF(H143="探照灯",1,0)+IF(H144="探照灯",1,0)+IF(H145="探照灯",1,0) -> 0 | BG142: =IF(H142="照明弾",1,0)+IF(H143="照明弾",1,0)+IF(H144="照明弾",1,0)+IF(H145="照明弾",1,0) -> 0 | BH142: =IF(H142="熟練見張員",1,0)+IF(H143="熟練見張員",1,0)+IF(H144="熟練見張員",1,0)+IF(H145="熟練見張員",1,0) -> 0 | BI142: =AA142+BH142*VLOOKUP("運",watcher,2,FALSE) -> 0 | BJ142: =IF(AP142>=2,"魚雷",IF(AH142+AI142+AJ142>=3,"主砲",IF(AND(AH142+AI142+AJ142=2,AL142>=1),"主砲副砲",IF(OR(AND(AH142+AI142+AJ142=1,AP142=1),AND(AH142+AI142+AJ142=2,AL142=0,AP142=1)),"主砲魚雷",0)))) -> 0 | BK142: =IF(AP142>=2,VLOOKUP("魚雷",luck_cap,2,FALSE),IF(AH142+AI142+AJ142>=3,VLOOKUP("主砲",luck_cap,2,FALSE),IF(AND(AH142+AI142+AJ142=2,AL142>=1),VLOOKUP("主砲副砲",luck_cap,2,FALSE),IF(OR(AND(AH142+AI142+AJ142=1,AP142=1),AND(AH142+AI142+AJ142=2,AL142=0,AP142=1)),VLOOKUP("主砲魚雷",luck_cap,2,FALSE),0)))) -> 0 | BL142: =IF(H142="ドラム缶",1,0)+IF(H143="ドラム缶",1,0)+IF(H144="ドラム缶",1,0)+IF(H145="ドラム缶",1,0) -> 0
B143: [艦載機なし] | C143: 0 | G143: =IF(F142="",,VLOOKUP(F142,carrierlist,3,FALSE)&"") -> 3 | H143: 20.3cm(3号)連装砲 | J143: 10 | K143: 中口径主砲 | L143: 0 | O143: 0 | P143: 4.16 | Q143: 13.16 | R143: 0 | S143: 0 | T143: =IF(ISERROR(VLOOKUP(H143,fighterlist,1,FALSE)),"",IF(OR(E142="装甲空母",E142="正規空母",E142="軽空母",E142="水上機母艦",E142="航空戦艦",E142="航空巡洋艦",E142="潜水空母"),IF(VLOOKUP(H143,fighterlist,11,FALSE)="艦上攻撃機",ROUNDDOWN(0.8*(R143*SQRT(G143)+25),0),IF(OR(VLOOKUP(H143,fighterlist,11,FALSE)="艦上爆撃機",VLOOKUP(H143,fighterlist,11,FALSE)="噴式戦闘爆撃機",VLOOKUP(H143,fighterlist,11,FALSE)="水上爆撃機"),ROUNDDOWN(1*(S143*SQRT(G143)+25),0),"")),"")) ->  | U143: =IF(OR(E142="装甲空母",E142="正規空母",E142="軽空母",E142="水上機母艦",E142="航空戦艦",E142="航空巡洋艦",E142="潜水空母"),IF(K143="艦上攻撃機",ROUNDDOWN(1.5*(R143*SQRT(G143)+25),0),IF(OR(K143="艦上爆撃機",K143="噴式戦闘爆撃機",K143="水上爆撃機"),ROUNDDOWN(1*(S143*SQRT(G143)+25),0),"")),"") ->  | AD143: 0 | AE143: 0
B144: [艦載機なし] | C144: 0 | G144: =IF(F142="",,VLOOKUP(F142,carrierlist,4,FALSE)&"") -> 3 | H144: FuMO25 レーダー | J144: 10 | K144: 大型電探 | L144: 0 | O144: 9.827188724 | P144: 13.16 | Q144: 3 | R144: 0 | S144: 0 | T144: =IF(ISERROR(VLOOKUP(H144,fighterlist,1,FALSE)),"",IF(OR(E142="装甲空母",E142="正規空母",E142="軽空母",E142="水上機母艦",E142="航空戦艦",E142="航空巡洋艦",E142="潜水空母"),IF(VLOOKUP(H144,fighterlist,11,FALSE)="艦上攻撃機",ROUNDDOWN(0.8*(R144*SQRT(G144)+25),0),IF(OR(VLOOKUP(H144,fighterlist,11,FALSE)="艦上爆撃機",VLOOKUP(H144,fighterlist,11,FALSE)="噴式戦闘爆撃機",VLOOKUP(H144,fighterlist,11,FALSE)="水上爆撃機"),ROUNDDOWN(1*(S144*SQRT(G144)+25),0),"")),"")) ->  | U144: =IF(OR(E142="装甲空母",E142="正規空母",E142="軽空母",E142="水上機母艦",E142="航空戦艦",E142="航空巡洋艦",E142="潜水空母"),IF(K144="艦上攻撃機",ROUNDDOWN(1.5*(R144*SQRT(G144)+25),0),IF(OR(K144="艦上爆撃機",K144="噴式戦闘爆撃機",K144="水上爆撃機"),ROUNDDOWN(1*(S144*SQRT(G144)+25),0),"")),"") ->  | AD144: 0 | AE144: 0
B145: [艦載機なし] | C145: 0 | G145: =IF(F142="",,VLOOKUP(F142,carrierlist,5,FALSE)&"") -> 3 | H145: 紫雲 | I145: 7 | K145: 水上偵察機 | L145: 0 | O145: 9.6 | P145: 1 | Q145: 0 | R145: 0 | S145: 1 | T145: =IF(ISERROR(VLOOKUP(H145,fighterlist,1,FALSE)),"",IF(OR(E142="装甲空母",E142="正規空母",E142="軽空母",E142="水上機母艦",E142="航空戦艦",E142="航空巡洋艦",E142="潜水空母"),IF(VLOOKUP(H145,fighterlist,11,FALSE)="艦上攻撃機",ROUNDDOWN(0.8*(R145*SQRT(G145)+25),0),IF(OR(VLOOKUP(H145,fighterlist,11,FALSE)="艦上爆撃機",VLOOKUP(H145,fighterlist,11,FALSE)="噴式戦闘爆撃機",VLOOKUP(H145,fighterlist,11,FALSE)="水上爆撃機"),ROUNDDOWN(1*(S145*SQRT(G145)+25),0),"")),"")) ->  | U145: =IF(OR(E142="装甲空母",E142="正規空母",E142="軽空母",E142="水上機母艦",E142="航空戦艦",E142="航空巡洋艦",E142="潜水空母"),IF(K145="艦上攻撃機",ROUNDDOWN(1.5*(R145*SQRT(G145)+25),0),IF(OR(K145="艦上爆撃機",K145="噴式戦闘爆撃機",K145="水上爆撃機"),ROUNDDOWN(1*(S145*SQRT(G145)+25),0),"")),"") ->  | AD145: 0 | AE145: 0
B146: [艦載機なし] | C146: 0 | E146: =IF(F146="","",VLOOKUP(F146,carrierlist,8,FALSE)&"") -> 駆逐艦 | F146: 綾波改二 | G146: =IF(F146="",,VLOOKUP(F146,carrierlist,2,FALSE)&"") -> 0 | H146: 10cm高角砲＋高射装置 | J146: 10 | K146: 小口径主砲 | L146: 0 | O146: 0 | P146: 4.16 | Q146: 6.16 | R146: 0 | S146: 0 | T146: =IF(ISERROR(VLOOKUP(H146,fighterlist,1,FALSE)),"",IF(OR(E146="装甲空母",E146="正規空母",E146="軽空母",E146="水上機母艦",E146="航空戦艦",E146="航空巡洋艦",E146="潜水空母"),IF(VLOOKUP(H146,fighterlist,11,FALSE)="艦上攻撃機",ROUNDDOWN(0.8*(R146*SQRT(G146)+25),0),IF(OR(VLOOKUP(H146,fighterlist,11,FALSE)="艦上爆撃機",VLOOKUP(H146,fighterlist,11,FALSE)="噴式戦闘爆撃機",VLOOKUP(H146,fighterlist,11,FALSE)="水上爆撃機"),ROUNDDOWN(1*(S146*SQRT(G146)+25),0),"")),"")) ->  | U146: =IF(OR(E146="装甲空母",E146="正規空母",E146="軽空母",E146="水上機母艦",E146="航空戦艦",E146="航空巡洋艦",E146="潜水空母"),IF(K146="艦上攻撃機",ROUNDDOWN(1.5*(R146*SQRT(G146)+25),0),IF(OR(K146="艦上爆撃機",K146="噴式戦闘爆撃機",K146="水上爆撃機"),ROUNDDOWN(1*(S146*SQRT(G146)+25),0),"")),"") ->  | V146: =IF(OR(F146="",F146="[その他]",),"",IF(F146="","",IF(OR(E146="装甲空母",E146="正規空母",E146="軽空母"),IF(SUM(R146:R149)+SUM(S146:S149)=0,0,ROUNDDOWN(55+(VLOOKUP(F146,carrierlist,6,FALSE)+SUM(Q146:Q149))*1.5+SUM(R146:R149)*1.5+SUM(S146:S149)*2,0)),ROUNDDOWN(5+VLOOKUP(F146,carrierlist,6,FALSE)+SUM(Q146:Q149),0)))) -> 91 | W146: =IF(OR(E146="潜水艦",E146="潜水空母",E146="駆逐艦",E146="軽巡洋艦",E146="重雷装巡洋艦",E146="重巡洋艦",E146="航空巡洋艦",E146="水上機母艦"),ROUNDDOWN(5+VLOOKUP(F146,carrierlist,7,FALSE)+SUM(R146:R149),0),"") -> 93 | X146: =IF(OR(F146="",F146="[その他]",E146="装甲空母",E146="正規空母",E146="軽空母"),"",ROUNDDOWN(VLOOKUP(F146,carrierlist,6,FALSE)+VLOOKUP(F146,carrierlist,7,FALSE)+SUM(Q146:R149),0)) -> 174 | Y146: =IF(OR(AP146>=2,AK146>=3,AND(AK146=2,AL146>=1),AND(AK146>=1,AK146<=2,AP146>=1)),"カットイン",IF(OR(AND(AK146=2,AL146=0,AP146=0),AND(AK146=1,AL146>=1,AP146=0),AND(AK146=0,AL146>=2,AP146<=1)),"連撃","")) -> 連撃 | Z146: =IF(AP146>=2,ROUNDDOWN(X146*1.5,0)&"×2",IF(AH146>=3,X146*2,IF(AND(AH146=2,AL146>=1),ROUNDDOWN(X146*1.75,0),IF(AND(AH146>=1,AH146<=2,AP146>=1),ROUNDDOWN(X146*1.3,0)&"×2",IF(Y146="連撃",ROUNDDOWN(X146*1.2,0)&"×2",""))))) -> 208×2 | AB146: =IF(Y146="連撃",0.99,IF(Y146="",0,SQRT(VLOOKUP(BJ146,ci_coefficient,2,FALSE)*IF(BI146>BK146,BK146,BI146))*0.01+0.05*IF(BF154>=1,1,0)+0.05*IF(BG154>=1,1-(0.5)^BG154,0))) -> 0.99 | AD146: 0 | AE146: 0 | AF146: =IF(BD146=0,"",ROUNDDOWN((SQRT(AC146)*2+SUM(AE146:AE149)*1.5+SUM(AD146:AD149)+BD146)*BE146,1)) -> 13 | AH146: =IF($K146="大口径主砲",1,0)+IF($K147="大口径主砲",1,0)+IF($K148="大口径主砲",1,0)+IF($K149="大口径主砲",1,0) -> 0 | AI146: =IF($K146="中口径主砲",1,0)+IF($K147="中口径主砲",1,0)+IF($K148="中口径主砲",1,0)+IF($K149="中口径主砲",1,0) -> 0 | AJ146: =IF($K146="小口径主砲",1,0)+IF($K147="小口径主砲",1,0)+IF($K148="小口径主砲",1,0)+IF($K149="小口径主砲",1,0) -> 2 | AK146: =AH146+AI146+AJ146 -> 2 | AL146: =IF($K146="副砲",1,0)+IF($K147="副砲",1,0)+IF($K148="副砲",1,0)+IF($K149="副砲",1,0) -> 0 | AM146: =IF($K146="大型電探",1,0)+IF($K147="大型電探",1,0)+IF($K148="大型電探",1,0)+IF($K149="大型電探",1,0) -> 0 | AN146: =IF($K146="小型電探",1,0)+IF($K147="小型電探",1,0)+IF($K148="小型電探",1,0)+IF($K149="小型電探",1,0) -> 1 | AO146: =AM146+AN146 -> 1 | AP146: =IF($K146="魚雷",1,0)+IF($K147="魚雷",1,0)+IF($K148="魚雷",1,0)+IF($K149="魚雷",1,0) -> 0 | AQ146: =IF($K146="対艦強化弾",1,0)+IF($K147="対艦強化弾",1,0)+IF($K148="対艦強化弾",1,0)+IF($K149="対艦強化弾",1,0) -> 0 | AR146: =IF(OR($K146="水上偵察機",$K146="水上爆撃機"),1,0)+IF(OR($K147="水上偵察機",$K147="水上爆撃機"),1,0)+IF(OR($K148="水上偵察機",$K148="水上爆撃機"),1,0)+IF(OR($K149="水上偵察機",$K149="水上爆撃機"),1,0) -> 0 | AS146: =IF($K146="爆雷",1,0)+IF($K147="爆雷",1,0)+IF($K148="爆雷",1,0)+IF($K149="爆雷",1,0) -> 0 | AT146: =IF($K146="ソナー",1,0)+IF($K147="ソナー",1,0)+IF($K148="ソナー",1,0)+IF($K149="ソナー",1,0) -> 0 | AU146: =IF(OR($K146="オートジャイロ",$K146="対潜哨戒機"),1,0)+IF(OR($K147="オートジャイロ",$K147="対潜哨戒機"),1,0)+IF(OR($K148="オートジャイロ",$K148="対潜哨戒機"),1,0)+IF(OR($K149="オートジャイロ",$K149="対潜哨戒機"),1,0) -> 0 | AV146: =IF($K146="艦上爆撃機",1,0)+IF($K147="艦上爆撃機",1,0)+IF($K148="艦上爆撃機",1,0)+IF($K149="艦上爆撃機",1,0) -> 0 | AW146: =IF($K146="艦上攻撃機",1,0)+IF($K147="艦上攻撃機",1,0)+IF($K148="艦上攻撃機",1,0)+IF($K149="艦上攻撃機",1,0) -> 0 | AX146: =IF($K146="大型飛行艇",1,0)+IF($K147="大型飛行艇",1,0)+IF($K148="大型飛行艇",1,0)+IF($K149="大型飛行艇",1,0) -> 0 | AY146: =IF($K146="水上爆撃機",1,0)+IF($K147="水上爆撃機",1,0)+IF($K148="水上爆撃機",1,0)+IF($K149="水上爆撃機",1,0) -> 0 | AZ146: =SUM(AV146:AY149) -> 0 | BA146: =SUM(AU146:AY149) -> 0 | BB146: =IF(AZ146>0,4,IF(BA146>0,3,2)) -> 2 | BC146: =IF(ISERROR(VLOOKUP(F146,antisubmarine_ex,1,FALSE)),E146,VLOOKUP(F146,antisubmarine_ex,2,FALSE)&"") -> 駆逐艦 | BD146: =IF(ISERROR(VLOOKUP(BC146,antisubmarine,BB146,FALSE)),0,VLOOKUP(BC146,antisubmarine,BB146,FALSE)) -> 13 | BE146: =IF(AND(AS146>0,AT146>0),1.15,1) -> 1 | BF146: =IF(H146="探照灯",1,0)+IF(H147="探照灯",1,0)+IF(H148="探照灯",1,0)+IF(H149="探照灯",1,0) -> 0 | BG146: =IF(H146="照明弾",1,0)+IF(H147="照明弾",1,0)+IF(H148="照明弾",1,0)+IF(H149="照明弾",1,0) -> 0 | BH146: =IF(H146="熟練見張員",1,0)+IF(H147="熟練見張員",1,0)+IF(H148="熟練見張員",1,0)+IF(H149="熟練見張員",1,0) -> 0 | BI146: =AA146+BH146*VLOOKUP("運",watcher,2,FALSE) -> 0 | BJ146: =IF(AP146>=2,"魚雷",IF(AH146+AI146+AJ146>=3,"主砲",IF(AND(AH146+AI146+AJ146=2,AL146>=1),"主砲副砲",IF(OR(AND(AH146+AI146+AJ146=1,AP146=1),AND(AH146+AI146+AJ146=2,AL146=0,AP146=1)),"主砲魚雷",0)))) -> 0 | BK146: =IF(AP146>=2,VLOOKUP("魚雷",luck_cap,2,FALSE),IF(AH146+AI146+AJ146>=3,VLOOKUP("主砲",luck_cap,2,FALSE),IF(AND(AH146+AI146+AJ146=2,AL146>=1),VLOOKUP("主砲副砲",luck_cap,2,FALSE),IF(OR(AND(AH146+AI146+AJ146=1,AP146=1),AND(AH146+AI146+AJ146=2,AL146=0,AP146=1)),VLOOKUP("主砲魚雷",luck_cap,2,FALSE),0)))) -> 0 | BL146: =IF(H146="ドラム缶",1,0)+IF(H147="ドラム缶",1,0)+IF(H148="ドラム缶",1,0)+IF(H149="ドラム缶",1,0) -> 0
B147: 敵制空合計 | C147: =SUM(C141:C146) -> 102 | G147: =IF(F146="",,VLOOKUP(F146,carrierlist,3,FALSE)&"") -> 0 | H147: 10cm高角砲＋高射装置 | J147: 10 | K147: 小口径主砲 | L147: 0 | O147: 0 | P147: 4.16 | Q147: 6.16 | R147: 0 | S147: 0 | T147: =IF(ISERROR(VLOOKUP(H147,fighterlist,1,FALSE)),"",IF(OR(E146="装甲空母",E146="正規空母",E146="軽空母",E146="水上機母艦",E146="航空戦艦",E146="航空巡洋艦",E146="潜水空母"),IF(VLOOKUP(H147,fighterlist,11,FALSE)="艦上攻撃機",ROUNDDOWN(0.8*(R147*SQRT(G147)+25),0),IF(OR(VLOOKUP(H147,fighterlist,11,FALSE)="艦上爆撃機",VLOOKUP(H147,fighterlist,11,FALSE)="噴式戦闘爆撃機",VLOOKUP(H147,fighterlist,11,FALSE)="水上爆撃機"),ROUNDDOWN(1*(S147*SQRT(G147)+25),0),"")),"")) ->  | U147: =IF(OR(E146="装甲空母",E146="正規空母",E146="軽空母",E146="水上機母艦",E146="航空戦艦",E146="航空巡洋艦",E146="潜水空母"),IF(K147="艦上攻撃機",ROUNDDOWN(1.5*(R147*SQRT(G147)+25),0),IF(OR(K147="艦上爆撃機",K147="噴式戦闘爆撃機",K147="水上爆撃機"),ROUNDDOWN(1*(S147*SQRT(G147)+25),0),"")),"") ->  | AD147: 0 | AE147: 0
B148: 航空優勢 | C148: =ROUNDUP(C147*1.5,0) -> 153 | G148: =IF(F146="",,VLOOKUP(F146,carrierlist,4,FALSE)&"") -> 0 | H148: 13号対空電探改 | J148: 10 | K148: 小型電探 | L148: 0 | O148: 6.352847075 | P148: 5.16 | Q148: 0 | R148: 0 | S148: 0 | T148: =IF(ISERROR(VLOOKUP(H148,fighterlist,1,FALSE)),"",IF(OR(E146="装甲空母",E146="正規空母",E146="軽空母",E146="水上機母艦",E146="航空戦艦",E146="航空巡洋艦",E146="潜水空母"),IF(VLOOKUP(H148,fighterlist,11,FALSE)="艦上攻撃機",ROUNDDOWN(0.8*(R148*SQRT(G148)+25),0),IF(OR(VLOOKUP(H148,fighterlist,11,FALSE)="艦上爆撃機",VLOOKUP(H148,fighterlist,11,FALSE)="噴式戦闘爆撃機",VLOOKUP(H148,fighterlist,11,FALSE)="水上爆撃機"),ROUNDDOWN(1*(S148*SQRT(G148)+25),0),"")),"")) ->  | U148: =IF(OR(E146="装甲空母",E146="正規空母",E146="軽空母",E146="水上機母艦",E146="航空戦艦",E146="航空巡洋艦",E146="潜水空母"),IF(K148="艦上攻撃機",ROUNDDOWN(1.5*(R148*SQRT(G148)+25),0),IF(OR(K148="艦上爆撃機",K148="噴式戦闘爆撃機",K148="水上爆撃機"),ROUNDDOWN(1*(S148*SQRT(G148)+25),0),"")),"") ->  | AD148: 0 | AE148: 0
B149: 制空権確保 | C149: =C147*3 -> 306 | G149: =IF(F146="",,VLOOKUP(F146,carrierlist,5,FALSE)&"") ->  | L149: 0 | O149: 0 | P149: 0 | Q149: 0 | R149: 0 | S149: 0 | T149: =IF(ISERROR(VLOOKUP(H149,fighterlist,1,FALSE)),"",IF(OR(E146="装甲空母",E146="正規空母",E146="軽空母",E146="水上機母艦",E146="航空戦艦",E146="航空巡洋艦",E146="潜水空母"),IF(VLOOKUP(H149,fighterlist,11,FALSE)="艦上攻撃機",ROUNDDOWN(0.8*(R149*SQRT(G149)+25),0),IF(OR(VLOOKUP(H149,fighterlist,11,FALSE)="艦上爆撃機",VLOOKUP(H149,fighterlist,11,FALSE)="噴式戦闘爆撃機",VLOOKUP(H149,fighterlist,11,FALSE)="水上爆撃機"),ROUNDDOWN(1*(S149*SQRT(G149)+25),0),"")),"")) ->  | U149: =IF(OR(E146="装甲空母",E146="正規空母",E146="軽空母",E146="水上機母艦",E146="航空戦艦",E146="航空巡洋艦",E146="潜水空母"),IF(K149="艦上攻撃機",ROUNDDOWN(1.5*(R149*SQRT(G149)+25),0),IF(OR(K149="艦上爆撃機",K149="噴式戦闘爆撃機",K149="水上爆撃機"),ROUNDDOWN(1*(S149*SQRT(G149)+25),0),"")),"") ->  | AD149: 0 | AE149: 0
E150: =IF(F150="","",VLOOKUP(F150,carrierlist,8,FALSE)&"") -> 駆逐艦 | F150: 夕立改二 | G150: =IF(F150="",,VLOOKUP(F150,carrierlist,2,FALSE)&"") -> 0 | H150: 10cm高角砲＋高射装置 | J150: 10 | K150: =IF(ISERROR(VLOOKUP(H150,fighterlist,1,FALSE)),"",VLOOKUP(H150,fighterlist,11,FALSE)&"") -> 小口径主砲 | L150: 0 | O150: 0 | P150: 4.16 | Q150: 6.16 | R150: 0 | S150: 0 | T150: =IF(ISERROR(VLOOKUP(H150,fighterlist,1,FALSE)),"",IF(OR(E150="装甲空母",E150="正規空母",E150="軽空母",E150="水上機母艦",E150="航空戦艦",E150="航空巡洋艦",E150="潜水空母"),IF(VLOOKUP(H150,fighterlist,11,FALSE)="艦上攻撃機",ROUNDDOWN(0.8*(R150*SQRT(G150)+25),0),IF(OR(VLOOKUP(H150,fighterlist,11,FALSE)="艦上爆撃機",VLOOKUP(H150,fighterlist,11,FALSE)="噴式戦闘爆撃機",VLOOKUP(H150,fighterlist,11,FALSE)="水上爆撃機"),ROUNDDOWN(1*(S150*SQRT(G150)+25),0),"")),"")) ->  | U150: =IF(OR(E150="装甲空母",E150="正規空母",E150="軽空母",E150="水上機母艦",E150="航空戦艦",E150="航空巡洋艦",E150="潜水空母"),IF(K150="艦上攻撃機",ROUNDDOWN(1.5*(R150*SQRT(G150)+25),0),IF(OR(K150="艦上爆撃機",K150="噴式戦闘爆撃機",K150="水上爆撃機"),ROUNDDOWN(1*(S150*SQRT(G150)+25),0),"")),"") ->  | V150: =IF(OR(F150="",F150="[その他]",),"",IF(F150="","",IF(OR(E150="装甲空母",E150="正規空母",E150="軽空母"),IF(SUM(R150:R153)+SUM(S150:S153)=0,0,ROUNDDOWN(55+(VLOOKUP(F150,carrierlist,6,FALSE)+SUM(Q150:Q153))*1.5+SUM(R150:R153)*1.5+SUM(S150:S153)*2,0)),ROUNDDOWN(5+VLOOKUP(F150,carrierlist,6,FALSE)+SUM(Q150:Q153),0)))) -> 90 | W150: =IF(OR(E150="潜水艦",E150="潜水空母",E150="駆逐艦",E150="軽巡洋艦",E150="重雷装巡洋艦",E150="重巡洋艦",E150="航空巡洋艦",E150="水上機母艦"),ROUNDDOWN(5+VLOOKUP(F150,carrierlist,7,FALSE)+SUM(R150:R153),0),"") -> 98 | X150: =IF(OR(F150="",F150="[その他]",E150="装甲空母",E150="正規空母",E150="軽空母"),"",ROUNDDOWN(VLOOKUP(F150,carrierlist,6,FALSE)+VLOOKUP(F150,carrierlist,7,FALSE)+SUM(Q150:R153),0)) -> 178 | Y150: =IF(OR(AP150>=2,AK150>=3,AND(AK150=2,AL150>=1),AND(AK150>=1,AK150<=2,AP150>=1)),"カットイン",IF(OR(AND(AK150=2,AL150=0,AP150=0),AND(AK150=1,AL150>=1,AP150=0),AND(AK150=0,AL150>=2,AP150<=1)),"連撃","")) -> 連撃 | Z150: =IF(AP150>=2,ROUNDDOWN(X150*1.5,0)&"×2",IF(AH150>=3,X150*2,IF(AND(AH150=2,AL150>=1),ROUNDDOWN(X150*1.75,0),IF(AND(AH150>=1,AH150<=2,AP150>=1),ROUNDDOWN(X150*1.3,0)&"×2",IF(Y150="連撃",ROUNDDOWN(X150*1.2,0)&"×2",""))))) -> 213×2 | AB150: =IF(Y150="連撃",0.99,IF(Y150="",0,SQRT(VLOOKUP(BJ150,ci_coefficient,2,FALSE)*IF(BI150>BK150,BK150,BI150))*0.01+0.05*IF(BF154>=1,1,0)+0.05*IF(BG154>=1,1-(0.5)^BG154,0))) -> 0.99 | AD150: 0 | AE150: 0 | AF150: =IF(BD150=0,"",ROUNDDOWN((SQRT(AC150)*2+SUM(AE150:AE153)*1.5+SUM(AD150:AD153)+BD150)*BE150,1)) -> 13 | AH150: =IF($K150="大口径主砲",1,0)+IF($K151="大口径主砲",1,0)+IF($K152="大口径主砲",1,0)+IF($K153="大口径主砲",1,0) -> 0 | AI150: =IF($K150="中口径主砲",1,0)+IF($K151="中口径主砲",1,0)+IF($K152="中口径主砲",1,0)+IF($K153="中口径主砲",1,0) -> 0 | AJ150: =IF($K150="小口径主砲",1,0)+IF($K151="小口径主砲",1,0)+IF($K152="小口径主砲",1,0)+IF($K153="小口径主砲",1,0) -> 2 | AK150: =AH150+AI150+AJ150 -> 2 | AL150: =IF($K150="副砲",1,0)+IF($K151="副砲",1,0)+IF($K152="副砲",1,0)+IF($K153="副砲",1,0) -> 0 | AM150: =IF($K150="大型電探",1,0)+IF($K151="大型電探",1,0)+IF($K152="大型電探",1,0)+IF($K153="大型電探",1,0) -> 0 | AN150: =IF($K150="小型電探",1,0)+IF($K151="小型電探",1,0)+IF($K152="小型電探",1,0)+IF($K153="小型電探",1,0) -> 1 | AO150: =AM150+AN150 -> 1 | AP150: =IF($K150="魚雷",1,0)+IF($K151="魚雷",1,0)+IF($K152="魚雷",1,0)+IF($K153="魚雷",1,0) -> 0 | AQ150: =IF($K150="対艦強化弾",1,0)+IF($K151="対艦強化弾",1,0)+IF($K152="対艦強化弾",1,0)+IF($K153="対艦強化弾",1,0) -> 0 | AR150: =IF(OR($K150="水上偵察機",$K150="水上爆撃機"),1,0)+IF(OR($K151="水上偵察機",$K151="水上爆撃機"),1,0)+IF(OR($K152="水上偵察機",$K152="水上爆撃機"),1,0)+IF(OR($K153="水上偵察機",$K153="水上爆撃機"),1,0) -> 0 | AS150: =IF($K150="爆雷",1,0)+IF($K151="爆雷",1,0)+IF($K152="爆雷",1,0)+IF($K153="爆雷",1,0) -> 0 | AT150: =IF($K150="ソナー",1,0)+IF($K151="ソナー",1,0)+IF($K152="ソナー",1,0)+IF($K153="ソナー",1,0) -> 0 | AU150: =IF(OR($K150="オートジャイロ",$K150="対潜哨戒機"),1,0)+IF(OR($K151="オートジャイロ",$K151="対潜哨戒機"),1,0)+IF(OR($K152="オートジャイロ",$K152="対潜哨戒機"),1,0)+IF(OR($K153="オートジャイロ",$K153="対潜哨戒機"),1,0) -> 0 | AV150: =IF($K150="艦上爆撃機",1,0)+IF($K151="艦上爆撃機",1,0)+IF($K152="艦上爆撃機",1,0)+IF($K153="艦上爆撃機",1,0) -> 0 | AW150: =IF($K150="艦上攻撃機",1,0)+IF($K151="艦上攻撃機",1,0)+IF($K152="艦上攻撃機",1,0)+IF($K153="艦上攻撃機",1,0) -> 0 | AX150: =IF($K150="大型飛行艇",1,0)+IF($K151="大型飛行艇",1,0)+IF($K152="大型飛行艇",1,0)+IF($K153="大型飛行艇",1,0) -> 0 | AY150: =IF($K150="水上爆撃機",1,0)+IF($K151="水上爆撃機",1,0)+IF($K152="水上爆撃機",1,0)+IF($K153="水上爆撃機",1,0) -> 0 | AZ150: =SUM(AV150:AY153) -> 0 | BA150: =SUM(AU150:AY153) -> 0 | BB150: =IF(AZ150>0,4,IF(BA150>0,3,2)) -> 2 | BC150: =IF(ISERROR(VLOOKUP(F150,antisubmarine_ex,1,FALSE)),E150,VLOOKUP(F150,antisubmarine_ex,2,FALSE)&"") -> 駆逐艦 | BD150: =IF(ISERROR(VLOOKUP(BC150,antisubmarine,BB150,FALSE)),0,VLOOKUP(BC150,antisubmarine,BB150,FALSE)) -> 13 | BE150: =IF(AND(AS150>0,AT150>0),1.15,1) -> 1 | BF150: =IF(H150="探照灯",1,0)+IF(H151="探照灯",1,0)+IF(H152="探照灯",1,0)+IF(H153="探照灯",1,0) -> 0 | BG150: =IF(H150="照明弾",1,0)+IF(H151="照明弾",1,0)+IF(H152="照明弾",1,0)+IF(H153="照明弾",1,0) -> 0 | BH150: =IF(H150="熟練見張員",1,0)+IF(H151="熟練見張員",1,0)+IF(H152="熟練見張員",1,0)+IF(H153="熟練見張員",1,0) -> 0 | BI150: =AA150+BH150*VLOOKUP("運",watcher,2,FALSE) -> 0 | BJ150: =IF(AP150>=2,"魚雷",IF(AH150+AI150+AJ150>=3,"主砲",IF(AND(AH150+AI150+AJ150=2,AL150>=1),"主砲副砲",IF(OR(AND(AH150+AI150+AJ150=1,AP150=1),AND(AH150+AI150+AJ150=2,AL150=0,AP150=1)),"主砲魚雷",0)))) -> 0 | BK150: =IF(AP150>=2,VLOOKUP("魚雷",luck_cap,2,FALSE),IF(AH150+AI150+AJ150>=3,VLOOKUP("主砲",luck_cap,2,FALSE),IF(AND(AH150+AI150+AJ150=2,AL150>=1),VLOOKUP("主砲副砲",luck_cap,2,FALSE),IF(OR(AND(AH150+AI150+AJ150=1,AP150=1),AND(AH150+AI150+AJ150=2,AL150=0,AP150=1)),VLOOKUP("主砲魚雷",luck_cap,2,FALSE),0)))) -> 0 | BL150: =IF(H150="ドラム缶",1,0)+IF(H151="ドラム缶",1,0)+IF(H152="ドラム缶",1,0)+IF(H153="ドラム缶",1,0) -> 0
B151: 要求索敵値 | G151: =IF(F150="",,VLOOKUP(F150,carrierlist,3,FALSE)&"") -> 0 | H151: 10cm高角砲＋高射装置 | J151: 10 | K151: =IF(ISERROR(VLOOKUP(H151,fighterlist,1,FALSE)),"",VLOOKUP(H151,fighterlist,11,FALSE)&"") -> 小口径主砲 | L151: 0 | O151: 0 | P151: 4.16 | Q151: 6.16 | R151: 0 | S151: 0 | T151: =IF(ISERROR(VLOOKUP(H151,fighterlist,1,FALSE)),"",IF(OR(E150="装甲空母",E150="正規空母",E150="軽空母",E150="水上機母艦",E150="航空戦艦",E150="航空巡洋艦",E150="潜水空母"),IF(VLOOKUP(H151,fighterlist,11,FALSE)="艦上攻撃機",ROUNDDOWN(0.8*(R151*SQRT(G151)+25),0),IF(OR(VLOOKUP(H151,fighterlist,11,FALSE)="艦上爆撃機",VLOOKUP(H151,fighterlist,11,FALSE)="噴式戦闘爆撃機",VLOOKUP(H151,fighterlist,11,FALSE)="水上爆撃機"),ROUNDDOWN(1*(S151*SQRT(G151)+25),0),"")),"")) ->  | U151: =IF(OR(E150="装甲空母",E150="正規空母",E150="軽空母",E150="水上機母艦",E150="航空戦艦",E150="航空巡洋艦",E150="潜水空母"),IF(K151="艦上攻撃機",ROUNDDOWN(1.5*(R151*SQRT(G151)+25),0),IF(OR(K151="艦上爆撃機",K151="噴式戦闘爆撃機",K151="水上爆撃機"),ROUNDDOWN(1*(S151*SQRT(G151)+25),0),"")),"") ->  | AD151: 0 | AE151: 0
G152: =IF(F150="",,VLOOKUP(F150,carrierlist,4,FALSE)&"") -> 0 | H152: 13号対空電探改 | J152: 10 | K152: =IF(ISERROR(VLOOKUP(H152,fighterlist,1,FALSE)),"",VLOOKUP(H152,fighterlist,11,FALSE)&"") -> 小型電探 | L152: 0 | O152: 6.352847075 | P152: 5.16 | Q152: 0 | R152: 0 | S152: 0 | T152: =IF(ISERROR(VLOOKUP(H152,fighterlist,1,FALSE)),"",IF(OR(E150="装甲空母",E150="正規空母",E150="軽空母",E150="水上機母艦",E150="航空戦艦",E150="航空巡洋艦",E150="潜水空母"),IF(VLOOKUP(H152,fighterlist,11,FALSE)="艦上攻撃機",ROUNDDOWN(0.8*(R152*SQRT(G152)+25),0),IF(OR(VLOOKUP(H152,fighterlist,11,FALSE)="艦上爆撃機",VLOOKUP(H152,fighterlist,11,FALSE)="噴式戦闘爆撃機",VLOOKUP(H152,fighterlist,11,FALSE)="水上爆撃機"),ROUNDDOWN(1*(S152*SQRT(G152)+25),0),"")),"")) ->  | U152: =IF(OR(E150="装甲空母",E150="正規空母",E150="軽空母",E150="水上機母艦",E150="航空戦艦",E150="航空巡洋艦",E150="潜水空母"),IF(K152="艦上攻撃機",ROUNDDOWN(1.5*(R152*SQRT(G152)+25),0),IF(OR(K152="艦上爆撃機",K152="噴式戦闘爆撃機",K152="水上爆撃機"),ROUNDDOWN(1*(S152*SQRT(G152)+25),0),"")),"") ->  | AD152: 0 | AE152: 0
B153: 洋上航空戦力を拡充せよ! 任務用 | G153: =IF(F150="",,VLOOKUP(F150,carrierlist,5,FALSE)&"") ->  | K153: =IF(ISERROR(VLOOKUP(H153,fighterlist,1,FALSE)),"",VLOOKUP(H153,fighterlist,11,FALSE)&"") ->  | L153: 0 | O153: 0 | P153: 0 | Q153: 0 | R153: 0 | S153: 0 | T153: =IF(ISERROR(VLOOKUP(H153,fighterlist,1,FALSE)),"",IF(OR(E150="装甲空母",E150="正規空母",E150="軽空母",E150="水上機母艦",E150="航空戦艦",E150="航空巡洋艦",E150="潜水空母"),IF(VLOOKUP(H153,fighterlist,11,FALSE)="艦上攻撃機",ROUNDDOWN(0.8*(R153*SQRT(G153)+25),0),IF(OR(VLOOKUP(H153,fighterlist,11,FALSE)="艦上爆撃機",VLOOKUP(H153,fighterlist,11,FALSE)="噴式戦闘爆撃機",VLOOKUP(H153,fighterlist,11,FALSE)="水上爆撃機"),ROUNDDOWN(1*(S153*SQRT(G153)+25),0),"")),"")) ->  | U153: =IF(OR(E150="装甲空母",E150="正規空母",E150="軽空母",E150="水上機母艦",E150="航空戦艦",E150="航空巡洋艦",E150="潜水空母"),IF(K153="艦上攻撃機",ROUNDDOWN(1.5*(R153*SQRT(G153)+25),0),IF(OR(K153="艦上爆撃機",K153="噴式戦闘爆撃機",K153="水上爆撃機"),ROUNDDOWN(1*(S153*SQRT(G153)+25),0),"")),"") ->  | AD153: 0 | AE153: 0
E154: 制空合計 | L154: =SUM(L130:L153) -> 66 | M154: 総索敵値 | O154: =ROUNDDOWN(SUM(O130:O153)+(SQRT(M130)+SQRT(M134)+SQRT(M138)+SQRT(M142)+SQRT(M146)+SQRT(M150))-(0.4*$G$2)+2*(6-COUNTA(F130:F153)),2) -> 20.56 | AH154: 積載艦数 | BF154: =IF(BF130>0,1,0)+IF(BF134>0,1,0)+IF(BF138>0,1,0)+IF(BF142>0,1,0)+IF(BF146>0,1,0)+IF(BF150>0,1,0) -> 0 | BG154: =IF(BG130>0,1,0)+IF(BG134>0,1,0)+IF(BG138>0,1,0)+IF(BG142>0,1,0)+IF(BG146>0,1,0)+IF(BG150>0,1,0) -> 0 | BL154: =IF(BL130>0,1,0)+IF(BL134>0,1,0)+IF(BL138>0,1,0)+IF(BL142>0,1,0)+IF(BL146>0,1,0)+IF(BL150>0,1,0) -> 0
E155: =IF(AND(OR(C135=0,C135=""),SUM(AV130:AY153)=0),"航空拮抗",IF(L154>=C135*3,"制空権確保",IF(L154>=C135*1.5,"航空優勢",IF(L154>=C135*2/3,"航空拮抗",IF(L154>=C135*1/3,"航空劣勢","制空権喪失"))))) -> 制空権確保 | M155: 索敵要求比 | O155: =IF(C151="","",O154/C151) ->  | AH155: 合計積載数 | BL155: =SUM(BL130:BL153) -> 0
B157: 敵旗艦艦隊 | E157: 味方編成
B158: 艦種 | C158: 制空値 | E158: 艦種 | F158: 艦名 | G158: 装備スロット | L158: 制空値 | M158: 索敵 | P158: その他変動 | T158: 航空戦攻撃力 | V158: 昼戦 | X158: 夜戦 | AC158: 対潜 | AH158: 装備カウント
B159: 空母ヲ級 | C159: =IF(B159="","",VLOOKUP(B159,enemyforcelist,2,FALSE)) -> 10 | G159: 積載 | H159: 装備 | I159: ≫ | J159: ★ | K159: 分類 | M159: 基礎 | N159: 基礎+ | O159: 装備 | P159: 命中 | Q159: 火力 | R159: 雷装 | S159: 爆装 | T159: 弱攻撃 | U159: 強攻撃 | V159: 砲撃 | W159: 雷撃 | X159: 攻撃 | Y159: 特分類 | Z159: 特攻撃 | AA159: 運 | AB159: 特発動 | AC159: 基礎 | AD159: + | AE159: 装備 | AF159: 攻撃力 | AH159: 大口径主砲 | AI159: 中口径主砲 | AJ159: 小口径主砲 | AK159: 主砲合計 | AL159: 副砲 | AM159: 大型電探 | AN159: 小型電探 | AO159: 電探合計 | AP159: 魚雷 | AQ159: 徹甲弾 | AR159: 索敵機 | AS159: 爆雷 | AT159: ソナー | AU159: 対潜機 | AV159: 艦爆 | AW159: 艦攻 | AX159: 大型飛行艇 | AY159: 水上爆撃機 | AZ159: 軽空母対潜可 | BA159: 航空艦対潜可 | BB159: 対潜種別 | BC159: 対潜艦種 | BD159: 対潜定数 | BE159: 対潜シナジー | BF159: 探照灯 | BG159: 照明弾 | BH159: 見張員 | BI159: 運 | BJ159: CI分類 | BK159: 運上限 | BL159: ドラム缶
B160: 空母ヲ級 | C160: 10 | E160: =IF(F160="","",VLOOKUP(F160,carrierlist,8,FALSE)&"") -> 航空巡洋艦 | F160: 利根改二 | G160: =IF(F160="",,VLOOKUP(F160,carrierlist,2,FALSE)&"") -> 2 | H160: 20.3cm(3号)連装砲 | J160: 10 | K160: =IF(ISERROR(VLOOKUP(H160,fighterlist,1,FALSE)),"",VLOOKUP(H160,fighterlist,11,FALSE)&"") -> 中口径主砲 | L160: =ROUNDDOWN(IF(OR(H160="",G160="",G160=0,ISERROR(VLOOKUP(H160,fighterlist,1,FALSE))),0,SQRT(G160)*IF(H160="","",VLOOKUP(H160,fighterlist,3,FALSE)+IF(J160>0,J160*VLOOKUP(K160,customlist,10,FALSE),0))+IF(AND(I160>=1,I160<=7),IF(ISERROR(VLOOKUP(K160,superior_skill_bonus,I160+1,FALSE)),0,VLOOKUP(K160,superior_skill_bonus,I160+1,FALSE)+SQRT(VLOOKUP(I160,skill_inner_level,2,FALSE)/10)),0)),0) -> 0 | N160: =IF(ISERROR(VLOOKUP(H160,fighterlist,1,FALSE)),"",IF(VLOOKUP(H160,fighterlist,5,FALSE)=0,VLOOKUP(H160,fighterlist,4,FALSE),"")) ->  | O160: =IF(OR(H160="",K160="",ISERROR(VLOOKUP(K160,customlist,1,FALSE))),0,IF(VLOOKUP(H160,fighterlist,5,FALSE)="",0,VLOOKUP(H160,fighterlist,5,FALSE))+SQRT(J160*IF(VLOOKUP(K160,customlist,9,FALSE)="",0,VLOOKUP(K160,customlist,9,FALSE)))) -> 0 | P160: =IF(ISERROR(VLOOKUP(H160,fighterlist,1,FALSE)),0,VLOOKUP(H160,fighterlist,6,FALSE)+ROUNDDOWN(SQRT(J160*VLOOKUP(K160,customlist,7,FALSE)),2)) -> 4.16 | Q160: =IF(ISERROR(VLOOKUP(H160,fighterlist,1,FALSE)),0,VLOOKUP(H160,fighterlist,7,FALSE)+ROUNDDOWN(SQRT(J160*VLOOKUP(K160,customlist,2,FALSE)),2)) -> 13.16 | R160: =IF(ISERROR(VLOOKUP(H160,fighterlist,1,FALSE)),0,VLOOKUP(H160,fighterlist,8,FALSE)+ROUNDDOWN(SQRT(J160*VLOOKUP(K160,customlist,3,FALSE)),2)) -> 0 | S160: =IF(ISERROR(VLOOKUP(H160,fighterlist,1,FALSE)),0,VLOOKUP(H160,fighterlist,9,FALSE)+ROUNDDOWN(J160*VLOOKUP(K160,customlist,4,FALSE),1)) -> 0 | T160: =IF(ISERROR(VLOOKUP(H160,fighterlist,1,FALSE)),"",IF(OR(E160="装甲空母",E160="正規空母",E160="軽空母",E160="水上機母艦",E160="航空戦艦",E160="航空巡洋艦",E160="潜水空母"),IF(VLOOKUP(H160,fighterlist,11,FALSE)="艦上攻撃機",ROUNDDOWN(0.8*(R160*SQRT(G160)+25),0),IF(OR(VLOOKUP(H160,fighterlist,11,FALSE)="艦上爆撃機",VLOOKUP(H160,fighterlist,11,FALSE)="水上爆撃機"),ROUNDDOWN(1*(S160*SQRT(G160)+25),0),"")),"")) ->  | U160: =IF(OR(E160="装甲空母",E160="正規空母",E160="軽空母",E160="水上機母艦",E160="航空戦艦",E160="航空巡洋艦",E160="潜水空母"),IF(K160="艦上攻撃機",ROUNDDOWN(1.5*(R160*SQRT(G160)+25),0),IF(OR(K160="艦上爆撃機",K160="水上爆撃機"),ROUNDDOWN(1*(S160*SQRT(G160)+25),0),"")),"") ->  | V160: =IF(OR(F160="",F160="[その他]",),"",IF(F160="","",IF(OR(E160="装甲空母",E160="正規空母",E160="軽空母"),IF(SUM(R160:R163)+SUM(S160:S163)=0,0,ROUNDDOWN(55+(VLOOKUP(F160,carrierlist,6,FALSE)+SUM(Q160:Q163))*1.5+SUM(R160:R163)*1.5+SUM(S160:S163)*2,0)),ROUNDDOWN(5+VLOOKUP(F160,carrierlist,6,FALSE)+SUM(Q160:Q163),0)))) -> 108 | W160: =IF(OR(E160="潜水艦",E160="潜水空母",E160="駆逐艦",E160="軽巡洋艦",E160="重雷装巡洋艦",E160="重巡洋艦",E160="航空巡洋艦",E160="水上機母艦"),ROUNDDOWN(5+VLOOKUP(F160,carrierlist,7,FALSE)+SUM(R160:R163),0),"") -> 87 | X160: =IF(OR(F160="",F160="[その他]",E160="装甲空母",E160="正規空母",E160="軽空母"),"",ROUNDDOWN(VLOOKUP(F160,carrierlist,6,FALSE)+VLOOKUP(F160,carrierlist,7,FALSE)+SUM(Q160:R163),0)) -> 185 | Y160: =IF(OR(AP160>=2,AK160>=3,AND(AK160=2,AL160>=1),AND(AK160>=1,AK160<=2,AP160>=1)),"カットイン",IF(OR(AND(AK160=2,AL160=0,AP160=0),AND(AK160=1,AL160>=1,AP160=0),AND(AK160=0,AL160>=2,AP160<=1)),"連撃","")) -> 連撃 | Z160: =IF(AP160>=2,ROUNDDOWN(X160*1.5,0)&"×2",IF(AH160>=3,X160*2,IF(AND(AH160=2,AL160>=1),ROUNDDOWN(X160*1.75,0),IF(AND(AH160>=1,AH160<=2,AP160>=1),ROUNDDOWN(X160*1.3,0)&"×2",IF(Y160="連撃",ROUNDDOWN(X160*1.2,0)&"×2",""))))) -> 222×2 | AB160: =IF(Y160="連撃",0.99,IF(Y160="",0,SQRT(VLOOKUP(BJ160,ci_coefficient,2,FALSE)*IF(BI160>BK160,BK160,BI160))*0.01+0.125+0.05*IF(BF184>=1,1,0)+0.05*IF(BG184>=1,1-(0.5)^BG184,0))) -> 0.99 | AD160: =IF(ISERROR(VLOOKUP(K160,customlist,1,FALSE)),0,SQRT(J160*VLOOKUP(K160,customlist,5,FALSE))) -> 0 | AE160: =IF(ISERROR(VLOOKUP(H160,fighterlist,1,FALSE)),0,IF(ISERROR(VLOOKUP(K160,antisubmarine_flag,1,FALSE)),0,VLOOKUP(K160,antisubmarine_flag,2,FALSE)*VLOOKUP(H160,fighterlist,10,FALSE))) -> 0 | AF160: =IF(BD160=0,"",ROUNDDOWN((SQRT(AC160)*2+SUM(AE160:AE163)*1.5+SUM(AD160:AD163)+BD160)*BE160,1)) -> 17 | AH160: =IF($K160="大口径主砲",1,0)+IF($K161="大口径主砲",1,0)+IF($K162="大口径主砲",1,0)+IF($K163="大口径主砲",1,0) -> 0 | AI160: =IF($K160="中口径主砲",1,0)+IF($K161="中口径主砲",1,0)+IF($K162="中口径主砲",1,0)+IF($K163="中口径主砲",1,0) -> 2 | AJ160: =IF($K160="小口径主砲",1,0)+IF($K161="小口径主砲",1,0)+IF($K162="小口径主砲",1,0)+IF($K163="小口径主砲",1,0) -> 0 | AK160: =AH160+AI160+AJ160 -> 2 | AL160: =IF($K160="副砲",1,0)+IF($K161="副砲",1,0)+IF($K162="副砲",1,0)+IF($K163="副砲",1,0) -> 0 | AM160: =IF($K160="大型電探",1,0)+IF($K161="大型電探",1,0)+IF($K162="大型電探",1,0)+IF($K163="大型電探",1,0) -> 0 | AN160: =IF($K160="小型電探",1,0)+IF($K161="小型電探",1,0)+IF($K162="小型電探",1,0)+IF($K163="小型電探",1,0) -> 0 | AO160: =AM160+AN160 -> 0 | AP160: =IF($K160="魚雷",1,0)+IF($K161="魚雷",1,0)+IF($K162="魚雷",1,0)+IF($K163="魚雷",1,0) -> 0 | AQ160: =IF($K160="対艦強化弾",1,0)+IF($K161="対艦強化弾",1,0)+IF($K162="対艦強化弾",1,0)+IF($K163="対艦強化弾",1,0) -> 0 | AR160: =IF(OR($K160="水上偵察機",$K160="水上爆撃機"),1,0)+IF(OR($K161="水上偵察機",$K161="水上爆撃機"),1,0)+IF(OR($K162="水上偵察機",$K162="水上爆撃機"),1,0)+IF(OR($K163="水上偵察機",$K163="水上爆撃機"),1,0) -> 2 | AS160: =IF($K160="爆雷",1,0)+IF($K161="爆雷",1,0)+IF($K162="爆雷",1,0)+IF($K163="爆雷",1,0) -> 0 | AT160: =IF($K160="ソナー",1,0)+IF($K161="ソナー",1,0)+IF($K162="ソナー",1,0)+IF($K163="ソナー",1,0) -> 0 | AU160: =IF(OR($K160="オートジャイロ",$K160="対潜哨戒機"),1,0)+IF(OR($K161="オートジャイロ",$K161="対潜哨戒機"),1,0)+IF(OR($K162="オートジャイロ",$K162="対潜哨戒機"),1,0)+IF(OR($K163="オートジャイロ",$K163="対潜哨戒機"),1,0) -> 0 | AV160: =IF($K160="艦上爆撃機",1,0)+IF($K161="艦上爆撃機",1,0)+IF($K162="艦上爆撃機",1,0)+IF($K163="艦上爆撃機",1,0) -> 0 | AW160: =IF($K160="艦上攻撃機",1,0)+IF($K161="艦上攻撃機",1,0)+IF($K162="艦上攻撃機",1,0)+IF($K163="艦上攻撃機",1,0) -> 0 | AX160: =IF($K160="大型飛行艇",1,0)+IF($K161="大型飛行艇",1,0)+IF($K162="大型飛行艇",1,0)+IF($K163="大型飛行艇",1,0) -> 0 | AY160: =IF($K160="水上爆撃機",1,0)+IF($K161="水上爆撃機",1,0)+IF($K162="水上爆撃機",1,0)+IF($K163="水上爆撃機",1,0) -> 1 | AZ160: =SUM(AV160:AY163) -> 1 | BA160: =SUM(AU160:AY163) -> 1 | BB160: =IF(AZ160>0,4,IF(BA160>0,3,2)) -> 4 | BC160: =IF(ISERROR(VLOOKUP(F160,antisubmarine_ex,1,FALSE)),E160,VLOOKUP(F160,antisubmarine_ex,2,FALSE)&"") -> 航空巡洋艦 | BD160: =IF(ISERROR(VLOOKUP(BC160,antisubmarine,BB160,FALSE)),0,VLOOKUP(BC160,antisubmarine,BB160,FALSE)) -> 8 | BE160: =IF(AND(AS160>0,AT160>0),1.15,1) -> 1 | BF160: =IF(H160="探照灯",1,0)+IF(H161="探照灯",1,0)+IF(H162="探照灯",1,0)+IF(H163="探照灯",1,0) -> 0 | BG160: =IF(H160="照明弾",1,0)+IF(H161="照明弾",1,0)+IF(H162="照明弾",1,0)+IF(H163="照明弾",1,0) -> 0 | BH160: =IF(H160="熟練見張員",1,0)+IF(H161="熟練見張員",1,0)+IF(H162="熟練見張員",1,0)+IF(H163="熟練見張員",1,0) -> 0 | BI160: =AA160+BH160*VLOOKUP("運",watcher,2,FALSE) -> 0 | BJ160: =IF(AP160>=2,"魚雷",IF(AH160+AI160+AJ160>=3,"主砲",IF(AND(AH160+AI160+AJ160=2,AL160>=1),"主砲副砲",IF(OR(AND(AH160+AI160+AJ160=1,AP160=1),AND(AH160+AI160+AJ160=2,AL160=0,AP160=1)),"主砲魚雷",0)))) -> 0 | BK160: =IF(AP160>=2,VLOOKUP("魚雷",luck_cap,2,FALSE),IF(AH160+AI160+AJ160>=3,VLOOKUP("主砲",luck_cap,2,FALSE),IF(AND(AH160+AI160+AJ160=2,AL160>=1),VLOOKUP("主砲副砲",luck_cap,2,FALSE),IF(OR(AND(AH160+AI160+AJ160=1,AP160=1),AND(AH160+AI160+AJ160=2,AL160=0,AP160=1)),VLOOKUP("主砲魚雷",luck_cap,2,FALSE),0)))) -> 0 | BL160: =IF(H160="ドラム缶",1,0)+IF(H161="ドラム缶",1,0)+IF(H162="ドラム缶",1,0)+IF(H163="ドラム缶",1,0) -> 0
B161: 軽空母ヌ級 | C161: 8 | G161: =IF(F160="",,VLOOKUP(F160,carrierlist,3,FALSE)&"") -> 2 | H161: 20.3cm(3号)連装砲 | J161: 10 | K161: 中口径主砲 | L161: 0 | O161: 0 | P161: 4.16 | Q161: =IF(ISERROR(VLOOKUP(H161,fighterlist,1,FALSE)),0,VLOOKUP(H161,fighterlist,7,FALSE)+ROUNDDOWN(SQRT(J161*VLOOKUP(K161,customlist,2,FALSE)),2)) -> 13.16 | R161: 0 | S161: 0 | T161: =IF(ISERROR(VLOOKUP(H161,fighterlist,1,FALSE)),"",IF(OR(E160="装甲空母",E160="正規空母",E160="軽空母",E160="水上機母艦",E160="航空戦艦",E160="航空巡洋艦",E160="潜水空母"),IF(VLOOKUP(H161,fighterlist,11,FALSE)="艦上攻撃機",ROUNDDOWN(0.8*(R161*SQRT(G161)+25),0),IF(OR(VLOOKUP(H161,fighterlist,11,FALSE)="艦上爆撃機",VLOOKUP(H161,fighterlist,11,FALSE)="水上爆撃機"),ROUNDDOWN(1*(S161*SQRT(G161)+25),0),"")),"")) ->  | U161: =IF(OR(E160="装甲空母",E160="正規空母",E160="軽空母",E160="水上機母艦",E160="航空戦艦",E160="航空巡洋艦",E160="潜水空母"),IF(K161="艦上攻撃機",ROUNDDOWN(1.5*(R161*SQRT(G161)+25),0),IF(OR(K161="艦上爆撃機",K161="水上爆撃機"),ROUNDDOWN(1*(S161*SQRT(G161)+25),0),"")),"") ->  | AD161: 0 | AE161: 0
B162: [艦載機なし] | C162: 0 | G162: =IF(F160="",,VLOOKUP(F160,carrierlist,4,FALSE)&"") -> 9 | H162: 瑞雲12型(六三四空) | I162: 7 | K162: 水上爆撃機 | L162: 18 | O162: 7.7 | P162: 1 | Q162: 0 | R162: 0 | S162: 9 | T162: =IF(ISERROR(VLOOKUP(H162,fighterlist,1,FALSE)),"",IF(OR(E160="装甲空母",E160="正規空母",E160="軽空母",E160="水上機母艦",E160="航空戦艦",E160="航空巡洋艦",E160="潜水空母"),IF(VLOOKUP(H162,fighterlist,11,FALSE)="艦上攻撃機",ROUNDDOWN(0.8*(R162*SQRT(G162)+25),0),IF(OR(VLOOKUP(H162,fighterlist,11,FALSE)="艦上爆撃機",VLOOKUP(H162,fighterlist,11,FALSE)="水上爆撃機"),ROUNDDOWN(1*(S162*SQRT(G162)+25),0),"")),"")) -> 52 | U162: =IF(OR(E160="装甲空母",E160="正規空母",E160="軽空母",E160="水上機母艦",E160="航空戦艦",E160="航空巡洋艦",E160="潜水空母"),IF(K162="艦上攻撃機",ROUNDDOWN(1.5*(R162*SQRT(G162)+25),0),IF(OR(K162="艦上爆撃機",K162="水上爆撃機"),ROUNDDOWN(1*(S162*SQRT(G162)+25),0),"")),"") -> 52 | AD162: 0 | AE162: 6
B163: [艦載機なし] | C163: 0 | G163: =IF(F160="",,VLOOKUP(F160,carrierlist,5,FALSE)&"") -> 5 | H163: 紫雲 | I163: 7 | K163: 水上偵察機 | L163: 0 | O163: 9.6 | P163: 1 | Q163: 0 | R163: 0 | S163: 1 | T163: =IF(ISERROR(VLOOKUP(H163,fighterlist,1,FALSE)),"",IF(OR(E160="装甲空母",E160="正規空母",E160="軽空母",E160="水上機母艦",E160="航空戦艦",E160="航空巡洋艦",E160="潜水空母"),IF(VLOOKUP(H163,fighterlist,11,FALSE)="艦上攻撃機",ROUNDDOWN(0.8*(R163*SQRT(G163)+25),0),IF(OR(VLOOKUP(H163,fighterlist,11,FALSE)="艦上爆撃機",VLOOKUP(H163,fighterlist,11,FALSE)="水上爆撃機"),ROUNDDOWN(1*(S163*SQRT(G163)+25),0),"")),"")) ->  | U163: =IF(OR(E160="装甲空母",E160="正規空母",E160="軽空母",E160="水上機母艦",E160="航空戦艦",E160="航空巡洋艦",E160="潜水空母"),IF(K163="艦上攻撃機",ROUNDDOWN(1.5*(R163*SQRT(G163)+25),0),IF(OR(K163="艦上爆撃機",K163="水上爆撃機"),ROUNDDOWN(1*(S163*SQRT(G163)+25),0),"")),"") ->  | AD163: 0 | AE163: 0
B164: [艦載機なし] | C164: 0 | E164: =IF(F164="","",VLOOKUP(F164,carrierlist,8,FALSE)&"") -> 軽空母 | F164: 隼鷹改二 | G164: =IF(F164="",,VLOOKUP(F164,carrierlist,2,FALSE)&"") -> 24 | H164: 流星改 | I164: 7 | K164: 艦上攻撃機 | L164: 3 | O164: 1.6 | P164: 0 | Q164: 0 | R164: 13 | S164: 0 | T164: =IF(ISERROR(VLOOKUP(H164,fighterlist,1,FALSE)),"",IF(OR(E164="装甲空母",E164="正規空母",E164="軽空母",E164="水上機母艦",E164="航空戦艦",E164="航空巡洋艦",E164="潜水空母"),IF(VLOOKUP(H164,fighterlist,11,FALSE)="艦上攻撃機",ROUNDDOWN(0.8*(R164*SQRT(G164)+25),0),IF(OR(VLOOKUP(H164,fighterlist,11,FALSE)="艦上爆撃機",VLOOKUP(H164,fighterlist,11,FALSE)="水上爆撃機"),ROUNDDOWN(1*(S164*SQRT(G164)+25),0),"")),"")) -> 70 | U164: =IF(OR(E164="装甲空母",E164="正規空母",E164="軽空母",E164="水上機母艦",E164="航空戦艦",E164="航空巡洋艦",E164="潜水空母"),IF(K164="艦上攻撃機",ROUNDDOWN(1.5*(R164*SQRT(G164)+25),0),IF(OR(K164="艦上爆撃機",K164="水上爆撃機"),ROUNDDOWN(1*(S164*SQRT(G164)+25),0),"")),"") -> 133 | V164: =IF(OR(F164="",F164="[その他]",),"",IF(F164="","",IF(OR(E164="装甲空母",E164="正規空母",E164="軽空母"),IF(SUM(R164:R167)+SUM(S164:S167)=0,0,ROUNDDOWN(55+(VLOOKUP(F164,carrierlist,6,FALSE)+SUM(Q164:Q167))*1.5+SUM(R164:R167)*1.5+SUM(S164:S167)*2,0)),ROUNDDOWN(5+VLOOKUP(F164,carrierlist,6,FALSE)+SUM(Q164:Q167),0)))) -> 173 | W164: =IF(OR(E164="潜水艦",E164="潜水空母",E164="駆逐艦",E164="軽巡洋艦",E164="重雷装巡洋艦",E164="重巡洋艦",E164="航空巡洋艦",E164="水上機母艦"),ROUNDDOWN(5+VLOOKUP(F164,carrierlist,7,FALSE)+SUM(R164:R167),0),"") ->  | X164: =IF(OR(F164="",F164="[その他]",E164="装甲空母",E164="正規空母",E164="軽空母"),"",ROUNDDOWN(VLOOKUP(F164,carrierlist,6,FALSE)+VLOOKUP(F164,carrierlist,7,FALSE)+SUM(Q164:R167),0)) ->  | Y164: =IF(OR(AP164>=2,AK164>=3,AND(AK164=2,AL164>=1),AND(AK164>=1,AK164<=2,AP164>=1)),"カットイン",IF(OR(AND(AK164=2,AL164=0,AP164=0),AND(AK164=1,AL164>=1,AP164=0),AND(AK164=0,AL164>=2,AP164<=1)),"連撃","")) ->  | Z164: =IF(AP164>=2,ROUNDDOWN(X164*1.5,0)&"×2",IF(AH164>=3,X164*2,IF(AND(AH164=2,AL164>=1),ROUNDDOWN(X164*1.75,0),IF(AND(AH164>=1,AH164<=2,AP164>=1),ROUNDDOWN(X164*1.3,0)&"×2",IF(Y164="連撃",ROUNDDOWN(X164*1.2,0)&"×2",""))))) ->  | AB164: =IF(Y164="連撃",0.99,IF(Y164="",0,SQRT(VLOOKUP(BJ164,ci_coefficient,2,FALSE)*IF(BI164>BK164,BK164,BI164))*0.01+0.05*IF(BF184>=1,1,0)+0.05*IF(BG184>=1,1-(0.5)^BG184,0))) -> 0 | AD164: 0 | AE164: 3 | AF164: =IF(BD164=0,"",ROUNDDOWN((SQRT(AC164)*2+SUM(AE164:AE167)*1.5+SUM(AD164:AD167)+BD164)*BE164,1)) -> 21.5 | AH164: =IF($K164="大口径主砲",1,0)+IF($K165="大口径主砲",1,0)+IF($K166="大口径主砲",1,0)+IF($K167="大口径主砲",1,0) -> 0 | AI164: =IF($K164="中口径主砲",1,0)+IF($K165="中口径主砲",1,0)+IF($K166="中口径主砲",1,0)+IF($K167="中口径主砲",1,0) -> 0 | AJ164: =IF($K164="小口径主砲",1,0)+IF($K165="小口径主砲",1,0)+IF($K166="小口径主砲",1,0)+IF($K167="小口径主砲",1,0) -> 0 | AK164: =AH164+AI164+AJ164 -> 0 | AL164: =IF($K164="副砲",1,0)+IF($K165="副砲",1,0)+IF($K166="副砲",1,0)+IF($K167="副砲",1,0) -> 0 | AM164: =IF($K164="大型電探",1,0)+IF($K165="大型電探",1,0)+IF($K166="大型電探",1,0)+IF($K167="大型電探",1,0) -> 0 | AN164: =IF($K164="小型電探",1,0)+IF($K165="小型電探",1,0)+IF($K166="小型電探",1,0)+IF($K167="小型電探",1,0) -> 0 | AO164: =AM164+AN164 -> 0 | AP164: =IF($K164="魚雷",1,0)+IF($K165="魚雷",1,0)+IF($K166="魚雷",1,0)+IF($K167="魚雷",1,0) -> 0 | AQ164: =IF($K164="対艦強化弾",1,0)+IF($K165="対艦強化弾",1,0)+IF($K166="対艦強化弾",1,0)+IF($K167="対艦強化弾",1,0) -> 0 | AR164: =IF(OR($K164="水上偵察機",$K164="水上爆撃機"),1,0)+IF(OR($K165="水上偵察機",$K165="水上爆撃機"),1,0)+IF(OR($K166="水上偵察機",$K166="水上爆撃機"),1,0)+IF(OR($K167="水上偵察機",$K167="水上爆撃機"),1,0) -> 0 | AS164: =IF($K164="爆雷",1,0)+IF($K165="爆雷",1,0)+IF($K166="爆雷",1,0)+IF($K167="爆雷",1,0) -> 0 | AT164: =IF($K164="ソナー",1,0)+IF($K165="ソナー",1,0)+IF($K166="ソナー",1,0)+IF($K167="ソナー",1,0) -> 0 | AU164: =IF(OR($K164="オートジャイロ",$K164="対潜哨戒機"),1,0)+IF(OR($K165="オートジャイロ",$K165="対潜哨戒機"),1,0)+IF(OR($K166="オートジャイロ",$K166="対潜哨戒機"),1,0)+IF(OR($K167="オートジャイロ",$K167="対潜哨戒機"),1,0) -> 0 | AV164: =IF($K164="艦上爆撃機",1,0)+IF($K165="艦上爆撃機",1,0)+IF($K166="艦上爆撃機",1,0)+IF($K167="艦上爆撃機",1,0) -> 0 | AW164: =IF($K164="艦上攻撃機",1,0)+IF($K165="艦上攻撃機",1,0)+IF($K166="艦上攻撃機",1,0)+IF($K167="艦上攻撃機",1,0) -> 3 | AX164: =IF($K164="大型飛行艇",1,0)+IF($K165="大型飛行艇",1,0)+IF($K166="大型飛行艇",1,0)+IF($K167="大型飛行艇",1,0) -> 0 | AY164: =IF($K164="水上爆撃機",1,0)+IF($K165="水上爆撃機",1,0)+IF($K166="水上爆撃機",1,0)+IF($K167="水上爆撃機",1,0) -> 0 | AZ164: =SUM(AV164:AY167) -> 3 | BA164: =SUM(AU164:AY167) -> 3 | BB164: =IF(AZ164>0,4,IF(BA164>0,3,2)) -> 4 | BC164: =IF(ISERROR(VLOOKUP(F164,antisubmarine_ex,1,FALSE)),E164,VLOOKUP(F164,antisubmarine_ex,2,FALSE)&"") -> 軽空母 | BD164: =IF(ISERROR(VLOOKUP(BC164,antisubmarine,BB164,FALSE)),0,VLOOKUP(BC164,antisubmarine,BB164,FALSE)) -> 8 | BE164: =IF(AND(AS164>0,AT164>0),1.15,1) -> 1 | BF164: =IF(H164="探照灯",1,0)+IF(H165="探照灯",1,0)+IF(H166="探照灯",1,0)+IF(H167="探照灯",1,0) -> 0 | BG164: =IF(H164="照明弾",1,0)+IF(H165="照明弾",1,0)+IF(H166="照明弾",1,0)+IF(H167="照明弾",1,0) -> 0 | BH164: =IF(H164="熟練見張員",1,0)+IF(H165="熟練見張員",1,0)+IF(H166="熟練見張員",1,0)+IF(H167="熟練見張員",1,0) -> 0 | BI164: =AA164+BH164*VLOOKUP("運",watcher,2,FALSE) -> 0 | BJ164: =IF(AP164>=2,"魚雷",IF(AH164+AI164+AJ164>=3,"主砲",IF(AND(AH164+AI164+AJ164=2,AL164>=1),"主砲副砲",IF(OR(AND(AH164+AI164+AJ164=1,AP164=1),AND(AH164+AI164+AJ164=2,AL164=0,AP164=1)),"主砲魚雷",0)))) -> 0 | BK164: =IF(AP164>=2,VLOOKUP("魚雷",luck_cap,2,FALSE),IF(AH164+AI164+AJ164>=3,VLOOKUP("主砲",luck_cap,2,FALSE),IF(AND(AH164+AI164+AJ164=2,AL164>=1),VLOOKUP("主砲副砲",luck_cap,2,FALSE),IF(OR(AND(AH164+AI164+AJ164=1,AP164=1),AND(AH164+AI164+AJ164=2,AL164=0,AP164=1)),VLOOKUP("主砲魚雷",luck_cap,2,FALSE),0)))) -> 0 | BL164: =IF(H164="ドラム缶",1,0)+IF(H165="ドラム缶",1,0)+IF(H166="ドラム缶",1,0)+IF(H167="ドラム缶",1,0) -> 0
B165: 敵制空合計 | C165: =SUM(C159:C164) -> 28 | G165: =IF(F164="",,VLOOKUP(F164,carrierlist,3,FALSE)&"") -> 18 | H165: 流星改 | I165: 7 | K165: 艦上攻撃機 | L165: 3 | O165: 1.6 | P165: 0 | Q165: 0 | R165: 13 | S165: 0 | T165: =IF(ISERROR(VLOOKUP(H165,fighterlist,1,FALSE)),"",IF(OR(E164="装甲空母",E164="正規空母",E164="軽空母",E164="水上機母艦",E164="航空戦艦",E164="航空巡洋艦",E164="潜水空母"),IF(VLOOKUP(H165,fighterlist,11,FALSE)="艦上攻撃機",ROUNDDOWN(0.8*(R165*SQRT(G165)+25),0),IF(OR(VLOOKUP(H165,fighterlist,11,FALSE)="艦上爆撃機",VLOOKUP(H165,fighterlist,11,FALSE)="水上爆撃機"),ROUNDDOWN(1*(S165*SQRT(G165)+25),0),"")),"")) -> 64 | U165: =IF(OR(E164="装甲空母",E164="正規空母",E164="軽空母",E164="水上機母艦",E164="航空戦艦",E164="航空巡洋艦",E164="潜水空母"),IF(K165="艦上攻撃機",ROUNDDOWN(1.5*(R165*SQRT(G165)+25),0),IF(OR(K165="艦上爆撃機",K165="水上爆撃機"),ROUNDDOWN(1*(S165*SQRT(G165)+25),0),"")),"") -> 120 | AD165: 0 | AE165: 3
B166: 航空優勢 | C166: =ROUNDUP(C165*1.5,0) -> 42 | G166: =IF(F164="",,VLOOKUP(F164,carrierlist,4,FALSE)&"") -> 20 | H166: 流星改 | I166: 7 | K166: 艦上攻撃機 | L166: 3 | O166: 1.6 | P166: 0 | Q166: 0 | R166: 13 | S166: 0 | T166: =IF(ISERROR(VLOOKUP(H166,fighterlist,1,FALSE)),"",IF(OR(E164="装甲空母",E164="正規空母",E164="軽空母",E164="水上機母艦",E164="航空戦艦",E164="航空巡洋艦",E164="潜水空母"),IF(VLOOKUP(H166,fighterlist,11,FALSE)="艦上攻撃機",ROUNDDOWN(0.8*(R166*SQRT(G166)+25),0),IF(OR(VLOOKUP(H166,fighterlist,11,FALSE)="艦上爆撃機",VLOOKUP(H166,fighterlist,11,FALSE)="水上爆撃機"),ROUNDDOWN(1*(S166*SQRT(G166)+25),0),"")),"")) -> 66 | U166: =IF(OR(E164="装甲空母",E164="正規空母",E164="軽空母",E164="水上機母艦",E164="航空戦艦",E164="航空巡洋艦",E164="潜水空母"),IF(K166="艦上攻撃機",ROUNDDOWN(1.5*(R166*SQRT(G166)+25),0),IF(OR(K166="艦上爆撃機",K166="水上爆撃機"),ROUNDDOWN(1*(S166*SQRT(G166)+25),0),"")),"") -> 124 | AD166: 0 | AE166: 3
B167: 制空権確保 | C167: =C165*3 -> 84 | G167: =IF(F164="",,VLOOKUP(F164,carrierlist,5,FALSE)&"") -> 4 | H167: 彩雲 | I167: 7 | K167: 艦上偵察機 | L167: 0 | O167: 9 | P167: 2 | Q167: 0 | R167: 0 | S167: 0 | T167: =IF(ISERROR(VLOOKUP(H167,fighterlist,1,FALSE)),"",IF(OR(E164="装甲空母",E164="正規空母",E164="軽空母",E164="水上機母艦",E164="航空戦艦",E164="航空巡洋艦",E164="潜水空母"),IF(VLOOKUP(H167,fighterlist,11,FALSE)="艦上攻撃機",ROUNDDOWN(0.8*(R167*SQRT(G167)+25),0),IF(OR(VLOOKUP(H167,fighterlist,11,FALSE)="艦上爆撃機",VLOOKUP(H167,fighterlist,11,FALSE)="水上爆撃機"),ROUNDDOWN(1*(S167*SQRT(G167)+25),0),"")),"")) ->  | U167: =IF(OR(E164="装甲空母",E164="正規空母",E164="軽空母",E164="水上機母艦",E164="航空戦艦",E164="航空巡洋艦",E164="潜水空母"),IF(K167="艦上攻撃機",ROUNDDOWN(1.5*(R167*SQRT(G167)+25),0),IF(OR(K167="艦上爆撃機",K167="水上爆撃機"),ROUNDDOWN(1*(S167*SQRT(G167)+25),0),"")),"") ->  | AD167: 0 | AE167: 0
E168: =IF(F168="","",VLOOKUP(F168,carrierlist,8,FALSE)&"") -> 軽空母 | F168: 飛鷹改 | G168: =IF(F168="",,VLOOKUP(F168,carrierlist,2,FALSE)&"") -> 18 | H168: 流星改 | I168: 7 | K168: 艦上攻撃機 | L168: 3 | O168: 1.6 | P168: 0 | Q168: 0 | R168: 13 | S168: 0 | T168: =IF(ISERROR(VLOOKUP(H168,fighterlist,1,FALSE)),"",IF(OR(E168="装甲空母",E168="正規空母",E168="軽空母",E168="水上機母艦",E168="航空戦艦",E168="航空巡洋艦",E168="潜水空母"),IF(VLOOKUP(H168,fighterlist,11,FALSE)="艦上攻撃機",ROUNDDOWN(0.8*(R168*SQRT(G168)+25),0),IF(OR(VLOOKUP(H168,fighterlist,11,FALSE)="艦上爆撃機",VLOOKUP(H168,fighterlist,11,FALSE)="水上爆撃機"),ROUNDDOWN(1*(S168*SQRT(G168)+25),0),"")),"")) -> 64 | U168: =IF(OR(E168="装甲空母",E168="正規空母",E168="軽空母",E168="水上機母艦",E168="航空戦艦",E168="航空巡洋艦",E168="潜水空母"),IF(K168="艦上攻撃機",ROUNDDOWN(1.5*(R168*SQRT(G168)+25),0),IF(OR(K168="艦上爆撃機",K168="水上爆撃機"),ROUNDDOWN(1*(S168*SQRT(G168)+25),0),"")),"") -> 120 | V168: =IF(OR(F168="",F168="[その他]",),"",IF(F168="","",IF(OR(E168="装甲空母",E168="正規空母",E168="軽空母"),IF(SUM(R168:R171)+SUM(S168:S171)=0,0,ROUNDDOWN(55+(VLOOKUP(F168,carrierlist,6,FALSE)+SUM(Q168:Q171))*1.5+SUM(R168:R171)*1.5+SUM(S168:S171)*2,0)),ROUNDDOWN(5+VLOOKUP(F168,carrierlist,6,FALSE)+SUM(Q168:Q171),0)))) -> 157 | W168: =IF(OR(E168="潜水艦",E168="潜水空母",E168="駆逐艦",E168="軽巡洋艦",E168="重雷装巡洋艦",E168="重巡洋艦",E168="航空巡洋艦",E168="水上機母艦"),ROUNDDOWN(5+VLOOKUP(F168,carrierlist,7,FALSE)+SUM(R168:R171),0),"") ->  | X168: =IF(OR(F168="",F168="[その他]",E168="装甲空母",E168="正規空母",E168="軽空母"),"",ROUNDDOWN(VLOOKUP(F168,carrierlist,6,FALSE)+VLOOKUP(F168,carrierlist,7,FALSE)+SUM(Q168:R171),0)) ->  | Y168: =IF(OR(AP168>=2,AK168>=3,AND(AK168=2,AL168>=1),AND(AK168>=1,AK168<=2,AP168>=1)),"カットイン",IF(OR(AND(AK168=2,AL168=0,AP168=0),AND(AK168=1,AL168>=1,AP168=0),AND(AK168=0,AL168>=2,AP168<=1)),"連撃","")) ->  | Z168: =IF(AP168>=2,ROUNDDOWN(X168*1.5,0)&"×2",IF(AH168>=3,X168*2,IF(AND(AH168=2,AL168>=1),ROUNDDOWN(X168*1.75,0),IF(AND(AH168>=1,AH168<=2,AP168>=1),ROUNDDOWN(X168*1.3,0)&"×2",IF(Y168="連撃",ROUNDDOWN(X168*1.2,0)&"×2",""))))) ->  | AB168: =IF(Y168="連撃",0.99,IF(Y168="",0,SQRT(VLOOKUP(BJ168,ci_coefficient,2,FALSE)*IF(BI168>BK168,BK168,BI168))*0.01+0.05*IF(BF184>=1,1,0)+0.05*IF(BG184>=1,1-(0.5)^BG184,0))) -> 0 | AD168: 0 | AE168: 3 | AF168: =IF(BD168=0,"",ROUNDDOWN((SQRT(AC168)*2+SUM(AE168:AE171)*1.5+SUM(AD168:AD171)+BD168)*BE168,1)) -> 21.5 | AH168: =IF($K168="大口径主砲",1,0)+IF($K169="大口径主砲",1,0)+IF($K170="大口径主砲",1,0)+IF($K171="大口径主砲",1,0) -> 0 | AI168: =IF($K168="中口径主砲",1,0)+IF($K169="中口径主砲",1,0)+IF($K170="中口径主砲",1,0)+IF($K171="中口径主砲",1,0) -> 0 | AJ168: =IF($K168="小口径主砲",1,0)+IF($K169="小口径主砲",1,0)+IF($K170="小口径主砲",1,0)+IF($K171="小口径主砲",1,0) -> 0 | AK168: =AH168+AI168+AJ168 -> 0 | AL168: =IF($K168="副砲",1,0)+IF($K169="副砲",1,0)+IF($K170="副砲",1,0)+IF($K171="副砲",1,0) -> 0 | AM168: =IF($K168="大型電探",1,0)+IF($K169="大型電探",1,0)+IF($K170="大型電探",1,0)+IF($K171="大型電探",1,0) -> 0 | AN168: =IF($K168="小型電探",1,0)+IF($K169="小型電探",1,0)+IF($K170="小型電探",1,0)+IF($K171="小型電探",1,0) -> 0 | AO168: =AM168+AN168 -> 0 | AP168: =IF($K168="魚雷",1,0)+IF($K169="魚雷",1,0)+IF($K170="魚雷",1,0)+IF($K171="魚雷",1,0) -> 0 | AQ168: =IF($K168="対艦強化弾",1,0)+IF($K169="対艦強化弾",1,0)+IF($K170="対艦強化弾",1,0)+IF($K171="対艦強化弾",1,0) -> 0 | AR168: =IF(OR($K168="水上偵察機",$K168="水上爆撃機"),1,0)+IF(OR($K169="水上偵察機",$K169="水上爆撃機"),1,0)+IF(OR($K170="水上偵察機",$K170="水上爆撃機"),1,0)+IF(OR($K171="水上偵察機",$K171="水上爆撃機"),1,0) -> 0 | AS168: =IF($K168="爆雷",1,0)+IF($K169="爆雷",1,0)+IF($K170="爆雷",1,0)+IF($K171="爆雷",1,0) -> 0 | AT168: =IF($K168="ソナー",1,0)+IF($K169="ソナー",1,0)+IF($K170="ソナー",1,0)+IF($K171="ソナー",1,0) -> 0 | AU168: =IF(OR($K168="オートジャイロ",$K168="対潜哨戒機"),1,0)+IF(OR($K169="オートジャイロ",$K169="対潜哨戒機"),1,0)+IF(OR($K170="オートジャイロ",$K170="対潜哨戒機"),1,0)+IF(OR($K171="オートジャイロ",$K171="対潜哨戒機"),1,0) -> 0 | AV168: =IF($K168="艦上爆撃機",1,0)+IF($K169="艦上爆撃機",1,0)+IF($K170="艦上爆撃機",1,0)+IF($K171="艦上爆撃機",1,0) -> 0 | AW168: =IF($K168="艦上攻撃機",1,0)+IF($K169="艦上攻撃機",1,0)+IF($K170="艦上攻撃機",1,0)+IF($K171="艦上攻撃機",1,0) -> 3 | AX168: =IF($K168="大型飛行艇",1,0)+IF($K169="大型飛行艇",1,0)+IF($K170="大型飛行艇",1,0)+IF($K171="大型飛行艇",1,0) -> 0 | AY168: =IF($K168="水上爆撃機",1,0)+IF($K169="水上爆撃機",1,0)+IF($K170="水上爆撃機",1,0)+IF($K171="水上爆撃機",1,0) -> 0 | AZ168: =SUM(AV168:AY171) -> 3 | BA168: =SUM(AU168:AY171) -> 3 | BB168: =IF(AZ168>0,4,IF(BA168>0,3,2)) -> 4 | BC168: =IF(ISERROR(VLOOKUP(F168,antisubmarine_ex,1,FALSE)),E168,VLOOKUP(F168,antisubmarine_ex,2,FALSE)&"") -> 軽空母 | BD168: =IF(ISERROR(VLOOKUP(BC168,antisubmarine,BB168,FALSE)),0,VLOOKUP(BC168,antisubmarine,BB168,FALSE)) -> 8 | BE168: =IF(AND(AS168>0,AT168>0),1.15,1) -> 1 | BF168: =IF(H168="探照灯",1,0)+IF(H169="探照灯",1,0)+IF(H170="探照灯",1,0)+IF(H171="探照灯",1,0) -> 0 | BG168: =IF(H168="照明弾",1,0)+IF(H169="照明弾",1,0)+IF(H170="照明弾",1,0)+IF(H171="照明弾",1,0) -> 0 | BH168: =IF(H168="熟練見張員",1,0)+IF(H169="熟練見張員",1,0)+IF(H170="熟練見張員",1,0)+IF(H171="熟練見張員",1,0) -> 0 | BI168: =AA168+BH168*VLOOKUP("運",watcher,2,FALSE) -> 0 | BJ168: =IF(AP168>=2,"魚雷",IF(AH168+AI168+AJ168>=3,"主砲",IF(AND(AH168+AI168+AJ168=2,AL168>=1),"主砲副砲",IF(OR(AND(AH168+AI168+AJ168=1,AP168=1),AND(AH168+AI168+AJ168=2,AL168=0,AP168=1)),"主砲魚雷",0)))) -> 0 | BK168: =IF(AP168>=2,VLOOKUP("魚雷",luck_cap,2,FALSE),IF(AH168+AI168+AJ168>=3,VLOOKUP("主砲",luck_cap,2,FALSE),IF(AND(AH168+AI168+AJ168=2,AL168>=1),VLOOKUP("主砲副砲",luck_cap,2,FALSE),IF(OR(AND(AH168+AI168+AJ168=1,AP168=1),AND(AH168+AI168+AJ168=2,AL168=0,AP168=1)),VLOOKUP("主砲魚雷",luck_cap,2,FALSE),0)))) -> 0 | BL168: =IF(H168="ドラム缶",1,0)+IF(H169="ドラム缶",1,0)+IF(H170="ドラム缶",1,0)+IF(H171="ドラム缶",1,0) -> 0
B169: 遭遇する制空最高艦隊 | G169: =IF(F168="",,VLOOKUP(F168,carrierlist,3,FALSE)&"") -> 18 | H169: 流星改 | I169: 7 | K169: 艦上攻撃機 | L169: 3 | O169: 1.6 | P169: 0 | Q169: 0 | R169: 13 | S169: 0 | T169: =IF(ISERROR(VLOOKUP(H169,fighterlist,1,FALSE)),"",IF(OR(E168="装甲空母",E168="正規空母",E168="軽空母",E168="水上機母艦",E168="航空戦艦",E168="航空巡洋艦",E168="潜水空母"),IF(VLOOKUP(H169,fighterlist,11,FALSE)="艦上攻撃機",ROUNDDOWN(0.8*(R169*SQRT(G169)+25),0),IF(OR(VLOOKUP(H169,fighterlist,11,FALSE)="艦上爆撃機",VLOOKUP(H169,fighterlist,11,FALSE)="水上爆撃機"),ROUNDDOWN(1*(S169*SQRT(G169)+25),0),"")),"")) -> 64 | U169: =IF(OR(E168="装甲空母",E168="正規空母",E168="軽空母",E168="水上機母艦",E168="航空戦艦",E168="航空巡洋艦",E168="潜水空母"),IF(K169="艦上攻撃機",ROUNDDOWN(1.5*(R169*SQRT(G169)+25),0),IF(OR(K169="艦上爆撃機",K169="水上爆撃機"),ROUNDDOWN(1*(S169*SQRT(G169)+25),0),"")),"") -> 120 | AD169: 0 | AE169: 3
B170: 艦種 | C170: 制空値 | G170: =IF(F168="",,VLOOKUP(F168,carrierlist,4,FALSE)&"") -> 18 | H170: 流星改 | I170: 7 | K170: 艦上攻撃機 | L170: 3 | O170: 1.6 | P170: 0 | Q170: 0 | R170: 13 | S170: 0 | T170: =IF(ISERROR(VLOOKUP(H170,fighterlist,1,FALSE)),"",IF(OR(E168="装甲空母",E168="正規空母",E168="軽空母",E168="水上機母艦",E168="航空戦艦",E168="航空巡洋艦",E168="潜水空母"),IF(VLOOKUP(H170,fighterlist,11,FALSE)="艦上攻撃機",ROUNDDOWN(0.8*(R170*SQRT(G170)+25),0),IF(OR(VLOOKUP(H170,fighterlist,11,FALSE)="艦上爆撃機",VLOOKUP(H170,fighterlist,11,FALSE)="水上爆撃機"),ROUNDDOWN(1*(S170*SQRT(G170)+25),0),"")),"")) -> 64 | U170: =IF(OR(E168="装甲空母",E168="正規空母",E168="軽空母",E168="水上機母艦",E168="航空戦艦",E168="航空巡洋艦",E168="潜水空母"),IF(K170="艦上攻撃機",ROUNDDOWN(1.5*(R170*SQRT(G170)+25),0),IF(OR(K170="艦上爆撃機",K170="水上爆撃機"),ROUNDDOWN(1*(S170*SQRT(G170)+25),0),"")),"") -> 120 | AD170: 0 | AE170: 3
B171: [艦載機なし] | C171: =IF(B171="","",VLOOKUP(B171,enemyforcelist,2,FALSE)) -> 0 | G171: =IF(F168="",,VLOOKUP(F168,carrierlist,5,FALSE)&"") -> 12 | H171: 烈風 | K171: 艦上戦闘機 | L171: 34 | O171: 0 | P171: 0 | Q171: 0 | R171: 0 | S171: 0 | T171: =IF(ISERROR(VLOOKUP(H171,fighterlist,1,FALSE)),"",IF(OR(E168="装甲空母",E168="正規空母",E168="軽空母",E168="水上機母艦",E168="航空戦艦",E168="航空巡洋艦",E168="潜水空母"),IF(VLOOKUP(H171,fighterlist,11,FALSE)="艦上攻撃機",ROUNDDOWN(0.8*(R171*SQRT(G171)+25),0),IF(OR(VLOOKUP(H171,fighterlist,11,FALSE)="艦上爆撃機",VLOOKUP(H171,fighterlist,11,FALSE)="水上爆撃機"),ROUNDDOWN(1*(S171*SQRT(G171)+25),0),"")),"")) ->  | U171: =IF(OR(E168="装甲空母",E168="正規空母",E168="軽空母",E168="水上機母艦",E168="航空戦艦",E168="航空巡洋艦",E168="潜水空母"),IF(K171="艦上攻撃機",ROUNDDOWN(1.5*(R171*SQRT(G171)+25),0),IF(OR(K171="艦上爆撃機",K171="水上爆撃機"),ROUNDDOWN(1*(S171*SQRT(G171)+25),0),"")),"") ->  | AD171: 0 | AE171: 0
